Workbook

Sheet Control
C2: Overwrite OUTPUTs | D2: TRUE
C3: SDG&E_EUL | D3: FALSE
C4: PGE_Quarterly | D4: TRUE
C5: InRows | D5: 1000
C6: MasterRows | D6: 1000
C7: File Suffix | D7: -1
C11: # of Files | D11: 3 | E11: NumFiles
C12: Export Directory Path
D13: FileNames
C14: Directory Path to Use for Import Files Include the "\" at the end of the string. Do not include quotation marks. e.g: D:\June 1 Folder\Spreadsheets\ | D14: Enter file names below. Maximum of 80. Do not include the directory path or quotation marks. e.g.: PG&E Mass1.xls | F14: ErrorLog
E15: NameStart

Sheet Input
B1: PG&E 2013 v1c6-Draft.xls | F1: Program Budget ($) | Q1: Import file format 5
F2: a. Administrative Costs | G2: =StartYr -> 2013 | H2: =G2+1 -> 2014 | I2: =H2+1 -> 2015 | J2: NPV | N2: Nominal | O2: Nominal | P2: Nominal
B3: Proposer General Information | F3: a.i. Overhead and G&A | I3: 45000 | J3: =NPV(Calcs!$C$3,Input!H3:I3)+G3 -> 41798.25376 | K3: d. Incentives and Rebates ($) | N3: =StartYr -> 2013 | O3: =N3+1 -> 2014 | P3: =O3+1 -> 2015 | Q3: NPV | S3: Market Effects Adjustments
B4: Proposer Name | F4: a.ii. Other Admin costs | J4: =NPV(Calcs!$C$3,Input!H4:I4)+G4 -> 0 | K4: d.i. User Input Incentive (treated like admin cost) | N4: 0 | O4: 0 | Q4: =NPV(Calcs!$C$3,Input!O4:P4)+N4 -> 0 | S4: Adjustment type | U4: Uniform
B5: Program Name | D5: MEA01 2013-14 MF | F5: b. Marketing/Outreach | I5: 61356.46 | J5: =NPV(Calcs!$C$3,Input!H5:I5)+G5 -> 56990.953 | K5: d.ii. Rebate | N5: =SUMPRODUCT($M17:$M1016,AX$17:AX$1016) -> 0 | O5: =SUMPRODUCT($M17:$M1016,AY$17:AY$1016) -> 0 | P5: =SUMPRODUCT($M17:$M1016,AZ$17:AZ$1016) -> 207628.0104 | S5: Enter Custom values in columns AO through AT
B6: Service Territory | D6: PG&E | F6: c. Direct Implementation (non incentive) | K6: d.iii. Direct Install Labor | N6: =SUMPRODUCT($O$17:$O$1016,AX$17:AX$1016) -> 0 | O6: =SUMPRODUCT($O$17:$O$1016,AY$17:AY$1016) -> 0 | P6: =SUMPRODUCT($O$17:$O$1016,AZ$17:AZ$1016) -> 24714.44 | S6: Uniform Factors to apply to all measures
B7: First Year of Program Implementation | E7: 2013 | F7: c.i. Activity | I7: 183824.08 | J7: =NPV(Calcs!$C$3,Input!H7:I7)+G7 -> 170745.0121 | K7: d.iv. Direct Install Materials | N7: =SUMPRODUCT($P$17:$P$1016,AX$17:AX$1016) -> 0 | O7: =SUMPRODUCT($P$17:$P$1016,AY$17:AY$1016) -> 0 | P7: =SUMPRODUCT($P$17:$P$1016,AZ$17:AZ$1016) -> 8702.6 | T7: Benefit Adj | U7: Cost Adj
B8: Contact Information | F8: c.ii. Installation | J8: =NPV(Calcs!$C$3,Input!H8:I8)+G8 -> 0 | K8: d.v. Upstream payments | N8: =SUMPRODUCT($N$17:$N$1016,AX$17:AX$1016) -> 0 | O8: =SUMPRODUCT($N$17:$N$1016,AY$17:AY$1016) -> 0 | P8: =SUMPRODUCT($N$17:$N$1016,AZ$17:AZ$1016) -> 0 | S8: Participant Inside
B9: Name | F9: c.iii. Hardware & Materials | J9: =NPV(Calcs!$C$3,Input!H9:I9)+G9 -> 0 | K9: Subtotal Incentives and Rebates | N9: =SUM(N4:N8) -> 0 | O9: =SUM(O4:O8) -> 0 | P9: =SUM(P4:P8) -> 241045.0504 | Q9: =Calcs!FZ1018+Q4 -> 197378.1901 | S9: Participant Outside
B10: Address | F10: c.iv. Rebate Processing and Inspection | J10: =NPV(Calcs!$C$3,Input!H10:I10)+G10 -> 0 | S10: Non-participant | BJ10: Formulas for spreading annual installations to quarters
B11: ZIP code | F11: d. Total Incentives and Rebates | G11: =N9 -> 0 | H11: =O9 -> 0 | I11: =P9 -> 241045.0504 | J11: =Q9 -> 197378.1901 | S11: Total Factor | T11: =SUM(T8:T10) -> 0 | U11: =SUM(U8:U10) -> 0 | BJ11: =$AX11/4 -> 0 | BK11: =$AX11/4 -> 0 | BL11: =$AX11/4 -> 0 | BM11: =$AX11/4 -> 0 | BN11: =$AY11/4 -> 0 | BO11: =$AY11/4 -> 0 | BP11: =$AY11/4 -> 0 | BQ11: =$AY11/4 -> 0 | BR11: =$AZ11/4 -> 0 | BS11: =$AZ11/4 -> 0 | BT11: =$AZ11/4 -> 0 | BU11: =$AZ11/4 -> 0 | BV11: =$BA11/4 -> 0 | BW11: =$BA11/4 -> 0 | BX11: =$BA11/4 -> 0 | BY11: =$BA11/4 -> 0 | BZ11: =$BB11/4 -> 0 | CA11: =$BB11/4 -> 0 | CB11: =$BB11/4 -> 0 | CC11: =$BB11/4 -> 0 | CD11: =$BC11/4 -> 0 | CE11: =$BC11/4 -> 0 | CF11: =$BC11/4 -> 0 | CG11: =$BC11/4 -> 0 | CH11: =$BD11/4 -> 0 | CI11: =$BD11/4 -> 0 | CJ11: =$BD11/4 -> 0 | CK11: =$BD11/4 -> 0 | CL11: =$BE11/4 -> 0 | CM11: =$BE11/4 -> 0 | CN11: =$BE11/4 -> 0 | CO11: =$BE11/4 -> 0 | CP11: =$BF11/4 -> 0 | CQ11: =$BF11/4 -> 0 | CR11: =$BF11/4 -> 0 | CS11: =$BF11/4 -> 0 | CT11: =$BG11/4 -> 0 | CU11: =$BG11/4 -> 0 | CV11: =$BG11/4 -> 0 | CW11: =$BG11/4 -> 0 | CX11: =$BH11/4 -> 0 | CY11: =$BH11/4 -> 0 | CZ11: =$BH11/4 -> 0 | DA11: =$BH11/4 -> 0
B12: Telephone | F12: e. EM&V | J12: =NPV(Calcs!$C$3,Input!H12:I12)+G12 -> 0 | K12: f. Costs recovered from other sources | Q12: =NPV(Calcs!$C$3,Input!N12:P12) -> 0
B13: Email | F13: Total | G13: =SUM(G3:G12) -> 0 | H13: =SUM(H3:H12) -> 0 | I13: =SUM(I3:I12) -> 531225.5904 | J13: =SUM(J3:J12) -> 466912.409 | K13: Program Budget w/ Other Costs (a to f) | N13: =N12+G13 -> 0 | O13: =O12+H13 -> 0 | P13: =P12+I13 -> 531225.5904 | Q13: =J13+Q12 -> 466912.409
D14: Market Sectors- Primary: | P14: Number of measures that have negative participant cost: | Q14: =COUNTIF(Q17:Q1016,"<0") -> 0 | T14: Total Excess incentive: | U14: =Calcs!FV1018 -> 0 | BJ14: Quarterly Installation Schedule
B15: Program Inputs | D15: Secondary: | M15: Transfer | N15: Admin | O15: Admin | P15: Admin | Q15: Participant | Z15: Second Baseline (For savings after the RUL) | AH15: Table Lookup Values | AM15: Benefits Adj Factors | AO15: Market Effects Adjustments | AX15: Annual Installation Schedule (enter quarterly values to the right) | BJ15: =StartYr -> 2013 | BN15: =BJ15+1 -> 2014 | BR15: =BN15+1 -> 2015 | BV15: =BR15+1 -> 2016 | BZ15: =BV15+1 -> 2017 | CD15: =BZ15+1 -> 2018 | CH15: =CD15+1 -> 2019 | CL15: =CH15+1 -> 2020 | CP15: =CL15+1 -> 2021 | CT15: =CP15+1 -> 2022 | CX15: =CT15+1 -> 2023
B16: Measure Name | C16: DEER RunID | D16: Climate Zone | E16: Target sector | F16: Measure Electric End Use Shape | G16: CZ, Sector, Measure combination found? | H16: Expected Useful Life for New/ROB, RUL for retrofit. (yrs) | I16: Program Type (To look up Net-to-gross Ratio) | J16: Unit Definition (e.g. homes) | K16: Program Type (NEW/ROB or Early Repl(RET)) | L16: Gross Measure Cost (Total Cost for Retrofit, Incr Cost for New/ROB) ($/unit) | M16: Rebate to end use customer or its assignee ($/unit) | N16: Incentives to entities other than the end use customer or its assignee($/unit) | O16: Direct Install Labor ($/unit) | P16: Direct Install Material ($/unit) | Q16: Gross Participant Cost ($/unit) | R16: Gross Unit Annual Electricity Savings (kwh/unit) | S16: Electric Rate Schedule | T16: Demand Scaler | U16: User Entered kW Savings per unit (kW/unit) | V16: Gross Unit Annual Gas Savings (therm/unit) | W16: Gas Sector | X16: Gas Rate Schedule | Y16: Gas Savings Profile | Z16: Total Life. Can be left blank for single baseline measures (Yrs) | AA16: Incremental Cost (relative to standard efficiency default device) ($/unit) | AB16: Measure Cost Inflation (%/year escalation) | AC16: Early retrofit incremental kWh savings (kWh/unit) | AD16: Early retrofit incremental kW savings (kW/unit) | AE16: Early retrofit incremental Th savings (Th/unit) | AF16: Combustion Type | AG16: =H16 -> Expected Useful Life for New/ROB, RUL for retrofit. (yrs) | AH16: Net-to-Gross Ratio - kWh | AI16: Net-to-Gross Ratio -Therms | AJ16: Net-to-Gross Ratio - kW | AK16: Net-to-Gross Ratio - Therms (overides lookup value) | AL16: Net-to-Gross Ratio - Costs | AM16: Installation Rate (Blank gets 100%) (IR) | AN16: Gross Realization Rate (Blank gets 100%) (GRR) | AO16: Benefits - Participants Inside | AP16: Benefits - Participants Outside | AQ16: Benefits- Non-participants | AR16: Costs - Participants Inside | AS16: Costs - Participants Outside | AT16: Costs- Non-participants | AU16: Total Benefits Factor | AV16: Total Cost Factor | AW16: % Eligible for TOU AC adjustment | AX16: =StartYr -> 2013 | AY16: =AX16+1 -> 2014 | AZ16: 2015 | BA16: 2016 | BB16: 2017 | BC16: 2018 | BD16: 2019 | BE16: 2020 | BF16: 2021 | BG16: 2022 | BH16: 2023 | BJ16: Qtr 1 | BK16: Qtr 2 | BL16: Qtr 3 | BM16: Qtr 4 | BN16: =BJ16 -> Qtr 1 | BO16: =BK16 -> Qtr 2 | BP16: Qtr 3 | BQ16: Qtr 4 | BR16: Qtr 1 | BS16: Qtr 2 | BT16: Qtr 3 | BU16: Qtr 4 | BV16: Qtr 1 | BW16: Qtr 2 | BX16: Qtr 3 | BY16: Qtr 4 | BZ16: Qtr 1 | CA16: Qtr 2 | CB16: Qtr 3 | CC16: Qtr 4 | CD16: =BZ16 -> Qtr 1 | CE16: Qtr 2 | CF16: Qtr 3 | CG16: Qtr 4 | CH16: Qtr 1 | CI16: Qtr 2 | CJ16: Qtr 3 | CK16: Qtr 4 | CL16: Qtr 1 | CM16: Qtr 2 | CN16: Qtr 3 | CO16: Qtr 4 | CP16: Qtr 1 | CQ16: Qtr 2 | CR16: Qtr 3 | CS16: Qtr 4 | CT16: Qtr 1 | CU16: Qtr 2 | CV16: Qtr 3 | CW16: Qtr 4 | CX16: Qtr 1 | CY16: Qtr 2 | CZ16: Qtr 3 | DA16: Qtr 4 | DB16: Total Number of Units | DC16: Comments
B19: 15% Energy Savings (pre-1980 Bldg) | D19: 3A | E19: Residential | F19: 21 = Res. Wtr. Heating | G19: =IF(ISBLANK(F19),"",NOT(ISERROR(Calcs!Z19*Calcs!AA19*Calcs!AB19))) -> TRUE | H19: 14.33 | I19: EUC-Default | J19: MF Building | K19: ROB | L19: =M19/0.3*0.5 -> 20051.42597 | M19: =(R19*0.2*0.33+R19*0.33*0.15+R19*0.33*0.4+V19*0.33*1.5+V19*0.33*1.15+V19*0.33*3)*1.35 -> 12030.85558 | Q19: =MAX(0,L19-N19-O19-P19)-M19 -> 8020.570388 | R19: =138121*0.15 -> 20718.15 | S19: Residential | T19: =Calcs!Q19 -> kWh | U19: 0 | V19: =13530*0.15 -> 2029.5 | W19: Residential | X19: Residential | Y19: Winter Only | AF19: Small Boilers (<100 MMBtu/hr Heat Input):Uncontrolled | AG19: 14.33 | AH19: 0.85 | AI19: 0.85 | AN19: 0.9 | AU19: =AO19+AP19+AQ19 -> 0 | AV19: =AR19+AS19+AT19 -> 0 | AX19: =SUM(BJ19:BM19) -> 0 | AY19: =SUM(BN19:BQ19) -> 0 | AZ19: =SUM(BR19:BU19) -> 2 | BA19: =SUM(BV19:BY19) -> 0 | BB19: =SUM(BZ19:CC19) -> 0 | BC19: =SUM(CD19:CG19) -> 0 | BD19: =SUM(CH19:CK19) -> 0 | BE19: =SUM(CL19:CO19) -> 0 | BF19: =SUM(CP19:CS19) -> 0 | BG19: =SUM(CT19:CW19) -> 0 | BH19: =SUM(CX19:DA19) -> 0 | BR19: 0 | BS19: 0 | BT19: 1 | BU19: 1 | DB19: =SUM(BJ19:DA19) -> 2
B20: 10% (1980-2000 Bldg) | D20: 3A | E20: Residential | F20: 21 = Res. Wtr. Heating | G20: =IF(ISBLANK(F20),"",NOT(ISERROR(Calcs!Z20*Calcs!AA20*Calcs!AB20))) -> TRUE | H20: 14.33 | I20: EUC-Default | J20: MF Building | K20: ROB | L20: =M20/0.3*0.5 -> 11960.54269 | M20: =(R20*0.2*0.33+R20*0.33*0.15+R20*0.33*0.4+V20*0.33*1.5+V20*0.33*1.15+V20*0.33*3)*1.35 -> 7176.325613 | Q20: =MAX(0,L20-N20-O20-P20)-M20 -> 4784.217075 | R20: =134399*0.1 -> 13439.9 | S20: Residential | T20: =Calcs!Q20 -> kWh | U20: 0 | V20: =10670*0.1 -> 1067 | W20: Residential | X20: Residential | Y20: Winter Only | AF20: Small Boilers (<100 MMBtu/hr Heat Input):Uncontrolled | AG20: 14.33 | AH20: 0.85 | AI20: 0.85 | AN20: 0.9 | AU20: 0 | AV20: 0 | AX20: =SUM(BJ20:BM20) -> 0 | AY20: =SUM(BN20:BQ20) -> 0 | AZ20: =SUM(BR20:BU20) -> 2 | BA20: =SUM(BV20:BY20) -> 0 | BB20: 0 | BC20: 0 | BD20: 0 | BE20: 0 | BF20: 0 | BG20: 0 | BH20: 0 | BR20: 1 | BS20: 1 | BT20: 0 | BU20: 0 | DB20: 2
B21: 10% (2001-2008 Bldg) | D21: 3A | E21: Residential | F21: 21 = Res. Wtr. Heating | G21: =IF(ISBLANK(F21),"",NOT(ISERROR(Calcs!Z21*Calcs!AA21*Calcs!AB21))) -> TRUE | H21: 14.33 | I21: EUC-Default | J21: MF Building | K21: ROB | L21: 11243.86684 | M21: 6746.320103 | Q21: 4497.546735 | R21: =131044*0.1 -> 13104.4 | S21: Residential | T21: =Calcs!Q21 -> kWh | U21: 0 | V21: =9407*0.1 -> 940.7 | W21: Residential | X21: Residential | Y21: Winter Only | AF21: Small Boilers (<100 MMBtu/hr Heat Input):Uncontrolled | AG21: 14.33 | AH21: 0.85 | AI21: 0.85 | AN21: 0.9 | AU21: 0 | AV21: 0 | AX21: 0 | AY21: 0 | AZ21: 3 | BA21: 0 | BB21: 0 | BC21: 0 | BD21: 0 | BE21: 0 | BF21: 0 | BG21: 0 | BH21: 0 | BR21: 1 | BS21: 0 | BT21: 1 | BU21: 1 | DB21: 3
B22: 15% Energy Savings (pre-1980 Bldg) | D22: 2 | E22: Residential | F22: 21 = Res. Wtr. Heating | G22: =IF(ISBLANK(F22),"",NOT(ISERROR(Calcs!Z22*Calcs!AA22*Calcs!AB22))) -> TRUE | H22: 14.33 | I22: EUC-Default | J22: MF Building | K22: ROB | L22: 20051.42597 | M22: =(R22*0.2*0.33+R22*0.33*0.15+R22*0.33*0.4+V22*0.33*1.5+V22*0.33*1.15+V22*0.33*3)*1.35 -> 12030.85558 | Q22: =MAX(0,L22-N22-O22-P22)-M22 -> 8020.570388 | R22: =138121*0.15 -> 20718.15 | S22: Residential | T22: =Calcs!Q22 -> kWh | U22: 0 | V22: =13530*0.15 -> 2029.5 | W22: Residential | X22: Residential | Y22: Winter Only | AF22: Small Boilers (<100 MMBtu/hr Heat Input):Uncontrolled | AG22: 14.33 | AH22: 0.85 | AI22: 0.85 | AN22: 0.9 | AX22: =SUM(BJ22:BM22) -> 0 | AY22: =SUM(BN22:BQ22) -> 0 | AZ22: =SUM(BR22:BU22) -> 4 | BA22: =SUM(BV22:BY22) -> 0 | BB22: =SUM(BZ22:CC22) -> 0 | BC22: =SUM(CD22:CG22) -> 0 | BD22: =SUM(CH22:CK22) -> 0 | BE22: =SUM(CL22:CO22) -> 0 | BF22: =SUM(CP22:CS22) -> 0 | BR22: 1 | BS22: 1 | BT22: 1 | BU22: 1 | DB22: =SUM(BJ22:DA22) -> 4
B23: 10% (1980-2000 Bldg) | D23: 2 | E23: Residential | F23: 21 = Res. Wtr. Heating | G23: =IF(ISBLANK(F23),"",NOT(ISERROR(Calcs!Z23*Calcs!AA23*Calcs!AB23))) -> TRUE | H23: 14.33 | I23: EUC-Default | J23: MF Building | K23: ROB | L23: 11960.54269 | M23: =(R23*0.2*0.33+R23*0.33*0.15+R23*0.33*0.4+V23*0.33*1.5+V23*0.33*1.15+V23*0.33*3)*1.35 -> 7176.325613 | Q23: =MAX(0,L23-N23-O23-P23)-M23 -> 4784.217075 | R23: =134399*0.1 -> 13439.9 | S23: Residential | T23: =Calcs!Q23 -> kWh | U23: 0 | V23: =10670*0.1 -> 1067 | W23: Residential | X23: Residential | Y23: Winter Only | AF23: Small Boilers (<100 MMBtu/hr Heat Input):Uncontrolled | AG23: 14.33 | AH23: 0.85 | AI23: 0.85 | AN23: 0.9 | AX23: =SUM(BJ23:BM23) -> 0 | AY23: =SUM(BN23:BQ23) -> 0 | AZ23: =SUM(BR23:BU23) -> 4 | BA23: =SUM(BV23:BY23) -> 0 | BB23: =SUM(BZ23:CC23) -> 0 | BC23: =SUM(CD23:CG23) -> 0 | BD23: =SUM(CH23:CK23) -> 0 | BE23: =SUM(CL23:CO23) -> 0 | BF23: =SUM(CP23:CS23) -> 0 | BR23: 1 | BS23: 1 | BT23: 1 | BU23: 1 | DB23: =SUM(BJ23:DA23) -> 4
B24: 10% (2001-2008 Bldg) | D24: 2 | E24: Residential | F24: 21 = Res. Wtr. Heating | G24: =IF(ISBLANK(F24),"",NOT(ISERROR(Calcs!Z24*Calcs!AA24*Calcs!AB24))) -> TRUE | H24: 14.33 | I24: EUC-Default | J24: MF Building | K24: ROB | L24: 11243.86684 | M24: =(R24*0.2*0.33+R24*0.33*0.15+R24*0.33*0.4+V24*0.33*1.5+V24*0.33*1.15+V24*0.33*3)*1.35 -> 6746.320103 | Q24: =MAX(0,L24-N24-O24-P24)-M24 -> 4497.546735 | R24: =131044*0.1 -> 13104.4 | S24: Residential | T24: =Calcs!Q24 -> kWh | U24: 0 | V24: =9407*0.1 -> 940.7 | W24: Residential | X24: Residential | Y24: Winter Only | AF24: Small Boilers (<100 MMBtu/hr Heat Input):Uncontrolled | AG24: 14.33 | AH24: 0.85 | AI24: 0.85 | AN24: 0.9 | AX24: =SUM(BJ24:BM24) -> 0 | AY24: =SUM(BN24:BQ24) -> 0 | AZ24: =SUM(BR24:BU24) -> 4 | BA24: =SUM(BV24:BY24) -> 0 | BB24: =SUM(BZ24:CC24) -> 0 | BC24: =SUM(CD24:CG24) -> 0 | BD24: =SUM(CH24:CK24) -> 0 | BE24: =SUM(CL24:CO24) -> 0 | BF24: =SUM(CP24:CS24) -> 0 | BR24: 1 | BS24: 1 | BT24: 1 | BU24: 1 | DB24: 4
B25: 15% Energy Savings (pre-1980 Bldg) | D25: 3B | E25: Residential | F25: 21 = Res. Wtr. Heating | G25: =IF(ISBLANK(F25),"",NOT(ISERROR(Calcs!Z25*Calcs!AA25*Calcs!AB25))) -> TRUE | H25: 14.33 | I25: EUC-Default | J25: MF Building | K25: ROB | L25: 20051.42597 | M25: =(R25*0.2*0.33+R25*0.33*0.15+R25*0.33*0.4+V25*0.33*1.5+V25*0.33*1.15+V25*0.33*3)*1.35 -> 12030.85558 | Q25: =MAX(0,L25-N25-O25-P25)-M25 -> 8020.570388 | R25: =138121*0.15 -> 20718.15 | S25: Residential | T25: =Calcs!Q25 -> kWh | U25: 0 | V25: =13530*0.15 -> 2029.5 | W25: Residential | X25: Residential | Y25: Winter Only | AF25: Small Boilers (<100 MMBtu/hr Heat Input):Uncontrolled | AG25: 14.33 | AH25: 0.85 | AI25: 0.85 | AN25: 0.9 | AU25: =AO25+AP25+AQ25 -> 0 | AV25: =AR25+AS25+AT25 -> 0 | AX25: =SUM(BJ25:BM25) -> 0 | AY25: =SUM(BN25:BQ25) -> 0 | AZ25: =SUM(BR25:BU25) -> 2 | BA25: =SUM(BV25:BY25) -> 0 | BB25: =SUM(BZ25:CC25) -> 0 | BC25: =SUM(CD25:CG25) -> 0 | BD25: =SUM(CH25:CK25) -> 0 | BE25: =SUM(CL25:CO25) -> 0 | BF25: =SUM(CP25:CS25) -> 0 | BG25: =SUM(CT25:CW25) -> 0 | BH25: =SUM(CX25:DA25) -> 0 | BR25: 1 | BS25: 0 | BT25: 1 | BU25: 0 | DB25: 2
B26: 10% (1980-2000 Bldg) | D26: 3B | E26: Residential | F26: 21 = Res. Wtr. Heating | G26: =IF(ISBLANK(F26),"",NOT(ISERROR(Calcs!Z26*Calcs!AA26*Calcs!AB26))) -> TRUE | H26: 14.33 | I26: EUC-Default | J26: MF Building | K26: ROB | L26: 11960.54269 | M26: =(R26*0.2*0.33+R26*0.33*0.15+R26*0.33*0.4+V26*0.33*1.5+V26*0.33*1.15+V26*0.33*3)*1.35 -> 7176.325613 | Q26: =MAX(0,L26-N26-O26-P26)-M26 -> 4784.217075 | R26: =134399*0.1 -> 13439.9 | S26: Residential | T26: =Calcs!Q26 -> kWh | U26: 0 | V26: =10670*0.1 -> 1067 | W26: Residential | X26: Residential | Y26: Winter Only | AF26: Small Boilers (<100 MMBtu/hr Heat Input):Uncontrolled | AG26: 14.33 | AH26: 0.85 | AI26: 0.85 | AN26: 0.9 | AU26: 0 | AV26: 0 | AX26: =SUM(BJ26:BM26) -> 0 | AY26: =SUM(BN26:BQ26) -> 0 | AZ26: =SUM(BR26:BU26) -> 2 | BA26: =SUM(BV26:BY26) -> 0 | BB26: 0 | BC26: 0 | BD26: 0 | BE26: 0 | BF26: 0 | BG26: 0 | BH26: 0 | BR26: 0 | BS26: 1 | BT26: 0 | BU26: 1 | DB26: 2
B27: 10% (2001-2008 Bldg) | D27: 3B | E27: Residential | F27: 21 = Res. Wtr. Heating | G27: =IF(ISBLANK(F27),"",NOT(ISERROR(Calcs!Z27*Calcs!AA27*Calcs!AB27))) -> TRUE | H27: 14.33 | I27: EUC-Default | J27: MF Building | K27: ROB | L27: 11243.86684 | M27: 6746.320103 | Q27: 4497.546735 | R27: =131044*0.1 -> 13104.4 | S27: Residential | T27: =Calcs!Q27 -> kWh | U27: 0 | V27: =9407*0.1 -> 940.7 | W27: Residential | X27: Residential | Y27: Winter Only | AF27: Small Boilers (<100 MMBtu/hr Heat Input):Uncontrolled | AG27: 14.33 | AH27: 0.85 | AI27: 0.85 | AN27: 0.9 | AU27: 0 | AV27: 0 | AX27: =SUM(BJ27:BM27) -> 0 | AY27: 0 | AZ27: =SUM(BR27:BU27) -> 1 | BA27: =SUM(BV27:BY27) -> 0 | BB27: 0 | BC27: 0 | BD27: 0 | BE27: 0 | BF27: 0 | BG27: 0 | BH27: 0 | BR27: 0 | BS27: 0 | BT27: 1 | BU27: 0 | DB27: 1
G28: =IF(ISBLANK(F28),"",NOT(ISERROR(Calcs!Z28*Calcs!AA28*Calcs!AB28))) ->  | AX28: 0 | AY28: 0 | AZ28: 0
B29: Direct Install 18 watt CFL bulb | C29: 2293 | D29: 2 | E29: Residential | F29: 25 = Res. Lighting | G29: =IF(ISBLANK(F29),"",NOT(ISERROR(Calcs!Z29*Calcs!AA29*Calcs!AB29))) -> TRUE | H29: 5 | I29: Res-sAll-mCFL-up | J29: Bulb | L29: 7.94 | O29: 5.89 | P29: 2.05 | R29: 23.3 | S29: Residential | T29: kWh | U29: 0.00233 | V29: -0.507 | W29: Residential | X29: Residential | Y29: Winter Only | AF29: Residential Furnaces (<0.3):Uncontrolled | AX29: 0 | AY29: 0 | AZ29: 880 | BR29: 220 | BS29: 220 | BT29: 220 | BU29: 220
B30: Direct Install 18 watt CFL bulb | C30: 2293 | D30: 3A | E30: Residential | F30: 25 = Res. Lighting | G30: =IF(ISBLANK(F30),"",NOT(ISERROR(Calcs!Z30*Calcs!AA30*Calcs!AB30))) -> TRUE | H30: 5 | I30: Res-sAll-mCFL-up | J30: Bulb | L30: 7.94 | O30: 5.89 | P30: 2.05 | R30: 23.3 | S30: Residential | T30: kWh | U30: 0.00233 | V30: -0.507 | W30: Residential | X30: Residential | Y30: Winter Only | AF30: Residential Furnaces (<0.3):Uncontrolled | AX30: 0 | AY30: 0 | AZ30: 880 | BR30: 220 | BS30: 220 | BT30: 220 | BU30: 220
B31: Direct Install 18 watt CFL bulb | C31: 2293 | D31: 3B | E31: Residential | F31: 25 = Res. Lighting | G31: =IF(ISBLANK(F31),"",NOT(ISERROR(Calcs!Z31*Calcs!AA31*Calcs!AB31))) -> TRUE | H31: 5 | I31: Res-sAll-mCFL-up | J31: Bulb | L31: 7.94 | O31: 5.89 | P31: 2.05 | R31: 22.6 | S31: Residential | T31: kWh | U31: 0.00197 | V31: -0.551 | W31: Residential | X31: Residential | Y31: Winter Only | AF31: Residential Furnaces (<0.3):Uncontrolled | AX31: 0 | AY31: 0 | AZ31: 756 | BR31: 189 | BS31: 189 | BT31: 189 | BU31: 189
... 36 more rows

Sheet Output
B1: Program Summary | D1: Nominal | G1: Present Value | K1: Avoided Cost Version
B2: Proposer Name | D2: =Input!D4 -> 0 | K2: =CostE!B1 -> 2011-08-04
B3: Program Name | D3: =Input!D5 -> MEA01 2013-14 MF | K3: =CostE!B2 -> 2012-02-17
B4: Total Program Budget ($) | D4: =SUM(Input!N13:P13) -> 531225.5904 | G4: =Input!Q13 -> 466912.409 | K4: Base Year
K5: =CostE!G3 -> 2013
B6: Net Participant Cost ($) | G6: =Calcs!GC1018 -> 96327.58932 | K6: =Input!B1 -> PG&E 2013 v1c6-Draft.xls
B8: Program Impacts | M8: Program Impacts (Gross)
C9: Wtd Annual Net kWh | D9: Lifecycle Net kWh | E9: Wtd Annual Net Therms | F9: Lifecycle Net Therms | G9: Wtd Net Jul-Sept Pk (kW) | H9: Wtd Net Dec-Feb Pk (kW) | J9: Wtd User Entered kW | N9: Wtd Annual Gross kWh | O9: Lifecycle Gross kWh | P9: Wtd Annual Gross Therms | Q9: Lifecycle Gross Therms | R9: Wtd User Entered kW
B10: 2013 | C10: =C67 -> 0 | D10: =D67 -> 0 | E10: 0 | F10: 0 | G10: 0 | H10: 0 | J10: =SUM(G10:H10) -> 0 | M10: =B10 -> 2013 | N10: =N67 -> 0 | O10: 0 | P10: 0 | Q10: =Q67 -> 0 | R10: 0
B11: 2014 | C11: =C68 -> 0 | D11: =D68 -> 0 | E11: 0 | F11: 0 | G11: =G68 -> 0 | H11: 0 | J11: =SUM(G11:H11) -> 0 | M11: =B11 -> 2014 | N11: 0 | O11: 0 | P11: 0 | Q11: 0 | R11: 0
B12: 2013-2014 | C12: =C10+C11 -> 0 | D12: =D10+D11 -> 0 | E12: 0 | F12: 0 | G12: 0 | H12: 0 | J12: 0 | M12: =B12 -> 2013-2014 | N12: =N10+N11 -> 0 | O12: =O10+O11 -> 0 | P12: 0 | Q12: 0 | R12: 0
B14: Cost Effectiveness (Lifecycle Present Value Dollars)
D15: Benefits | G15: Benefit - Cost
C16: Cost | D16: Electric | E16: Gas | F16: Incentives | G16: NPV | H16: B/C Ratio | I16: Notes
B17: Program TRC ($) | C17: =G4+G6 -> 563239.9983 | D17: =Calcs!DY1018 -> 309220.1856 | E17: =Calcs!DZ1018 -> 254076.1455 | F17: NA | G17: =SUM(D17:E17)-C17 -> 56.33273556 | H17: =SUM(D17:E17)/C17 -> 1.000100016 | I17: *1
B18: Program PAC ($) | C18: =G4 -> 466912.409 | D18: =D17 -> 309220.1856 | E18: =E17 -> 254076.1455 | F18: NA | G18: =SUM(D18:F18)-C18 -> 96383.92206 | H18: =SUM(D18:F18)/C18 -> 1.206428273 | I18: *1,2
B19: Program RIM ($) | C19: =SUM(Calcs!EY1018:FT1018)+G4 -> 1470548.539 | D19: =D17 -> 309220.1856 | E19: =E17 -> 254076.1455 | F19: NA | G19: =D19+E19-C19 -> -907252.2084 | H19: =(D19+E19)/C19 -> 0.3830518449 | I19: *1
B20: *1 B/C Ratio is an approximation because any supply cost increases are treated as negative benefits rather than as a cost as in the Standard Practice Manual
B21: *2 PAC benefits include environmental costs. This is to be consistent with the TRC benefits, but is not strictly consistent with the Standard Practice Manual.
B23: ="Levelized Cost and Benefit (All Measures Installed through "&B47&")" -> Levelized Cost and Benefit (All Measures Installed through 2023)
C24: Discounted Savings | G24: Benefit - Cost
C25: kWh | D25: Therms | E25: Cost | F25: Benefits | G25: NPV
B26: TRC ($/kWh ) | C26: =Calcs!GF1018 -> 2260892.225 | E26: =F26-G26 -> 0.1408636976 | F26: =D17/C26 -> 0.1367690959 | G26: =Calcs!GO1018 -> -0.004094601679
B27: PAC ($/kWh) | C27: =C26 -> 2260892.225 | E27: =F27-G27 -> 0.1178747992 | F27: =D18/C27 -> 0.1367690959 | G27: =Calcs!GS1018 -> 0.01889429676
B28: RIM ($/kWh) | C28: =C26 -> 2260892.225 | E28: =C19*D19/SUM(D19:E19)/C28 -> 0.3570511349 | F28: =D19/C28 -> 0.1367690959 | G28: =F28-E28 -> -0.2202820389
B30: TRC ($/therm) | D30: =Calcs!GG1018 -> 183581.2186 | E30: =F30-G30 -> 1.333264707 | F30: =E17/D30 -> 1.383998578 | G30: =Calcs!GP1018 -> 0.05073387085
B31: PAC ($/therm) | D31: =D30 -> 183581.2186 | E31: =F31-G31 -> 1.091670453 | F31: =E18/D31 -> 1.383998578 | G31: =Calcs!GT1018 -> 0.2923281251
... 36 more rows

Sheet Output by Measure
A11: =Input!D4 -> 0
A12: =Input!D5 -> MEA01 2013-14 MF
A13: =Input!D6 -> PG&E | J13: Levelized Benefits less Costs (TRC) | N13: Levelized Benefits less Costs (PAC) | R13: Benefit Cost Ratios
A14: Net Impacts by Measure | J14: No Allocated Admin | L14: w/ Allocated Admin | N14: No Allocated Admin | P14: w/ Allocated Admin | R14: No Allocated Admin | T14: w/ Allocated Admin
B15: Wtd Avg Net Avg Jul-Sep (kW) | C15: Wtd Avg Net Dec-Feb Pk (kW) | E15: Wtd Avg Net User Entered kW | F15: Wtd Avg Annual kWh adj for Net to gross | G15: Wtd Avg Lifecycle kWh (Annual * Measure Life) | H15: Wtd Avg Annual Therms | I15: Wtd Avg Lifecycle Therms | J15: Electric ($/kWh) | K15: Gas ($/Th) | L15: Electric ($/kWh) | M15: Gas ($/Th) | N15: Electric ($/kWh) | O15: Gas ($/Th) | P15: Electric ($/kWh) | Q15: Gas ($/Th) | R15: TRC | S15: PAC | T15: TRC | U15: PAC
A16: Total or Average | B16: =SUM(B17:B1016) -> 43.72326188 | C16: 53.11220436 | E16: 0 | F16: 289246.194 | G16: 4144897.96 | H16: 24707.664 | I16: 354060.8251 | J16: =Calcs!GM1018 -> 0.06109760706 | K16: =Calcs!GN1018 -> 0.7160615222 | L16: =Calcs!GO1018 -> -0.004094601679 | M16: =Calcs!GP1018 -> 0.05073387085 | N16: =Calcs!GQ1018 -> 0.0840865055 | O16: =Calcs!GR1018 -> 0.9576557765 | P16: =Calcs!GS1018 -> 0.01889429676 | Q16: =Calcs!GT1018 -> 0.2923281251
A17: =Input!B17 -> 0 | B17: =Calcs!HC17 -> 0 | C17: =Calcs!HD17 -> 0 | E17: =Calcs!HF17 -> 0 | F17: =Calcs!GY17 -> 0 | G17: =Calcs!GZ17 -> 0 | H17: =Calcs!HA17 -> 0 | I17: =Calcs!HB17 -> 0 | J17: =Calcs!GM17 -> 0 | K17: =Calcs!GN17 -> 0 | L17: =Calcs!GO17 -> 0 | M17: =Calcs!GP17 -> 0 | N17: =Calcs!GQ17 -> 0 | O17: =Calcs!GR17 -> 0 | P17: =Calcs!GS17 -> 0 | Q17: =Calcs!GT17 -> 0 | R17: =IF(ISERROR(Calcs!GU17),0,Calcs!GU17) -> 0 | S17: =IF(ISERROR(Calcs!GV17),0,Calcs!GV17) -> 0 | T17: =IF(ISERROR(Calcs!GW17),0,Calcs!GW17) -> 0 | U17: =IF(ISERROR(Calcs!GX17),0,Calcs!GX17) -> 0
A18: =Input!B18 -> 0 | B18: =Calcs!HC18 -> 0 | C18: =Calcs!HD18 -> 0 | E18: =Calcs!HF18 -> 0 | F18: =Calcs!GY18 -> 0 | G18: =Calcs!GZ18 -> 0 | H18: =Calcs!HA18 -> 0 | I18: =Calcs!HB18 -> 0 | J18: =Calcs!GM18 -> 0 | K18: =Calcs!GN18 -> 0 | L18: =Calcs!GO18 -> 0 | M18: =Calcs!GP18 -> 0 | N18: =Calcs!GQ18 -> 0 | O18: =Calcs!GR18 -> 0 | P18: =Calcs!GS18 -> 0 | Q18: =Calcs!GT18 -> 0 | R18: =IF(ISERROR(Calcs!GU18),0,Calcs!GU18) -> 0 | S18: =IF(ISERROR(Calcs!GV18),0,Calcs!GV18) -> 0 | T18: =IF(ISERROR(Calcs!GW18),0,Calcs!GW18) -> 0 | U18: =IF(ISERROR(Calcs!GX18),0,Calcs!GX18) -> 0
A19: =Input!B19 -> 15% Energy Savings (pre-1980 Bldg) | B19: =Calcs!HC19 -> 4.791674459 | C19: =Calcs!HD19 -> 5.820617725 | E19: =Calcs!HF19 -> 0 | F19: =Calcs!GY19 -> 31698.7695 | G19: =Calcs!GZ19 -> 454243.3669 | H19: =Calcs!HA19 -> 3105.135 | I19: =Calcs!HB19 -> 44496.58455 | J19: =Calcs!GM19 -> 0.07188288715 | K19: =Calcs!GN19 -> 0.7495020294 | L19: =Calcs!GO19 -> 0.007051844563 | M19: =Calcs!GP19 -> 0.07352753931 | N19: =Calcs!GQ19 -> 0.09507830393 | O19: =Calcs!GR19 -> 0.9913539171 | P19: =Calcs!GS19 -> 0.03024726135 | Q19: =Calcs!GT19 -> 0.315379427 | R19: =IF(ISERROR(Calcs!GU19),0,Calcs!GU19) -> 2.120919424 | S19: =IF(ISERROR(Calcs!GV19),0,Calcs!GV19) -> 3.322773764 | T19: =IF(ISERROR(Calcs!GW19),0,Calcs!GW19) -> 1.054682609 | U19: =IF(ISERROR(Calcs!GX19),0,Calcs!GX19) -> 1.285987896
A20: =Input!B20 -> 10% (1980-2000 Bldg) | B20: =Calcs!HC20 -> 3.10836757 | C20: =Calcs!HD20 -> 3.775844859 | E20: =Calcs!HF20 -> 0 | F20: =Calcs!GY20 -> 20563.047 | G20: =Calcs!GZ20 -> 294668.4635 | H20: =Calcs!HA20 -> 1632.51 | I20: =Calcs!HB20 -> 23393.8683 | J20: =Calcs!GM20 -> 0.06698581761 | K20: =Calcs!GN20 -> 0.6720069798 | L20: =Calcs!GO20 -> 0.003429948762 | M20: =Calcs!GP20 -> 0.03440951519 | N20: =Calcs!GQ20 -> 0.09098487734 | O20: =Calcs!GR20 -> 0.9127674306 | P20: =Calcs!GS20 -> 0.02742900849 | Q20: =Calcs!GT20 -> 0.275169966 | R20: =IF(ISERROR(Calcs!GU20),0,Calcs!GU20) -> 2.009577585 | S20: =IF(ISERROR(Calcs!GV20),0,Calcs!GV20) -> 3.148338216 | T20: =IF(ISERROR(Calcs!GW20),0,Calcs!GW20) -> 1.02640327 | U20: =IF(ISERROR(Calcs!GX20),0,Calcs!GX20) -> 1.258991091
A21: =Input!B21 -> 10% (2001-2008 Bldg) | B21: =Calcs!HC21 -> 4.546160163 | C21: =Calcs!HD21 -> 5.522382759 | E21: =Calcs!HF21 -> 0 | F21: =Calcs!GY21 -> 30074.598 | G21: =Calcs!GZ21 -> 430968.9893 | H21: =Calcs!HA21 -> 2158.9065 | I21: =Calcs!HB21 -> 30937.13015 | J21: =Calcs!GM21 -> 0.0687063612 | K21: =Calcs!GN21 -> 0.7051091783 | L21: =Calcs!GO21 -> 0.004415234241 | M21: =Calcs!GP21 -> 0.04531199344 | N21: =Calcs!GQ21 -> 0.09264103108 | O21: =Calcs!GR21 -> 0.9507422627 | P21: =Calcs!GS21 -> 0.02834990413 | Q21: =Calcs!GT21 -> 0.2909450778 | R21: =IF(ISERROR(Calcs!GU21),0,Calcs!GU21) -> 2.038294539 | S21: =IF(ISERROR(Calcs!GV21),0,Calcs!GV21) -> 3.193328111 | T21: =IF(ISERROR(Calcs!GW21),0,Calcs!GW21) -> 1.033842691 | U21: =IF(ISERROR(Calcs!GX21),0,Calcs!GX21) -> 1.266124368
A22: =Input!B22 -> 15% Energy Savings (pre-1980 Bldg) | B22: =Calcs!HC22 -> 9.583348919 | C22: =Calcs!HD22 -> 11.64123545 | E22: =Calcs!HF22 -> 0 | F22: =Calcs!GY22 -> 63397.539 | G22: =Calcs!GZ22 -> 908486.7339 | H22: =Calcs!HA22 -> 6210.27 | I22: =Calcs!HB22 -> 88993.1691 | J22: =Calcs!GM22 -> 0.07487627927 | K22: =Calcs!GN22 -> 0.7304809331 | L22: =Calcs!GO22 -> 0.007591238147 | M22: =Calcs!GP22 -> 0.07405889795 | N22: =Calcs!GQ22 -> 0.09885114254 | O22: =Calcs!GR22 -> 0.9643758416 | P22: =Calcs!GS22 -> 0.03156610142 | Q22: =Calcs!GT22 -> 0.3079538065 | R22: =IF(ISERROR(Calcs!GU22),0,Calcs!GU22) -> 2.129637705 | S22: =IF(ISERROR(Calcs!GV22),0,Calcs!GV22) -> 3.336432404 | T22: =IF(ISERROR(Calcs!GW22),0,Calcs!GW22) -> 1.056834051 | U22: =IF(ISERROR(Calcs!GX22),0,Calcs!GX22) -> 1.288028632
A23: =Input!B23 -> 10% (1980-2000 Bldg) | B23: =Calcs!HC23 -> 6.21673514 | C23: =Calcs!HD23 -> 7.551689717 | E23: =Calcs!HF23 -> 0 | F23: =Calcs!GY23 -> 41126.094 | G23: =Calcs!GZ23 -> 589336.927 | H23: =Calcs!HA23 -> 3265.02 | I23: =Calcs!HB23 -> 46787.7366 | J23: =Calcs!GM23 -> 0.07398937897 | K23: =Calcs!GN23 -> 0.7218284765 | L23: =Calcs!GO23 -> 0.006704337854 | M23: =Calcs!GP23 -> 0.06540644139 | N23: =Calcs!GQ23 -> 0.09828503597 | O23: =Calcs!GR23 -> 0.958852997 | P23: =Calcs!GS23 -> 0.03099999485 | Q23: =Calcs!GT23 -> 0.3024309619 | R23: =IF(ISERROR(Calcs!GU23),0,Calcs!GU23) -> 2.101518506 | S23: =IF(ISERROR(Calcs!GV23),0,Calcs!GV23) -> 3.292378993 | T23: =IF(ISERROR(Calcs!GW23),0,Calcs!GW23) -> 1.049862917 | U23: =IF(ISERROR(Calcs!GX23),0,Calcs!GX23) -> 1.281409503
A24: =Input!B24 -> 10% (2001-2008 Bldg) | B24: =Calcs!HC24 -> 6.061546884 | C24: =Calcs!HD24 -> 7.363177012 | E24: =Calcs!HF24 -> 0 | F24: =Calcs!GY24 -> 40099.464 | G24: =Calcs!GZ24 -> 574625.3191 | H24: =Calcs!HA24 -> 2878.542 | I24: =Calcs!HB24 -> 41249.50686 | J24: =Calcs!GM24 -> 0.07357153402 | K24: =Calcs!GN24 -> 0.7177520484 | L24: =Calcs!GO24 -> 0.0062864929 | M24: =Calcs!GP24 -> 0.06133001324 | N24: =Calcs!GQ24 -> 0.09801832642 | O24: =Calcs!GR24 -> 0.9562510216 | P24: =Calcs!GS24 -> 0.0307332853 | Q24: =Calcs!GT24 -> 0.2998289865 | R24: =IF(ISERROR(Calcs!GU24),0,Calcs!GU24) -> 2.08852646 | S24: =IF(ISERROR(Calcs!GV24),0,Calcs!GV24) -> 3.272024787 | T24: =IF(ISERROR(Calcs!GW24),0,Calcs!GW24) -> 1.046610382 | U24: =IF(ISERROR(Calcs!GX24),0,Calcs!GX24) -> 1.278314554
A25: =Input!B25 -> 15% Energy Savings (pre-1980 Bldg) | B25: =Calcs!HC25 -> 4.791674459 | C25: =Calcs!HD25 -> 5.820617725 | E25: =Calcs!HF25 -> 0 | F25: =Calcs!GY25 -> 31698.7695 | G25: =Calcs!GZ25 -> 454243.3669 | H25: =Calcs!HA25 -> 3105.135 | I25: =Calcs!HB25 -> 44496.58455 | J25: =Calcs!GM25 -> 0.06943381276 | K25: =Calcs!GN25 -> 0.7075271923 | L25: =Calcs!GO25 -> 0.00541535664 | M25: =Calcs!GP25 -> 0.05518222212 | N25: =Calcs!GQ25 -> 0.09289845161 | O25: =Calcs!GR25 -> 0.9466307267 | P25: =Calcs!GS25 -> 0.02887999548 | Q25: =Calcs!GT25 -> 0.2942857565 | R25: =IF(ISERROR(Calcs!GU25),0,Calcs!GU25) -> 2.070306599 | S25: =IF(ISERROR(Calcs!GV25),0,Calcs!GV25) -> 3.243480339 | T25: =IF(ISERROR(Calcs!GW25),0,Calcs!GW25) -> 1.042014918 | U25: =IF(ISERROR(Calcs!GX25),0,Calcs!GX25) -> 1.273934509
A26: =Input!B26 -> 10% (1980-2000 Bldg) | B26: =Calcs!HC26 -> 3.10836757 | C26: =Calcs!HD26 -> 3.775844859 | E26: =Calcs!HF26 -> 0 | F26: =Calcs!GY26 -> 20563.047 | G26: =Calcs!GZ26 -> 294668.4635 | H26: =Calcs!HA26 -> 1632.51 | I26: =Calcs!HB26 -> 23393.8683 | J26: =Calcs!GM26 -> 0.06983056742 | K26: =Calcs!GN26 -> 0.7134480495 | L26: =Calcs!GO26 -> 0.005174873078 | M26: =Calcs!GP26 -> 0.0528708736 | N26: =Calcs!GQ26 -> 0.09363525346 | O26: =Calcs!GR26 -> 0.9566568254 | P26: =Calcs!GS26 -> 0.02897955912 | Q26: =Calcs!GT26 -> 0.2960796495 | R26: =IF(ISERROR(Calcs!GU26),0,Calcs!GU26) -> 2.061045912 | S26: =IF(ISERROR(Calcs!GV26),0,Calcs!GV26) -> 3.228971929 | T26: =IF(ISERROR(Calcs!GW26),0,Calcs!GW26) -> 1.039663728 | U26: =IF(ISERROR(Calcs!GX26),0,Calcs!GX26) -> 1.271690251
A27: =Input!B27 -> 10% (2001-2008 Bldg) | B27: =Calcs!HC27 -> 1.515386721 | C27: =Calcs!HD27 -> 1.840794253 | E27: =Calcs!HF27 -> 0 | F27: =Calcs!GY27 -> 10024.866 | G27: =Calcs!GZ27 -> 143656.3298 | H27: =Calcs!HA27 -> 719.6355 | I27: =Calcs!HB27 -> 10312.37672 | J27: =Calcs!GM27 -> 0.07000368834 | K27: =Calcs!GN27 -> 0.7327459538 | L27: =Calcs!GO27 -> 0.005358687974 | M27: =Calcs!GP27 -> 0.05609071499 | N27: =Calcs!GQ27 -> 0.09373764128 | O27: =Calcs!GR27 -> 0.981175121 | P27: =Calcs!GS27 -> 0.02909264092 | Q27: =Calcs!GT27 -> 0.3045198821 | R27: =IF(ISERROR(Calcs!GU27),0,Calcs!GU27) -> 2.066846432 | S27: =IF(ISERROR(Calcs!GV27),0,Calcs!GV27) -> 3.23805941 | T27: =IF(ISERROR(Calcs!GW27),0,Calcs!GW27) -> 1.041137642 | U27: =IF(ISERROR(Calcs!GX27),0,Calcs!GX27) -> 1.273097391
A28: =Input!B28 -> 0 | B28: =Calcs!HC28 -> 0 | C28: =Calcs!HD28 -> 0 | E28: =Calcs!HF28 -> 0 | F28: =Calcs!GY28 -> 0 | G28: =Calcs!GZ28 -> 0 | H28: =Calcs!HA28 -> 0 | I28: =Calcs!HB28 -> 0 | J28: =Calcs!GM28 -> 0 | K28: =Calcs!GN28 -> 0 | L28: =Calcs!GO28 -> 0 | M28: =Calcs!GP28 -> 0 | N28: =Calcs!GQ28 -> 0 | O28: =Calcs!GR28 -> 0 | P28: =Calcs!GS28 -> 0 | Q28: =Calcs!GT28 -> 0 | R28: =IF(ISERROR(Calcs!GU28),0,Calcs!GU28) -> 0 | S28: =IF(ISERROR(Calcs!GV28),0,Calcs!GV28) -> 0 | T28: =IF(ISERROR(Calcs!GW28),0,Calcs!GW28) -> 0 | U28: =IF(ISERROR(Calcs!GX28),0,Calcs!GX28) -> 0
A29: =Input!B29 -> Direct Install 18 watt CFL bulb | B29: =Calcs!HC29 -> 0 | C29: =Calcs!HD29 -> 0 | E29: =Calcs!HF29 -> 0 | F29: =Calcs!GY29 -> 0 | G29: =Calcs!GZ29 -> 0 | H29: =Calcs!HA29 -> 0 | I29: =Calcs!HB29 -> 0 | J29: =Calcs!GM29 -> -0.2331311518 | K29: =Calcs!GN29 -> 1.091117798 | L29: =Calcs!GO29 -> -0.2844393753 | M29: =Calcs!GP29 -> 1.091117798 | N29: =Calcs!GQ29 -> -0.2331311518 | O29: =Calcs!GR29 -> 1.091117798 | P29: =Calcs!GS29 -> -0.2844393753 | Q29: =Calcs!GT29 -> 1.091117798 | R29: =IF(ISERROR(Calcs!GU29),0,Calcs!GU29) -> 0.2462024483 | S29: =IF(ISERROR(Calcs!GV29),0,Calcs!GV29) -> 0.2462024483 | T29: =IF(ISERROR(Calcs!GW29),0,Calcs!GW29) -> 0.2139840595 | U29: =IF(ISERROR(Calcs!GX29),0,Calcs!GX29) -> 0.2139840595
A30: =Input!B30 -> Direct Install 18 watt CFL bulb | B30: =Calcs!HC30 -> 0 | C30: =Calcs!HD30 -> 0 | E30: =Calcs!HF30 -> 0 | F30: =Calcs!GY30 -> 0 | G30: =Calcs!GZ30 -> 0 | H30: =Calcs!HA30 -> 0 | I30: =Calcs!HB30 -> 0 | J30: =Calcs!GM30 -> -0.2368870355 | K30: =Calcs!GN30 -> 1.091117798 | L30: =Calcs!GO30 -> -0.2864049835 | M30: =Calcs!GP30 -> 1.091117798 | N30: =Calcs!GQ30 -> -0.2368870355 | O30: =Calcs!GR30 -> 1.091117798 | P30: =Calcs!GS30 -> -0.2864049835 | Q30: =Calcs!GT30 -> 1.091117798 | R30: =IF(ISERROR(Calcs!GU30),0,Calcs!GU30) -> 0.2351807745 | S30: =IF(ISERROR(Calcs!GV30),0,Calcs!GV30) -> 0.2351807745 | T30: =IF(ISERROR(Calcs!GW30),0,Calcs!GW30) -> 0.2053423081 | U30: =IF(ISERROR(Calcs!GX30),0,Calcs!GX30) -> 0.2053423081
A31: =Input!B31 -> Direct Install 18 watt CFL bulb | B31: =Calcs!HC31 -> 0 | C31: =Calcs!HD31 -> 0 | E31: =Calcs!HF31 -> 0 | F31: =Calcs!GY31 -> 0 | G31: =Calcs!GZ31 -> 0 | H31: =Calcs!HA31 -> 0 | I31: =Calcs!HB31 -> 0 | J31: =Calcs!GM31 -> -0.2472127524 | K31: =Calcs!GN31 -> 1.091117798 | L31: =Calcs!GO31 -> -0.2968399433 | M31: =Calcs!GP31 -> 1.091117798 | N31: =Calcs!GQ31 -> -0.2472127524 | O31: =Calcs!GR31 -> 1.091117798 | P31: =Calcs!GS31 -> -0.2968399433 | Q31: =Calcs!GT31 -> 1.091117798 | R31: =IF(ISERROR(Calcs!GU31),0,Calcs!GU31) -> 0.2206279459 | S31: =IF(ISERROR(Calcs!GV31),0,Calcs!GV31) -> 0.2206279459 | T31: =IF(ISERROR(Calcs!GW31),0,Calcs!GW31) -> 0.1933202544 | U31: =IF(ISERROR(Calcs!GX31),0,Calcs!GX31) -> 0.1933202544
... 38 more rows

Sheet Calcs
A2: Avoided Cost Version | C2: 2011-07-02 | E2: Valid AC Shapes for Correction Factor
A3: Annual Discount Rate | C3: 0.0766 | E3: 26 = Res. Central Air Conditioning
A4: Start period Offset Years | C4: =StartYr-CostE!G3 -> 0 | D4: SkipYrs | E4: 22 = Res. Ht. Pump Cooling
A5: First Col Label for Impacts: | C5: Load Impacts | E5: 23 = Res. Ele. & Ht. Pump Heating
A6: CEC Factor (MW/GWh) | C6: 0.217 | E6: 29 = Res. New Const. Cooling
A7: Max Number of Measures | C7: =ROWS(R17:R1016) -> 1000 | D7: MaxMeasures | E7: 33 = Res. Insul. Cen. A/C | H7: Market Adj Factors to Use
E8: 35 = Res. Ceil. Insul. HP Cooling | H8: Uniform | J8: =IF(Input!$U$4="Uniform",1,0) -> 1 | AC8: Periods per Year | AE8: 4 | AF8: Periods
A9: TOU Correction Factors | E9: 37 = Res. Wall Insul. HP Cooling | H9: Custom by Measure | J9: =IF(Input!$U$4="Custom",1,0) -> 0 | AC9: Period Discount Rate | AE9: =$C$3/AE8 -> 0.01915 | AF9: Disc | AM9: =AM17/AM18 -> 
A10: Residential | C10: 1 | E10: 39 = Res. Flr. Insul. HP Cooling
A11: Non-Res | C11: 1 | E11: 45 = Res. Dir. Assist. Evap. Cooler
E12: 3 = Commercial HVAC
AD14: EUL and RUL | AM14: Generation Value (Gross Nominal NPV per measure) for measures implemented at the end of the quarter | CE14: TD Gross Nominal NPV Savings per Measure (installed at the end of the quarter ) | EC14: NPV bill reduction per measure. For units implemented in each year | FX14: Total Present Value Costs (Gross & Net) | GD14: Discounted Values for levelization | GJ14: Admin Cost | GL14: TRC Net Benefit | GM14: Levelized Net Benefits (TRC Test) | GQ14: Levelized Net Benefits (PAC Test) | GU14: Benefit Cost Ratios | HC14: Total Program Impacts | HG14: Annual Emission Rates
G15: NTG Adj by Market Effects | J15: Unadjusted | AD15: Initial Term | AG15: Second Baseline Term | AM15: Qtr 1 | AN15: Qtr 2 | AO15: Qtr 3 | AP15: Qtr 4 | AQ15: =AM15 -> Qtr 1 | AR15: Qtr 2 | AS15: Qtr 3 | AT15: Qtr 4 | AU15: Qtr 1 | AV15: Qtr 2 | AW15: Qtr 3 | AX15: Qtr 4 | AY15: Qtr 1 | AZ15: Qtr 2 | BA15: Qtr 3 | BB15: Qtr 4 | BC15: Qtr 1 | BD15: Qtr 2 | BE15: Qtr 3 | BF15: Qtr 4 | BG15: Qtr 1 | BH15: Qtr 2 | BI15: Qtr 3 | BJ15: Qtr 4 | BK15: =BG15 -> Qtr 1 | BL15: Qtr 2 | BM15: Qtr 3 | BN15: Qtr 4 | BO15: Qtr 1 | BP15: Qtr 2 | BQ15: Qtr 3 | BR15: Qtr 4 | BS15: Qtr 1 | BT15: Qtr 2 | BU15: Qtr 3 | BV15: Qtr 4 | BW15: Qtr 1 | BX15: Qtr 2 | BY15: Qtr 3 | BZ15: Qtr 4 | CA15: Qtr 1 | CB15: Qtr 2 | CC15: Qtr 3 | CD15: Qtr 4 | CE15: Qtr 1 | CF15: Qtr 2 | CG15: Qtr 3 | CH15: Qtr 4 | CI15: =CE15 -> Qtr 1 | CJ15: Qtr 2 | CK15: Qtr 3 | CL15: Qtr 4 | CM15: Qtr 1 | CN15: Qtr 2 | CO15: Qtr 3 | CP15: Qtr 4 | CQ15: Qtr 1 | CR15: Qtr 2 | CS15: Qtr 3 | CT15: Qtr 4 | CU15: Qtr 1 | CV15: Qtr 2 | CW15: Qtr 3 | CX15: Qtr 4 | CY15: Qtr 1 | CZ15: Qtr 2 | DA15: Qtr 3 | DB15: Qtr 4 | DC15: =CY15 -> Qtr 1 | DD15: Qtr 2 | DE15: Qtr 3 | DF15: Qtr 4 | DG15: Qtr 1 | DH15: Qtr 2 | DI15: Qtr 3 | DJ15: Qtr 4 | DK15: Qtr 1 | DL15: Qtr 2 | DM15: Qtr 3 | DN15: Qtr 4 | DO15: Qtr 1 | DP15: Qtr 2 | DQ15: Qtr 3 | DR15: Qtr 4 | DS15: Qtr 1 | DT15: Qtr 2 | DU15: Qtr 3 | DV15: Qtr 4 | DW15: Lifecycle NPV | EC15: Electric (EOY) per Measure | EN15: Gas (EOY) Savings per Measure | EY15: NPV Electric Bill Reductions - Net | FJ15: NPV Gas Bill Reductions - Net | GJ15: Alloc factors | GL15: with Admin Costs | GM15: Without Admin Costs | GO15: With Admin Costs | GQ15: Without Admin Costs | GS15: With Admin Costs | GU15: Without Admin Costs | GW15: With Admin Costs | GY15: Wtd Avg based on RUL and EUL | HC15: (all years of implementation) | HG15: Electric (per annual kWh) | HJ15: Gss Reduction (per therm)
A16: Measure Name | B16: Climate Zone | C16: Target sector | D16: Measure End use | E16: First Baseline Measure Life | F16: Full EUL | G16: Net-to-gross Ratio: kWh | H16: =Input!AJ16 -> Net-to-Gross Ratio - kW | I16: Net-to-Gross Ratio - Therms | J16: =Input!AL16 -> Net-to-Gross Ratio - Costs | K16: Market Effect - Costs | L16: IR and GRR Factor | M16: Gross Unit Elec Savings (1st baseline) (kWh) | N16: Gross Unit Elec Savings (2nd baseline) (kWh) | O16: Gross WtdAvg kWh Savings per unit | P16: Electricity Wtd Avg Factor | Q16: Demand scaler type | R16: Demand Scaler - Initial | S16: Demand Scaler - Second | T16: Demand Scaler - Weighted | U16: CEC Peak Savings (NTG Adj) (kW) | V16: Gen lookup string | W16: TD Lookup String | X16: Load Impact lookup String | Y16: Gen Row based on CZ | Z16: Gen row to Use | AA16: TD Row to Use | AB16: Impact row to use | AC16: Elec Rate Row to Use | AD16: Remaining useful Life (RUL, Yrs) | AE16: Full Quarters | AF16: Fractional Quarter | AG16: Fill in Fractional Quarter | AH16: Full Quarters | AI16: Residual Fractional Quarter | AJ16: TOU Correction Factor (add to 1.0) | AK16: Valid End Use | AL16: TOU Correction Factor adder to Use | AM16: =StartYr -> 2013 | AN16: =AM16 -> 2013 | AO16: =AN16 -> 2013 | AP16: =AO16 -> 2013 | AQ16: =AM16+1 -> 2014 | AR16: 2014 | AS16: 2014 | AT16: 2014 | AU16: 2015 | AV16: 2015 | AW16: 2015 | AX16: 2015 | AY16: 2016 | AZ16: 2016 | BA16: 2016 | BB16: 2016 | BC16: 2017 | BD16: 2017 | BE16: 2017 | BF16: 2017 | BG16: 2018 | BH16: 2018 | BI16: 2018 | BJ16: 2018 | BK16: =BG16+1 -> 2019 | BL16: 2019 | BM16: 2019 | BN16: 2019 | BO16: 2020 | BP16: 2020 | BQ16: 2020 | BR16: 2020 | BS16: 2021 | BT16: 2021 | BU16: 2021 | BV16: 2021 | BW16: 2022 | BX16: 2022 | BY16: 2022 | BZ16: 2022 | CA16: 2023 | CB16: 2023 | CC16: 2023 | CD16: 2023 | CE16: =AM16 -> 2013 | CF16: 2013 | CG16: 2013 | CH16: 2013 | CI16: 2014 | CJ16: 2014 | CK16: 2014 | CL16: 2014 | CM16: 2015 | CN16: 2015 | CO16: 2015 | CP16: 2015 | CQ16: 2016 | CR16: 2016 | CS16: 2016 | CT16: 2016 | CU16: 2017 | CV16: 2017 | CW16: 2017 | CX16: 2017 | CY16: 2018 | CZ16: 2018 | DA16: 2018 | DB16: 2018 | DC16: =BK16 -> 2019 | DD16: 2019 | DE16: 2019 | DF16: 2019 | DG16: 2020 | DH16: 2020 | DI16: 2020 | DJ16: 2020 | DK16: 2021 | DL16: 2021 | DM16: 2021 | DN16: 2021 | DO16: 2022 | DP16: 2022 | DQ16: 2022 | DR16: 2022 | DS16: 2023 | DT16: 2023 | DU16: 2023 | DV16: 2023 | DW16: Electric Gross NPV Benefits Adj for IR*GRR ($) | DX16: Gas Gross NPV Benefits Adj for IR*GRR ($) | DY16: Electric Net NPV Benefits ($) | DZ16: Gas Net NPV Benefits ($) | EA16: Electric Rate (Use 1 if missing) | EB16: Gas Rate | EC16: =StartYr -> 2013 | ED16: =EC16+1 -> 2014 | EE16: 2015 | EF16: 2016 | EG16: 2017 | EH16: 2018 | EI16: 2019 | EJ16: 2020 | EK16: 2021 | EL16: 2022 | EM16: 2023 | EN16: =EC16 -> 2013 | EO16: 2014 | EP16: 2015 | EQ16: 2016 | ER16: 2017 | ES16: 2018 | ET16: 2019 | EU16: 2020 | EV16: 2021 | EW16: 2022 | EX16: 2023 | EY16: 2013 | EZ16: 2014 | FA16: 2015 | FB16: 2016 | FC16: 2017 | FD16: 2018 | FE16: 2019 | FF16: 2020 | FG16: 2021 | FH16: 2022 | FI16: 2023 | FJ16: 2013 | FK16: 2014 | FL16: 2015 | FM16: 2016 | FN16: 2017 | FO16: 2018 | FP16: 2019 | FQ16: 2020 | FR16: 2021 | FS16: 2022 | FT16: 2023 | FU16: Inc to others and DI in excess of Measure Cost ($/Measure) | FV16: Excess Incentives to others and DI PV ($) | FW16: Market Effect Measure + Excess Costs PV($) | FX16: Total Rebates PV ($) | FY16: Total Incentives to Others and DI PV ($) | FZ16: Total Rebates and Incentives PV ($) | GA16: Gross measure Cost PV ($) | GB16: Gross Participant Cost adjusted for excess Incent & DI PV, but no Market Effects($) | GC16: Net Participant Cost plus market effects PV ($) | GD16: Gross Discounted kWh reduction (kWh) | GE16: Gross Discounted Therms reduction (th) | GF16: Net Discounted kWh reduction (kWh) | GG16: Net Discounted Therms reduction (th) | GH16: Positive Electric Net NPV Benefits ($) | GI16: Positive Gas Net NPV Benefits ($) | GJ16: Elec Allocation - E vs G Benefits | GK16: Measure Allocation - Total Benefits | GL16: TRC Lifecycle Net Benefit ($) | GM16: Levelized Net Benefit Electric - No Admin ($/kWh) | GN16: Levelized Net Benefits - Gas - No Admin ($/Therm) | GO16: Levelized Net Benefit Electric - With Admin ($/kWh) | GP16: Levelized Net Benefits - Gas - With Admin ($/Therm) | GQ16: Leveilzed Net Benefit Electric - No Admin ($/kWh) | GR16: Levelized Net Benefits - Gas - No Admin ($/Therm) | GS16: Levelized Net Benefit Electric - With Admin ($/kWh) | GT16: Levelized Net Benefits - Gas - With Admin ($/Therm) | GU16: TRC B/C Ratio | GV16: PAC B/C | GW16: TRC B/C Ratio | GX16: PAC B/C | GY16: Net Wtd Average Annual kWh | GZ16: Net Wtd Avg Lifecycle kWh | HA16: Net Wtd Avg Annual Therms | HB16: Net Wtd Avg Lifecycle Therms | HC16: Wtd Net Jul-Sept kW | HD16: Wtd Net Dec-Feb kW | HF16: Wtd Net User Entered kW Impacts | HG16: C02 | HH16: NOX | HI16: PM 10 | HJ16: CO2 | HK16: NOX | HL16: CPUC-defined End Use | HM16: EUL for reporting of first year annual savings | HN16: EUL for first year of second baseline savings | HO16: Energy Second Baseline Adjustment Factor | HP16: Demand Second Baseline Adjustment Factor | HQ16: Therms Second Baseline Adjustment Factor
A17: =Input!B17 -> 0 | B17: =Input!D17 -> 0 | C17: =TRIM(Input!E17) ->  | D17: =TRIM(Input!F17) ->  | E17: =IF(ISNUMBER(Input!AG17),Input!AG17,1) -> 1 | F17: =MAX(E17,Input!Z17) -> 1 | G17: =IF(ISNUMBER(Input!AH17),Input!AH17,1)+($J$8*Input!$T$11+$J$9*Input!$AU17) -> 1 | H17: =IF(ISNUMBER(Input!AJ17),Input!AJ17+($J$8*Input!$T$11+$J$9*Input!$AU17),$G17) -> 1 | I17: =IF(ISNUMBER(Input!AK17),Input!AK17+($J$8*Input!$T$11+$J$9*Input!$AU17),IF(ISNUMBER(Input!AI17),Input!AI17+($J$8*Input!$T$11+$J$9*Input!$AU17),$G17)) -> 1 | J17: =IF(AND(ISNUMBER(Input!AL17),Input!AL17<>0),Input!AL17,IF(Input!V17=0,G17,IF(Input!R17=0,I17,IF(Input!R17*0.03412>Input!V17,G17,I17)))-($J$8*Input!$T$11+$J$9*Input!AU17)) -> 1 | K17: =($J$8*Input!$U$11+$J$9*Input!$AV17) -> 0 | L17: =IF(ISBLANK(Input!AM17),100%,Input!AM17)*IF(ISBLANK(Input!AN17),100%,Input!AN17) -> 1 | M17: =Input!R17 -> 0 | N17: =Input!AC17 -> 0 | O17: =IF($F17<>0,($M17*$E17+N17*($F17-$E17))/$F17,0) -> 0 | P17: =IF(M17<>0,O17/M17,1) -> 1 | Q17: =OFFSET(CostE!$F$5,Calcs!AB17-1,0) ->  | R17: =IF(ISNUMBER(IF(Q17="kW",Input!U17,Input!R17)),IF(Q17="kW",Input!U17,Input!R17),0) -> 0 | S17: =IF(ISNUMBER(IF(Q17="kW",Input!AD17,N17)),IF(Q17="kW",Input!AD17,N17),0) -> 0 | T17: =IF(F17<>0,(R17*E17+S17*(F17-E17))/F17,0) -> 0 | U17: =M17*H17*$C$6/1000 -> 0 | V17: ="Gen:"&C17&":"&$D17&":"&B17 -> Gen:::0 | W17: ="TD:"&C17&":"&$D17&":"&$B17 -> TD:::0 | X17: ="Load:"&C17&":"&$D17&":"&B17 -> Load:::0 | Y17: =MATCH(V17,CostE!$E$5:$E$1465,0) ->  | Z17: =IF(ISERROR(Y17),MATCH("Gen:"&C17&":"&D17&":All",CostE!$E$5:$E$1465,0),Y17) ->  | AA17: =MATCH(W17,CostE!$E$5:$E$1465,0) ->  | AB17: =IF(ISERROR(Y17),MATCH("Load:"&C17&":"&$D17&":NA",CostE!$E$5:$E$1465,0),MATCH(X17,CostE!$E$5:$E$1465,0)) ->  | AC17: =MATCH(Input!S17,Rates!$A$4:$A$9,0) ->  | AD17: =IF(Input!Z17>Input!AG17,Input!AG17,0) -> 0 | AE17: =TRUNC(E17*Periods) -> 4 | AF17: =E17*Periods-AE17 -> 0 | AG17: =IF(AND(F17>E17,AF17>0),MAX(0,1-AF17),0) -> 0 | AH17: =MAX(0,TRUNC(Input!Z17*Periods-(AE17+AF17+AG17))) -> 0 | AI17: =MAX(0,Input!Z17*Periods-AH17-AF17-AE17-AG17) -> 0 | AJ17: =IF(OR(Input!E17="Residential",Input!E17="Res_New_Construction"), $C$10,$C$11)-1 -> 0 | AK17: =SUM(IF($E$3:$E$12=Input!F17,1,0))=1 -> FALSE | AL17: =AJ17*AK17*Input!AW17 -> 0 | AM17: =(IF($AE17>0,NPV(Disc,OFFSET(CostE!G$5,$Z17-1,SkipYrs*Periods+1,1,$AE17)),0)+OFFSET(CostE!G$5,$Z17-1,SkipYrs*Periods+1+$AE17)*$AF17*(1/(1+Disc)^($AE17+1)))*$M17*(1+$AL17) + (OFFSET(CostE!G$5,$Z17-1,SkipYrs*Periods+1+$AE17)*$AG17*(1/(1+Disc)^($AE17+1))+ IF($AH17>0,NPV(Disc,OFFSET(CostE!G$5,$Z17-1,SkipYrs*Periods+ROUND($AE17+$AF17+$AG17,0)+1,1,$AH17)),0)*(1/(1+Disc)^($AE17+$AF17+$AG17))+ OFFSET(CostE!G$5,$Z17-1,SkipYrs*Periods+ROUND($AE17+$AF17+$AG17+$AH17,0)+1)*$AI17*(1/(1+Disc)^(ROUND($AE17+$AH17+$AF17+$AG17,0)+1)))*Input!$AC17*(1+$AL17) ->  | AN17: =(IF($AE17>0,NPV(Disc,OFFSET(CostE!H$5,$Z17-1,SkipYrs*Periods+1,1,$AE17)),0)+OFFSET(CostE!H$5,$Z17-1,SkipYrs*Periods+1+$AE17)*$AF17*(1/(1+Disc)^($AE17+1)))*$M17*(1+$AL17) + (OFFSET(CostE!H$5,$Z17-1,SkipYrs*Periods+1+$AE17)*$AG17*(1/(1+Disc)^($AE17+1))+ IF($AH17>0,NPV(Disc,OFFSET(CostE!H$5,$Z17-1,SkipYrs*Periods+ROUND($AE17+$AF17+$AG17,0)+1,1,$AH17)),0)*(1/(1+Disc)^($AE17+$AF17+$AG17))+ OFFSET(CostE!H$5,$Z17-1,SkipYrs*Periods+ROUND($AE17+$AF17+$AG17+$AH17,0)+1)*$AI17*(1/(1+Disc)^(ROUND($AE17+$AH17+$AF17+$AG17,0)+1)))*Input!$AC17*(1+$AL17) ->  | AO17: =(IF($AE17>0,NPV(Disc,OFFSET(CostE!I$5,$Z17-1,SkipYrs*Periods+1,1,$AE17)),0)+OFFSET(CostE!I$5,$Z17-1,SkipYrs*Periods+1+$AE17)*$AF17*(1/(1+Disc)^($AE17+1)))*$M17*(1+$AL17) + (OFFSET(CostE!I$5,$Z17-1,SkipYrs*Periods+1+$AE17)*$AG17*(1/(1+Disc)^($AE17+1))+ IF($AH17>0,NPV(Disc,OFFSET(CostE!I$5,$Z17-1,SkipYrs*Periods+ROUND($AE17+$AF17+$AG17,0)+1,1,$AH17)),0)*(1/(1+Disc)^($AE17+$AF17+$AG17))+ OFFSET(CostE!I$5,$Z17-1,SkipYrs*Periods+ROUND($AE17+$AF17+$AG17+$AH17,0)+1)*$AI17*(1/(1+Disc)^(ROUND($AE17+$AH17+$AF17+$AG17,0)+1)))*Input!$AC17*(1+$AL17) ->  | AP17: =(IF($AE17>0,NPV(Disc,OFFSET(CostE!J$5,$Z17-1,SkipYrs*Periods+1,1,$AE17)),0)+OFFSET(CostE!J$5,$Z17-1,SkipYrs*Periods+1+$AE17)*$AF17*(1/(1+Disc)^($AE17+1)))*$M17*(1+$AL17) + (OFFSET(CostE!J$5,$Z17-1,SkipYrs*Periods+1+$AE17)*$AG17*(1/(1+Disc)^($AE17+1))+ IF($AH17>0,NPV(Disc,OFFSET(CostE!J$5,$Z17-1,SkipYrs*Periods+ROUND($AE17+$AF17+$AG17,0)+1,1,$AH17)),0)*(1/(1+Disc)^($AE17+$AF17+$AG17))+ OFFSET(CostE!J$5,$Z17-1,SkipYrs*Periods+ROUND($AE17+$AF17+$AG17+$AH17,0)+1)*$AI17*(1/(1+Disc)^(ROUND($AE17+$AH17+$AF17+$AG17,0)+1)))*Input!$AC17*(1+$AL17) ->  | AQ17: =(IF($AE17>0,NPV(Disc,OFFSET(CostE!K$5,$Z17-1,SkipYrs*Periods+1,1,$AE17)),0)+OFFSET(CostE!K$5,$Z17-1,SkipYrs*Periods+1+$AE17)*$AF17*(1/(1+Disc)^($AE17+1)))*$M17*(1+$AL17) + (OFFSET(CostE!K$5,$Z17-1,SkipYrs*Periods+1+$AE17)*$AG17*(1/(1+Disc)^($AE17+1))+ IF($AH17>0,NPV(Disc,OFFSET(CostE!K$5,$Z17-1,SkipYrs*Periods+ROUND($AE17+$AF17+$AG17,0)+1,1,$AH17)),0)*(1/(1+Disc)^($AE17+$AF17+$AG17))+ OFFSET(CostE!K$5,$Z17-1,SkipYrs*Periods+ROUND($AE17+$AF17+$AG17+$AH17,0)+1)*$AI17*(1/(1+Disc)^(ROUND($AE17+$AH17+$AF17+$AG17,0)+1)))*Input!$AC17*(1+$AL17) ->  | AR17: =(IF($AE17>0,NPV(Disc,OFFSET(CostE!L$5,$Z17-1,SkipYrs*Periods+1,1,$AE17)),0)+OFFSET(CostE!L$5,$Z17-1,SkipYrs*Periods+1+$AE17)*$AF17*(1/(1+Disc)^($AE17+1)))*$M17*(1+$AL17) + (OFFSET(CostE!L$5,$Z17-1,SkipYrs*Periods+1+$AE17)*$AG17*(1/(1+Disc)^($AE17+1))+ IF($AH17>0,NPV(Disc,OFFSET(CostE!L$5,$Z17-1,SkipYrs*Periods+ROUND($AE17+$AF17+$AG17,0)+1,1,$AH17)),0)*(1/(1+Disc)^($AE17+$AF17+$AG17))+ OFFSET(CostE!L$5,$Z17-1,SkipYrs*Periods+ROUND($AE17+$AF17+$AG17+$AH17,0)+1)*$AI17*(1/(1+Disc)^(ROUND($AE17+$AH17+$AF17+$AG17,0)+1)))*Input!$AC17*(1+$AL17) ->  | AS17: =(IF($AE17>0,NPV(Disc,OFFSET(CostE!M$5,$Z17-1,SkipYrs*Periods+1,1,$AE17)),0)+OFFSET(CostE!M$5,$Z17-1,SkipYrs*Periods+1+$AE17)*$AF17*(1/(1+Disc)^($AE17+1)))*$M17*(1+$AL17) + (OFFSET(CostE!M$5,$Z17-1,SkipYrs*Periods+1+$AE17)*$AG17*(1/(1+Disc)^($AE17+1))+ IF($AH17>0,NPV(Disc,OFFSET(CostE!M$5,$Z17-1,SkipYrs*Periods+ROUND($AE17+$AF17+$AG17,0)+1,1,$AH17)),0)*(1/(1+Disc)^($AE17+$AF17+$AG17))+ OFFSET(CostE!M$5,$Z17-1,SkipYrs*Periods+ROUND($AE17+$AF17+$AG17+$AH17,0)+1)*$AI17*(1/(1+Disc)^(ROUND($AE17+$AH17+$AF17+$AG17,0)+1)))*Input!$AC17*(1+$AL17) ->  | AT17: =(IF($AE17>0,NPV(Disc,OFFSET(CostE!N$5,$Z17-1,SkipYrs*Periods+1,1,$AE17)),0)+OFFSET(CostE!N$5,$Z17-1,SkipYrs*Periods+1+$AE17)*$AF17*(1/(1+Disc)^($AE17+1)))*$M17*(1+$AL17) + (OFFSET(CostE!N$5,$Z17-1,SkipYrs*Periods+1+$AE17)*$AG17*(1/(1+Disc)^($AE17+1))+ IF($AH17>0,NPV(Disc,OFFSET(CostE!N$5,$Z17-1,SkipYrs*Periods+ROUND($AE17+$AF17+$AG17,0)+1,1,$AH17)),0)*(1/(1+Disc)^($AE17+$AF17+$AG17))+ OFFSET(CostE!N$5,$Z17-1,SkipYrs*Periods+ROUND($AE17+$AF17+$AG17+$AH17,0)+1)*$AI17*(1/(1+Disc)^(ROUND($AE17+$AH17+$AF17+$AG17,0)+1)))*Input!$AC17*(1+$AL17) ->  | AU17: =(IF($AE17>0,NPV(Disc,OFFSET(CostE!O$5,$Z17-1,SkipYrs*Periods+1,1,$AE17)),0)+OFFSET(CostE!O$5,$Z17-1,SkipYrs*Periods+1+$AE17)*$AF17*(1/(1+Disc)^($AE17+1)))*$M17*(1+$AL17) + (OFFSET(CostE!O$5,$Z17-1,SkipYrs*Periods+1+$AE17)*$AG17*(1/(1+Disc)^($AE17+1))+ IF($AH17>0,NPV(Disc,OFFSET(CostE!O$5,$Z17-1,SkipYrs*Periods+ROUND($AE17+$AF17+$AG17,0)+1,1,$AH17)),0)*(1/(1+Disc)^($AE17+$AF17+$AG17))+ OFFSET(CostE!O$5,$Z17-1,SkipYrs*Periods+ROUND($AE17+$AF17+$AG17+$AH17,0)+1)*$AI17*(1/(1+Disc)^(ROUND($AE17+$AH17+$AF17+$AG17,0)+1)))*Input!$AC17*(1+$AL17) ->  | AV17: =(IF($AE17>0,NPV(Disc,OFFSET(CostE!P$5,$Z17-1,SkipYrs*Periods+1,1,$AE17)),0)+OFFSET(CostE!P$5,$Z17-1,SkipYrs*Periods+1+$AE17)*$AF17*(1/(1+Disc)^($AE17+1)))*$M17*(1+$AL17) + (OFFSET(CostE!P$5,$Z17-1,SkipYrs*Periods+1+$AE17)*$AG17*(1/(1+Disc)^($AE17+1))+ IF($AH17>0,NPV(Disc,OFFSET(CostE!P$5,$Z17-1,SkipYrs*Periods+ROUND($AE17+$AF17+$AG17,0)+1,1,$AH17)),0)*(1/(1+Disc)^($AE17+$AF17+$AG17))+ OFFSET(CostE!P$5,$Z17-1,SkipYrs*Periods+ROUND($AE17+$AF17+$AG17+$AH17,0)+1)*$AI17*(1/(1+Disc)^(ROUND($AE17+$AH17+$AF17+$AG17,0)+1)))*Input!$AC17*(1+$AL17) ->  | AW17: =(IF($AE17>0,NPV(Disc,OFFSET(CostE!Q$5,$Z17-1,SkipYrs*Periods+1,1,$AE17)),0)+OFFSET(CostE!Q$5,$Z17-1,SkipYrs*Periods+1+$AE17)*$AF17*(1/(1+Disc)^($AE17+1)))*$M17*(1+$AL17) + (OFFSET(CostE!Q$5,$Z17-1,SkipYrs*Periods+1+$AE17)*$AG17*(1/(1+Disc)^($AE17+1))+ IF($AH17>0,NPV(Disc,OFFSET(CostE!Q$5,$Z17-1,SkipYrs*Periods+ROUND($AE17+$AF17+$AG17,0)+1,1,$AH17)),0)*(1/(1+Disc)^($AE17+$AF17+$AG17))+ OFFSET(CostE!Q$5,$Z17-1,SkipYrs*Periods+ROUND($AE17+$AF17+$AG17+$AH17,0)+1)*$AI17*(1/(1+Disc)^(ROUND($AE17+$AH17+$AF17+$AG17,0)+1)))*Input!$AC17*(1+$AL17) ->  | AX17: =(IF($AE17>0,NPV(Disc,OFFSET(CostE!R$5,$Z17-1,SkipYrs*Periods+1,1,$AE17)),0)+OFFSET(CostE!R$5,$Z17-1,SkipYrs*Periods+1+$AE17)*$AF17*(1/(1+Disc)^($AE17+1)))*$M17*(1+$AL17) + (OFFSET(CostE!R$5,$Z17-1,SkipYrs*Periods+1+$AE17)*$AG17*(1/(1+Disc)^($AE17+1))+ IF($AH17>0,NPV(Disc,OFFSET(CostE!R$5,$Z17-1,SkipYrs*Periods+ROUND($AE17+$AF17+$AG17,0)+1,1,$AH17)),0)*(1/(1+Disc)^($AE17+$AF17+$AG17))+ OFFSET(CostE!R$5,$Z17-1,SkipYrs*Periods+ROUND($AE17+$AF17+$AG17+$AH17,0)+1)*$AI17*(1/(1+Disc)^(ROUND($AE17+$AH17+$AF17+$AG17,0)+1)))*Input!$AC17*(1+$AL17) ->  | AY17: =(IF($AE17>0,NPV(Disc,OFFSET(CostE!S$5,$Z17-1,SkipYrs*Periods+1,1,$AE17)),0)+OFFSET(CostE!S$5,$Z17-1,SkipYrs*Periods+1+$AE17)*$AF17*(1/(1+Disc)^($AE17+1)))*$M17*(1+$AL17) + (OFFSET(CostE!S$5,$Z17-1,SkipYrs*Periods+1+$AE17)*$AG17*(1/(1+Disc)^($AE17+1))+ IF($AH17>0,NPV(Disc,OFFSET(CostE!S$5,$Z17-1,SkipYrs*Periods+ROUND($AE17+$AF17+$AG17,0)+1,1,$AH17)),0)*(1/(1+Disc)^($AE17+$AF17+$AG17))+ OFFSET(CostE!S$5,$Z17-1,SkipYrs*Periods+ROUND($AE17+$AF17+$AG17+$AH17,0)+1)*$AI17*(1/(1+Disc)^(ROUND($AE17+$AH17+$AF17+$AG17,0)+1)))*Input!$AC17*(1+$AL17) ->  | AZ17: =(IF($AE17>0,NPV(Disc,OFFSET(CostE!T$5,$Z17-1,SkipYrs*Periods+1,1,$AE17)),0)+OFFSET(CostE!T$5,$Z17-1,SkipYrs*Periods+1+$AE17)*$AF17*(1/(1+Disc)^($AE17+1)))*$M17*(1+$AL17) + (OFFSET(CostE!T$5,$Z17-1,SkipYrs*Periods+1+$AE17)*$AG17*(1/(1+Disc)^($AE17+1))+ IF($AH17>0,NPV(Disc,OFFSET(CostE!T$5,$Z17-1,SkipYrs*Periods+ROUND($AE17+$AF17+$AG17,0)+1,1,$AH17)),0)*(1/(1+Disc)^($AE17+$AF17+$AG17))+ OFFSET(CostE!T$5,$Z17-1,SkipYrs*Periods+ROUND($AE17+$AF17+$AG17+$AH17,0)+1)*$AI17*(1/(1+Disc)^(ROUND($AE17+$AH17+$AF17+$AG17,0)+1)))*Input!$AC17*(1+$AL17) ->  | BA17: =(IF($AE17>0,NPV(Disc,OFFSET(CostE!U$5,$Z17-1,SkipYrs*Periods+1,1,$AE17)),0)+OFFSET(CostE!U$5,$Z17-1,SkipYrs*Periods+1+$AE17)*$AF17*(1/(1+Disc)^($AE17+1)))*$M17*(1+$AL17) + (OFFSET(CostE!U$5,$Z17-1,SkipYrs*Periods+1+$AE17)*$AG17*(1/(1+Disc)^($AE17+1))+ IF($AH17>0,NPV(Disc,OFFSET(CostE!U$5,$Z17-1,SkipYrs*Periods+ROUND($AE17+$AF17+$AG17,0)+1,1,$AH17)),0)*(1/(1+Disc)^($AE17+$AF17+$AG17))+ OFFSET(CostE!U$5,$Z17-1,SkipYrs*Periods+ROUND($AE17+$AF17+$AG17+$AH17,0)+1)*$AI17*(1/(1+Disc)^(ROUND($AE17+$AH17+$AF17+$AG17,0)+1)))*Input!$AC17*(1+$AL17) ->  | BB17: =(IF($AE17>0,NPV(Disc,OFFSET(CostE!V$5,$Z17-1,SkipYrs*Periods+1,1,$AE17)),0)+OFFSET(CostE!V$5,$Z17-1,SkipYrs*Periods+1+$AE17)*$AF17*(1/(1+Disc)^($AE17+1)))*$M17*(1+$AL17) + (OFFSET(CostE!V$5,$Z17-1,SkipYrs*Periods+1+$AE17)*$AG17*(1/(1+Disc)^($AE17+1))+ IF($AH17>0,NPV(Disc,OFFSET(CostE!V$5,$Z17-1,SkipYrs*Periods+ROUND($AE17+$AF17+$AG17,0)+1,1,$AH17)),0)*(1/(1+Disc)^($AE17+$AF17+$AG17))+ OFFSET(CostE!V$5,$Z17-1,SkipYrs*Periods+ROUND($AE17+$AF17+$AG17+$AH17,0)+1)*$AI17*(1/(1+Disc)^(ROUND($AE17+$AH17+$AF17+$AG17,0)+1)))*Input!$AC17*(1+$AL17) ->  | BC17: =(IF($AE17>0,NPV(Disc,OFFSET(CostE!W$5,$Z17-1,SkipYrs*Periods+1,1,$AE17)),0)+OFFSET(CostE!W$5,$Z17-1,SkipYrs*Periods+1+$AE17)*$AF17*(1/(1+Disc)^($AE17+1)))*$M17*(1+$AL17) + (OFFSET(CostE!W$5,$Z17-1,SkipYrs*Periods+1+$AE17)*$AG17*(1/(1+Disc)^($AE17+1))+ IF($AH17>0,NPV(Disc,OFFSET(CostE!W$5,$Z17-1,SkipYrs*Periods+ROUND($AE17+$AF17+$AG17,0)+1,1,$AH17)),0)*(1/(1+Disc)^($AE17+$AF17+$AG17))+ OFFSET(CostE!W$5,$Z17-1,SkipYrs*Periods+ROUND($AE17+$AF17+$AG17+$AH17,0)+1)*$AI17*(1/(1+Disc)^(ROUND($AE17+$AH17+$AF17+$AG17,0)+1)))*Input!$AC17*(1+$AL17) ->  | BD17: =(IF($AE17>0,NPV(Disc,OFFSET(CostE!X$5,$Z17-1,SkipYrs*Periods+1,1,$AE17)),0)+OFFSET(CostE!X$5,$Z17-1,SkipYrs*Periods+1+$AE17)*$AF17*(1/(1+Disc)^($AE17+1)))*$M17*(1+$AL17) + (OFFSET(CostE!X$5,$Z17-1,SkipYrs*Periods+1+$AE17)*$AG17*(1/(1+Disc)^($AE17+1))+ IF($AH17>0,NPV(Disc,OFFSET(CostE!X$5,$Z17-1,SkipYrs*Periods+ROUND($AE17+$AF17+$AG17,0)+1,1,$AH17)),0)*(1/(1+Disc)^($AE17+$AF17+$AG17))+ OFFSET(CostE!X$5,$Z17-1,SkipYrs*Periods+ROUND($AE17+$AF17+$AG17+$AH17,0)+1)*$AI17*(1/(1+Disc)^(ROUND($AE17+$AH17+$AF17+$AG17,0)+1)))*Input!$AC17*(1+$AL17) ->  | BE17: =(IF($AE17>0,NPV(Disc,OFFSET(CostE!Y$5,$Z17-1,SkipYrs*Periods+1,1,$AE17)),0)+OFFSET(CostE!Y$5,$Z17-1,SkipYrs*Periods+1+$AE17)*$AF17*(1/(1+Disc)^($AE17+1)))*$M17*(1+$AL17) + (OFFSET(CostE!Y$5,$Z17-1,SkipYrs*Periods+1+$AE17)*$AG17*(1/(1+Disc)^($AE17+1))+ IF($AH17>0,NPV(Disc,OFFSET(CostE!Y$5,$Z17-1,SkipYrs*Periods+ROUND($AE17+$AF17+$AG17,0)+1,1,$AH17)),0)*(1/(1+Disc)^($AE17+$AF17+$AG17))+ OFFSET(CostE!Y$5,$Z17-1,SkipYrs*Periods+ROUND($AE17+$AF17+$AG17+$AH17,0)+1)*$AI17*(1/(1+Disc)^(ROUND($AE17+$AH17+$AF17+$AG17,0)+1)))*Input!$AC17*(1+$AL17) ->  | BF17: =(IF($AE17>0,NPV(Disc,OFFSET(CostE!Z$5,$Z17-1,SkipYrs*Periods+1,1,$AE17)),0)+OFFSET(CostE!Z$5,$Z17-1,SkipYrs*Periods+1+$AE17)*$AF17*(1/(1+Disc)^($AE17+1)))*$M17*(1+$AL17) + (OFFSET(CostE!Z$5,$Z17-1,SkipYrs*Periods+1+$AE17)*$AG17*(1/(1+Disc)^($AE17+1))+ IF($AH17>0,NPV(Disc,OFFSET(CostE!Z$5,$Z17-1,SkipYrs*Periods+ROUND($AE17+$AF17+$AG17,0)+1,1,$AH17)),0)*(1/(1+Disc)^($AE17+$AF17+$AG17))+ OFFSET(CostE!Z$5,$Z17-1,SkipYrs*Periods+ROUND($AE17+$AF17+$AG17+$AH17,0)+1)*$AI17*(1/(1+Disc)^(ROUND($AE17+$AH17+$AF17+$AG17,0)+1)))*Input!$AC17*(1+$AL17) ->  | BG17: =(IF($AE17>0,NPV(Disc,OFFSET(CostE!AA$5,$Z17-1,SkipYrs*Periods+1,1,$AE17)),0)+OFFSET(CostE!AA$5,$Z17-1,SkipYrs*Periods+1+$AE17)*$AF17*(1/(1+Disc)^($AE17+1)))*$M17*(1+$AL17) + (OFFSET(CostE!AA$5,$Z17-1,SkipYrs*Periods+1+$AE17)*$AG17*(1/(1+Disc)^($AE17+1))+ IF($AH17>0,NPV(Disc,OFFSET(CostE!AA$5,$Z17-1,SkipYrs*Periods+ROUND($AE17+$AF17+$AG17,0)+1,1,$AH17)),0)*(1/(1+Disc)^($AE17+$AF17+$AG17))+ OFFSET(CostE!AA$5,$Z17-1,SkipYrs*Periods+ROUND($AE17+$AF17+$AG17+$AH17,0)+1)*$AI17*(1/(1+Disc)^(ROUND($AE17+$AH17+$AF17+$AG17,0)+1)))*Input!$AC17*(1+$AL17) ->  | BH17: =(IF($AE17>0,NPV(Disc,OFFSET(CostE!AB$5,$Z17-1,SkipYrs*Periods+1,1,$AE17)),0)+OFFSET(CostE!AB$5,$Z17-1,SkipYrs*Periods+1+$AE17)*$AF17*(1/(1+Disc)^($AE17+1)))*$M17*(1+$AL17) + (OFFSET(CostE!AB$5,$Z17-1,SkipYrs*Periods+1+$AE17)*$AG17*(1/(1+Disc)^($AE17+1))+ IF($AH17>0,NPV(Disc,OFFSET(CostE!AB$5,$Z17-1,SkipYrs*Periods+ROUND($AE17+$AF17+$AG17,0)+1,1,$AH17)),0)*(1/(1+Disc)^($AE17+$AF17+$AG17))+ OFFSET(CostE!AB$5,$Z17-1,SkipYrs*Periods+ROUND($AE17+$AF17+$AG17+$AH17,0)+1)*$AI17*(1/(1+Disc)^(ROUND($AE17+$AH17+$AF17+$AG17,0)+1)))*Input!$AC17*(1+$AL17) ->  | BI17: =(IF($AE17>0,NPV(Disc,OFFSET(CostE!AC$5,$Z17-1,SkipYrs*Periods+1,1,$AE17)),0)+OFFSET(CostE!AC$5,$Z17-1,SkipYrs*Periods+1+$AE17)*$AF17*(1/(1+Disc)^($AE17+1)))*$M17*(1+$AL17) + (OFFSET(CostE!AC$5,$Z17-1,SkipYrs*Periods+1+$AE17)*$AG17*(1/(1+Disc)^($AE17+1))+ IF($AH17>0,NPV(Disc,OFFSET(CostE!AC$5,$Z17-1,SkipYrs*Periods+ROUND($AE17+$AF17+$AG17,0)+1,1,$AH17)),0)*(1/(1+Disc)^($AE17+$AF17+$AG17))+ OFFSET(CostE!AC$5,$Z17-1,SkipYrs*Periods+ROUND($AE17+$AF17+$AG17+$AH17,0)+1)*$AI17*(1/(1+Disc)^(ROUND($AE17+$AH17+$AF17+$AG17,0)+1)))*Input!$AC17*(1+$AL17) ->  | BJ17: =(IF($AE17>0,NPV(Disc,OFFSET(CostE!AD$5,$Z17-1,SkipYrs*Periods+1,1,$AE17)),0)+OFFSET(CostE!AD$5,$Z17-1,SkipYrs*Periods+1+$AE17)*$AF17*(1/(1+Disc)^($AE17+1)))*$M17*(1+$AL17) + (OFFSET(CostE!AD$5,$Z17-1,SkipYrs*Periods+1+$AE17)*$AG17*(1/(1+Disc)^($AE17+1))+ IF($AH17>0,NPV(Disc,OFFSET(CostE!AD$5,$Z17-1,SkipYrs*Periods+ROUND($AE17+$AF17+$AG17,0)+1,1,$AH17)),0)*(1/(1+Disc)^($AE17+$AF17+$AG17))+ OFFSET(CostE!AD$5,$Z17-1,SkipYrs*Periods+ROUND($AE17+$AF17+$AG17+$AH17,0)+1)*$AI17*(1/(1+Disc)^(ROUND($AE17+$AH17+$AF17+$AG17,0)+1)))*Input!$AC17*(1+$AL17) ->  | BK17: =(IF($AE17>0,NPV(Disc,OFFSET(CostE!AE$5,$Z17-1,SkipYrs*Periods+1,1,$AE17)),0)+OFFSET(CostE!AE$5,$Z17-1,SkipYrs*Periods+1+$AE17)*$AF17*(1/(1+Disc)^($AE17+1)))*$M17*(1+$AL17) + (OFFSET(CostE!AE$5,$Z17-1,SkipYrs*Periods+1+$AE17)*$AG17*(1/(1+Disc)^($AE17+1))+ IF($AH17>0,NPV(Disc,OFFSET(CostE!AE$5,$Z17-1,SkipYrs*Periods+ROUND($AE17+$AF17+$AG17,0)+1,1,$AH17)),0)*(1/(1+Disc)^($AE17+$AF17+$AG17))+ OFFSET(CostE!AE$5,$Z17-1,SkipYrs*Periods+ROUND($AE17+$AF17+$AG17+$AH17,0)+1)*$AI17*(1/(1+Disc)^(ROUND($AE17+$AH17+$AF17+$AG17,0)+1)))*Input!$AC17*(1+$AL17) ->  | BL17: =(IF($AE17>0,NPV(Disc,OFFSET(CostE!AF$5,$Z17-1,SkipYrs*Periods+1,1,$AE17)),0)+OFFSET(CostE!AF$5,$Z17-1,SkipYrs*Periods+1+$AE17)*$AF17*(1/(1+Disc)^($AE17+1)))*$M17*(1+$AL17) + (OFFSET(CostE!AF$5,$Z17-1,SkipYrs*Periods+1+$AE17)*$AG17*(1/(1+Disc)^($AE17+1))+ IF($AH17>0,NPV(Disc,OFFSET(CostE!AF$5,$Z17-1,SkipYrs*Periods+ROUND($AE17+$AF17+$AG17,0)+1,1,$AH17)),0)*(1/(1+Disc)^($AE17+$AF17+$AG17))+ OFFSET(CostE!AF$5,$Z17-1,SkipYrs*Periods+ROUND($AE17+$AF17+$AG17+$AH17,0)+1)*$AI17*(1/(1+Disc)^(ROUND($AE17+$AH17+$AF17+$AG17,0)+1)))*Input!$AC17*(1+$AL17) ->  | BM17: =(IF($AE17>0,NPV(Disc,OFFSET(CostE!AG$5,$Z17-1,SkipYrs*Periods+1,1,$AE17)),0)+OFFSET(CostE!AG$5,$Z17-1,SkipYrs*Periods+1+$AE17)*$AF17*(1/(1+Disc)^($AE17+1)))*$M17*(1+$AL17) + (OFFSET(CostE!AG$5,$Z17-1,SkipYrs*Periods+1+$AE17)*$AG17*(1/(1+Disc)^($AE17+1))+ IF($AH17>0,NPV(Disc,OFFSET(CostE!AG$5,$Z17-1,SkipYrs*Periods+ROUND($AE17+$AF17+$AG17,0)+1,1,$AH17)),0)*(1/(1+Disc)^($AE17+$AF17+$AG17))+ OFFSET(CostE!AG$5,$Z17-1,SkipYrs*Periods+ROUND($AE17+$AF17+$AG17+$AH17,0)+1)*$AI17*(1/(1+Disc)^(ROUND($AE17+$AH17+$AF17+$AG17,0)+1)))*Input!$AC17*(1+$AL17) ->  | BN17: =(IF($AE17>0,NPV(Disc,OFFSET(CostE!AH$5,$Z17-1,SkipYrs*Periods+1,1,$AE17)),0)+OFFSET(CostE!AH$5,$Z17-1,SkipYrs*Periods+1+$AE17)*$AF17*(1/(1+Disc)^($AE17+1)))*$M17*(1+$AL17) + (OFFSET(CostE!AH$5,$Z17-1,SkipYrs*Periods+1+$AE17)*$AG17*(1/(1+Disc)^($AE17+1))+ IF($AH17>0,NPV(Disc,OFFSET(CostE!AH$5,$Z17-1,SkipYrs*Periods+ROUND($AE17+$AF17+$AG17,0)+1,1,$AH17)),0)*(1/(1+Disc)^($AE17+$AF17+$AG17))+ OFFSET(CostE!AH$5,$Z17-1,SkipYrs*Periods+ROUND($AE17+$AF17+$AG17+$AH17,0)+1)*$AI17*(1/(1+Disc)^(ROUND($AE17+$AH17+$AF17+$AG17,0)+1)))*Input!$AC17*(1+$AL17) ->  | BO17: =(IF($AE17>0,NPV(Disc,OFFSET(CostE!AI$5,$Z17-1,SkipYrs*Periods+1,1,$AE17)),0)+OFFSET(CostE!AI$5,$Z17-1,SkipYrs*Periods+1+$AE17)*$AF17*(1/(1+Disc)^($AE17+1)))*$M17*(1+$AL17) + (OFFSET(CostE!AI$5,$Z17-1,SkipYrs*Periods+1+$AE17)*$AG17*(1/(1+Disc)^($AE17+1))+ IF($AH17>0,NPV(Disc,OFFSET(CostE!AI$5,$Z17-1,SkipYrs*Periods+ROUND($AE17+$AF17+$AG17,0)+1,1,$AH17)),0)*(1/(1+Disc)^($AE17+$AF17+$AG17))+ OFFSET(CostE!AI$5,$Z17-1,SkipYrs*Periods+ROUND($AE17+$AF17+$AG17+$AH17,0)+1)*$AI17*(1/(1+Disc)^(ROUND($AE17+$AH17+$AF17+$AG17,0)+1)))*Input!$AC17*(1+$AL17) ->  | BP17: =(IF($AE17>0,NPV(Disc,OFFSET(CostE!AJ$5,$Z17-1,SkipYrs*Periods+1,1,$AE17)),0)+OFFSET(CostE!AJ$5,$Z17-1,SkipYrs*Periods+1+$AE17)*$AF17*(1/(1+Disc)^($AE17+1)))*$M17*(1+$AL17) + (OFFSET(CostE!AJ$5,$Z17-1,SkipYrs*Periods+1+$AE17)*$AG17*(1/(1+Disc)^($AE17+1))+ IF($AH17>0,NPV(Disc,OFFSET(CostE!AJ$5,$Z17-1,SkipYrs*Periods+ROUND($AE17+$AF17+$AG17,0)+1,1,$AH17)),0)*(1/(1+Disc)^($AE17+$AF17+$AG17))+ OFFSET(CostE!AJ$5,$Z17-1,SkipYrs*Periods+ROUND($AE17+$AF17+$AG17+$AH17,0)+1)*$AI17*(1/(1+Disc)^(ROUND($AE17+$AH17+$AF17+$AG17,0)+1)))*Input!$AC17*(1+$AL17) ->  | BQ17: =(IF($AE17>0,NPV(Disc,OFFSET(CostE!AK$5,$Z17-1,SkipYrs*Periods+1,1,$AE17)),0)+OFFSET(CostE!AK$5,$Z17-1,SkipYrs*Periods+1+$AE17)*$AF17*(1/(1+Disc)^($AE17+1)))*$M17*(1+$AL17) + (OFFSET(CostE!AK$5,$Z17-1,SkipYrs*Periods+1+$AE17)*$AG17*(1/(1+Disc)^($AE17+1))+ IF($AH17>0,NPV(Disc,OFFSET(CostE!AK$5,$Z17-1,SkipYrs*Periods+ROUND($AE17+$AF17+$AG17,0)+1,1,$AH17)),0)*(1/(1+Disc)^($AE17+$AF17+$AG17))+ OFFSET(CostE!AK$5,$Z17-1,SkipYrs*Periods+ROUND($AE17+$AF17+$AG17+$AH17,0)+1)*$AI17*(1/(1+Disc)^(ROUND($AE17+$AH17+$AF17+$AG17,0)+1)))*Input!$AC17*(1+$AL17) ->  | BR17: =(IF($AE17>0,NPV(Disc,OFFSET(CostE!AL$5,$Z17-1,SkipYrs*Periods+1,1,$AE17)),0)+OFFSET(CostE!AL$5,$Z17-1,SkipYrs*Periods+1+$AE17)*$AF17*(1/(1+Disc)^($AE17+1)))*$M17*(1+$AL17) + (OFFSET(CostE!AL$5,$Z17-1,SkipYrs*Periods+1+$AE17)*$AG17*(1/(1+Disc)^($AE17+1))+ IF($AH17>0,NPV(Disc,OFFSET(CostE!AL$5,$Z17-1,SkipYrs*Periods+ROUND($AE17+$AF17+$AG17,0)+1,1,$AH17)),0)*(1/(1+Disc)^($AE17+$AF17+$AG17))+ OFFSET(CostE!AL$5,$Z17-1,SkipYrs*Periods+ROUND($AE17+$AF17+$AG17+$AH17,0)+1)*$AI17*(1/(1+Disc)^(ROUND($AE17+$AH17+$AF17+$AG17,0)+1)))*Input!$AC17*(1+$AL17) ->  | BS17: =(IF($AE17>0,NPV(Disc,OFFSET(CostE!AM$5,$Z17-1,SkipYrs*Periods+1,1,$AE17)),0)+OFFSET(CostE!AM$5,$Z17-1,SkipYrs*Periods+1+$AE17)*$AF17*(1/(1+Disc)^($AE17+1)))*$M17*(1+$AL17) + (OFFSET(CostE!AM$5,$Z17-1,SkipYrs*Periods+1+$AE17)*$AG17*(1/(1+Disc)^($AE17+1))+ IF($AH17>0,NPV(Disc,OFFSET(CostE!AM$5,$Z17-1,SkipYrs*Periods+ROUND($AE17+$AF17+$AG17,0)+1,1,$AH17)),0)*(1/(1+Disc)^($AE17+$AF17+$AG17))+ OFFSET(CostE!AM$5,$Z17-1,SkipYrs*Periods+ROUND($AE17+$AF17+$AG17+$AH17,0)+1)*$AI17*(1/(1+Disc)^(ROUND($AE17+$AH17+$AF17+$AG17,0)+1)))*Input!$AC17*(1+$AL17) ->  | BT17: =(IF($AE17>0,NPV(Disc,OFFSET(CostE!AN$5,$Z17-1,SkipYrs*Periods+1,1,$AE17)),0)+OFFSET(CostE!AN$5,$Z17-1,SkipYrs*Periods+1+$AE17)*$AF17*(1/(1+Disc)^($AE17+1)))*$M17*(1+$AL17) + (OFFSET(CostE!AN$5,$Z17-1,SkipYrs*Periods+1+$AE17)*$AG17*(1/(1+Disc)^($AE17+1))+ IF($AH17>0,NPV(Disc,OFFSET(CostE!AN$5,$Z17-1,SkipYrs*Periods+ROUND($AE17+$AF17+$AG17,0)+1,1,$AH17)),0)*(1/(1+Disc)^($AE17+$AF17+$AG17))+ OFFSET(CostE!AN$5,$Z17-1,SkipYrs*Periods+ROUND($AE17+$AF17+$AG17+$AH17,0)+1)*$AI17*(1/(1+Disc)^(ROUND($AE17+$AH17+$AF17+$AG17,0)+1)))*Input!$AC17*(1+$AL17) ->  | BU17: =(IF($AE17>0,NPV(Disc,OFFSET(CostE!AO$5,$Z17-1,SkipYrs*Periods+1,1,$AE17)),0)+OFFSET(CostE!AO$5,$Z17-1,SkipYrs*Periods+1+$AE17)*$AF17*(1/(1+Disc)^($AE17+1)))*$M17*(1+$AL17) + (OFFSET(CostE!AO$5,$Z17-1,SkipYrs*Periods+1+$AE17)*$AG17*(1/(1+Disc)^($AE17+1))+ IF($AH17>0,NPV(Disc,OFFSET(CostE!AO$5,$Z17-1,SkipYrs*Periods+ROUND($AE17+$AF17+$AG17,0)+1,1,$AH17)),0)*(1/(1+Disc)^($AE17+$AF17+$AG17))+ OFFSET(CostE!AO$5,$Z17-1,SkipYrs*Periods+ROUND($AE17+$AF17+$AG17+$AH17,0)+1)*$AI17*(1/(1+Disc)^(ROUND($AE17+$AH17+$AF17+$AG17,0)+1)))*Input!$AC17*(1+$AL17) ->  | BV17: =(IF($AE17>0,NPV(Disc,OFFSET(CostE!AP$5,$Z17-1,SkipYrs*Periods+1,1,$AE17)),0)+OFFSET(CostE!AP$5,$Z17-1,SkipYrs*Periods+1+$AE17)*$AF17*(1/(1+Disc)^($AE17+1)))*$M17*(1+$AL17) + (OFFSET(CostE!AP$5,$Z17-1,SkipYrs*Periods+1+$AE17)*$AG17*(1/(1+Disc)^($AE17+1))+ IF($AH17>0,NPV(Disc,OFFSET(CostE!AP$5,$Z17-1,SkipYrs*Periods+ROUND($AE17+$AF17+$AG17,0)+1,1,$AH17)),0)*(1/(1+Disc)^($AE17+$AF17+$AG17))+ OFFSET(CostE!AP$5,$Z17-1,SkipYrs*Periods+ROUND($AE17+$AF17+$AG17+$AH17,0)+1)*$AI17*(1/(1+Disc)^(ROUND($AE17+$AH17+$AF17+$AG17,0)+1)))*Input!$AC17*(1+$AL17) ->  | BW17: =(IF($AE17>0,NPV(Disc,OFFSET(CostE!AQ$5,$Z17-1,SkipYrs*Periods+1,1,$AE17)),0)+OFFSET(CostE!AQ$5,$Z17-1,SkipYrs*Periods+1+$AE17)*$AF17*(1/(1+Disc)^($AE17+1)))*$M17*(1+$AL17) + (OFFSET(CostE!AQ$5,$Z17-1,SkipYrs*Periods+1+$AE17)*$AG17*(1/(1+Disc)^($AE17+1))+ IF($AH17>0,NPV(Disc,OFFSET(CostE!AQ$5,$Z17-1,SkipYrs*Periods+ROUND($AE17+$AF17+$AG17,0)+1,1,$AH17)),0)*(1/(1+Disc)^($AE17+$AF17+$AG17))+ OFFSET(CostE!AQ$5,$Z17-1,SkipYrs*Periods+ROUND($AE17+$AF17+$AG17+$AH17,0)+1)*$AI17*(1/(1+Disc)^(ROUND($AE17+$AH17+$AF17+$AG17,0)+1)))*Input!$AC17*(1+$AL17) ->  | BX17: =(IF($AE17>0,NPV(Disc,OFFSET(CostE!AR$5,$Z17-1,SkipYrs*Periods+1,1,$AE17)),0)+OFFSET(CostE!AR$5,$Z17-1,SkipYrs*Periods+1+$AE17)*$AF17*(1/(1+Disc)^($AE17+1)))*$M17*(1+$AL17) + (OFFSET(CostE!AR$5,$Z17-1,SkipYrs*Periods+1+$AE17)*$AG17*(1/(1+Disc)^($AE17+1))+ IF($AH17>0,NPV(Disc,OFFSET(CostE!AR$5,$Z17-1,SkipYrs*Periods+ROUND($AE17+$AF17+$AG17,0)+1,1,$AH17)),0)*(1/(1+Disc)^($AE17+$AF17+$AG17))+ OFFSET(CostE!AR$5,$Z17-1,SkipYrs*Periods+ROUND($AE17+$AF17+$AG17+$AH17,0)+1)*$AI17*(1/(1+Disc)^(ROUND($AE17+$AH17+$AF17+$AG17,0)+1)))*Input!$AC17*(1+$AL17) ->  | BY17: =(IF($AE17>0,NPV(Disc,OFFSET(CostE!AS$5,$Z17-1,SkipYrs*Periods+1,1,$AE17)),0)+OFFSET(CostE!AS$5,$Z17-1,SkipYrs*Periods+1+$AE17)*$AF17*(1/(1+Disc)^($AE17+1)))*$M17*(1+$AL17) + (OFFSET(CostE!AS$5,$Z17-1,SkipYrs*Periods+1+$AE17)*$AG17*(1/(1+Disc)^($AE17+1))+ IF($AH17>0,NPV(Disc,OFFSET(CostE!AS$5,$Z17-1,SkipYrs*Periods+ROUND($AE17+$AF17+$AG17,0)+1,1,$AH17)),0)*(1/(1+Disc)^($AE17+$AF17+$AG17))+ OFFSET(CostE!AS$5,$Z17-1,SkipYrs*Periods+ROUND($AE17+$AF17+$AG17+$AH17,0)+1)*$AI17*(1/(1+Disc)^(ROUND($AE17+$AH17+$AF17+$AG17,0)+1)))*Input!$AC17*(1+$AL17) ->  | BZ17: =(IF($AE17>0,NPV(Disc,OFFSET(CostE!AT$5,$Z17-1,SkipYrs*Periods+1,1,$AE17)),0)+OFFSET(CostE!AT$5,$Z17-1,SkipYrs*Periods+1+$AE17)*$AF17*(1/(1+Disc)^($AE17+1)))*$M17*(1+$AL17) + (OFFSET(CostE!AT$5,$Z17-1,SkipYrs*Periods+1+$AE17)*$AG17*(1/(1+Disc)^($AE17+1))+ IF($AH17>0,NPV(Disc,OFFSET(CostE!AT$5,$Z17-1,SkipYrs*Periods+ROUND($AE17+$AF17+$AG17,0)+1,1,$AH17)),0)*(1/(1+Disc)^($AE17+$AF17+$AG17))+ OFFSET(CostE!AT$5,$Z17-1,SkipYrs*Periods+ROUND($AE17+$AF17+$AG17+$AH17,0)+1)*$AI17*(1/(1+Disc)^(ROUND($AE17+$AH17+$AF17+$AG17,0)+1)))*Input!$AC17*(1+$AL17) ->  | CA17: =(IF($AE17>0,NPV(Disc,OFFSET(CostE!AU$5,$Z17-1,SkipYrs*Periods+1,1,$AE17)),0)+OFFSET(CostE!AU$5,$Z17-1,SkipYrs*Periods+1+$AE17)*$AF17*(1/(1+Disc)^($AE17+1)))*$M17*(1+$AL17) + (OFFSET(CostE!AU$5,$Z17-1,SkipYrs*Periods+1+$AE17)*$AG17*(1/(1+Disc)^($AE17+1))+ IF($AH17>0,NPV(Disc,OFFSET(CostE!AU$5,$Z17-1,SkipYrs*Periods+ROUND($AE17+$AF17+$AG17,0)+1,1,$AH17)),0)*(1/(1+Disc)^($AE17+$AF17+$AG17))+ OFFSET(CostE!AU$5,$Z17-1,SkipYrs*Periods+ROUND($AE17+$AF17+$AG17+$AH17,0)+1)*$AI17*(1/(1+Disc)^(ROUND($AE17+$AH17+$AF17+$AG17,0)+1)))*Input!$AC17*(1+$AL17) ->  | CB17: =(IF($AE17>0,NPV(Disc,OFFSET(CostE!AV$5,$Z17-1,SkipYrs*Periods+1,1,$AE17)),0)+OFFSET(CostE!AV$5,$Z17-1,SkipYrs*Periods+1+$AE17)*$AF17*(1/(1+Disc)^($AE17+1)))*$M17*(1+$AL17) + (OFFSET(CostE!AV$5,$Z17-1,SkipYrs*Periods+1+$AE17)*$AG17*(1/(1+Disc)^($AE17+1))+ IF($AH17>0,NPV(Disc,OFFSET(CostE!AV$5,$Z17-1,SkipYrs*Periods+ROUND($AE17+$AF17+$AG17,0)+1,1,$AH17)),0)*(1/(1+Disc)^($AE17+$AF17+$AG17))+ OFFSET(CostE!AV$5,$Z17-1,SkipYrs*Periods+ROUND($AE17+$AF17+$AG17+$AH17,0)+1)*$AI17*(1/(1+Disc)^(ROUND($AE17+$AH17+$AF17+$AG17,0)+1)))*Input!$AC17*(1+$AL17) ->  | CC17: =(IF($AE17>0,NPV(Disc,OFFSET(CostE!AW$5,$Z17-1,SkipYrs*Periods+1,1,$AE17)),0)+OFFSET(CostE!AW$5,$Z17-1,SkipYrs*Periods+1+$AE17)*$AF17*(1/(1+Disc)^($AE17+1)))*$M17*(1+$AL17) + (OFFSET(CostE!AW$5,$Z17-1,SkipYrs*Periods+1+$AE17)*$AG17*(1/(1+Disc)^($AE17+1))+ IF($AH17>0,NPV(Disc,OFFSET(CostE!AW$5,$Z17-1,SkipYrs*Periods+ROUND($AE17+$AF17+$AG17,0)+1,1,$AH17)),0)*(1/(1+Disc)^($AE17+$AF17+$AG17))+ OFFSET(CostE!AW$5,$Z17-1,SkipYrs*Periods+ROUND($AE17+$AF17+$AG17+$AH17,0)+1)*$AI17*(1/(1+Disc)^(ROUND($AE17+$AH17+$AF17+$AG17,0)+1)))*Input!$AC17*(1+$AL17) ->  | CD17: =(IF($AE17>0,NPV(Disc,OFFSET(CostE!AX$5,$Z17-1,SkipYrs*Periods+1,1,$AE17)),0)+OFFSET(CostE!AX$5,$Z17-1,SkipYrs*Periods+1+$AE17)*$AF17*(1/(1+Disc)^($AE17+1)))*$M17*(1+$AL17) + (OFFSET(CostE!AX$5,$Z17-1,SkipYrs*Periods+1+$AE17)*$AG17*(1/(1+Disc)^($AE17+1))+ IF($AH17>0,NPV(Disc,OFFSET(CostE!AX$5,$Z17-1,SkipYrs*Periods+ROUND($AE17+$AF17+$AG17,0)+1,1,$AH17)),0)*(1/(1+Disc)^($AE17+$AF17+$AG17))+ OFFSET(CostE!AX$5,$Z17-1,SkipYrs*Periods+ROUND($AE17+$AF17+$AG17+$AH17,0)+1)*$AI17*(1/(1+Disc)^(ROUND($AE17+$AH17+$AF17+$AG17,0)+1)))*Input!$AC17*(1+$AL17) ->  | CE17: =(IF($AE17>0,NPV(Disc,OFFSET(CostE!G$5,$AA17-1,SkipYrs*Periods+1,1,$AE17)),0)+OFFSET(CostE!G$5,$AA17-1,SkipYrs*Periods+1+$AE17)*$AF17*(1/(1+Disc)^($AE17+1)))*$R17 + (OFFSET(CostE!G$5,$AA17-1,SkipYrs*Periods+1+$AE17)*$AG17*(1/(1+Disc)^($AE17+1))+ IF($AH17>0,NPV(Disc,OFFSET(CostE!G$5,$AA17-1,SkipYrs*Periods+ROUND($AE17+$AF17+$AG17,0)+1,1,$AH17)),0)*(1/(1+Disc)^($AE17+$AF17+$AG17))+ OFFSET(CostE!G$5,$AA17-1,SkipYrs*Periods+ROUND($AE17+$AF17+$AG17+$AH17,0)+1)*$AI17*(1/(1+Disc)^(ROUND($AE17+$AH17+$AF17+$AG17,0)+1)))*$S17 ->  | CF17: =(IF($AE17>0,NPV(Disc,OFFSET(CostE!H$5,$AA17-1,SkipYrs*Periods+1,1,$AE17)),0)+OFFSET(CostE!H$5,$AA17-1,SkipYrs*Periods+1+$AE17)*$AF17*(1/(1+Disc)^($AE17+1)))*$R17 + (OFFSET(CostE!H$5,$AA17-1,SkipYrs*Periods+1+$AE17)*$AG17*(1/(1+Disc)^($AE17+1))+ IF($AH17>0,NPV(Disc,OFFSET(CostE!H$5,$AA17-1,SkipYrs*Periods+ROUND($AE17+$AF17+$AG17,0)+1,1,$AH17)),0)*(1/(1+Disc)^($AE17+$AF17+$AG17))+ OFFSET(CostE!H$5,$AA17-1,SkipYrs*Periods+ROUND($AE17+$AF17+$AG17+$AH17,0)+1)*$AI17*(1/(1+Disc)^(ROUND($AE17+$AH17+$AF17+$AG17,0)+1)))*$S17 ->  | CG17: =(IF($AE17>0,NPV(Disc,OFFSET(CostE!I$5,$AA17-1,SkipYrs*Periods+1,1,$AE17)),0)+OFFSET(CostE!I$5,$AA17-1,SkipYrs*Periods+1+$AE17)*$AF17*(1/(1+Disc)^($AE17+1)))*$R17 + (OFFSET(CostE!I$5,$AA17-1,SkipYrs*Periods+1+$AE17)*$AG17*(1/(1+Disc)^($AE17+1))+ IF($AH17>0,NPV(Disc,OFFSET(CostE!I$5,$AA17-1,SkipYrs*Periods+ROUND($AE17+$AF17+$AG17,0)+1,1,$AH17)),0)*(1/(1+Disc)^($AE17+$AF17+$AG17))+ OFFSET(CostE!I$5,$AA17-1,SkipYrs*Periods+ROUND($AE17+$AF17+$AG17+$AH17,0)+1)*$AI17*(1/(1+Disc)^(ROUND($AE17+$AH17+$AF17+$AG17,0)+1)))*$S17 ->  | CH17: =(IF($AE17>0,NPV(Disc,OFFSET(CostE!J$5,$AA17-1,SkipYrs*Periods+1,1,$AE17)),0)+OFFSET(CostE!J$5,$AA17-1,SkipYrs*Periods+1+$AE17)*$AF17*(1/(1+Disc)^($AE17+1)))*$R17 + (OFFSET(CostE!J$5,$AA17-1,SkipYrs*Periods+1+$AE17)*$AG17*(1/(1+Disc)^($AE17+1))+ IF($AH17>0,NPV(Disc,OFFSET(CostE!J$5,$AA17-1,SkipYrs*Periods+ROUND($AE17+$AF17+$AG17,0)+1,1,$AH17)),0)*(1/(1+Disc)^($AE17+$AF17+$AG17))+ OFFSET(CostE!J$5,$AA17-1,SkipYrs*Periods+ROUND($AE17+$AF17+$AG17+$AH17,0)+1)*$AI17*(1/(1+Disc)^(ROUND($AE17+$AH17+$AF17+$AG17,0)+1)))*$S17 ->  | CI17: =(IF($AE17>0,NPV(Disc,OFFSET(CostE!K$5,$AA17-1,SkipYrs*Periods+1,1,$AE17)),0)+OFFSET(CostE!K$5,$AA17-1,SkipYrs*Periods+1+$AE17)*$AF17*(1/(1+Disc)^($AE17+1)))*$R17 + (OFFSET(CostE!K$5,$AA17-1,SkipYrs*Periods+1+$AE17)*$AG17*(1/(1+Disc)^($AE17+1))+ IF($AH17>0,NPV(Disc,OFFSET(CostE!K$5,$AA17-1,SkipYrs*Periods+ROUND($AE17+$AF17+$AG17,0)+1,1,$AH17)),0)*(1/(1+Disc)^($AE17+$AF17+$AG17))+ OFFSET(CostE!K$5,$AA17-1,SkipYrs*Periods+ROUND($AE17+$AF17+$AG17+$AH17,0)+1)*$AI17*(1/(1+Disc)^(ROUND($AE17+$AH17+$AF17+$AG17,0)+1)))*$S17 ->  | CJ17: =(IF($AE17>0,NPV(Disc,OFFSET(CostE!L$5,$AA17-1,SkipYrs*Periods+1,1,$AE17)),0)+OFFSET(CostE!L$5,$AA17-1,SkipYrs*Periods+1+$AE17)*$AF17*(1/(1+Disc)^($AE17+1)))*$R17 + (OFFSET(CostE!L$5,$AA17-1,SkipYrs*Periods+1+$AE17)*$AG17*(1/(1+Disc)^($AE17+1))+ IF($AH17>0,NPV(Disc,OFFSET(CostE!L$5,$AA17-1,SkipYrs*Periods+ROUND($AE17+$AF17+$AG17,0)+1,1,$AH17)),0)*(1/(1+Disc)^($AE17+$AF17+$AG17))+ OFFSET(CostE!L$5,$AA17-1,SkipYrs*Periods+ROUND($AE17+$AF17+$AG17+$AH17,0)+1)*$AI17*(1/(1+Disc)^(ROUND($AE17+$AH17+$AF17+$AG17,0)+1)))*$S17 ->  | CK17: =(IF($AE17>0,NPV(Disc,OFFSET(CostE!M$5,$AA17-1,SkipYrs*Periods+1,1,$AE17)),0)+OFFSET(CostE!M$5,$AA17-1,SkipYrs*Periods+1+$AE17)*$AF17*(1/(1+Disc)^($AE17+1)))*$R17 + (OFFSET(CostE!M$5,$AA17-1,SkipYrs*Periods+1+$AE17)*$AG17*(1/(1+Disc)^($AE17+1))+ IF($AH17>0,NPV(Disc,OFFSET(CostE!M$5,$AA17-1,SkipYrs*Periods+ROUND($AE17+$AF17+$AG17,0)+1,1,$AH17)),0)*(1/(1+Disc)^($AE17+$AF17+$AG17))+ OFFSET(CostE!M$5,$AA17-1,SkipYrs*Periods+ROUND($AE17+$AF17+$AG17+$AH17,0)+1)*$AI17*(1/(1+Disc)^(ROUND($AE17+$AH17+$AF17+$AG17,0)+1)))*$S17 ->  | CL17: =(IF($AE17>0,NPV(Disc,OFFSET(CostE!N$5,$AA17-1,SkipYrs*Periods+1,1,$AE17)),0)+OFFSET(CostE!N$5,$AA17-1,SkipYrs*Periods+1+$AE17)*$AF17*(1/(1+Disc)^($AE17+1)))*$R17 + (OFFSET(CostE!N$5,$AA17-1,SkipYrs*Periods+1+$AE17)*$AG17*(1/(1+Disc)^($AE17+1))+ IF($AH17>0,NPV(Disc,OFFSET(CostE!N$5,$AA17-1,SkipYrs*Periods+ROUND($AE17+$AF17+$AG17,0)+1,1,$AH17)),0)*(1/(1+Disc)^($AE17+$AF17+$AG17))+ OFFSET(CostE!N$5,$AA17-1,SkipYrs*Periods+ROUND($AE17+$AF17+$AG17+$AH17,0)+1)*$AI17*(1/(1+Disc)^(ROUND($AE17+$AH17+$AF17+$AG17,0)+1)))*$S17 ->  | CM17: =(IF($AE17>0,NPV(Disc,OFFSET(CostE!O$5,$AA17-1,SkipYrs*Periods+1,1,$AE17)),0)+OFFSET(CostE!O$5,$AA17-1,SkipYrs*Periods+1+$AE17)*$AF17*(1/(1+Disc)^($AE17+1)))*$R17 + (OFFSET(CostE!O$5,$AA17-1,SkipYrs*Periods+1+$AE17)*$AG17*(1/(1+Disc)^($AE17+1))+ IF($AH17>0,NPV(Disc,OFFSET(CostE!O$5,$AA17-1,SkipYrs*Periods+ROUND($AE17+$AF17+$AG17,0)+1,1,$AH17)),0)*(1/(1+Disc)^($AE17+$AF17+$AG17))+ OFFSET(CostE!O$5,$AA17-1,SkipYrs*Periods+ROUND($AE17+$AF17+$AG17+$AH17,0)+1)*$AI17*(1/(1+Disc)^(ROUND($AE17+$AH17+$AF17+$AG17,0)+1)))*$S17 ->  | CN17: =(IF($AE17>0,NPV(Disc,OFFSET(CostE!P$5,$AA17-1,SkipYrs*Periods+1,1,$AE17)),0)+OFFSET(CostE!P$5,$AA17-1,SkipYrs*Periods+1+$AE17)*$AF17*(1/(1+Disc)^($AE17+1)))*$R17 + (OFFSET(CostE!P$5,$AA17-1,SkipYrs*Periods+1+$AE17)*$AG17*(1/(1+Disc)^($AE17+1))+ IF($AH17>0,NPV(Disc,OFFSET(CostE!P$5,$AA17-1,SkipYrs*Periods+ROUND($AE17+$AF17+$AG17,0)+1,1,$AH17)),0)*(1/(1+Disc)^($AE17+$AF17+$AG17))+ OFFSET(CostE!P$5,$AA17-1,SkipYrs*Periods+ROUND($AE17+$AF17+$AG17+$AH17,0)+1)*$AI17*(1/(1+Disc)^(ROUND($AE17+$AH17+$AF17+$AG17,0)+1)))*$S17 ->  | CO17: =(IF($AE17>0,NPV(Disc,OFFSET(CostE!Q$5,$AA17-1,SkipYrs*Periods+1,1,$AE17)),0)+OFFSET(CostE!Q$5,$AA17-1,SkipYrs*Periods+1+$AE17)*$AF17*(1/(1+Disc)^($AE17+1)))*$R17 + (OFFSET(CostE!Q$5,$AA17-1,SkipYrs*Periods+1+$AE17)*$AG17*(1/(1+Disc)^($AE17+1))+ IF($AH17>0,NPV(Disc,OFFSET(CostE!Q$5,$AA17-1,SkipYrs*Periods+ROUND($AE17+$AF17+$AG17,0)+1,1,$AH17)),0)*(1/(1+Disc)^($AE17+$AF17+$AG17))+ OFFSET(CostE!Q$5,$AA17-1,SkipYrs*Periods+ROUND($AE17+$AF17+$AG17+$AH17,0)+1)*$AI17*(1/(1+Disc)^(ROUND($AE17+$AH17+$AF17+$AG17,0)+1)))*$S17 ->  | CP17: =(IF($AE17>0,NPV(Disc,OFFSET(CostE!R$5,$AA17-1,SkipYrs*Periods+1,1,$AE17)),0)+OFFSET(CostE!R$5,$AA17-1,SkipYrs*Periods+1+$AE17)*$AF17*(1/(1+Disc)^($AE17+1)))*$R17 + (OFFSET(CostE!R$5,$AA17-1,SkipYrs*Periods+1+$AE17)*$AG17*(1/(1+Disc)^($AE17+1))+ IF($AH17>0,NPV(Disc,OFFSET(CostE!R$5,$AA17-1,SkipYrs*Periods+ROUND($AE17+$AF17+$AG17,0)+1,1,$AH17)),0)*(1/(1+Disc)^($AE17+$AF17+$AG17))+ OFFSET(CostE!R$5,$AA17-1,SkipYrs*Periods+ROUND($AE17+$AF17+$AG17+$AH17,0)+1)*$AI17*(1/(1+Disc)^(ROUND($AE17+$AH17+$AF17+$AG17,0)+1)))*$S17 ->  | CQ17: =(IF($AE17>0,NPV(Disc,OFFSET(CostE!S$5,$AA17-1,SkipYrs*Periods+1,1,$AE17)),0)+OFFSET(CostE!S$5,$AA17-1,SkipYrs*Periods+1+$AE17)*$AF17*(1/(1+Disc)^($AE17+1)))*$R17 + (OFFSET(CostE!S$5,$AA17-1,SkipYrs*Periods+1+$AE17)*$AG17*(1/(1+Disc)^($AE17+1))+ IF($AH17>0,NPV(Disc,OFFSET(CostE!S$5,$AA17-1,SkipYrs*Periods+ROUND($AE17+$AF17+$AG17,0)+1,1,$AH17)),0)*(1/(1+Disc)^($AE17+$AF17+$AG17))+ OFFSET(CostE!S$5,$AA17-1,SkipYrs*Periods+ROUND($AE17+$AF17+$AG17+$AH17,0)+1)*$AI17*(1/(1+Disc)^(ROUND($AE17+$AH17+$AF17+$AG17,0)+1)))*$S17 ->  | CR17: =(IF($AE17>0,NPV(Disc,OFFSET(CostE!T$5,$AA17-1,SkipYrs*Periods+1,1,$AE17)),0)+OFFSET(CostE!T$5,$AA17-1,SkipYrs*Periods+1+$AE17)*$AF17*(1/(1+Disc)^($AE17+1)))*$R17 + (OFFSET(CostE!T$5,$AA17-1,SkipYrs*Periods+1+$AE17)*$AG17*(1/(1+Disc)^($AE17+1))+ IF($AH17>0,NPV(Disc,OFFSET(CostE!T$5,$AA17-1,SkipYrs*Periods+ROUND($AE17+$AF17+$AG17,0)+1,1,$AH17)),0)*(1/(1+Disc)^($AE17+$AF17+$AG17))+ OFFSET(CostE!T$5,$AA17-1,SkipYrs*Periods+ROUND($AE17+$AF17+$AG17+$AH17,0)+1)*$AI17*(1/(1+Disc)^(ROUND($AE17+$AH17+$AF17+$AG17,0)+1)))*$S17 ->  | CS17: =(IF($AE17>0,NPV(Disc,OFFSET(CostE!U$5,$AA17-1,SkipYrs*Periods+1,1,$AE17)),0)+OFFSET(CostE!U$5,$AA17-1,SkipYrs*Periods+1+$AE17)*$AF17*(1/(1+Disc)^($AE17+1)))*$R17 + (OFFSET(CostE!U$5,$AA17-1,SkipYrs*Periods+1+$AE17)*$AG17*(1/(1+Disc)^($AE17+1))+ IF($AH17>0,NPV(Disc,OFFSET(CostE!U$5,$AA17-1,SkipYrs*Periods+ROUND($AE17+$AF17+$AG17,0)+1,1,$AH17)),0)*(1/(1+Disc)^($AE17+$AF17+$AG17))+ OFFSET(CostE!U$5,$AA17-1,SkipYrs*Periods+ROUND($AE17+$AF17+$AG17+$AH17,0)+1)*$AI17*(1/(1+Disc)^(ROUND($AE17+$AH17+$AF17+$AG17,0)+1)))*$S17 ->  | CT17: =(IF($AE17>0,NPV(Disc,OFFSET(CostE!V$5,$AA17-1,SkipYrs*Periods+1,1,$AE17)),0)+OFFSET(CostE!V$5,$AA17-1,SkipYrs*Periods+1+$AE17)*$AF17*(1/(1+Disc)^($AE17+1)))*$R17 + (OFFSET(CostE!V$5,$AA17-1,SkipYrs*Periods+1+$AE17)*$AG17*(1/(1+Disc)^($AE17+1))+ IF($AH17>0,NPV(Disc,OFFSET(CostE!V$5,$AA17-1,SkipYrs*Periods+ROUND($AE17+$AF17+$AG17,0)+1,1,$AH17)),0)*(1/(1+Disc)^($AE17+$AF17+$AG17))+ OFFSET(CostE!V$5,$AA17-1,SkipYrs*Periods+ROUND($AE17+$AF17+$AG17+$AH17,0)+1)*$AI17*(1/(1+Disc)^(ROUND($AE17+$AH17+$AF17+$AG17,0)+1)))*$S17 ->  | CU17: =(IF($AE17>0,NPV(Disc,OFFSET(CostE!W$5,$AA17-1,SkipYrs*Periods+1,1,$AE17)),0)+OFFSET(CostE!W$5,$AA17-1,SkipYrs*Periods+1+$AE17)*$AF17*(1/(1+Disc)^($AE17+1)))*$R17 + (OFFSET(CostE!W$5,$AA17-1,SkipYrs*Periods+1+$AE17)*$AG17*(1/(1+Disc)^($AE17+1))+ IF($AH17>0,NPV(Disc,OFFSET(CostE!W$5,$AA17-1,SkipYrs*Periods+ROUND($AE17+$AF17+$AG17,0)+1,1,$AH17)),0)*(1/(1+Disc)^($AE17+$AF17+$AG17))+ OFFSET(CostE!W$5,$AA17-1,SkipYrs*Periods+ROUND($AE17+$AF17+$AG17+$AH17,0)+1)*$AI17*(1/(1+Disc)^(ROUND($AE17+$AH17+$AF17+$AG17,0)+1)))*$S17 ->  | CV17: =(IF($AE17>0,NPV(Disc,OFFSET(CostE!X$5,$AA17-1,SkipYrs*Periods+1,1,$AE17)),0)+OFFSET(CostE!X$5,$AA17-1,SkipYrs*Periods+1+$AE17)*$AF17*(1/(1+Disc)^($AE17+1)))*$R17 + (OFFSET(CostE!X$5,$AA17-1,SkipYrs*Periods+1+$AE17)*$AG17*(1/(1+Disc)^($AE17+1))+ IF($AH17>0,NPV(Disc,OFFSET(CostE!X$5,$AA17-1,SkipYrs*Periods+ROUND($AE17+$AF17+$AG17,0)+1,1,$AH17)),0)*(1/(1+Disc)^($AE17+$AF17+$AG17))+ OFFSET(CostE!X$5,$AA17-1,SkipYrs*Periods+ROUND($AE17+$AF17+$AG17+$AH17,0)+1)*$AI17*(1/(1+Disc)^(ROUND($AE17+$AH17+$AF17+$AG17,0)+1)))*$S17 ->  | CW17: =(IF($AE17>0,NPV(Disc,OFFSET(CostE!Y$5,$AA17-1,SkipYrs*Periods+1,1,$AE17)),0)+OFFSET(CostE!Y$5,$AA17-1,SkipYrs*Periods+1+$AE17)*$AF17*(1/(1+Disc)^($AE17+1)))*$R17 + (OFFSET(CostE!Y$5,$AA17-1,SkipYrs*Periods+1+$AE17)*$AG17*(1/(1+Disc)^($AE17+1))+ IF($AH17>0,NPV(Disc,OFFSET(CostE!Y$5,$AA17-1,SkipYrs*Periods+ROUND($AE17+$AF17+$AG17,0)+1,1,$AH17)),0)*(1/(1+Disc)^($AE17+$AF17+$AG17))+ OFFSET(CostE!Y$5,$AA17-1,SkipYrs*Periods+ROUND($AE17+$AF17+$AG17+$AH17,0)+1)*$AI17*(1/(1+Disc)^(ROUND($AE17+$AH17+$AF17+$AG17,0)+1)))*$S17 ->  | CX17: =(IF($AE17>0,NPV(Disc,OFFSET(CostE!Z$5,$AA17-1,SkipYrs*Periods+1,1,$AE17)),0)+OFFSET(CostE!Z$5,$AA17-1,SkipYrs*Periods+1+$AE17)*$AF17*(1/(1+Disc)^($AE17+1)))*$R17 + (OFFSET(CostE!Z$5,$AA17-1,SkipYrs*Periods+1+$AE17)*$AG17*(1/(1+Disc)^($AE17+1))+ IF($AH17>0,NPV(Disc,OFFSET(CostE!Z$5,$AA17-1,SkipYrs*Periods+ROUND($AE17+$AF17+$AG17,0)+1,1,$AH17)),0)*(1/(1+Disc)^($AE17+$AF17+$AG17))+ OFFSET(CostE!Z$5,$AA17-1,SkipYrs*Periods+ROUND($AE17+$AF17+$AG17+$AH17,0)+1)*$AI17*(1/(1+Disc)^(ROUND($AE17+$AH17+$AF17+$AG17,0)+1)))*$S17 ->  | CY17: =(IF($AE17>0,NPV(Disc,OFFSET(CostE!AA$5,$AA17-1,SkipYrs*Periods+1,1,$AE17)),0)+OFFSET(CostE!AA$5,$AA17-1,SkipYrs*Periods+1+$AE17)*$AF17*(1/(1+Disc)^($AE17+1)))*$R17 + (OFFSET(CostE!AA$5,$AA17-1,SkipYrs*Periods+1+$AE17)*$AG17*(1/(1+Disc)^($AE17+1))+ IF($AH17>0,NPV(Disc,OFFSET(CostE!AA$5,$AA17-1,SkipYrs*Periods+ROUND($AE17+$AF17+$AG17,0)+1,1,$AH17)),0)*(1/(1+Disc)^($AE17+$AF17+$AG17))+ OFFSET(CostE!AA$5,$AA17-1,SkipYrs*Periods+ROUND($AE17+$AF17+$AG17+$AH17,0)+1)*$AI17*(1/(1+Disc)^(ROUND($AE17+$AH17+$AF17+$AG17,0)+1)))*$S17 ->  | CZ17: =(IF($AE17>0,NPV(Disc,OFFSET(CostE!AB$5,$AA17-1,SkipYrs*Periods+1,1,$AE17)),0)+OFFSET(CostE!AB$5,$AA17-1,SkipYrs*Periods+1+$AE17)*$AF17*(1/(1+Disc)^($AE17+1)))*$R17 + (OFFSET(CostE!AB$5,$AA17-1,SkipYrs*Periods+1+$AE17)*$AG17*(1/(1+Disc)^($AE17+1))+ IF($AH17>0,NPV(Disc,OFFSET(CostE!AB$5,$AA17-1,SkipYrs*Periods+ROUND($AE17+$AF17+$AG17,0)+1,1,$AH17)),0)*(1/(1+Disc)^($AE17+$AF17+$AG17))+ OFFSET(CostE!AB$5,$AA17-1,SkipYrs*Periods+ROUND($AE17+$AF17+$AG17+$AH17,0)+1)*$AI17*(1/(1+Disc)^(ROUND($AE17+$AH17+$AF17+$AG17,0)+1)))*$S17 ->  | DA17: =(IF($AE17>0,NPV(Disc,OFFSET(CostE!AC$5,$AA17-1,SkipYrs*Periods+1,1,$AE17)),0)+OFFSET(CostE!AC$5,$AA17-1,SkipYrs*Periods+1+$AE17)*$AF17*(1/(1+Disc)^($AE17+1)))*$R17 + (OFFSET(CostE!AC$5,$AA17-1,SkipYrs*Periods+1+$AE17)*$AG17*(1/(1+Disc)^($AE17+1))+ IF($AH17>0,NPV(Disc,OFFSET(CostE!AC$5,$AA17-1,SkipYrs*Periods+ROUND($AE17+$AF17+$AG17,0)+1,1,$AH17)),0)*(1/(1+Disc)^($AE17+$AF17+$AG17))+ OFFSET(CostE!AC$5,$AA17-1,SkipYrs*Periods+ROUND($AE17+$AF17+$AG17+$AH17,0)+1)*$AI17*(1/(1+Disc)^(ROUND($AE17+$AH17+$AF17+$AG17,0)+1)))*$S17 ->  | DB17: =(IF($AE17>0,NPV(Disc,OFFSET(CostE!AD$5,$AA17-1,SkipYrs*Periods+1,1,$AE17)),0)+OFFSET(CostE!AD$5,$AA17-1,SkipYrs*Periods+1+$AE17)*$AF17*(1/(1+Disc)^($AE17+1)))*$R17 + (OFFSET(CostE!AD$5,$AA17-1,SkipYrs*Periods+1+$AE17)*$AG17*(1/(1+Disc)^($AE17+1))+ IF($AH17>0,NPV(Disc,OFFSET(CostE!AD$5,$AA17-1,SkipYrs*Periods+ROUND($AE17+$AF17+$AG17,0)+1,1,$AH17)),0)*(1/(1+Disc)^($AE17+$AF17+$AG17))+ OFFSET(CostE!AD$5,$AA17-1,SkipYrs*Periods+ROUND($AE17+$AF17+$AG17+$AH17,0)+1)*$AI17*(1/(1+Disc)^(ROUND($AE17+$AH17+$AF17+$AG17,0)+1)))*$S17 ->  | DC17: =(IF($AE17>0,NPV(Disc,OFFSET(CostE!AE$5,$AA17-1,SkipYrs*Periods+1,1,$AE17)),0)+OFFSET(CostE!AE$5,$AA17-1,SkipYrs*Periods+1+$AE17)*$AF17*(1/(1+Disc)^($AE17+1)))*$R17 + (OFFSET(CostE!AE$5,$AA17-1,SkipYrs*Periods+1+$AE17)*$AG17*(1/(1+Disc)^($AE17+1))+ IF($AH17>0,NPV(Disc,OFFSET(CostE!AE$5,$AA17-1,SkipYrs*Periods+ROUND($AE17+$AF17+$AG17,0)+1,1,$AH17)),0)*(1/(1+Disc)^($AE17+$AF17+$AG17))+ OFFSET(CostE!AE$5,$AA17-1,SkipYrs*Periods+ROUND($AE17+$AF17+$AG17+$AH17,0)+1)*$AI17*(1/(1+Disc)^(ROUND($AE17+$AH17+$AF17+$AG17,0)+1)))*$S17 ->  | DD17: =(IF($AE17>0,NPV(Disc,OFFSET(CostE!AF$5,$AA17-1,SkipYrs*Periods+1,1,$AE17)),0)+OFFSET(CostE!AF$5,$AA17-1,SkipYrs*Periods+1+$AE17)*$AF17*(1/(1+Disc)^($AE17+1)))*$R17 + (OFFSET(CostE!AF$5,$AA17-1,SkipYrs*Periods+1+$AE17)*$AG17*(1/(1+Disc)^($AE17+1))+ IF($AH17>0,NPV(Disc,OFFSET(CostE!AF$5,$AA17-1,SkipYrs*Periods+ROUND($AE17+$AF17+$AG17,0)+1,1,$AH17)),0)*(1/(1+Disc)^($AE17+$AF17+$AG17))+ OFFSET(CostE!AF$5,$AA17-1,SkipYrs*Periods+ROUND($AE17+$AF17+$AG17+$AH17,0)+1)*$AI17*(1/(1+Disc)^(ROUND($AE17+$AH17+$AF17+$AG17,0)+1)))*$S17 ->  | DE17: =(IF($AE17>0,NPV(Disc,OFFSET(CostE!AG$5,$AA17-1,SkipYrs*Periods+1,1,$AE17)),0)+OFFSET(CostE!AG$5,$AA17-1,SkipYrs*Periods+1+$AE17)*$AF17*(1/(1+Disc)^($AE17+1)))*$R17 + (OFFSET(CostE!AG$5,$AA17-1,SkipYrs*Periods+1+$AE17)*$AG17*(1/(1+Disc)^($AE17+1))+ IF($AH17>0,NPV(Disc,OFFSET(CostE!AG$5,$AA17-1,SkipYrs*Periods+ROUND($AE17+$AF17+$AG17,0)+1,1,$AH17)),0)*(1/(1+Disc)^($AE17+$AF17+$AG17))+ OFFSET(CostE!AG$5,$AA17-1,SkipYrs*Periods+ROUND($AE17+$AF17+$AG17+$AH17,0)+1)*$AI17*(1/(1+Disc)^(ROUND($AE17+$AH17+$AF17+$AG17,0)+1)))*$S17 ->  | DF17: =(IF($AE17>0,NPV(Disc,OFFSET(CostE!AH$5,$AA17-1,SkipYrs*Periods+1,1,$AE17)),0)+OFFSET(CostE!AH$5,$AA17-1,SkipYrs*Periods+1+$AE17)*$AF17*(1/(1+Disc)^($AE17+1)))*$R17 + (OFFSET(CostE!AH$5,$AA17-1,SkipYrs*Periods+1+$AE17)*$AG17*(1/(1+Disc)^($AE17+1))+ IF($AH17>0,NPV(Disc,OFFSET(CostE!AH$5,$AA17-1,SkipYrs*Periods+ROUND($AE17+$AF17+$AG17,0)+1,1,$AH17)),0)*(1/(1+Disc)^($AE17+$AF17+$AG17))+ OFFSET(CostE!AH$5,$AA17-1,SkipYrs*Periods+ROUND($AE17+$AF17+$AG17+$AH17,0)+1)*$AI17*(1/(1+Disc)^(ROUND($AE17+$AH17+$AF17+$AG17,0)+1)))*$S17 ->  | DG17: =(IF($AE17>0,NPV(Disc,OFFSET(CostE!AI$5,$AA17-1,SkipYrs*Periods+1,1,$AE17)),0)+OFFSET(CostE!AI$5,$AA17-1,SkipYrs*Periods+1+$AE17)*$AF17*(1/(1+Disc)^($AE17+1)))*$R17 + (OFFSET(CostE!AI$5,$AA17-1,SkipYrs*Periods+1+$AE17)*$AG17*(1/(1+Disc)^($AE17+1))+ IF($AH17>0,NPV(Disc,OFFSET(CostE!AI$5,$AA17-1,SkipYrs*Periods+ROUND($AE17+$AF17+$AG17,0)+1,1,$AH17)),0)*(1/(1+Disc)^($AE17+$AF17+$AG17))+ OFFSET(CostE!AI$5,$AA17-1,SkipYrs*Periods+ROUND($AE17+$AF17+$AG17+$AH17,0)+1)*$AI17*(1/(1+Disc)^(ROUND($AE17+$AH17+$AF17+$AG17,0)+1)))*$S17 ->  | DH17: =(IF($AE17>0,NPV(Disc,OFFSET(CostE!AJ$5,$AA17-1,SkipYrs*Periods+1,1,$AE17)),0)+OFFSET(CostE!AJ$5,$AA17-1,SkipYrs*Periods+1+$AE17)*$AF17*(1/(1+Disc)^($AE17+1)))*$R17 + (OFFSET(CostE!AJ$5,$AA17-1,SkipYrs*Periods+1+$AE17)*$AG17*(1/(1+Disc)^($AE17+1))+ IF($AH17>0,NPV(Disc,OFFSET(CostE!AJ$5,$AA17-1,SkipYrs*Periods+ROUND($AE17+$AF17+$AG17,0)+1,1,$AH17)),0)*(1/(1+Disc)^($AE17+$AF17+$AG17))+ OFFSET(CostE!AJ$5,$AA17-1,SkipYrs*Periods+ROUND($AE17+$AF17+$AG17+$AH17,0)+1)*$AI17*(1/(1+Disc)^(ROUND($AE17+$AH17+$AF17+$AG17,0)+1)))*$S17 ->  | DI17: =(IF($AE17>0,NPV(Disc,OFFSET(CostE!AK$5,$AA17-1,SkipYrs*Periods+1,1,$AE17)),0)+OFFSET(CostE!AK$5,$AA17-1,SkipYrs*Periods+1+$AE17)*$AF17*(1/(1+Disc)^($AE17+1)))*$R17 + (OFFSET(CostE!AK$5,$AA17-1,SkipYrs*Periods+1+$AE17)*$AG17*(1/(1+Disc)^($AE17+1))+ IF($AH17>0,NPV(Disc,OFFSET(CostE!AK$5,$AA17-1,SkipYrs*Periods+ROUND($AE17+$AF17+$AG17,0)+1,1,$AH17)),0)*(1/(1+Disc)^($AE17+$AF17+$AG17))+ OFFSET(CostE!AK$5,$AA17-1,SkipYrs*Periods+ROUND($AE17+$AF17+$AG17+$AH17,0)+1)*$AI17*(1/(1+Disc)^(ROUND($AE17+$AH17+$AF17+$AG17,0)+1)))*$S17 ->  | DJ17: =(IF($AE17>0,NPV(Disc,OFFSET(CostE!AL$5,$AA17-1,SkipYrs*Periods+1,1,$AE17)),0)+OFFSET(CostE!AL$5,$AA17-1,SkipYrs*Periods+1+$AE17)*$AF17*(1/(1+Disc)^($AE17+1)))*$R17 + (OFFSET(CostE!AL$5,$AA17-1,SkipYrs*Periods+1+$AE17)*$AG17*(1/(1+Disc)^($AE17+1))+ IF($AH17>0,NPV(Disc,OFFSET(CostE!AL$5,$AA17-1,SkipYrs*Periods+ROUND($AE17+$AF17+$AG17,0)+1,1,$AH17)),0)*(1/(1+Disc)^($AE17+$AF17+$AG17))+ OFFSET(CostE!AL$5,$AA17-1,SkipYrs*Periods+ROUND($AE17+$AF17+$AG17+$AH17,0)+1)*$AI17*(1/(1+Disc)^(ROUND($AE17+$AH17+$AF17+$AG17,0)+1)))*$S17 ->  | DK17: =(IF($AE17>0,NPV(Disc,OFFSET(CostE!AM$5,$AA17-1,SkipYrs*Periods+1,1,$AE17)),0)+OFFSET(CostE!AM$5,$AA17-1,SkipYrs*Periods+1+$AE17)*$AF17*(1/(1+Disc)^($AE17+1)))*$R17 + (OFFSET(CostE!AM$5,$AA17-1,SkipYrs*Periods+1+$AE17)*$AG17*(1/(1+Disc)^($AE17+1))+ IF($AH17>0,NPV(Disc,OFFSET(CostE!AM$5,$AA17-1,SkipYrs*Periods+ROUND($AE17+$AF17+$AG17,0)+1,1,$AH17)),0)*(1/(1+Disc)^($AE17+$AF17+$AG17))+ OFFSET(CostE!AM$5,$AA17-1,SkipYrs*Periods+ROUND($AE17+$AF17+$AG17+$AH17,0)+1)*$AI17*(1/(1+Disc)^(ROUND($AE17+$AH17+$AF17+$AG17,0)+1)))*$S17 ->  | DL17: =(IF($AE17>0,NPV(Disc,OFFSET(CostE!AN$5,$AA17-1,SkipYrs*Periods+1,1,$AE17)),0)+OFFSET(CostE!AN$5,$AA17-1,SkipYrs*Periods+1+$AE17)*$AF17*(1/(1+Disc)^($AE17+1)))*$R17 + (OFFSET(CostE!AN$5,$AA17-1,SkipYrs*Periods+1+$AE17)*$AG17*(1/(1+Disc)^($AE17+1))+ IF($AH17>0,NPV(Disc,OFFSET(CostE!AN$5,$AA17-1,SkipYrs*Periods+ROUND($AE17+$AF17+$AG17,0)+1,1,$AH17)),0)*(1/(1+Disc)^($AE17+$AF17+$AG17))+ OFFSET(CostE!AN$5,$AA17-1,SkipYrs*Periods+ROUND($AE17+$AF17+$AG17+$AH17,0)+1)*$AI17*(1/(1+Disc)^(ROUND($AE17+$AH17+$AF17+$AG17,0)+1)))*$S17 ->  | DM17: =(IF($AE17>0,NPV(Disc,OFFSET(CostE!AO$5,$AA17-1,SkipYrs*Periods+1,1,$AE17)),0)+OFFSET(CostE!AO$5,$AA17-1,SkipYrs*Periods+1+$AE17)*$AF17*(1/(1+Disc)^($AE17+1)))*$R17 + (OFFSET(CostE!AO$5,$AA17-1,SkipYrs*Periods+1+$AE17)*$AG17*(1/(1+Disc)^($AE17+1))+ IF($AH17>0,NPV(Disc,OFFSET(CostE!AO$5,$AA17-1,SkipYrs*Periods+ROUND($AE17+$AF17+$AG17,0)+1,1,$AH17)),0)*(1/(1+Disc)^($AE17+$AF17+$AG17))+ OFFSET(CostE!AO$5,$AA17-1,SkipYrs*Periods+ROUND($AE17+$AF17+$AG17+$AH17,0)+1)*$AI17*(1/(1+Disc)^(ROUND($AE17+$AH17+$AF17+$AG17,0)+1)))*$S17 ->  | DN17: =(IF($AE17>0,NPV(Disc,OFFSET(CostE!AP$5,$AA17-1,SkipYrs*Periods+1,1,$AE17)),0)+OFFSET(CostE!AP$5,$AA17-1,SkipYrs*Periods+1+$AE17)*$AF17*(1/(1+Disc)^($AE17+1)))*$R17 + (OFFSET(CostE!AP$5,$AA17-1,SkipYrs*Periods+1+$AE17)*$AG17*(1/(1+Disc)^($AE17+1))+ IF($AH17>0,NPV(Disc,OFFSET(CostE!AP$5,$AA17-1,SkipYrs*Periods+ROUND($AE17+$AF17+$AG17,0)+1,1,$AH17)),0)*(1/(1+Disc)^($AE17+$AF17+$AG17))+ OFFSET(CostE!AP$5,$AA17-1,SkipYrs*Periods+ROUND($AE17+$AF17+$AG17+$AH17,0)+1)*$AI17*(1/(1+Disc)^(ROUND($AE17+$AH17+$AF17+$AG17,0)+1)))*$S17 ->  | DO17: =(IF($AE17>0,NPV(Disc,OFFSET(CostE!AQ$5,$AA17-1,SkipYrs*Periods+1,1,$AE17)),0)+OFFSET(CostE!AQ$5,$AA17-1,SkipYrs*Periods+1+$AE17)*$AF17*(1/(1+Disc)^($AE17+1)))*$R17 + (OFFSET(CostE!AQ$5,$AA17-1,SkipYrs*Periods+1+$AE17)*$AG17*(1/(1+Disc)^($AE17+1))+ IF($AH17>0,NPV(Disc,OFFSET(CostE!AQ$5,$AA17-1,SkipYrs*Periods+ROUND($AE17+$AF17+$AG17,0)+1,1,$AH17)),0)*(1/(1+Disc)^($AE17+$AF17+$AG17))+ OFFSET(CostE!AQ$5,$AA17-1,SkipYrs*Periods+ROUND($AE17+$AF17+$AG17+$AH17,0)+1)*$AI17*(1/(1+Disc)^(ROUND($AE17+$AH17+$AF17+$AG17,0)+1)))*$S17 ->  | DP17: =(IF($AE17>0,NPV(Disc,OFFSET(CostE!AR$5,$AA17-1,SkipYrs*Periods+1,1,$AE17)),0)+OFFSET(CostE!AR$5,$AA17-1,SkipYrs*Periods+1+$AE17)*$AF17*(1/(1+Disc)^($AE17+1)))*$R17 + (OFFSET(CostE!AR$5,$AA17-1,SkipYrs*Periods+1+$AE17)*$AG17*(1/(1+Disc)^($AE17+1))+ IF($AH17>0,NPV(Disc,OFFSET(CostE!AR$5,$AA17-1,SkipYrs*Periods+ROUND($AE17+$AF17+$AG17,0)+1,1,$AH17)),0)*(1/(1+Disc)^($AE17+$AF17+$AG17))+ OFFSET(CostE!AR$5,$AA17-1,SkipYrs*Periods+ROUND($AE17+$AF17+$AG17+$AH17,0)+1)*$AI17*(1/(1+Disc)^(ROUND($AE17+$AH17+$AF17+$AG17,0)+1)))*$S17 ->  | DQ17: =(IF($AE17>0,NPV(Disc,OFFSET(CostE!AS$5,$AA17-1,SkipYrs*Periods+1,1,$AE17)),0)+OFFSET(CostE!AS$5,$AA17-1,SkipYrs*Periods+1+$AE17)*$AF17*(1/(1+Disc)^($AE17+1)))*$R17 + (OFFSET(CostE!AS$5,$AA17-1,SkipYrs*Periods+1+$AE17)*$AG17*(1/(1+Disc)^($AE17+1))+ IF($AH17>0,NPV(Disc,OFFSET(CostE!AS$5,$AA17-1,SkipYrs*Periods+ROUND($AE17+$AF17+$AG17,0)+1,1,$AH17)),0)*(1/(1+Disc)^($AE17+$AF17+$AG17))+ OFFSET(CostE!AS$5,$AA17-1,SkipYrs*Periods+ROUND($AE17+$AF17+$AG17+$AH17,0)+1)*$AI17*(1/(1+Disc)^(ROUND($AE17+$AH17+$AF17+$AG17,0)+1)))*$S17 ->  | DR17: =(IF($AE17>0,NPV(Disc,OFFSET(CostE!AT$5,$AA17-1,SkipYrs*Periods+1,1,$AE17)),0)+OFFSET(CostE!AT$5,$AA17-1,SkipYrs*Periods+1+$AE17)*$AF17*(1/(1+Disc)^($AE17+1)))*$R17 + (OFFSET(CostE!AT$5,$AA17-1,SkipYrs*Periods+1+$AE17)*$AG17*(1/(1+Disc)^($AE17+1))+ IF($AH17>0,NPV(Disc,OFFSET(CostE!AT$5,$AA17-1,SkipYrs*Periods+ROUND($AE17+$AF17+$AG17,0)+1,1,$AH17)),0)*(1/(1+Disc)^($AE17+$AF17+$AG17))+ OFFSET(CostE!AT$5,$AA17-1,SkipYrs*Periods+ROUND($AE17+$AF17+$AG17+$AH17,0)+1)*$AI17*(1/(1+Disc)^(ROUND($AE17+$AH17+$AF17+$AG17,0)+1)))*$S17 ->  | DS17: =(IF($AE17>0,NPV(Disc,OFFSET(CostE!AU$5,$AA17-1,SkipYrs*Periods+1,1,$AE17)),0)+OFFSET(CostE!AU$5,$AA17-1,SkipYrs*Periods+1+$AE17)*$AF17*(1/(1+Disc)^($AE17+1)))*$R17 + (OFFSET(CostE!AU$5,$AA17-1,SkipYrs*Periods+1+$AE17)*$AG17*(1/(1+Disc)^($AE17+1))+ IF($AH17>0,NPV(Disc,OFFSET(CostE!AU$5,$AA17-1,SkipYrs*Periods+ROUND($AE17+$AF17+$AG17,0)+1,1,$AH17)),0)*(1/(1+Disc)^($AE17+$AF17+$AG17))+ OFFSET(CostE!AU$5,$AA17-1,SkipYrs*Periods+ROUND($AE17+$AF17+$AG17+$AH17,0)+1)*$AI17*(1/(1+Disc)^(ROUND($AE17+$AH17+$AF17+$AG17,0)+1)))*$S17 ->  | DT17: =(IF($AE17>0,NPV(Disc,OFFSET(CostE!AV$5,$AA17-1,SkipYrs*Periods+1,1,$AE17)),0)+OFFSET(CostE!AV$5,$AA17-1,SkipYrs*Periods+1+$AE17)*$AF17*(1/(1+Disc)^($AE17+1)))*$R17 + (OFFSET(CostE!AV$5,$AA17-1,SkipYrs*Periods+1+$AE17)*$AG17*(1/(1+Disc)^($AE17+1))+ IF($AH17>0,NPV(Disc,OFFSET(CostE!AV$5,$AA17-1,SkipYrs*Periods+ROUND($AE17+$AF17+$AG17,0)+1,1,$AH17)),0)*(1/(1+Disc)^($AE17+$AF17+$AG17))+ OFFSET(CostE!AV$5,$AA17-1,SkipYrs*Periods+ROUND($AE17+$AF17+$AG17+$AH17,0)+1)*$AI17*(1/(1+Disc)^(ROUND($AE17+$AH17+$AF17+$AG17,0)+1)))*$S17 ->  | DU17: =(IF($AE17>0,NPV(Disc,OFFSET(CostE!AW$5,$AA17-1,SkipYrs*Periods+1,1,$AE17)),0)+OFFSET(CostE!AW$5,$AA17-1,SkipYrs*Periods+1+$AE17)*$AF17*(1/(1+Disc)^($AE17+1)))*$R17 + (OFFSET(CostE!AW$5,$AA17-1,SkipYrs*Periods+1+$AE17)*$AG17*(1/(1+Disc)^($AE17+1))+ IF($AH17>0,NPV(Disc,OFFSET(CostE!AW$5,$AA17-1,SkipYrs*Periods+ROUND($AE17+$AF17+$AG17,0)+1,1,$AH17)),0)*(1/(1+Disc)^($AE17+$AF17+$AG17))+ OFFSET(CostE!AW$5,$AA17-1,SkipYrs*Periods+ROUND($AE17+$AF17+$AG17+$AH17,0)+1)*$AI17*(1/(1+Disc)^(ROUND($AE17+$AH17+$AF17+$AG17,0)+1)))*$S17 ->  | DV17: =(IF($AE17>0,NPV(Disc,OFFSET(CostE!AX$5,$AA17-1,SkipYrs*Periods+1,1,$AE17)),0)+OFFSET(CostE!AX$5,$AA17-1,SkipYrs*Periods+1+$AE17)*$AF17*(1/(1+Disc)^($AE17+1)))*$R17 + (OFFSET(CostE!AX$5,$AA17-1,SkipYrs*Periods+1+$AE17)*$AG17*(1/(1+Disc)^($AE17+1))+ IF($AH17>0,NPV(Disc,OFFSET(CostE!AX$5,$AA17-1,SkipYrs*Periods+ROUND($AE17+$AF17+$AG17,0)+1,1,$AH17)),0)*(1/(1+Disc)^($AE17+$AF17+$AG17))+ OFFSET(CostE!AX$5,$AA17-1,SkipYrs*Periods+ROUND($AE17+$AF17+$AG17+$AH17,0)+1)*$AI17*(1/(1+Disc)^(ROUND($AE17+$AH17+$AF17+$AG17,0)+1)))*$S17 ->  | DW17: =NPV(Disc,IF(ISERROR(DV17),0,Input!BJ17:DA17*(AM17:CD17+CE17:DV17)))*L17 -> 0 | DX17: =NPV(Disc,GasCalcs!M17:BD17*Input!BJ17:DA17)*L17 ->  | DY17: =NPV(Disc,IF(ISERROR(DV17),0,Input!BJ17:DA17*(AM17:CD17*$G17+CE17:DV17*$H17)))*$L17 -> 0 | DZ17: =IF(ISERROR($I17),1,$I17)*IF(ISERROR(DX17),0,DX17) -> 0 | EA17: =IF(ISERROR(MATCH(Input!$S17,Rates!$A$4:$A$9,0)),1,MATCH(Input!$S17,Rates!$A$4:$A$9,0)) -> 1 | EB17: =MATCH(Input!$X17,Rates!$A$16:$A$18,0) ->  | EC17: =(IF($E17>=1,NPV($C$3,OFFSET(Rates!$B$4,$EA17-1,EC$16-Rates!$B$3,1,TRUNC($E17))))*(1+$C$3)+OFFSET(Rates!$B$4,$EA17-1,EC$16-Rates!$B$3+TRUNC($E17))*($E17-TRUNC($E17))*(1/(1+$C$3)^(EC$16-Rates!$B$3+TRUNC($E17))))*$M17+(IF((Input!$Z17-$E17)>=1,NPV($C$3,OFFSET(Rates!$B$4,$EA17-1,EC$16-Rates!$B$3+TRUNC($E17),1,TRUNC(Input!$Z17-$E17))))/(1+$C$3)^(TRUNC($E17)-1)+OFFSET(Rates!$B$4,$EA17-1,EC$16-Rates!$B$3+TRUNC(Input!$Z17))*(Input!$Z17-TRUNC(Input!$Z17))*(1/(1+$C$3)^(EC$16-Rates!$B$3+TRUNC(Input!$Z17))))*Input!$AC17 -> 0 | ED17: =(IF($E17>=1,NPV($C$3,OFFSET(Rates!$B$4,$EA17-1,ED$16-Rates!$B$3,1,TRUNC($E17))))*(1+$C$3)+OFFSET(Rates!$B$4,$EA17-1,ED$16-Rates!$B$3+TRUNC($E17))*($E17-TRUNC($E17))*(1/(1+$C$3)^(ED$16-Rates!$B$3+TRUNC($E17))))*$M17+(IF((Input!$Z17-$E17)>=1,NPV($C$3,OFFSET(Rates!$B$4,$EA17-1,ED$16-Rates!$B$3+TRUNC($E17),1,TRUNC(Input!$Z17-$E17))))/(1+$C$3)^(TRUNC($E17)-1)+OFFSET(Rates!$B$4,$EA17-1,ED$16-Rates!$B$3+TRUNC(Input!$Z17))*(Input!$Z17-TRUNC(Input!$Z17))*(1/(1+$C$3)^(ED$16-Rates!$B$3+TRUNC(Input!$Z17))))*Input!$AC17 -> 0 | EE17: =(IF($E17>=1,NPV($C$3,OFFSET(Rates!$B$4,$EA17-1,EE$16-Rates!$B$3,1,TRUNC($E17))))*(1+$C$3)+OFFSET(Rates!$B$4,$EA17-1,EE$16-Rates!$B$3+TRUNC($E17))*($E17-TRUNC($E17))*(1/(1+$C$3)^(EE$16-Rates!$B$3+TRUNC($E17))))*$M17+(IF((Input!$Z17-$E17)>=1,NPV($C$3,OFFSET(Rates!$B$4,$EA17-1,EE$16-Rates!$B$3+TRUNC($E17),1,TRUNC(Input!$Z17-$E17))))/(1+$C$3)^(TRUNC($E17)-1)+OFFSET(Rates!$B$4,$EA17-1,EE$16-Rates!$B$3+TRUNC(Input!$Z17))*(Input!$Z17-TRUNC(Input!$Z17))*(1/(1+$C$3)^(EE$16-Rates!$B$3+TRUNC(Input!$Z17))))*Input!$AC17 -> 0 | EF17: =(IF($E17>=1,NPV($C$3,OFFSET(Rates!$B$4,$EA17-1,EF$16-Rates!$B$3,1,TRUNC($E17))))*(1+$C$3)+OFFSET(Rates!$B$4,$EA17-1,EF$16-Rates!$B$3+TRUNC($E17))*($E17-TRUNC($E17))*(1/(1+$C$3)^(EF$16-Rates!$B$3+TRUNC($E17))))*$M17+(IF((Input!$Z17-$E17)>=1,NPV($C$3,OFFSET(Rates!$B$4,$EA17-1,EF$16-Rates!$B$3+TRUNC($E17),1,TRUNC(Input!$Z17-$E17))))/(1+$C$3)^(TRUNC($E17)-1)+OFFSET(Rates!$B$4,$EA17-1,EF$16-Rates!$B$3+TRUNC(Input!$Z17))*(Input!$Z17-TRUNC(Input!$Z17))*(1/(1+$C$3)^(EF$16-Rates!$B$3+TRUNC(Input!$Z17))))*Input!$AC17 -> 0 | EG17: =(IF($E17>=1,NPV($C$3,OFFSET(Rates!$B$4,$EA17-1,EG$16-Rates!$B$3,1,TRUNC($E17))))*(1+$C$3)+OFFSET(Rates!$B$4,$EA17-1,EG$16-Rates!$B$3+TRUNC($E17))*($E17-TRUNC($E17))*(1/(1+$C$3)^(EG$16-Rates!$B$3+TRUNC($E17))))*$M17+(IF((Input!$Z17-$E17)>=1,NPV($C$3,OFFSET(Rates!$B$4,$EA17-1,EG$16-Rates!$B$3+TRUNC($E17),1,TRUNC(Input!$Z17-$E17))))/(1+$C$3)^(TRUNC($E17)-1)+OFFSET(Rates!$B$4,$EA17-1,EG$16-Rates!$B$3+TRUNC(Input!$Z17))*(Input!$Z17-TRUNC(Input!$Z17))*(1/(1+$C$3)^(EG$16-Rates!$B$3+TRUNC(Input!$Z17))))*Input!$AC17 -> 0 | EH17: =(IF($E17>=1,NPV($C$3,OFFSET(Rates!$B$4,$EA17-1,EH$16-Rates!$B$3,1,TRUNC($E17))))*(1+$C$3)+OFFSET(Rates!$B$4,$EA17-1,EH$16-Rates!$B$3+TRUNC($E17))*($E17-TRUNC($E17))*(1/(1+$C$3)^(EH$16-Rates!$B$3+TRUNC($E17))))*$M17+(IF((Input!$Z17-$E17)>=1,NPV($C$3,OFFSET(Rates!$B$4,$EA17-1,EH$16-Rates!$B$3+TRUNC($E17),1,TRUNC(Input!$Z17-$E17))))/(1+$C$3)^(TRUNC($E17)-1)+OFFSET(Rates!$B$4,$EA17-1,EH$16-Rates!$B$3+TRUNC(Input!$Z17))*(Input!$Z17-TRUNC(Input!$Z17))*(1/(1+$C$3)^(EH$16-Rates!$B$3+TRUNC(Input!$Z17))))*Input!$AC17 -> 0 | EI17: =(IF($E17>=1,NPV($C$3,OFFSET(Rates!$B$4,$EA17-1,EI$16-Rates!$B$3,1,TRUNC($E17))))*(1+$C$3)+OFFSET(Rates!$B$4,$EA17-1,EI$16-Rates!$B$3+TRUNC($E17))*($E17-TRUNC($E17))*(1/(1+$C$3)^(EI$16-Rates!$B$3+TRUNC($E17))))*$M17+(IF((Input!$Z17-$E17)>=1,NPV($C$3,OFFSET(Rates!$B$4,$EA17-1,EI$16-Rates!$B$3+TRUNC($E17),1,TRUNC(Input!$Z17-$E17))))/(1+$C$3)^(TRUNC($E17)-1)+OFFSET(Rates!$B$4,$EA17-1,EI$16-Rates!$B$3+TRUNC(Input!$Z17))*(Input!$Z17-TRUNC(Input!$Z17))*(1/(1+$C$3)^(EI$16-Rates!$B$3+TRUNC(Input!$Z17))))*Input!$AC17 -> 0 | EJ17: =(IF($E17>=1,NPV($C$3,OFFSET(Rates!$B$4,$EA17-1,EJ$16-Rates!$B$3,1,TRUNC($E17))))*(1+$C$3)+OFFSET(Rates!$B$4,$EA17-1,EJ$16-Rates!$B$3+TRUNC($E17))*($E17-TRUNC($E17))*(1/(1+$C$3)^(EJ$16-Rates!$B$3+TRUNC($E17))))*$M17+(IF((Input!$Z17-$E17)>=1,NPV($C$3,OFFSET(Rates!$B$4,$EA17-1,EJ$16-Rates!$B$3+TRUNC($E17),1,TRUNC(Input!$Z17-$E17))))/(1+$C$3)^(TRUNC($E17)-1)+OFFSET(Rates!$B$4,$EA17-1,EJ$16-Rates!$B$3+TRUNC(Input!$Z17))*(Input!$Z17-TRUNC(Input!$Z17))*(1/(1+$C$3)^(EJ$16-Rates!$B$3+TRUNC(Input!$Z17))))*Input!$AC17 -> 0 | EK17: =(IF($E17>=1,NPV($C$3,OFFSET(Rates!$B$4,$EA17-1,EK$16-Rates!$B$3,1,TRUNC($E17))))*(1+$C$3)+OFFSET(Rates!$B$4,$EA17-1,EK$16-Rates!$B$3+TRUNC($E17))*($E17-TRUNC($E17))*(1/(1+$C$3)^(EK$16-Rates!$B$3+TRUNC($E17))))*$M17+(IF((Input!$Z17-$E17)>=1,NPV($C$3,OFFSET(Rates!$B$4,$EA17-1,EK$16-Rates!$B$3+TRUNC($E17),1,TRUNC(Input!$Z17-$E17))))/(1+$C$3)^(TRUNC($E17)-1)+OFFSET(Rates!$B$4,$EA17-1,EK$16-Rates!$B$3+TRUNC(Input!$Z17))*(Input!$Z17-TRUNC(Input!$Z17))*(1/(1+$C$3)^(EK$16-Rates!$B$3+TRUNC(Input!$Z17))))*Input!$AC17 -> 0 | EL17: =(IF($E17>=1,NPV($C$3,OFFSET(Rates!$B$4,$EA17-1,EL$16-Rates!$B$3,1,TRUNC($E17))))*(1+$C$3)+OFFSET(Rates!$B$4,$EA17-1,EL$16-Rates!$B$3+TRUNC($E17))*($E17-TRUNC($E17))*(1/(1+$C$3)^(EL$16-Rates!$B$3+TRUNC($E17))))*$M17+(IF((Input!$Z17-$E17)>=1,NPV($C$3,OFFSET(Rates!$B$4,$EA17-1,EL$16-Rates!$B$3+TRUNC($E17),1,TRUNC(Input!$Z17-$E17))))/(1+$C$3)^(TRUNC($E17)-1)+OFFSET(Rates!$B$4,$EA17-1,EL$16-Rates!$B$3+TRUNC(Input!$Z17))*(Input!$Z17-TRUNC(Input!$Z17))*(1/(1+$C$3)^(EL$16-Rates!$B$3+TRUNC(Input!$Z17))))*Input!$AC17 -> 0 | EM17: =(IF($E17>=1,NPV($C$3,OFFSET(Rates!$B$4,$EA17-1,EM$16-Rates!$B$3,1,TRUNC($E17))))*(1+$C$3)+OFFSET(Rates!$B$4,$EA17-1,EM$16-Rates!$B$3+TRUNC($E17))*($E17-TRUNC($E17))*(1/(1+$C$3)^(EM$16-Rates!$B$3+TRUNC($E17))))*$M17+(IF((Input!$Z17-$E17)>=1,NPV($C$3,OFFSET(Rates!$B$4,$EA17-1,EM$16-Rates!$B$3+TRUNC($E17),1,TRUNC(Input!$Z17-$E17))))/(1+$C$3)^(TRUNC($E17)-1)+OFFSET(Rates!$B$4,$EA17-1,EM$16-Rates!$B$3+TRUNC(Input!$Z17))*(Input!$Z17-TRUNC(Input!$Z17))*(1/(1+$C$3)^(EM$16-Rates!$B$3+TRUNC(Input!$Z17))))*Input!$AC17 -> 0 | EN17: =(IF($E17>=1,NPV($C$3,OFFSET(Rates!$B$16,$EB17-1,EN$16-Rates!$B$3,1,TRUNC($E17))))*(1+$C$3) +OFFSET(Rates!$B$16,$EB17-1,EN$16-Rates!$B$3+TRUNC($E17))*($E17-TRUNC($E17))*(1/(1+$C$3)^(EN$16-Rates!$B$3+TRUNC($E17))))*Input!$V17 + (IF((Input!$Z17-$E17)>=1,NPV($C$3,OFFSET(Rates!$B$16,$EB17-1,EN$16-Rates!$B$3+TRUNC($E17),1,TRUNC(Input!$Z17-$E17))))/(1+$C$3)^(TRUNC($E17)-1) +OFFSET(Rates!$B$16,$EB17-1,EN$16-Rates!$B$3+TRUNC(Input!$Z17))*(Input!$Z17-TRUNC(Input!$Z17))*(1/(1+$C$3)^(EN$16-Rates!$B$3+TRUNC(Input!$Z17))))*Input!$AE17 ->  | EO17: =(IF($E17>=1,NPV($C$3,OFFSET(Rates!$B$16,$EB17-1,EO$16-Rates!$B$3,1,TRUNC($E17))))*(1+$C$3) +OFFSET(Rates!$B$16,$EB17-1,EO$16-Rates!$B$3+TRUNC($E17))*($E17-TRUNC($E17))*(1/(1+$C$3)^(EO$16-Rates!$B$3+TRUNC($E17))))*Input!$V17 + (IF((Input!$Z17-$E17)>=1,NPV($C$3,OFFSET(Rates!$B$16,$EB17-1,EO$16-Rates!$B$3+TRUNC($E17),1,TRUNC(Input!$Z17-$E17))))/(1+$C$3)^(TRUNC($E17)-1) +OFFSET(Rates!$B$16,$EB17-1,EO$16-Rates!$B$3+TRUNC(Input!$Z17))*(Input!$Z17-TRUNC(Input!$Z17))*(1/(1+$C$3)^(EO$16-Rates!$B$3+TRUNC(Input!$Z17))))*Input!$AE17 ->  | EP17: =(IF($E17>=1,NPV($C$3,OFFSET(Rates!$B$16,$EB17-1,EP$16-Rates!$B$3,1,TRUNC($E17))))*(1+$C$3) +OFFSET(Rates!$B$16,$EB17-1,EP$16-Rates!$B$3+TRUNC($E17))*($E17-TRUNC($E17))*(1/(1+$C$3)^(EP$16-Rates!$B$3+TRUNC($E17))))*Input!$V17 + (IF((Input!$Z17-$E17)>=1,NPV($C$3,OFFSET(Rates!$B$16,$EB17-1,EP$16-Rates!$B$3+TRUNC($E17),1,TRUNC(Input!$Z17-$E17))))/(1+$C$3)^(TRUNC($E17)-1) +OFFSET(Rates!$B$16,$EB17-1,EP$16-Rates!$B$3+TRUNC(Input!$Z17))*(Input!$Z17-TRUNC(Input!$Z17))*(1/(1+$C$3)^(EP$16-Rates!$B$3+TRUNC(Input!$Z17))))*Input!$AE17 ->  | EQ17: =(IF($E17>=1,NPV($C$3,OFFSET(Rates!$B$16,$EB17-1,EQ$16-Rates!$B$3,1,TRUNC($E17))))*(1+$C$3) +OFFSET(Rates!$B$16,$EB17-1,EQ$16-Rates!$B$3+TRUNC($E17))*($E17-TRUNC($E17))*(1/(1+$C$3)^(EQ$16-Rates!$B$3+TRUNC($E17))))*Input!$V17 + (IF((Input!$Z17-$E17)>=1,NPV($C$3,OFFSET(Rates!$B$16,$EB17-1,EQ$16-Rates!$B$3+TRUNC($E17),1,TRUNC(Input!$Z17-$E17))))/(1+$C$3)^(TRUNC($E17)-1) +OFFSET(Rates!$B$16,$EB17-1,EQ$16-Rates!$B$3+TRUNC(Input!$Z17))*(Input!$Z17-TRUNC(Input!$Z17))*(1/(1+$C$3)^(EQ$16-Rates!$B$3+TRUNC(Input!$Z17))))*Input!$AE17 ->  | ER17: =(IF($E17>=1,NPV($C$3,OFFSET(Rates!$B$16,$EB17-1,ER$16-Rates!$B$3,1,TRUNC($E17))))*(1+$C$3) +OFFSET(Rates!$B$16,$EB17-1,ER$16-Rates!$B$3+TRUNC($E17))*($E17-TRUNC($E17))*(1/(1+$C$3)^(ER$16-Rates!$B$3+TRUNC($E17))))*Input!$V17 + (IF((Input!$Z17-$E17)>=1,NPV($C$3,OFFSET(Rates!$B$16,$EB17-1,ER$16-Rates!$B$3+TRUNC($E17),1,TRUNC(Input!$Z17-$E17))))/(1+$C$3)^(TRUNC($E17)-1) +OFFSET(Rates!$B$16,$EB17-1,ER$16-Rates!$B$3+TRUNC(Input!$Z17))*(Input!$Z17-TRUNC(Input!$Z17))*(1/(1+$C$3)^(ER$16-Rates!$B$3+TRUNC(Input!$Z17))))*Input!$AE17 ->  | ES17: =(IF($E17>=1,NPV($C$3,OFFSET(Rates!$B$16,$EB17-1,ES$16-Rates!$B$3,1,TRUNC($E17))))*(1+$C$3) +OFFSET(Rates!$B$16,$EB17-1,ES$16-Rates!$B$3+TRUNC($E17))*($E17-TRUNC($E17))*(1/(1+$C$3)^(ES$16-Rates!$B$3+TRUNC($E17))))*Input!$V17 + (IF((Input!$Z17-$E17)>=1,NPV($C$3,OFFSET(Rates!$B$16,$EB17-1,ES$16-Rates!$B$3+TRUNC($E17),1,TRUNC(Input!$Z17-$E17))))/(1+$C$3)^(TRUNC($E17)-1) +OFFSET(Rates!$B$16,$EB17-1,ES$16-Rates!$B$3+TRUNC(Input!$Z17))*(Input!$Z17-TRUNC(Input!$Z17))*(1/(1+$C$3)^(ES$16-Rates!$B$3+TRUNC(Input!$Z17))))*Input!$AE17 ->  | ET17: =(IF($E17>=1,NPV($C$3,OFFSET(Rates!$B$16,$EB17-1,ET$16-Rates!$B$3,1,TRUNC($E17))))*(1+$C$3) +OFFSET(Rates!$B$16,$EB17-1,ET$16-Rates!$B$3+TRUNC($E17))*($E17-TRUNC($E17))*(1/(1+$C$3)^(ET$16-Rates!$B$3+TRUNC($E17))))*Input!$V17 + (IF((Input!$Z17-$E17)>=1,NPV($C$3,OFFSET(Rates!$B$16,$EB17-1,ET$16-Rates!$B$3+TRUNC($E17),1,TRUNC(Input!$Z17-$E17))))/(1+$C$3)^(TRUNC($E17)-1) +OFFSET(Rates!$B$16,$EB17-1,ET$16-Rates!$B$3+TRUNC(Input!$Z17))*(Input!$Z17-TRUNC(Input!$Z17))*(1/(1+$C$3)^(ET$16-Rates!$B$3+TRUNC(Input!$Z17))))*Input!$AE17 ->  | EU17: =(IF($E17>=1,NPV($C$3,OFFSET(Rates!$B$16,$EB17-1,EU$16-Rates!$B$3,1,TRUNC($E17))))*(1+$C$3) +OFFSET(Rates!$B$16,$EB17-1,EU$16-Rates!$B$3+TRUNC($E17))*($E17-TRUNC($E17))*(1/(1+$C$3)^(EU$16-Rates!$B$3+TRUNC($E17))))*Input!$V17 + (IF((Input!$Z17-$E17)>=1,NPV($C$3,OFFSET(Rates!$B$16,$EB17-1,EU$16-Rates!$B$3+TRUNC($E17),1,TRUNC(Input!$Z17-$E17))))/(1+$C$3)^(TRUNC($E17)-1) +OFFSET(Rates!$B$16,$EB17-1,EU$16-Rates!$B$3+TRUNC(Input!$Z17))*(Input!$Z17-TRUNC(Input!$Z17))*(1/(1+$C$3)^(EU$16-Rates!$B$3+TRUNC(Input!$Z17))))*Input!$AE17 ->  | EV17: =(IF($E17>=1,NPV($C$3,OFFSET(Rates!$B$16,$EB17-1,EV$16-Rates!$B$3,1,TRUNC($E17))))*(1+$C$3) +OFFSET(Rates!$B$16,$EB17-1,EV$16-Rates!$B$3+TRUNC($E17))*($E17-TRUNC($E17))*(1/(1+$C$3)^(EV$16-Rates!$B$3+TRUNC($E17))))*Input!$V17 + (IF((Input!$Z17-$E17)>=1,NPV($C$3,OFFSET(Rates!$B$16,$EB17-1,EV$16-Rates!$B$3+TRUNC($E17),1,TRUNC(Input!$Z17-$E17))))/(1+$C$3)^(TRUNC($E17)-1) +OFFSET(Rates!$B$16,$EB17-1,EV$16-Rates!$B$3+TRUNC(Input!$Z17))*(Input!$Z17-TRUNC(Input!$Z17))*(1/(1+$C$3)^(EV$16-Rates!$B$3+TRUNC(Input!$Z17))))*Input!$AE17 ->  | EW17: =(IF($E17>=1,NPV($C$3,OFFSET(Rates!$B$16,$EB17-1,EW$16-Rates!$B$3,1,TRUNC($E17))))*(1+$C$3) +OFFSET(Rates!$B$16,$EB17-1,EW$16-Rates!$B$3+TRUNC($E17))*($E17-TRUNC($E17))*(1/(1+$C$3)^(EW$16-Rates!$B$3+TRUNC($E17))))*Input!$V17 + (IF((Input!$Z17-$E17)>=1,NPV($C$3,OFFSET(Rates!$B$16,$EB17-1,EW$16-Rates!$B$3+TRUNC($E17),1,TRUNC(Input!$Z17-$E17))))/(1+$C$3)^(TRUNC($E17)-1) +OFFSET(Rates!$B$16,$EB17-1,EW$16-Rates!$B$3+TRUNC(Input!$Z17))*(Input!$Z17-TRUNC(Input!$Z17))*(1/(1+$C$3)^(EW$16-Rates!$B$3+TRUNC(Input!$Z17))))*Input!$AE17 ->  | EX17: =(IF($E17>=1,NPV($C$3,OFFSET(Rates!$B$16,$EB17-1,EX$16-Rates!$B$3,1,TRUNC($E17))))*(1+$C$3) +OFFSET(Rates!$B$16,$EB17-1,EX$16-Rates!$B$3+TRUNC($E17))*($E17-TRUNC($E17))*(1/(1+$C$3)^(EX$16-Rates!$B$3+TRUNC($E17))))*Input!$V17 + (IF((Input!$Z17-$E17)>=1,NPV($C$3,OFFSET(Rates!$B$16,$EB17-1,EX$16-Rates!$B$3+TRUNC($E17),1,TRUNC(Input!$Z17-$E17))))/(1+$C$3)^(TRUNC($E17)-1) +OFFSET(Rates!$B$16,$EB17-1,EX$16-Rates!$B$3+TRUNC(Input!$Z17))*(Input!$Z17-TRUNC(Input!$Z17))*(1/(1+$C$3)^(EX$16-Rates!$B$3+TRUNC(Input!$Z17))))*Input!$AE17 ->  | EY17: =IF(ISERROR(EC17),0,EC17*Input!AX17*$G17*$L17) -> 0 | EZ17: =IF(ISERROR(ED17),0,ED17*Input!AY17*$G17*$L17) -> 0 | FA17: =IF(ISERROR(EE17),0,EE17*Input!AZ17*$G17*$L17) -> 0 | FB17: =IF(ISERROR(EF17),0,EF17*Input!BA17*$G17*$L17) -> 0 | FC17: =IF(ISERROR(EG17),0,EG17*Input!BB17*$G17*$L17) -> 0 | FD17: =IF(ISERROR(EH17),0,EH17*Input!BC17*$G17*$L17) -> 0 | FE17: =IF(ISERROR(EI17),0,EI17*Input!BD17*$G17*$L17) -> 0 | FF17: =IF(ISERROR(EJ17),0,EJ17*Input!BE17*$G17*$L17) -> 0 | FG17: =IF(ISERROR(EK17),0,EK17*Input!BF17*$G17*$L17) -> 0 | FH17: =IF(ISERROR(EL17),0,EL17*Input!BG17*$G17*$L17) -> 0 | FI17: =IF(ISERROR(EM17),0,EM17*Input!BH17*$G17*$L17) -> 0 | FJ17: =IF(ISERROR(EN17),0,EN17*Input!AX17*$I17*$L17) -> 0 | FK17: =IF(ISERROR(EO17),0,EO17*Input!AY17*$I17*$L17) -> 0 | FL17: =IF(ISERROR(EP17),0,EP17*Input!AZ17*$I17*$L17) -> 0 | FM17: =IF(ISERROR(EQ17),0,EQ17*Input!BA17*$I17*$L17) -> 0 | FN17: =IF(ISERROR(ER17),0,ER17*Input!BB17*$I17*$L17) -> 0 | FO17: =IF(ISERROR(ES17),0,ES17*Input!BC17*$I17*$L17) -> 0 | FP17: =IF(ISERROR(ET17),0,ET17*Input!BD17*$I17*$L17) -> 0 | FQ17: =IF(ISERROR(EU17),0,EU17*Input!BE17*$I17*$L17) -> 0 | FR17: =IF(ISERROR(EV17),0,EV17*Input!BF17*$I17*$L17) -> 0 | FS17: =IF(ISERROR(EW17),0,EW17*Input!BG17*$I17*$L17) -> 0 | FT17: =IF(ISERROR(EX17),0,EX17*Input!BH17*$I17*$L17) -> 0 | FU17: =MAX(0,SUM(Input!N17:P17)-Input!L17) -> 0 | FV17: =MAX(NPV(Disc,FU17*Input!$BJ17:$DA17),FY17-GA17,0) -> 0 | FW17: =(FV17+GA17)*K17 -> 0 | FX17: =NPV(Disc,Input!M17*Input!$BJ17:$DA17) -> 0 | FY17: =NPV(Disc,SUM(Input!N17:P17)*Input!$BJ17:$DA17) -> 0 | FZ17: =FX17+FY17 -> 0 | GA17: =NPV(Disc,1*Input!BJ17:DA17)*(Input!L17-IF(Calcs!AD17>0,(Input!L17-Input!AA17)*((1+Input!AB17/Periods)/(1+Disc))^(Calcs!AD17*Periods),0)) -> 0 | GB17: =GA17-FZ17+FV17 -> 0 | GC17: =GB17*J17+FW17 -> 0 | GD17: =(NPV(Disc,Input!$BJ17:$DA17*Input!R17)*PV($C$3,$E17,-1,0,1)+ NPV(Disc,Input!$BJ17:$DA17*N17)*PV($C$3,Input!$Z17-$E17,-1,0,1)/(1+$C$3)^$E17)*L17 -> 0 | GE17: =(NPV(Disc,Input!$BJ17:$DA17*Input!V17)*PV($C$3,$E17,-1,0,1)+NPV(Disc,Input!$BJ17:$DA17*Input!$AE17)*PV($C$3,Input!$Z17-$E17,-1,0,1)/(1+$C$3)^$E17)*L17 -> 0 | GF17: =IF(ISERROR($G17),0,GD17*$G17) -> 0 | GG17: =IF(ISERROR($I17),0,GE17*$I17) -> 0 | GH17: =MAX(0,DY17) -> 0 | GI17: =MAX(0,DZ17) -> 0 | GJ17: =IF((GH17+GI17)<>0,GH17/(GH17+GI17),0) -> 0 | GK17: =(GH17+GI17)/($GH$1018+$GI$1018) -> 0 | GL17: =DY17+DZ17-(FZ17+GC17)-(Input!$Q$13-Input!$J$11)*GK17 -> 0 | GM17: =IF(GF17<>0,(DY17-(GC17+FZ17)*GJ17)/GF17,0) -> 0 | GN17: =IF(GG17<>0,(DZ17-(GC17+FZ17)*(1-GJ17))/GG17,0) -> 0 | GO17: =IF(GF17<>0,GM17-(Input!$Q$13-Input!$J$11)*$GJ17*$GK17/GF17,0) -> 0 | GP17: =IF(GG17<>0,GN17-(Input!$Q$13-Input!$J$11)*(1-$GJ17)*$GK17/GG17,0) -> 0 | GQ17: =IF(GF17<>0,(DY17-(+$FZ17)*GJ17)/GF17,0) -> 0 | GR17: =IF(GG17<>0,(DZ17-($FZ17)*(1-GJ17))/GG17,0) -> 0 | GS17: =IF(GF17<>0,GQ17-(Input!$Q$13-Input!$J$11+Input!$Q$4)*$GJ17*$GK17/GF17,0) -> 0 | GT17: =IF(GG17<>0,GR17-(Input!$Q$13-Input!$J$11+Input!$Q$4)*(1-$GJ17)*$GK17/GG17,0) -> 0 | GU17: =(DZ17+DY17)/(GC17+FZ17) ->  | GV17: =(DZ17+DY17)/(FZ17) ->  | GW17: =(DZ17+DY17)/((GC17+FZ17)+$GK17*(Input!$Q$13-Input!$J$11)) ->  | GX17: =(DZ17+DY17)/(FZ17+$GK17*(Input!$Q$13-Input!$J$11+Input!$Q$4)) ->  | GY17: =Input!DB17*O17*$G17*$L17 -> 0 | GZ17: =GY17*MAX(Input!$Z17,$E17) -> 0 | HA17: =Input!DB17*$I17*GasCalcs!G17*$L17 -> 0 | HB17: =HA17*MAX(Input!$Z17,$E17) -> 0 | HC17: =IF(ISERROR(Loads!AY17*Input!DB17*$T17*$H17),0,Loads!AY17*Input!DB17*$T17*$H17)*$L17 -> 0 | HD17: =IF(ISERROR(Loads!AZ17*Input!DB17*$T17*$H17),0,Loads!AZ17*Input!DB17*$T17*$H17)*$L17 -> 0 | HF17: =IF(Calcs!F17<>0,(Input!U17*H17*$L17*E17+Input!AD17*H17*L17*(F17-E17))/F17*Input!DB17,0) -> 0 | HG17: =IF(ISERROR(OFFSET(CostE!$AQ$5,$AB17-1,0)),0,OFFSET(CostE!$AQ$5,$AB17-1,0)) -> 0 | HH17: =IF(ISERROR(OFFSET(CostE!$AR$5,$AB17-1,0)),0,OFFSET(CostE!$AR$5,$AB17-1,0)) -> 0 | HI17: =IF(ISERROR(OFFSET(CostE!$AS$5,$AB17-1,0)),0,OFFSET(CostE!$AS$5,$AB17-1,0)) -> 0 | HJ17: =IF(ISERROR(INDEX(CostG!$E$37:$E$43,GasCalcs!$L17)),0,INDEX(CostG!$E$37:$E$43,GasCalcs!$L17)) -> 0.00585 | HK17: =IF(ISERROR(INDEX(CostG!$F$37:$F$43,GasCalcs!$L17)),0,INDEX(CostG!$F$37:$F$43,GasCalcs!$L17)) -> 0.0092 | HL17: =IF(ISERROR(Z17),0,OFFSET(CostE!$F$5,Calcs!Z17-1,0)) -> 0 | HM17: =MIN(E17,1) -> 1 | HN17: =MIN(1,F17-E17) -> 0 | HO17: =IF(M17<>0,N17/M17,1) -> 1 | HP17: =IF(R17<>0,S17/R17,1) -> 1 | HQ17: =IF(GasCalcs!E17<>0,GasCalcs!F17/GasCalcs!E17,1) -> 1
A18: =Input!B18 -> 0 | B18: =Input!D18 -> 0 | C18: =TRIM(Input!E18) ->  | D18: =TRIM(Input!F18) ->  | E18: =IF(ISNUMBER(Input!AG18),Input!AG18,1) -> 1 | F18: =MAX(E18,Input!Z18) -> 1 | G18: =IF(ISNUMBER(Input!AH18),Input!AH18,1)+($J$8*Input!$T$11+$J$9*Input!$AU18) -> 1 | H18: =IF(ISNUMBER(Input!AJ18),Input!AJ18+($J$8*Input!$T$11+$J$9*Input!$AU18),$G18) -> 1 | I18: =IF(ISNUMBER(Input!AK18),Input!AK18+($J$8*Input!$T$11+$J$9*Input!$AU18),IF(ISNUMBER(Input!AI18),Input!AI18+($J$8*Input!$T$11+$J$9*Input!$AU18),$G18)) -> 1 | J18: =IF(AND(ISNUMBER(Input!AL18),Input!AL18<>0),Input!AL18,IF(Input!V18=0,G18,IF(Input!R18=0,I18,IF(Input!R18*0.03412>Input!V18,G18,I18)))-($J$8*Input!$T$11+$J$9*Input!AU18)) -> 1 | K18: =($J$8*Input!$U$11+$J$9*Input!$AV18) -> 0 | L18: =IF(ISBLANK(Input!AM18),100%,Input!AM18)*IF(ISBLANK(Input!AN18),100%,Input!AN18) -> 1 | M18: =Input!R18 -> 0 | N18: =Input!AC18 -> 0 | O18: =IF($F18<>0,($M18*$E18+N18*($F18-$E18))/$F18,0) -> 0 | P18: 1 | Q18: =OFFSET(CostE!$F$5,Calcs!AB18-1,0) ->  | R18: =IF(ISNUMBER(IF(Q18="kW",Input!U18,Input!R18)),IF(Q18="kW",Input!U18,Input!R18),0) -> 0 | S18: =IF(ISNUMBER(IF(Q18="kW",Input!AD18,N18)),IF(Q18="kW",Input!AD18,N18),0) -> 0 | T18: =IF(F18<>0,(R18*E18+S18*(F18-E18))/F18,0) -> 0 | U18: 0 | V18: Gen:::0 | W18: TD:::0 | X18: Load:::0 | Y18: =MATCH(V18,CostE!$E$5:$E$1465,0) ->  | Z18: =IF(ISERROR(Y18),MATCH("Gen:"&C18&":"&D18&":All",CostE!$E$5:$E$1465,0),Y18) ->  | AA18: =MATCH(W18,CostE!$E$5:$E$1465,0) ->  | AB18: =IF(ISERROR(Y18),MATCH("Load:"&C18&":"&$D18&":NA",CostE!$E$5:$E$1465,0),MATCH(X18,CostE!$E$5:$E$1465,0)) ->  | AC18: =MATCH(Input!S18,Rates!$A$4:$A$9,0) ->  | AD18: =IF(Input!Z18>Input!AG18,Input!AG18,0) -> 0 | AE18: 4 | AF18: 0 | AG18: 0 | AH18: =MAX(0,TRUNC(Input!Z18*Periods-(AE18+AF18+AG18))) -> 0 | AI18: =MAX(0,Input!Z18*Periods-AH18-AF18-AE18-AG18) -> 0 | AJ18: =IF(OR(Input!E18="Residential",Input!E18="Res_New_Construction"), $C$10,$C$11)-1 -> 0 | AK18: =SUM(IF($E$3:$E$12=Input!F18,1,0))=1 -> FALSE | AL18: =AJ18*AK18*Input!AW18 -> 0 | AM18: =(IF($AE18>0,NPV(Disc,OFFSET(CostE!G$5,$Z18-1,SkipYrs*Periods+1,1,$AE18)),0)+OFFSET(CostE!G$5,$Z18-1,SkipYrs*Periods+1+$AE18)*$AF18*(1/(1+Disc)^($AE18+1)))*$M18*(1+$AL18) + (OFFSET(CostE!G$5,$Z18-1,SkipYrs*Periods+1+$AE18)*$AG18*(1/(1+Disc)^($AE18+1))+ IF($AH18>0,NPV(Disc,OFFSET(CostE!G$5,$Z18-1,SkipYrs*Periods+ROUND($AE18+$AF18+$AG18,0)+1,1,$AH18)),0)*(1/(1+Disc)^($AE18+$AF18+$AG18))+ OFFSET(CostE!G$5,$Z18-1,SkipYrs*Periods+ROUND($AE18+$AF18+$AG18+$AH18,0)+1)*$AI18*(1/(1+Disc)^(ROUND($AE18+$AH18+$AF18+$AG18,0)+1)))*Input!$AC18*(1+$AL18) ->  | AN18: =(IF($AE18>0,NPV(Disc,OFFSET(CostE!H$5,$Z18-1,SkipYrs*Periods+1,1,$AE18)),0)+OFFSET(CostE!H$5,$Z18-1,SkipYrs*Periods+1+$AE18)*$AF18*(1/(1+Disc)^($AE18+1)))*$M18*(1+$AL18) + (OFFSET(CostE!H$5,$Z18-1,SkipYrs*Periods+1+$AE18)*$AG18*(1/(1+Disc)^($AE18+1))+ IF($AH18>0,NPV(Disc,OFFSET(CostE!H$5,$Z18-1,SkipYrs*Periods+ROUND($AE18+$AF18+$AG18,0)+1,1,$AH18)),0)*(1/(1+Disc)^($AE18+$AF18+$AG18))+ OFFSET(CostE!H$5,$Z18-1,SkipYrs*Periods+ROUND($AE18+$AF18+$AG18+$AH18,0)+1)*$AI18*(1/(1+Disc)^(ROUND($AE18+$AH18+$AF18+$AG18,0)+1)))*Input!$AC18*(1+$AL18) ->  | AO18: =(IF($AE18>0,NPV(Disc,OFFSET(CostE!I$5,$Z18-1,SkipYrs*Periods+1,1,$AE18)),0)+OFFSET(CostE!I$5,$Z18-1,SkipYrs*Periods+1+$AE18)*$AF18*(1/(1+Disc)^($AE18+1)))*$M18*(1+$AL18) + (OFFSET(CostE!I$5,$Z18-1,SkipYrs*Periods+1+$AE18)*$AG18*(1/(1+Disc)^($AE18+1))+ IF($AH18>0,NPV(Disc,OFFSET(CostE!I$5,$Z18-1,SkipYrs*Periods+ROUND($AE18+$AF18+$AG18,0)+1,1,$AH18)),0)*(1/(1+Disc)^($AE18+$AF18+$AG18))+ OFFSET(CostE!I$5,$Z18-1,SkipYrs*Periods+ROUND($AE18+$AF18+$AG18+$AH18,0)+1)*$AI18*(1/(1+Disc)^(ROUND($AE18+$AH18+$AF18+$AG18,0)+1)))*Input!$AC18*(1+$AL18) ->  | AP18: =(IF($AE18>0,NPV(Disc,OFFSET(CostE!J$5,$Z18-1,SkipYrs*Periods+1,1,$AE18)),0)+OFFSET(CostE!J$5,$Z18-1,SkipYrs*Periods+1+$AE18)*$AF18*(1/(1+Disc)^($AE18+1)))*$M18*(1+$AL18) + (OFFSET(CostE!J$5,$Z18-1,SkipYrs*Periods+1+$AE18)*$AG18*(1/(1+Disc)^($AE18+1))+ IF($AH18>0,NPV(Disc,OFFSET(CostE!J$5,$Z18-1,SkipYrs*Periods+ROUND($AE18+$AF18+$AG18,0)+1,1,$AH18)),0)*(1/(1+Disc)^($AE18+$AF18+$AG18))+ OFFSET(CostE!J$5,$Z18-1,SkipYrs*Periods+ROUND($AE18+$AF18+$AG18+$AH18,0)+1)*$AI18*(1/(1+Disc)^(ROUND($AE18+$AH18+$AF18+$AG18,0)+1)))*Input!$AC18*(1+$AL18) ->  | AQ18: =(IF($AE18>0,NPV(Disc,OFFSET(CostE!K$5,$Z18-1,SkipYrs*Periods+1,1,$AE18)),0)+OFFSET(CostE!K$5,$Z18-1,SkipYrs*Periods+1+$AE18)*$AF18*(1/(1+Disc)^($AE18+1)))*$M18*(1+$AL18) + (OFFSET(CostE!K$5,$Z18-1,SkipYrs*Periods+1+$AE18)*$AG18*(1/(1+Disc)^($AE18+1))+ IF($AH18>0,NPV(Disc,OFFSET(CostE!K$5,$Z18-1,SkipYrs*Periods+ROUND($AE18+$AF18+$AG18,0)+1,1,$AH18)),0)*(1/(1+Disc)^($AE18+$AF18+$AG18))+ OFFSET(CostE!K$5,$Z18-1,SkipYrs*Periods+ROUND($AE18+$AF18+$AG18+$AH18,0)+1)*$AI18*(1/(1+Disc)^(ROUND($AE18+$AH18+$AF18+$AG18,0)+1)))*Input!$AC18*(1+$AL18) ->  | AR18: =(IF($AE18>0,NPV(Disc,OFFSET(CostE!L$5,$Z18-1,SkipYrs*Periods+1,1,$AE18)),0)+OFFSET(CostE!L$5,$Z18-1,SkipYrs*Periods+1+$AE18)*$AF18*(1/(1+Disc)^($AE18+1)))*$M18*(1+$AL18) + (OFFSET(CostE!L$5,$Z18-1,SkipYrs*Periods+1+$AE18)*$AG18*(1/(1+Disc)^($AE18+1))+ IF($AH18>0,NPV(Disc,OFFSET(CostE!L$5,$Z18-1,SkipYrs*Periods+ROUND($AE18+$AF18+$AG18,0)+1,1,$AH18)),0)*(1/(1+Disc)^($AE18+$AF18+$AG18))+ OFFSET(CostE!L$5,$Z18-1,SkipYrs*Periods+ROUND($AE18+$AF18+$AG18+$AH18,0)+1)*$AI18*(1/(1+Disc)^(ROUND($AE18+$AH18+$AF18+$AG18,0)+1)))*Input!$AC18*(1+$AL18) ->  | AS18: =(IF($AE18>0,NPV(Disc,OFFSET(CostE!M$5,$Z18-1,SkipYrs*Periods+1,1,$AE18)),0)+OFFSET(CostE!M$5,$Z18-1,SkipYrs*Periods+1+$AE18)*$AF18*(1/(1+Disc)^($AE18+1)))*$M18*(1+$AL18) + (OFFSET(CostE!M$5,$Z18-1,SkipYrs*Periods+1+$AE18)*$AG18*(1/(1+Disc)^($AE18+1))+ IF($AH18>0,NPV(Disc,OFFSET(CostE!M$5,$Z18-1,SkipYrs*Periods+ROUND($AE18+$AF18+$AG18,0)+1,1,$AH18)),0)*(1/(1+Disc)^($AE18+$AF18+$AG18))+ OFFSET(CostE!M$5,$Z18-1,SkipYrs*Periods+ROUND($AE18+$AF18+$AG18+$AH18,0)+1)*$AI18*(1/(1+Disc)^(ROUND($AE18+$AH18+$AF18+$AG18,0)+1)))*Input!$AC18*(1+$AL18) ->  | AT18: =(IF($AE18>0,NPV(Disc,OFFSET(CostE!N$5,$Z18-1,SkipYrs*Periods+1,1,$AE18)),0)+OFFSET(CostE!N$5,$Z18-1,SkipYrs*Periods+1+$AE18)*$AF18*(1/(1+Disc)^($AE18+1)))*$M18*(1+$AL18) + (OFFSET(CostE!N$5,$Z18-1,SkipYrs*Periods+1+$AE18)*$AG18*(1/(1+Disc)^($AE18+1))+ IF($AH18>0,NPV(Disc,OFFSET(CostE!N$5,$Z18-1,SkipYrs*Periods+ROUND($AE18+$AF18+$AG18,0)+1,1,$AH18)),0)*(1/(1+Disc)^($AE18+$AF18+$AG18))+ OFFSET(CostE!N$5,$Z18-1,SkipYrs*Periods+ROUND($AE18+$AF18+$AG18+$AH18,0)+1)*$AI18*(1/(1+Disc)^(ROUND($AE18+$AH18+$AF18+$AG18,0)+1)))*Input!$AC18*(1+$AL18) ->  | AU18: =(IF($AE18>0,NPV(Disc,OFFSET(CostE!O$5,$Z18-1,SkipYrs*Periods+1,1,$AE18)),0)+OFFSET(CostE!O$5,$Z18-1,SkipYrs*Periods+1+$AE18)*$AF18*(1/(1+Disc)^($AE18+1)))*$M18*(1+$AL18) + (OFFSET(CostE!O$5,$Z18-1,SkipYrs*Periods+1+$AE18)*$AG18*(1/(1+Disc)^($AE18+1))+ IF($AH18>0,NPV(Disc,OFFSET(CostE!O$5,$Z18-1,SkipYrs*Periods+ROUND($AE18+$AF18+$AG18,0)+1,1,$AH18)),0)*(1/(1+Disc)^($AE18+$AF18+$AG18))+ OFFSET(CostE!O$5,$Z18-1,SkipYrs*Periods+ROUND($AE18+$AF18+$AG18+$AH18,0)+1)*$AI18*(1/(1+Disc)^(ROUND($AE18+$AH18+$AF18+$AG18,0)+1)))*Input!$AC18*(1+$AL18) ->  | AV18: =(IF($AE18>0,NPV(Disc,OFFSET(CostE!P$5,$Z18-1,SkipYrs*Periods+1,1,$AE18)),0)+OFFSET(CostE!P$5,$Z18-1,SkipYrs*Periods+1+$AE18)*$AF18*(1/(1+Disc)^($AE18+1)))*$M18*(1+$AL18) + (OFFSET(CostE!P$5,$Z18-1,SkipYrs*Periods+1+$AE18)*$AG18*(1/(1+Disc)^($AE18+1))+ IF($AH18>0,NPV(Disc,OFFSET(CostE!P$5,$Z18-1,SkipYrs*Periods+ROUND($AE18+$AF18+$AG18,0)+1,1,$AH18)),0)*(1/(1+Disc)^($AE18+$AF18+$AG18))+ OFFSET(CostE!P$5,$Z18-1,SkipYrs*Periods+ROUND($AE18+$AF18+$AG18+$AH18,0)+1)*$AI18*(1/(1+Disc)^(ROUND($AE18+$AH18+$AF18+$AG18,0)+1)))*Input!$AC18*(1+$AL18) ->  | AW18: =(IF($AE18>0,NPV(Disc,OFFSET(CostE!Q$5,$Z18-1,SkipYrs*Periods+1,1,$AE18)),0)+OFFSET(CostE!Q$5,$Z18-1,SkipYrs*Periods+1+$AE18)*$AF18*(1/(1+Disc)^($AE18+1)))*$M18*(1+$AL18) + (OFFSET(CostE!Q$5,$Z18-1,SkipYrs*Periods+1+$AE18)*$AG18*(1/(1+Disc)^($AE18+1))+ IF($AH18>0,NPV(Disc,OFFSET(CostE!Q$5,$Z18-1,SkipYrs*Periods+ROUND($AE18+$AF18+$AG18,0)+1,1,$AH18)),0)*(1/(1+Disc)^($AE18+$AF18+$AG18))+ OFFSET(CostE!Q$5,$Z18-1,SkipYrs*Periods+ROUND($AE18+$AF18+$AG18+$AH18,0)+1)*$AI18*(1/(1+Disc)^(ROUND($AE18+$AH18+$AF18+$AG18,0)+1)))*Input!$AC18*(1+$AL18) ->  | AX18: =(IF($AE18>0,NPV(Disc,OFFSET(CostE!R$5,$Z18-1,SkipYrs*Periods+1,1,$AE18)),0)+OFFSET(CostE!R$5,$Z18-1,SkipYrs*Periods+1+$AE18)*$AF18*(1/(1+Disc)^($AE18+1)))*$M18*(1+$AL18) + (OFFSET(CostE!R$5,$Z18-1,SkipYrs*Periods+1+$AE18)*$AG18*(1/(1+Disc)^($AE18+1))+ IF($AH18>0,NPV(Disc,OFFSET(CostE!R$5,$Z18-1,SkipYrs*Periods+ROUND($AE18+$AF18+$AG18,0)+1,1,$AH18)),0)*(1/(1+Disc)^($AE18+$AF18+$AG18))+ OFFSET(CostE!R$5,$Z18-1,SkipYrs*Periods+ROUND($AE18+$AF18+$AG18+$AH18,0)+1)*$AI18*(1/(1+Disc)^(ROUND($AE18+$AH18+$AF18+$AG18,0)+1)))*Input!$AC18*(1+$AL18) ->  | AY18: =(IF($AE18>0,NPV(Disc,OFFSET(CostE!S$5,$Z18-1,SkipYrs*Periods+1,1,$AE18)),0)+OFFSET(CostE!S$5,$Z18-1,SkipYrs*Periods+1+$AE18)*$AF18*(1/(1+Disc)^($AE18+1)))*$M18*(1+$AL18) + (OFFSET(CostE!S$5,$Z18-1,SkipYrs*Periods+1+$AE18)*$AG18*(1/(1+Disc)^($AE18+1))+ IF($AH18>0,NPV(Disc,OFFSET(CostE!S$5,$Z18-1,SkipYrs*Periods+ROUND($AE18+$AF18+$AG18,0)+1,1,$AH18)),0)*(1/(1+Disc)^($AE18+$AF18+$AG18))+ OFFSET(CostE!S$5,$Z18-1,SkipYrs*Periods+ROUND($AE18+$AF18+$AG18+$AH18,0)+1)*$AI18*(1/(1+Disc)^(ROUND($AE18+$AH18+$AF18+$AG18,0)+1)))*Input!$AC18*(1+$AL18) ->  | AZ18: =(IF($AE18>0,NPV(Disc,OFFSET(CostE!T$5,$Z18-1,SkipYrs*Periods+1,1,$AE18)),0)+OFFSET(CostE!T$5,$Z18-1,SkipYrs*Periods+1+$AE18)*$AF18*(1/(1+Disc)^($AE18+1)))*$M18*(1+$AL18) + (OFFSET(CostE!T$5,$Z18-1,SkipYrs*Periods+1+$AE18)*$AG18*(1/(1+Disc)^($AE18+1))+ IF($AH18>0,NPV(Disc,OFFSET(CostE!T$5,$Z18-1,SkipYrs*Periods+ROUND($AE18+$AF18+$AG18,0)+1,1,$AH18)),0)*(1/(1+Disc)^($AE18+$AF18+$AG18))+ OFFSET(CostE!T$5,$Z18-1,SkipYrs*Periods+ROUND($AE18+$AF18+$AG18+$AH18,0)+1)*$AI18*(1/(1+Disc)^(ROUND($AE18+$AH18+$AF18+$AG18,0)+1)))*Input!$AC18*(1+$AL18) ->  | BA18: =(IF($AE18>0,NPV(Disc,OFFSET(CostE!U$5,$Z18-1,SkipYrs*Periods+1,1,$AE18)),0)+OFFSET(CostE!U$5,$Z18-1,SkipYrs*Periods+1+$AE18)*$AF18*(1/(1+Disc)^($AE18+1)))*$M18*(1+$AL18) + (OFFSET(CostE!U$5,$Z18-1,SkipYrs*Periods+1+$AE18)*$AG18*(1/(1+Disc)^($AE18+1))+ IF($AH18>0,NPV(Disc,OFFSET(CostE!U$5,$Z18-1,SkipYrs*Periods+ROUND($AE18+$AF18+$AG18,0)+1,1,$AH18)),0)*(1/(1+Disc)^($AE18+$AF18+$AG18))+ OFFSET(CostE!U$5,$Z18-1,SkipYrs*Periods+ROUND($AE18+$AF18+$AG18+$AH18,0)+1)*$AI18*(1/(1+Disc)^(ROUND($AE18+$AH18+$AF18+$AG18,0)+1)))*Input!$AC18*(1+$AL18) ->  | BB18: =(IF($AE18>0,NPV(Disc,OFFSET(CostE!V$5,$Z18-1,SkipYrs*Periods+1,1,$AE18)),0)+OFFSET(CostE!V$5,$Z18-1,SkipYrs*Periods+1+$AE18)*$AF18*(1/(1+Disc)^($AE18+1)))*$M18*(1+$AL18) + (OFFSET(CostE!V$5,$Z18-1,SkipYrs*Periods+1+$AE18)*$AG18*(1/(1+Disc)^($AE18+1))+ IF($AH18>0,NPV(Disc,OFFSET(CostE!V$5,$Z18-1,SkipYrs*Periods+ROUND($AE18+$AF18+$AG18,0)+1,1,$AH18)),0)*(1/(1+Disc)^($AE18+$AF18+$AG18))+ OFFSET(CostE!V$5,$Z18-1,SkipYrs*Periods+ROUND($AE18+$AF18+$AG18+$AH18,0)+1)*$AI18*(1/(1+Disc)^(ROUND($AE18+$AH18+$AF18+$AG18,0)+1)))*Input!$AC18*(1+$AL18) ->  | BC18: =(IF($AE18>0,NPV(Disc,OFFSET(CostE!W$5,$Z18-1,SkipYrs*Periods+1,1,$AE18)),0)+OFFSET(CostE!W$5,$Z18-1,SkipYrs*Periods+1+$AE18)*$AF18*(1/(1+Disc)^($AE18+1)))*$M18*(1+$AL18) + (OFFSET(CostE!W$5,$Z18-1,SkipYrs*Periods+1+$AE18)*$AG18*(1/(1+Disc)^($AE18+1))+ IF($AH18>0,NPV(Disc,OFFSET(CostE!W$5,$Z18-1,SkipYrs*Periods+ROUND($AE18+$AF18+$AG18,0)+1,1,$AH18)),0)*(1/(1+Disc)^($AE18+$AF18+$AG18))+ OFFSET(CostE!W$5,$Z18-1,SkipYrs*Periods+ROUND($AE18+$AF18+$AG18+$AH18,0)+1)*$AI18*(1/(1+Disc)^(ROUND($AE18+$AH18+$AF18+$AG18,0)+1)))*Input!$AC18*(1+$AL18) ->  | BD18: =(IF($AE18>0,NPV(Disc,OFFSET(CostE!X$5,$Z18-1,SkipYrs*Periods+1,1,$AE18)),0)+OFFSET(CostE!X$5,$Z18-1,SkipYrs*Periods+1+$AE18)*$AF18*(1/(1+Disc)^($AE18+1)))*$M18*(1+$AL18) + (OFFSET(CostE!X$5,$Z18-1,SkipYrs*Periods+1+$AE18)*$AG18*(1/(1+Disc)^($AE18+1))+ IF($AH18>0,NPV(Disc,OFFSET(CostE!X$5,$Z18-1,SkipYrs*Periods+ROUND($AE18+$AF18+$AG18,0)+1,1,$AH18)),0)*(1/(1+Disc)^($AE18+$AF18+$AG18))+ OFFSET(CostE!X$5,$Z18-1,SkipYrs*Periods+ROUND($AE18+$AF18+$AG18+$AH18,0)+1)*$AI18*(1/(1+Disc)^(ROUND($AE18+$AH18+$AF18+$AG18,0)+1)))*Input!$AC18*(1+$AL18) ->  | BE18: =(IF($AE18>0,NPV(Disc,OFFSET(CostE!Y$5,$Z18-1,SkipYrs*Periods+1,1,$AE18)),0)+OFFSET(CostE!Y$5,$Z18-1,SkipYrs*Periods+1+$AE18)*$AF18*(1/(1+Disc)^($AE18+1)))*$M18*(1+$AL18) + (OFFSET(CostE!Y$5,$Z18-1,SkipYrs*Periods+1+$AE18)*$AG18*(1/(1+Disc)^($AE18+1))+ IF($AH18>0,NPV(Disc,OFFSET(CostE!Y$5,$Z18-1,SkipYrs*Periods+ROUND($AE18+$AF18+$AG18,0)+1,1,$AH18)),0)*(1/(1+Disc)^($AE18+$AF18+$AG18))+ OFFSET(CostE!Y$5,$Z18-1,SkipYrs*Periods+ROUND($AE18+$AF18+$AG18+$AH18,0)+1)*$AI18*(1/(1+Disc)^(ROUND($AE18+$AH18+$AF18+$AG18,0)+1)))*Input!$AC18*(1+$AL18) ->  | BF18: =(IF($AE18>0,NPV(Disc,OFFSET(CostE!Z$5,$Z18-1,SkipYrs*Periods+1,1,$AE18)),0)+OFFSET(CostE!Z$5,$Z18-1,SkipYrs*Periods+1+$AE18)*$AF18*(1/(1+Disc)^($AE18+1)))*$M18*(1+$AL18) + (OFFSET(CostE!Z$5,$Z18-1,SkipYrs*Periods+1+$AE18)*$AG18*(1/(1+Disc)^($AE18+1))+ IF($AH18>0,NPV(Disc,OFFSET(CostE!Z$5,$Z18-1,SkipYrs*Periods+ROUND($AE18+$AF18+$AG18,0)+1,1,$AH18)),0)*(1/(1+Disc)^($AE18+$AF18+$AG18))+ OFFSET(CostE!Z$5,$Z18-1,SkipYrs*Periods+ROUND($AE18+$AF18+$AG18+$AH18,0)+1)*$AI18*(1/(1+Disc)^(ROUND($AE18+$AH18+$AF18+$AG18,0)+1)))*Input!$AC18*(1+$AL18) ->  | BG18: =(IF($AE18>0,NPV(Disc,OFFSET(CostE!AA$5,$Z18-1,SkipYrs*Periods+1,1,$AE18)),0)+OFFSET(CostE!AA$5,$Z18-1,SkipYrs*Periods+1+$AE18)*$AF18*(1/(1+Disc)^($AE18+1)))*$M18*(1+$AL18) + (OFFSET(CostE!AA$5,$Z18-1,SkipYrs*Periods+1+$AE18)*$AG18*(1/(1+Disc)^($AE18+1))+ IF($AH18>0,NPV(Disc,OFFSET(CostE!AA$5,$Z18-1,SkipYrs*Periods+ROUND($AE18+$AF18+$AG18,0)+1,1,$AH18)),0)*(1/(1+Disc)^($AE18+$AF18+$AG18))+ OFFSET(CostE!AA$5,$Z18-1,SkipYrs*Periods+ROUND($AE18+$AF18+$AG18+$AH18,0)+1)*$AI18*(1/(1+Disc)^(ROUND($AE18+$AH18+$AF18+$AG18,0)+1)))*Input!$AC18*(1+$AL18) ->  | BH18: =(IF($AE18>0,NPV(Disc,OFFSET(CostE!AB$5,$Z18-1,SkipYrs*Periods+1,1,$AE18)),0)+OFFSET(CostE!AB$5,$Z18-1,SkipYrs*Periods+1+$AE18)*$AF18*(1/(1+Disc)^($AE18+1)))*$M18*(1+$AL18) + (OFFSET(CostE!AB$5,$Z18-1,SkipYrs*Periods+1+$AE18)*$AG18*(1/(1+Disc)^($AE18+1))+ IF($AH18>0,NPV(Disc,OFFSET(CostE!AB$5,$Z18-1,SkipYrs*Periods+ROUND($AE18+$AF18+$AG18,0)+1,1,$AH18)),0)*(1/(1+Disc)^($AE18+$AF18+$AG18))+ OFFSET(CostE!AB$5,$Z18-1,SkipYrs*Periods+ROUND($AE18+$AF18+$AG18+$AH18,0)+1)*$AI18*(1/(1+Disc)^(ROUND($AE18+$AH18+$AF18+$AG18,0)+1)))*Input!$AC18*(1+$AL18) ->  | BI18: =(IF($AE18>0,NPV(Disc,OFFSET(CostE!AC$5,$Z18-1,SkipYrs*Periods+1,1,$AE18)),0)+OFFSET(CostE!AC$5,$Z18-1,SkipYrs*Periods+1+$AE18)*$AF18*(1/(1+Disc)^($AE18+1)))*$M18*(1+$AL18) + (OFFSET(CostE!AC$5,$Z18-1,SkipYrs*Periods+1+$AE18)*$AG18*(1/(1+Disc)^($AE18+1))+ IF($AH18>0,NPV(Disc,OFFSET(CostE!AC$5,$Z18-1,SkipYrs*Periods+ROUND($AE18+$AF18+$AG18,0)+1,1,$AH18)),0)*(1/(1+Disc)^($AE18+$AF18+$AG18))+ OFFSET(CostE!AC$5,$Z18-1,SkipYrs*Periods+ROUND($AE18+$AF18+$AG18+$AH18,0)+1)*$AI18*(1/(1+Disc)^(ROUND($AE18+$AH18+$AF18+$AG18,0)+1)))*Input!$AC18*(1+$AL18) ->  | BJ18: =(IF($AE18>0,NPV(Disc,OFFSET(CostE!AD$5,$Z18-1,SkipYrs*Periods+1,1,$AE18)),0)+OFFSET(CostE!AD$5,$Z18-1,SkipYrs*Periods+1+$AE18)*$AF18*(1/(1+Disc)^($AE18+1)))*$M18*(1+$AL18) + (OFFSET(CostE!AD$5,$Z18-1,SkipYrs*Periods+1+$AE18)*$AG18*(1/(1+Disc)^($AE18+1))+ IF($AH18>0,NPV(Disc,OFFSET(CostE!AD$5,$Z18-1,SkipYrs*Periods+ROUND($AE18+$AF18+$AG18,0)+1,1,$AH18)),0)*(1/(1+Disc)^($AE18+$AF18+$AG18))+ OFFSET(CostE!AD$5,$Z18-1,SkipYrs*Periods+ROUND($AE18+$AF18+$AG18+$AH18,0)+1)*$AI18*(1/(1+Disc)^(ROUND($AE18+$AH18+$AF18+$AG18,0)+1)))*Input!$AC18*(1+$AL18) ->  | BK18: =(IF($AE18>0,NPV(Disc,OFFSET(CostE!AE$5,$Z18-1,SkipYrs*Periods+1,1,$AE18)),0)+OFFSET(CostE!AE$5,$Z18-1,SkipYrs*Periods+1+$AE18)*$AF18*(1/(1+Disc)^($AE18+1)))*$M18*(1+$AL18) + (OFFSET(CostE!AE$5,$Z18-1,SkipYrs*Periods+1+$AE18)*$AG18*(1/(1+Disc)^($AE18+1))+ IF($AH18>0,NPV(Disc,OFFSET(CostE!AE$5,$Z18-1,SkipYrs*Periods+ROUND($AE18+$AF18+$AG18,0)+1,1,$AH18)),0)*(1/(1+Disc)^($AE18+$AF18+$AG18))+ OFFSET(CostE!AE$5,$Z18-1,SkipYrs*Periods+ROUND($AE18+$AF18+$AG18+$AH18,0)+1)*$AI18*(1/(1+Disc)^(ROUND($AE18+$AH18+$AF18+$AG18,0)+1)))*Input!$AC18*(1+$AL18) ->  | BL18: =(IF($AE18>0,NPV(Disc,OFFSET(CostE!AF$5,$Z18-1,SkipYrs*Periods+1,1,$AE18)),0)+OFFSET(CostE!AF$5,$Z18-1,SkipYrs*Periods+1+$AE18)*$AF18*(1/(1+Disc)^($AE18+1)))*$M18*(1+$AL18) + (OFFSET(CostE!AF$5,$Z18-1,SkipYrs*Periods+1+$AE18)*$AG18*(1/(1+Disc)^($AE18+1))+ IF($AH18>0,NPV(Disc,OFFSET(CostE!AF$5,$Z18-1,SkipYrs*Periods+ROUND($AE18+$AF18+$AG18,0)+1,1,$AH18)),0)*(1/(1+Disc)^($AE18+$AF18+$AG18))+ OFFSET(CostE!AF$5,$Z18-1,SkipYrs*Periods+ROUND($AE18+$AF18+$AG18+$AH18,0)+1)*$AI18*(1/(1+Disc)^(ROUND($AE18+$AH18+$AF18+$AG18,0)+1)))*Input!$AC18*(1+$AL18) ->  | BM18: =(IF($AE18>0,NPV(Disc,OFFSET(CostE!AG$5,$Z18-1,SkipYrs*Periods+1,1,$AE18)),0)+OFFSET(CostE!AG$5,$Z18-1,SkipYrs*Periods+1+$AE18)*$AF18*(1/(1+Disc)^($AE18+1)))*$M18*(1+$AL18) + (OFFSET(CostE!AG$5,$Z18-1,SkipYrs*Periods+1+$AE18)*$AG18*(1/(1+Disc)^($AE18+1))+ IF($AH18>0,NPV(Disc,OFFSET(CostE!AG$5,$Z18-1,SkipYrs*Periods+ROUND($AE18+$AF18+$AG18,0)+1,1,$AH18)),0)*(1/(1+Disc)^($AE18+$AF18+$AG18))+ OFFSET(CostE!AG$5,$Z18-1,SkipYrs*Periods+ROUND($AE18+$AF18+$AG18+$AH18,0)+1)*$AI18*(1/(1+Disc)^(ROUND($AE18+$AH18+$AF18+$AG18,0)+1)))*Input!$AC18*(1+$AL18) ->  | BN18: =(IF($AE18>0,NPV(Disc,OFFSET(CostE!AH$5,$Z18-1,SkipYrs*Periods+1,1,$AE18)),0)+OFFSET(CostE!AH$5,$Z18-1,SkipYrs*Periods+1+$AE18)*$AF18*(1/(1+Disc)^($AE18+1)))*$M18*(1+$AL18) + (OFFSET(CostE!AH$5,$Z18-1,SkipYrs*Periods+1+$AE18)*$AG18*(1/(1+Disc)^($AE18+1))+ IF($AH18>0,NPV(Disc,OFFSET(CostE!AH$5,$Z18-1,SkipYrs*Periods+ROUND($AE18+$AF18+$AG18,0)+1,1,$AH18)),0)*(1/(1+Disc)^($AE18+$AF18+$AG18))+ OFFSET(CostE!AH$5,$Z18-1,SkipYrs*Periods+ROUND($AE18+$AF18+$AG18+$AH18,0)+1)*$AI18*(1/(1+Disc)^(ROUND($AE18+$AH18+$AF18+$AG18,0)+1)))*Input!$AC18*(1+$AL18) ->  | BO18: =(IF($AE18>0,NPV(Disc,OFFSET(CostE!AI$5,$Z18-1,SkipYrs*Periods+1,1,$AE18)),0)+OFFSET(CostE!AI$5,$Z18-1,SkipYrs*Periods+1+$AE18)*$AF18*(1/(1+Disc)^($AE18+1)))*$M18*(1+$AL18) + (OFFSET(CostE!AI$5,$Z18-1,SkipYrs*Periods+1+$AE18)*$AG18*(1/(1+Disc)^($AE18+1))+ IF($AH18>0,NPV(Disc,OFFSET(CostE!AI$5,$Z18-1,SkipYrs*Periods+ROUND($AE18+$AF18+$AG18,0)+1,1,$AH18)),0)*(1/(1+Disc)^($AE18+$AF18+$AG18))+ OFFSET(CostE!AI$5,$Z18-1,SkipYrs*Periods+ROUND($AE18+$AF18+$AG18+$AH18,0)+1)*$AI18*(1/(1+Disc)^(ROUND($AE18+$AH18+$AF18+$AG18,0)+1)))*Input!$AC18*(1+$AL18) ->  | BP18: =(IF($AE18>0,NPV(Disc,OFFSET(CostE!AJ$5,$Z18-1,SkipYrs*Periods+1,1,$AE18)),0)+OFFSET(CostE!AJ$5,$Z18-1,SkipYrs*Periods+1+$AE18)*$AF18*(1/(1+Disc)^($AE18+1)))*$M18*(1+$AL18) + (OFFSET(CostE!AJ$5,$Z18-1,SkipYrs*Periods+1+$AE18)*$AG18*(1/(1+Disc)^($AE18+1))+ IF($AH18>0,NPV(Disc,OFFSET(CostE!AJ$5,$Z18-1,SkipYrs*Periods+ROUND($AE18+$AF18+$AG18,0)+1,1,$AH18)),0)*(1/(1+Disc)^($AE18+$AF18+$AG18))+ OFFSET(CostE!AJ$5,$Z18-1,SkipYrs*Periods+ROUND($AE18+$AF18+$AG18+$AH18,0)+1)*$AI18*(1/(1+Disc)^(ROUND($AE18+$AH18+$AF18+$AG18,0)+1)))*Input!$AC18*(1+$AL18) ->  | BQ18: =(IF($AE18>0,NPV(Disc,OFFSET(CostE!AK$5,$Z18-1,SkipYrs*Periods+1,1,$AE18)),0)+OFFSET(CostE!AK$5,$Z18-1,SkipYrs*Periods+1+$AE18)*$AF18*(1/(1+Disc)^($AE18+1)))*$M18*(1+$AL18) + (OFFSET(CostE!AK$5,$Z18-1,SkipYrs*Periods+1+$AE18)*$AG18*(1/(1+Disc)^($AE18+1))+ IF($AH18>0,NPV(Disc,OFFSET(CostE!AK$5,$Z18-1,SkipYrs*Periods+ROUND($AE18+$AF18+$AG18,0)+1,1,$AH18)),0)*(1/(1+Disc)^($AE18+$AF18+$AG18))+ OFFSET(CostE!AK$5,$Z18-1,SkipYrs*Periods+ROUND($AE18+$AF18+$AG18+$AH18,0)+1)*$AI18*(1/(1+Disc)^(ROUND($AE18+$AH18+$AF18+$AG18,0)+1)))*Input!$AC18*(1+$AL18) ->  | BR18: =(IF($AE18>0,NPV(Disc,OFFSET(CostE!AL$5,$Z18-1,SkipYrs*Periods+1,1,$AE18)),0)+OFFSET(CostE!AL$5,$Z18-1,SkipYrs*Periods+1+$AE18)*$AF18*(1/(1+Disc)^($AE18+1)))*$M18*(1+$AL18) + (OFFSET(CostE!AL$5,$Z18-1,SkipYrs*Periods+1+$AE18)*$AG18*(1/(1+Disc)^($AE18+1))+ IF($AH18>0,NPV(Disc,OFFSET(CostE!AL$5,$Z18-1,SkipYrs*Periods+ROUND($AE18+$AF18+$AG18,0)+1,1,$AH18)),0)*(1/(1+Disc)^($AE18+$AF18+$AG18))+ OFFSET(CostE!AL$5,$Z18-1,SkipYrs*Periods+ROUND($AE18+$AF18+$AG18+$AH18,0)+1)*$AI18*(1/(1+Disc)^(ROUND($AE18+$AH18+$AF18+$AG18,0)+1)))*Input!$AC18*(1+$AL18) ->  | BS18: =(IF($AE18>0,NPV(Disc,OFFSET(CostE!AM$5,$Z18-1,SkipYrs*Periods+1,1,$AE18)),0)+OFFSET(CostE!AM$5,$Z18-1,SkipYrs*Periods+1+$AE18)*$AF18*(1/(1+Disc)^($AE18+1)))*$M18*(1+$AL18) + (OFFSET(CostE!AM$5,$Z18-1,SkipYrs*Periods+1+$AE18)*$AG18*(1/(1+Disc)^($AE18+1))+ IF($AH18>0,NPV(Disc,OFFSET(CostE!AM$5,$Z18-1,SkipYrs*Periods+ROUND($AE18+$AF18+$AG18,0)+1,1,$AH18)),0)*(1/(1+Disc)^($AE18+$AF18+$AG18))+ OFFSET(CostE!AM$5,$Z18-1,SkipYrs*Periods+ROUND($AE18+$AF18+$AG18+$AH18,0)+1)*$AI18*(1/(1+Disc)^(ROUND($AE18+$AH18+$AF18+$AG18,0)+1)))*Input!$AC18*(1+$AL18) ->  | BT18: =(IF($AE18>0,NPV(Disc,OFFSET(CostE!AN$5,$Z18-1,SkipYrs*Periods+1,1,$AE18)),0)+OFFSET(CostE!AN$5,$Z18-1,SkipYrs*Periods+1+$AE18)*$AF18*(1/(1+Disc)^($AE18+1)))*$M18*(1+$AL18) + (OFFSET(CostE!AN$5,$Z18-1,SkipYrs*Periods+1+$AE18)*$AG18*(1/(1+Disc)^($AE18+1))+ IF($AH18>0,NPV(Disc,OFFSET(CostE!AN$5,$Z18-1,SkipYrs*Periods+ROUND($AE18+$AF18+$AG18,0)+1,1,$AH18)),0)*(1/(1+Disc)^($AE18+$AF18+$AG18))+ OFFSET(CostE!AN$5,$Z18-1,SkipYrs*Periods+ROUND($AE18+$AF18+$AG18+$AH18,0)+1)*$AI18*(1/(1+Disc)^(ROUND($AE18+$AH18+$AF18+$AG18,0)+1)))*Input!$AC18*(1+$AL18) ->  | BU18: =(IF($AE18>0,NPV(Disc,OFFSET(CostE!AO$5,$Z18-1,SkipYrs*Periods+1,1,$AE18)),0)+OFFSET(CostE!AO$5,$Z18-1,SkipYrs*Periods+1+$AE18)*$AF18*(1/(1+Disc)^($AE18+1)))*$M18*(1+$AL18) + (OFFSET(CostE!AO$5,$Z18-1,SkipYrs*Periods+1+$AE18)*$AG18*(1/(1+Disc)^($AE18+1))+ IF($AH18>0,NPV(Disc,OFFSET(CostE!AO$5,$Z18-1,SkipYrs*Periods+ROUND($AE18+$AF18+$AG18,0)+1,1,$AH18)),0)*(1/(1+Disc)^($AE18+$AF18+$AG18))+ OFFSET(CostE!AO$5,$Z18-1,SkipYrs*Periods+ROUND($AE18+$AF18+$AG18+$AH18,0)+1)*$AI18*(1/(1+Disc)^(ROUND($AE18+$AH18+$AF18+$AG18,0)+1)))*Input!$AC18*(1+$AL18) ->  | BV18: =(IF($AE18>0,NPV(Disc,OFFSET(CostE!AP$5,$Z18-1,SkipYrs*Periods+1,1,$AE18)),0)+OFFSET(CostE!AP$5,$Z18-1,SkipYrs*Periods+1+$AE18)*$AF18*(1/(1+Disc)^($AE18+1)))*$M18*(1+$AL18) + (OFFSET(CostE!AP$5,$Z18-1,SkipYrs*Periods+1+$AE18)*$AG18*(1/(1+Disc)^($AE18+1))+ IF($AH18>0,NPV(Disc,OFFSET(CostE!AP$5,$Z18-1,SkipYrs*Periods+ROUND($AE18+$AF18+$AG18,0)+1,1,$AH18)),0)*(1/(1+Disc)^($AE18+$AF18+$AG18))+ OFFSET(CostE!AP$5,$Z18-1,SkipYrs*Periods+ROUND($AE18+$AF18+$AG18+$AH18,0)+1)*$AI18*(1/(1+Disc)^(ROUND($AE18+$AH18+$AF18+$AG18,0)+1)))*Input!$AC18*(1+$AL18) ->  | BW18: =(IF($AE18>0,NPV(Disc,OFFSET(CostE!AQ$5,$Z18-1,SkipYrs*Periods+1,1,$AE18)),0)+OFFSET(CostE!AQ$5,$Z18-1,SkipYrs*Periods+1+$AE18)*$AF18*(1/(1+Disc)^($AE18+1)))*$M18*(1+$AL18) + (OFFSET(CostE!AQ$5,$Z18-1,SkipYrs*Periods+1+$AE18)*$AG18*(1/(1+Disc)^($AE18+1))+ IF($AH18>0,NPV(Disc,OFFSET(CostE!AQ$5,$Z18-1,SkipYrs*Periods+ROUND($AE18+$AF18+$AG18,0)+1,1,$AH18)),0)*(1/(1+Disc)^($AE18+$AF18+$AG18))+ OFFSET(CostE!AQ$5,$Z18-1,SkipYrs*Periods+ROUND($AE18+$AF18+$AG18+$AH18,0)+1)*$AI18*(1/(1+Disc)^(ROUND($AE18+$AH18+$AF18+$AG18,0)+1)))*Input!$AC18*(1+$AL18) ->  | BX18: =(IF($AE18>0,NPV(Disc,OFFSET(CostE!AR$5,$Z18-1,SkipYrs*Periods+1,1,$AE18)),0)+OFFSET(CostE!AR$5,$Z18-1,SkipYrs*Periods+1+$AE18)*$AF18*(1/(1+Disc)^($AE18+1)))*$M18*(1+$AL18) + (OFFSET(CostE!AR$5,$Z18-1,SkipYrs*Periods+1+$AE18)*$AG18*(1/(1+Disc)^($AE18+1))+ IF($AH18>0,NPV(Disc,OFFSET(CostE!AR$5,$Z18-1,SkipYrs*Periods+ROUND($AE18+$AF18+$AG18,0)+1,1,$AH18)),0)*(1/(1+Disc)^($AE18+$AF18+$AG18))+ OFFSET(CostE!AR$5,$Z18-1,SkipYrs*Periods+ROUND($AE18+$AF18+$AG18+$AH18,0)+1)*$AI18*(1/(1+Disc)^(ROUND($AE18+$AH18+$AF18+$AG18,0)+1)))*Input!$AC18*(1+$AL18) ->  | BY18: =(IF($AE18>0,NPV(Disc,OFFSET(CostE!AS$5,$Z18-1,SkipYrs*Periods+1,1,$AE18)),0)+OFFSET(CostE!AS$5,$Z18-1,SkipYrs*Periods+1+$AE18)*$AF18*(1/(1+Disc)^($AE18+1)))*$M18*(1+$AL18) + (OFFSET(CostE!AS$5,$Z18-1,SkipYrs*Periods+1+$AE18)*$AG18*(1/(1+Disc)^($AE18+1))+ IF($AH18>0,NPV(Disc,OFFSET(CostE!AS$5,$Z18-1,SkipYrs*Periods+ROUND($AE18+$AF18+$AG18,0)+1,1,$AH18)),0)*(1/(1+Disc)^($AE18+$AF18+$AG18))+ OFFSET(CostE!AS$5,$Z18-1,SkipYrs*Periods+ROUND($AE18+$AF18+$AG18+$AH18,0)+1)*$AI18*(1/(1+Disc)^(ROUND($AE18+$AH18+$AF18+$AG18,0)+1)))*Input!$AC18*(1+$AL18) ->  | BZ18: =(IF($AE18>0,NPV(Disc,OFFSET(CostE!AT$5,$Z18-1,SkipYrs*Periods+1,1,$AE18)),0)+OFFSET(CostE!AT$5,$Z18-1,SkipYrs*Periods+1+$AE18)*$AF18*(1/(1+Disc)^($AE18+1)))*$M18*(1+$AL18) + (OFFSET(CostE!AT$5,$Z18-1,SkipYrs*Periods+1+$AE18)*$AG18*(1/(1+Disc)^($AE18+1))+ IF($AH18>0,NPV(Disc,OFFSET(CostE!AT$5,$Z18-1,SkipYrs*Periods+ROUND($AE18+$AF18+$AG18,0)+1,1,$AH18)),0)*(1/(1+Disc)^($AE18+$AF18+$AG18))+ OFFSET(CostE!AT$5,$Z18-1,SkipYrs*Periods+ROUND($AE18+$AF18+$AG18+$AH18,0)+1)*$AI18*(1/(1+Disc)^(ROUND($AE18+$AH18+$AF18+$AG18,0)+1)))*Input!$AC18*(1+$AL18) ->  | CA18: =(IF($AE18>0,NPV(Disc,OFFSET(CostE!AU$5,$Z18-1,SkipYrs*Periods+1,1,$AE18)),0)+OFFSET(CostE!AU$5,$Z18-1,SkipYrs*Periods+1+$AE18)*$AF18*(1/(1+Disc)^($AE18+1)))*$M18*(1+$AL18) + (OFFSET(CostE!AU$5,$Z18-1,SkipYrs*Periods+1+$AE18)*$AG18*(1/(1+Disc)^($AE18+1))+ IF($AH18>0,NPV(Disc,OFFSET(CostE!AU$5,$Z18-1,SkipYrs*Periods+ROUND($AE18+$AF18+$AG18,0)+1,1,$AH18)),0)*(1/(1+Disc)^($AE18+$AF18+$AG18))+ OFFSET(CostE!AU$5,$Z18-1,SkipYrs*Periods+ROUND($AE18+$AF18+$AG18+$AH18,0)+1)*$AI18*(1/(1+Disc)^(ROUND($AE18+$AH18+$AF18+$AG18,0)+1)))*Input!$AC18*(1+$AL18) ->  | CB18: =(IF($AE18>0,NPV(Disc,OFFSET(CostE!AV$5,$Z18-1,SkipYrs*Periods+1,1,$AE18)),0)+OFFSET(CostE!AV$5,$Z18-1,SkipYrs*Periods+1+$AE18)*$AF18*(1/(1+Disc)^($AE18+1)))*$M18*(1+$AL18) + (OFFSET(CostE!AV$5,$Z18-1,SkipYrs*Periods+1+$AE18)*$AG18*(1/(1+Disc)^($AE18+1))+ IF($AH18>0,NPV(Disc,OFFSET(CostE!AV$5,$Z18-1,SkipYrs*Periods+ROUND($AE18+$AF18+$AG18,0)+1,1,$AH18)),0)*(1/(1+Disc)^($AE18+$AF18+$AG18))+ OFFSET(CostE!AV$5,$Z18-1,SkipYrs*Periods+ROUND($AE18+$AF18+$AG18+$AH18,0)+1)*$AI18*(1/(1+Disc)^(ROUND($AE18+$AH18+$AF18+$AG18,0)+1)))*Input!$AC18*(1+$AL18) ->  | CC18: =(IF($AE18>0,NPV(Disc,OFFSET(CostE!AW$5,$Z18-1,SkipYrs*Periods+1,1,$AE18)),0)+OFFSET(CostE!AW$5,$Z18-1,SkipYrs*Periods+1+$AE18)*$AF18*(1/(1+Disc)^($AE18+1)))*$M18*(1+$AL18) + (OFFSET(CostE!AW$5,$Z18-1,SkipYrs*Periods+1+$AE18)*$AG18*(1/(1+Disc)^($AE18+1))+ IF($AH18>0,NPV(Disc,OFFSET(CostE!AW$5,$Z18-1,SkipYrs*Periods+ROUND($AE18+$AF18+$AG18,0)+1,1,$AH18)),0)*(1/(1+Disc)^($AE18+$AF18+$AG18))+ OFFSET(CostE!AW$5,$Z18-1,SkipYrs*Periods+ROUND($AE18+$AF18+$AG18+$AH18,0)+1)*$AI18*(1/(1+Disc)^(ROUND($AE18+$AH18+$AF18+$AG18,0)+1)))*Input!$AC18*(1+$AL18) ->  | CD18: =(IF($AE18>0,NPV(Disc,OFFSET(CostE!AX$5,$Z18-1,SkipYrs*Periods+1,1,$AE18)),0)+OFFSET(CostE!AX$5,$Z18-1,SkipYrs*Periods+1+$AE18)*$AF18*(1/(1+Disc)^($AE18+1)))*$M18*(1+$AL18) + (OFFSET(CostE!AX$5,$Z18-1,SkipYrs*Periods+1+$AE18)*$AG18*(1/(1+Disc)^($AE18+1))+ IF($AH18>0,NPV(Disc,OFFSET(CostE!AX$5,$Z18-1,SkipYrs*Periods+ROUND($AE18+$AF18+$AG18,0)+1,1,$AH18)),0)*(1/(1+Disc)^($AE18+$AF18+$AG18))+ OFFSET(CostE!AX$5,$Z18-1,SkipYrs*Periods+ROUND($AE18+$AF18+$AG18+$AH18,0)+1)*$AI18*(1/(1+Disc)^(ROUND($AE18+$AH18+$AF18+$AG18,0)+1)))*Input!$AC18*(1+$AL18) ->  | CE18: =(IF($AE18>0,NPV(Disc,OFFSET(CostE!G$5,$AA18-1,SkipYrs*Periods+1,1,$AE18)),0)+OFFSET(CostE!G$5,$AA18-1,SkipYrs*Periods+1+$AE18)*$AF18*(1/(1+Disc)^($AE18+1)))*$R18 + (OFFSET(CostE!G$5,$AA18-1,SkipYrs*Periods+1+$AE18)*$AG18*(1/(1+Disc)^($AE18+1))+ IF($AH18>0,NPV(Disc,OFFSET(CostE!G$5,$AA18-1,SkipYrs*Periods+ROUND($AE18+$AF18+$AG18,0)+1,1,$AH18)),0)*(1/(1+Disc)^($AE18+$AF18+$AG18))+ OFFSET(CostE!G$5,$AA18-1,SkipYrs*Periods+ROUND($AE18+$AF18+$AG18+$AH18,0)+1)*$AI18*(1/(1+Disc)^(ROUND($AE18+$AH18+$AF18+$AG18,0)+1)))*$S18 ->  | CF18: =(IF($AE18>0,NPV(Disc,OFFSET(CostE!H$5,$AA18-1,SkipYrs*Periods+1,1,$AE18)),0)+OFFSET(CostE!H$5,$AA18-1,SkipYrs*Periods+1+$AE18)*$AF18*(1/(1+Disc)^($AE18+1)))*$R18 + (OFFSET(CostE!H$5,$AA18-1,SkipYrs*Periods+1+$AE18)*$AG18*(1/(1+Disc)^($AE18+1))+ IF($AH18>0,NPV(Disc,OFFSET(CostE!H$5,$AA18-1,SkipYrs*Periods+ROUND($AE18+$AF18+$AG18,0)+1,1,$AH18)),0)*(1/(1+Disc)^($AE18+$AF18+$AG18))+ OFFSET(CostE!H$5,$AA18-1,SkipYrs*Periods+ROUND($AE18+$AF18+$AG18+$AH18,0)+1)*$AI18*(1/(1+Disc)^(ROUND($AE18+$AH18+$AF18+$AG18,0)+1)))*$S18 ->  | CG18: =(IF($AE18>0,NPV(Disc,OFFSET(CostE!I$5,$AA18-1,SkipYrs*Periods+1,1,$AE18)),0)+OFFSET(CostE!I$5,$AA18-1,SkipYrs*Periods+1+$AE18)*$AF18*(1/(1+Disc)^($AE18+1)))*$R18 + (OFFSET(CostE!I$5,$AA18-1,SkipYrs*Periods+1+$AE18)*$AG18*(1/(1+Disc)^($AE18+1))+ IF($AH18>0,NPV(Disc,OFFSET(CostE!I$5,$AA18-1,SkipYrs*Periods+ROUND($AE18+$AF18+$AG18,0)+1,1,$AH18)),0)*(1/(1+Disc)^($AE18+$AF18+$AG18))+ OFFSET(CostE!I$5,$AA18-1,SkipYrs*Periods+ROUND($AE18+$AF18+$AG18+$AH18,0)+1)*$AI18*(1/(1+Disc)^(ROUND($AE18+$AH18+$AF18+$AG18,0)+1)))*$S18 ->  | CH18: =(IF($AE18>0,NPV(Disc,OFFSET(CostE!J$5,$AA18-1,SkipYrs*Periods+1,1,$AE18)),0)+OFFSET(CostE!J$5,$AA18-1,SkipYrs*Periods+1+$AE18)*$AF18*(1/(1+Disc)^($AE18+1)))*$R18 + (OFFSET(CostE!J$5,$AA18-1,SkipYrs*Periods+1+$AE18)*$AG18*(1/(1+Disc)^($AE18+1))+ IF($AH18>0,NPV(Disc,OFFSET(CostE!J$5,$AA18-1,SkipYrs*Periods+ROUND($AE18+$AF18+$AG18,0)+1,1,$AH18)),0)*(1/(1+Disc)^($AE18+$AF18+$AG18))+ OFFSET(CostE!J$5,$AA18-1,SkipYrs*Periods+ROUND($AE18+$AF18+$AG18+$AH18,0)+1)*$AI18*(1/(1+Disc)^(ROUND($AE18+$AH18+$AF18+$AG18,0)+1)))*$S18 ->  | CI18: =(IF($AE18>0,NPV(Disc,OFFSET(CostE!K$5,$AA18-1,SkipYrs*Periods+1,1,$AE18)),0)+OFFSET(CostE!K$5,$AA18-1,SkipYrs*Periods+1+$AE18)*$AF18*(1/(1+Disc)^($AE18+1)))*$R18 + (OFFSET(CostE!K$5,$AA18-1,SkipYrs*Periods+1+$AE18)*$AG18*(1/(1+Disc)^($AE18+1))+ IF($AH18>0,NPV(Disc,OFFSET(CostE!K$5,$AA18-1,SkipYrs*Periods+ROUND($AE18+$AF18+$AG18,0)+1,1,$AH18)),0)*(1/(1+Disc)^($AE18+$AF18+$AG18))+ OFFSET(CostE!K$5,$AA18-1,SkipYrs*Periods+ROUND($AE18+$AF18+$AG18+$AH18,0)+1)*$AI18*(1/(1+Disc)^(ROUND($AE18+$AH18+$AF18+$AG18,0)+1)))*$S18 ->  | CJ18: =(IF($AE18>0,NPV(Disc,OFFSET(CostE!L$5,$AA18-1,SkipYrs*Periods+1,1,$AE18)),0)+OFFSET(CostE!L$5,$AA18-1,SkipYrs*Periods+1+$AE18)*$AF18*(1/(1+Disc)^($AE18+1)))*$R18 + (OFFSET(CostE!L$5,$AA18-1,SkipYrs*Periods+1+$AE18)*$AG18*(1/(1+Disc)^($AE18+1))+ IF($AH18>0,NPV(Disc,OFFSET(CostE!L$5,$AA18-1,SkipYrs*Periods+ROUND($AE18+$AF18+$AG18,0)+1,1,$AH18)),0)*(1/(1+Disc)^($AE18+$AF18+$AG18))+ OFFSET(CostE!L$5,$AA18-1,SkipYrs*Periods+ROUND($AE18+$AF18+$AG18+$AH18,0)+1)*$AI18*(1/(1+Disc)^(ROUND($AE18+$AH18+$AF18+$AG18,0)+1)))*$S18 ->  | CK18: =(IF($AE18>0,NPV(Disc,OFFSET(CostE!M$5,$AA18-1,SkipYrs*Periods+1,1,$AE18)),0)+OFFSET(CostE!M$5,$AA18-1,SkipYrs*Periods+1+$AE18)*$AF18*(1/(1+Disc)^($AE18+1)))*$R18 + (OFFSET(CostE!M$5,$AA18-1,SkipYrs*Periods+1+$AE18)*$AG18*(1/(1+Disc)^($AE18+1))+ IF($AH18>0,NPV(Disc,OFFSET(CostE!M$5,$AA18-1,SkipYrs*Periods+ROUND($AE18+$AF18+$AG18,0)+1,1,$AH18)),0)*(1/(1+Disc)^($AE18+$AF18+$AG18))+ OFFSET(CostE!M$5,$AA18-1,SkipYrs*Periods+ROUND($AE18+$AF18+$AG18+$AH18,0)+1)*$AI18*(1/(1+Disc)^(ROUND($AE18+$AH18+$AF18+$AG18,0)+1)))*$S18 ->  | CL18: =(IF($AE18>0,NPV(Disc,OFFSET(CostE!N$5,$AA18-1,SkipYrs*Periods+1,1,$AE18)),0)+OFFSET(CostE!N$5,$AA18-1,SkipYrs*Periods+1+$AE18)*$AF18*(1/(1+Disc)^($AE18+1)))*$R18 + (OFFSET(CostE!N$5,$AA18-1,SkipYrs*Periods+1+$AE18)*$AG18*(1/(1+Disc)^($AE18+1))+ IF($AH18>0,NPV(Disc,OFFSET(CostE!N$5,$AA18-1,SkipYrs*Periods+ROUND($AE18+$AF18+$AG18,0)+1,1,$AH18)),0)*(1/(1+Disc)^($AE18+$AF18+$AG18))+ OFFSET(CostE!N$5,$AA18-1,SkipYrs*Periods+ROUND($AE18+$AF18+$AG18+$AH18,0)+1)*$AI18*(1/(1+Disc)^(ROUND($AE18+$AH18+$AF18+$AG18,0)+1)))*$S18 ->  | CM18: =(IF($AE18>0,NPV(Disc,OFFSET(CostE!O$5,$AA18-1,SkipYrs*Periods+1,1,$AE18)),0)+OFFSET(CostE!O$5,$AA18-1,SkipYrs*Periods+1+$AE18)*$AF18*(1/(1+Disc)^($AE18+1)))*$R18 + (OFFSET(CostE!O$5,$AA18-1,SkipYrs*Periods+1+$AE18)*$AG18*(1/(1+Disc)^($AE18+1))+ IF($AH18>0,NPV(Disc,OFFSET(CostE!O$5,$AA18-1,SkipYrs*Periods+ROUND($AE18+$AF18+$AG18,0)+1,1,$AH18)),0)*(1/(1+Disc)^($AE18+$AF18+$AG18))+ OFFSET(CostE!O$5,$AA18-1,SkipYrs*Periods+ROUND($AE18+$AF18+$AG18+$AH18,0)+1)*$AI18*(1/(1+Disc)^(ROUND($AE18+$AH18+$AF18+$AG18,0)+1)))*$S18 ->  | CN18: =(IF($AE18>0,NPV(Disc,OFFSET(CostE!P$5,$AA18-1,SkipYrs*Periods+1,1,$AE18)),0)+OFFSET(CostE!P$5,$AA18-1,SkipYrs*Periods+1+$AE18)*$AF18*(1/(1+Disc)^($AE18+1)))*$R18 + (OFFSET(CostE!P$5,$AA18-1,SkipYrs*Periods+1+$AE18)*$AG18*(1/(1+Disc)^($AE18+1))+ IF($AH18>0,NPV(Disc,OFFSET(CostE!P$5,$AA18-1,SkipYrs*Periods+ROUND($AE18+$AF18+$AG18,0)+1,1,$AH18)),0)*(1/(1+Disc)^($AE18+$AF18+$AG18))+ OFFSET(CostE!P$5,$AA18-1,SkipYrs*Periods+ROUND($AE18+$AF18+$AG18+$AH18,0)+1)*$AI18*(1/(1+Disc)^(ROUND($AE18+$AH18+$AF18+$AG18,0)+1)))*$S18 ->  | CO18: =(IF($AE18>0,NPV(Disc,OFFSET(CostE!Q$5,$AA18-1,SkipYrs*Periods+1,1,$AE18)),0)+OFFSET(CostE!Q$5,$AA18-1,SkipYrs*Periods+1+$AE18)*$AF18*(1/(1+Disc)^($AE18+1)))*$R18 + (OFFSET(CostE!Q$5,$AA18-1,SkipYrs*Periods+1+$AE18)*$AG18*(1/(1+Disc)^($AE18+1))+ IF($AH18>0,NPV(Disc,OFFSET(CostE!Q$5,$AA18-1,SkipYrs*Periods+ROUND($AE18+$AF18+$AG18,0)+1,1,$AH18)),0)*(1/(1+Disc)^($AE18+$AF18+$AG18))+ OFFSET(CostE!Q$5,$AA18-1,SkipYrs*Periods+ROUND($AE18+$AF18+$AG18+$AH18,0)+1)*$AI18*(1/(1+Disc)^(ROUND($AE18+$AH18+$AF18+$AG18,0)+1)))*$S18 ->  | CP18: =(IF($AE18>0,NPV(Disc,OFFSET(CostE!R$5,$AA18-1,SkipYrs*Periods+1,1,$AE18)),0)+OFFSET(CostE!R$5,$AA18-1,SkipYrs*Periods+1+$AE18)*$AF18*(1/(1+Disc)^($AE18+1)))*$R18 + (OFFSET(CostE!R$5,$AA18-1,SkipYrs*Periods+1+$AE18)*$AG18*(1/(1+Disc)^($AE18+1))+ IF($AH18>0,NPV(Disc,OFFSET(CostE!R$5,$AA18-1,SkipYrs*Periods+ROUND($AE18+$AF18+$AG18,0)+1,1,$AH18)),0)*(1/(1+Disc)^($AE18+$AF18+$AG18))+ OFFSET(CostE!R$5,$AA18-1,SkipYrs*Periods+ROUND($AE18+$AF18+$AG18+$AH18,0)+1)*$AI18*(1/(1+Disc)^(ROUND($AE18+$AH18+$AF18+$AG18,0)+1)))*$S18 ->  | CQ18: =(IF($AE18>0,NPV(Disc,OFFSET(CostE!S$5,$AA18-1,SkipYrs*Periods+1,1,$AE18)),0)+OFFSET(CostE!S$5,$AA18-1,SkipYrs*Periods+1+$AE18)*$AF18*(1/(1+Disc)^($AE18+1)))*$R18 + (OFFSET(CostE!S$5,$AA18-1,SkipYrs*Periods+1+$AE18)*$AG18*(1/(1+Disc)^($AE18+1))+ IF($AH18>0,NPV(Disc,OFFSET(CostE!S$5,$AA18-1,SkipYrs*Periods+ROUND($AE18+$AF18+$AG18,0)+1,1,$AH18)),0)*(1/(1+Disc)^($AE18+$AF18+$AG18))+ OFFSET(CostE!S$5,$AA18-1,SkipYrs*Periods+ROUND($AE18+$AF18+$AG18+$AH18,0)+1)*$AI18*(1/(1+Disc)^(ROUND($AE18+$AH18+$AF18+$AG18,0)+1)))*$S18 ->  | CR18: =(IF($AE18>0,NPV(Disc,OFFSET(CostE!T$5,$AA18-1,SkipYrs*Periods+1,1,$AE18)),0)+OFFSET(CostE!T$5,$AA18-1,SkipYrs*Periods+1+$AE18)*$AF18*(1/(1+Disc)^($AE18+1)))*$R18 + (OFFSET(CostE!T$5,$AA18-1,SkipYrs*Periods+1+$AE18)*$AG18*(1/(1+Disc)^($AE18+1))+ IF($AH18>0,NPV(Disc,OFFSET(CostE!T$5,$AA18-1,SkipYrs*Periods+ROUND($AE18+$AF18+$AG18,0)+1,1,$AH18)),0)*(1/(1+Disc)^($AE18+$AF18+$AG18))+ OFFSET(CostE!T$5,$AA18-1,SkipYrs*Periods+ROUND($AE18+$AF18+$AG18+$AH18,0)+1)*$AI18*(1/(1+Disc)^(ROUND($AE18+$AH18+$AF18+$AG18,0)+1)))*$S18 ->  | CS18: =(IF($AE18>0,NPV(Disc,OFFSET(CostE!U$5,$AA18-1,SkipYrs*Periods+1,1,$AE18)),0)+OFFSET(CostE!U$5,$AA18-1,SkipYrs*Periods+1+$AE18)*$AF18*(1/(1+Disc)^($AE18+1)))*$R18 + (OFFSET(CostE!U$5,$AA18-1,SkipYrs*Periods+1+$AE18)*$AG18*(1/(1+Disc)^($AE18+1))+ IF($AH18>0,NPV(Disc,OFFSET(CostE!U$5,$AA18-1,SkipYrs*Periods+ROUND($AE18+$AF18+$AG18,0)+1,1,$AH18)),0)*(1/(1+Disc)^($AE18+$AF18+$AG18))+ OFFSET(CostE!U$5,$AA18-1,SkipYrs*Periods+ROUND($AE18+$AF18+$AG18+$AH18,0)+1)*$AI18*(1/(1+Disc)^(ROUND($AE18+$AH18+$AF18+$AG18,0)+1)))*$S18 ->  | CT18: =(IF($AE18>0,NPV(Disc,OFFSET(CostE!V$5,$AA18-1,SkipYrs*Periods+1,1,$AE18)),0)+OFFSET(CostE!V$5,$AA18-1,SkipYrs*Periods+1+$AE18)*$AF18*(1/(1+Disc)^($AE18+1)))*$R18 + (OFFSET(CostE!V$5,$AA18-1,SkipYrs*Periods+1+$AE18)*$AG18*(1/(1+Disc)^($AE18+1))+ IF($AH18>0,NPV(Disc,OFFSET(CostE!V$5,$AA18-1,SkipYrs*Periods+ROUND($AE18+$AF18+$AG18,0)+1,1,$AH18)),0)*(1/(1+Disc)^($AE18+$AF18+$AG18))+ OFFSET(CostE!V$5,$AA18-1,SkipYrs*Periods+ROUND($AE18+$AF18+$AG18+$AH18,0)+1)*$AI18*(1/(1+Disc)^(ROUND($AE18+$AH18+$AF18+$AG18,0)+1)))*$S18 ->  | CU18: =(IF($AE18>0,NPV(Disc,OFFSET(CostE!W$5,$AA18-1,SkipYrs*Periods+1,1,$AE18)),0)+OFFSET(CostE!W$5,$AA18-1,SkipYrs*Periods+1+$AE18)*$AF18*(1/(1+Disc)^($AE18+1)))*$R18 + (OFFSET(CostE!W$5,$AA18-1,SkipYrs*Periods+1+$AE18)*$AG18*(1/(1+Disc)^($AE18+1))+ IF($AH18>0,NPV(Disc,OFFSET(CostE!W$5,$AA18-1,SkipYrs*Periods+ROUND($AE18+$AF18+$AG18,0)+1,1,$AH18)),0)*(1/(1+Disc)^($AE18+$AF18+$AG18))+ OFFSET(CostE!W$5,$AA18-1,SkipYrs*Periods+ROUND($AE18+$AF18+$AG18+$AH18,0)+1)*$AI18*(1/(1+Disc)^(ROUND($AE18+$AH18+$AF18+$AG18,0)+1)))*$S18 ->  | CV18: =(IF($AE18>0,NPV(Disc,OFFSET(CostE!X$5,$AA18-1,SkipYrs*Periods+1,1,$AE18)),0)+OFFSET(CostE!X$5,$AA18-1,SkipYrs*Periods+1+$AE18)*$AF18*(1/(1+Disc)^($AE18+1)))*$R18 + (OFFSET(CostE!X$5,$AA18-1,SkipYrs*Periods+1+$AE18)*$AG18*(1/(1+Disc)^($AE18+1))+ IF($AH18>0,NPV(Disc,OFFSET(CostE!X$5,$AA18-1,SkipYrs*Periods+ROUND($AE18+$AF18+$AG18,0)+1,1,$AH18)),0)*(1/(1+Disc)^($AE18+$AF18+$AG18))+ OFFSET(CostE!X$5,$AA18-1,SkipYrs*Periods+ROUND($AE18+$AF18+$AG18+$AH18,0)+1)*$AI18*(1/(1+Disc)^(ROUND($AE18+$AH18+$AF18+$AG18,0)+1)))*$S18 ->  | CW18: =(IF($AE18>0,NPV(Disc,OFFSET(CostE!Y$5,$AA18-1,SkipYrs*Periods+1,1,$AE18)),0)+OFFSET(CostE!Y$5,$AA18-1,SkipYrs*Periods+1+$AE18)*$AF18*(1/(1+Disc)^($AE18+1)))*$R18 + (OFFSET(CostE!Y$5,$AA18-1,SkipYrs*Periods+1+$AE18)*$AG18*(1/(1+Disc)^($AE18+1))+ IF($AH18>0,NPV(Disc,OFFSET(CostE!Y$5,$AA18-1,SkipYrs*Periods+ROUND($AE18+$AF18+$AG18,0)+1,1,$AH18)),0)*(1/(1+Disc)^($AE18+$AF18+$AG18))+ OFFSET(CostE!Y$5,$AA18-1,SkipYrs*Periods+ROUND($AE18+$AF18+$AG18+$AH18,0)+1)*$AI18*(1/(1+Disc)^(ROUND($AE18+$AH18+$AF18+$AG18,0)+1)))*$S18 ->  | CX18: =(IF($AE18>0,NPV(Disc,OFFSET(CostE!Z$5,$AA18-1,SkipYrs*Periods+1,1,$AE18)),0)+OFFSET(CostE!Z$5,$AA18-1,SkipYrs*Periods+1+$AE18)*$AF18*(1/(1+Disc)^($AE18+1)))*$R18 + (OFFSET(CostE!Z$5,$AA18-1,SkipYrs*Periods+1+$AE18)*$AG18*(1/(1+Disc)^($AE18+1))+ IF($AH18>0,NPV(Disc,OFFSET(CostE!Z$5,$AA18-1,SkipYrs*Periods+ROUND($AE18+$AF18+$AG18,0)+1,1,$AH18)),0)*(1/(1+Disc)^($AE18+$AF18+$AG18))+ OFFSET(CostE!Z$5,$AA18-1,SkipYrs*Periods+ROUND($AE18+$AF18+$AG18+$AH18,0)+1)*$AI18*(1/(1+Disc)^(ROUND($AE18+$AH18+$AF18+$AG18,0)+1)))*$S18 ->  | CY18: =(IF($AE18>0,NPV(Disc,OFFSET(CostE!AA$5,$AA18-1,SkipYrs*Periods+1,1,$AE18)),0)+OFFSET(CostE!AA$5,$AA18-1,SkipYrs*Periods+1+$AE18)*$AF18*(1/(1+Disc)^($AE18+1)))*$R18 + (OFFSET(CostE!AA$5,$AA18-1,SkipYrs*Periods+1+$AE18)*$AG18*(1/(1+Disc)^($AE18+1))+ IF($AH18>0,NPV(Disc,OFFSET(CostE!AA$5,$AA18-1,SkipYrs*Periods+ROUND($AE18+$AF18+$AG18,0)+1,1,$AH18)),0)*(1/(1+Disc)^($AE18+$AF18+$AG18))+ OFFSET(CostE!AA$5,$AA18-1,SkipYrs*Periods+ROUND($AE18+$AF18+$AG18+$AH18,0)+1)*$AI18*(1/(1+Disc)^(ROUND($AE18+$AH18+$AF18+$AG18,0)+1)))*$S18 ->  | CZ18: =(IF($AE18>0,NPV(Disc,OFFSET(CostE!AB$5,$AA18-1,SkipYrs*Periods+1,1,$AE18)),0)+OFFSET(CostE!AB$5,$AA18-1,SkipYrs*Periods+1+$AE18)*$AF18*(1/(1+Disc)^($AE18+1)))*$R18 + (OFFSET(CostE!AB$5,$AA18-1,SkipYrs*Periods+1+$AE18)*$AG18*(1/(1+Disc)^($AE18+1))+ IF($AH18>0,NPV(Disc,OFFSET(CostE!AB$5,$AA18-1,SkipYrs*Periods+ROUND($AE18+$AF18+$AG18,0)+1,1,$AH18)),0)*(1/(1+Disc)^($AE18+$AF18+$AG18))+ OFFSET(CostE!AB$5,$AA18-1,SkipYrs*Periods+ROUND($AE18+$AF18+$AG18+$AH18,0)+1)*$AI18*(1/(1+Disc)^(ROUND($AE18+$AH18+$AF18+$AG18,0)+1)))*$S18 ->  | DA18: =(IF($AE18>0,NPV(Disc,OFFSET(CostE!AC$5,$AA18-1,SkipYrs*Periods+1,1,$AE18)),0)+OFFSET(CostE!AC$5,$AA18-1,SkipYrs*Periods+1+$AE18)*$AF18*(1/(1+Disc)^($AE18+1)))*$R18 + (OFFSET(CostE!AC$5,$AA18-1,SkipYrs*Periods+1+$AE18)*$AG18*(1/(1+Disc)^($AE18+1))+ IF($AH18>0,NPV(Disc,OFFSET(CostE!AC$5,$AA18-1,SkipYrs*Periods+ROUND($AE18+$AF18+$AG18,0)+1,1,$AH18)),0)*(1/(1+Disc)^($AE18+$AF18+$AG18))+ OFFSET(CostE!AC$5,$AA18-1,SkipYrs*Periods+ROUND($AE18+$AF18+$AG18+$AH18,0)+1)*$AI18*(1/(1+Disc)^(ROUND($AE18+$AH18+$AF18+$AG18,0)+1)))*$S18 ->  | DB18: =(IF($AE18>0,NPV(Disc,OFFSET(CostE!AD$5,$AA18-1,SkipYrs*Periods+1,1,$AE18)),0)+OFFSET(CostE!AD$5,$AA18-1,SkipYrs*Periods+1+$AE18)*$AF18*(1/(1+Disc)^($AE18+1)))*$R18 + (OFFSET(CostE!AD$5,$AA18-1,SkipYrs*Periods+1+$AE18)*$AG18*(1/(1+Disc)^($AE18+1))+ IF($AH18>0,NPV(Disc,OFFSET(CostE!AD$5,$AA18-1,SkipYrs*Periods+ROUND($AE18+$AF18+$AG18,0)+1,1,$AH18)),0)*(1/(1+Disc)^($AE18+$AF18+$AG18))+ OFFSET(CostE!AD$5,$AA18-1,SkipYrs*Periods+ROUND($AE18+$AF18+$AG18+$AH18,0)+1)*$AI18*(1/(1+Disc)^(ROUND($AE18+$AH18+$AF18+$AG18,0)+1)))*$S18 ->  | DC18: =(IF($AE18>0,NPV(Disc,OFFSET(CostE!AE$5,$AA18-1,SkipYrs*Periods+1,1,$AE18)),0)+OFFSET(CostE!AE$5,$AA18-1,SkipYrs*Periods+1+$AE18)*$AF18*(1/(1+Disc)^($AE18+1)))*$R18 + (OFFSET(CostE!AE$5,$AA18-1,SkipYrs*Periods+1+$AE18)*$AG18*(1/(1+Disc)^($AE18+1))+ IF($AH18>0,NPV(Disc,OFFSET(CostE!AE$5,$AA18-1,SkipYrs*Periods+ROUND($AE18+$AF18+$AG18,0)+1,1,$AH18)),0)*(1/(1+Disc)^($AE18+$AF18+$AG18))+ OFFSET(CostE!AE$5,$AA18-1,SkipYrs*Periods+ROUND($AE18+$AF18+$AG18+$AH18,0)+1)*$AI18*(1/(1+Disc)^(ROUND($AE18+$AH18+$AF18+$AG18,0)+1)))*$S18 ->  | DD18: =(IF($AE18>0,NPV(Disc,OFFSET(CostE!AF$5,$AA18-1,SkipYrs*Periods+1,1,$AE18)),0)+OFFSET(CostE!AF$5,$AA18-1,SkipYrs*Periods+1+$AE18)*$AF18*(1/(1+Disc)^($AE18+1)))*$R18 + (OFFSET(CostE!AF$5,$AA18-1,SkipYrs*Periods+1+$AE18)*$AG18*(1/(1+Disc)^($AE18+1))+ IF($AH18>0,NPV(Disc,OFFSET(CostE!AF$5,$AA18-1,SkipYrs*Periods+ROUND($AE18+$AF18+$AG18,0)+1,1,$AH18)),0)*(1/(1+Disc)^($AE18+$AF18+$AG18))+ OFFSET(CostE!AF$5,$AA18-1,SkipYrs*Periods+ROUND($AE18+$AF18+$AG18+$AH18,0)+1)*$AI18*(1/(1+Disc)^(ROUND($AE18+$AH18+$AF18+$AG18,0)+1)))*$S18 ->  | DE18: =(IF($AE18>0,NPV(Disc,OFFSET(CostE!AG$5,$AA18-1,SkipYrs*Periods+1,1,$AE18)),0)+OFFSET(CostE!AG$5,$AA18-1,SkipYrs*Periods+1+$AE18)*$AF18*(1/(1+Disc)^($AE18+1)))*$R18 + (OFFSET(CostE!AG$5,$AA18-1,SkipYrs*Periods+1+$AE18)*$AG18*(1/(1+Disc)^($AE18+1))+ IF($AH18>0,NPV(Disc,OFFSET(CostE!AG$5,$AA18-1,SkipYrs*Periods+ROUND($AE18+$AF18+$AG18,0)+1,1,$AH18)),0)*(1/(1+Disc)^($AE18+$AF18+$AG18))+ OFFSET(CostE!AG$5,$AA18-1,SkipYrs*Periods+ROUND($AE18+$AF18+$AG18+$AH18,0)+1)*$AI18*(1/(1+Disc)^(ROUND($AE18+$AH18+$AF18+$AG18,0)+1)))*$S18 ->  | DF18: =(IF($AE18>0,NPV(Disc,OFFSET(CostE!AH$5,$AA18-1,SkipYrs*Periods+1,1,$AE18)),0)+OFFSET(CostE!AH$5,$AA18-1,SkipYrs*Periods+1+$AE18)*$AF18*(1/(1+Disc)^($AE18+1)))*$R18 + (OFFSET(CostE!AH$5,$AA18-1,SkipYrs*Periods+1+$AE18)*$AG18*(1/(1+Disc)^($AE18+1))+ IF($AH18>0,NPV(Disc,OFFSET(CostE!AH$5,$AA18-1,SkipYrs*Periods+ROUND($AE18+$AF18+$AG18,0)+1,1,$AH18)),0)*(1/(1+Disc)^($AE18+$AF18+$AG18))+ OFFSET(CostE!AH$5,$AA18-1,SkipYrs*Periods+ROUND($AE18+$AF18+$AG18+$AH18,0)+1)*$AI18*(1/(1+Disc)^(ROUND($AE18+$AH18+$AF18+$AG18,0)+1)))*$S18 ->  | DG18: =(IF($AE18>0,NPV(Disc,OFFSET(CostE!AI$5,$AA18-1,SkipYrs*Periods+1,1,$AE18)),0)+OFFSET(CostE!AI$5,$AA18-1,SkipYrs*Periods+1+$AE18)*$AF18*(1/(1+Disc)^($AE18+1)))*$R18 + (OFFSET(CostE!AI$5,$AA18-1,SkipYrs*Periods+1+$AE18)*$AG18*(1/(1+Disc)^($AE18+1))+ IF($AH18>0,NPV(Disc,OFFSET(CostE!AI$5,$AA18-1,SkipYrs*Periods+ROUND($AE18+$AF18+$AG18,0)+1,1,$AH18)),0)*(1/(1+Disc)^($AE18+$AF18+$AG18))+ OFFSET(CostE!AI$5,$AA18-1,SkipYrs*Periods+ROUND($AE18+$AF18+$AG18+$AH18,0)+1)*$AI18*(1/(1+Disc)^(ROUND($AE18+$AH18+$AF18+$AG18,0)+1)))*$S18 ->  | DH18: =(IF($AE18>0,NPV(Disc,OFFSET(CostE!AJ$5,$AA18-1,SkipYrs*Periods+1,1,$AE18)),0)+OFFSET(CostE!AJ$5,$AA18-1,SkipYrs*Periods+1+$AE18)*$AF18*(1/(1+Disc)^($AE18+1)))*$R18 + (OFFSET(CostE!AJ$5,$AA18-1,SkipYrs*Periods+1+$AE18)*$AG18*(1/(1+Disc)^($AE18+1))+ IF($AH18>0,NPV(Disc,OFFSET(CostE!AJ$5,$AA18-1,SkipYrs*Periods+ROUND($AE18+$AF18+$AG18,0)+1,1,$AH18)),0)*(1/(1+Disc)^($AE18+$AF18+$AG18))+ OFFSET(CostE!AJ$5,$AA18-1,SkipYrs*Periods+ROUND($AE18+$AF18+$AG18+$AH18,0)+1)*$AI18*(1/(1+Disc)^(ROUND($AE18+$AH18+$AF18+$AG18,0)+1)))*$S18 ->  | DI18: =(IF($AE18>0,NPV(Disc,OFFSET(CostE!AK$5,$AA18-1,SkipYrs*Periods+1,1,$AE18)),0)+OFFSET(CostE!AK$5,$AA18-1,SkipYrs*Periods+1+$AE18)*$AF18*(1/(1+Disc)^($AE18+1)))*$R18 + (OFFSET(CostE!AK$5,$AA18-1,SkipYrs*Periods+1+$AE18)*$AG18*(1/(1+Disc)^($AE18+1))+ IF($AH18>0,NPV(Disc,OFFSET(CostE!AK$5,$AA18-1,SkipYrs*Periods+ROUND($AE18+$AF18+$AG18,0)+1,1,$AH18)),0)*(1/(1+Disc)^($AE18+$AF18+$AG18))+ OFFSET(CostE!AK$5,$AA18-1,SkipYrs*Periods+ROUND($AE18+$AF18+$AG18+$AH18,0)+1)*$AI18*(1/(1+Disc)^(ROUND($AE18+$AH18+$AF18+$AG18,0)+1)))*$S18 ->  | DJ18: =(IF($AE18>0,NPV(Disc,OFFSET(CostE!AL$5,$AA18-1,SkipYrs*Periods+1,1,$AE18)),0)+OFFSET(CostE!AL$5,$AA18-1,SkipYrs*Periods+1+$AE18)*$AF18*(1/(1+Disc)^($AE18+1)))*$R18 + (OFFSET(CostE!AL$5,$AA18-1,SkipYrs*Periods+1+$AE18)*$AG18*(1/(1+Disc)^($AE18+1))+ IF($AH18>0,NPV(Disc,OFFSET(CostE!AL$5,$AA18-1,SkipYrs*Periods+ROUND($AE18+$AF18+$AG18,0)+1,1,$AH18)),0)*(1/(1+Disc)^($AE18+$AF18+$AG18))+ OFFSET(CostE!AL$5,$AA18-1,SkipYrs*Periods+ROUND($AE18+$AF18+$AG18+$AH18,0)+1)*$AI18*(1/(1+Disc)^(ROUND($AE18+$AH18+$AF18+$AG18,0)+1)))*$S18 ->  | DK18: =(IF($AE18>0,NPV(Disc,OFFSET(CostE!AM$5,$AA18-1,SkipYrs*Periods+1,1,$AE18)),0)+OFFSET(CostE!AM$5,$AA18-1,SkipYrs*Periods+1+$AE18)*$AF18*(1/(1+Disc)^($AE18+1)))*$R18 + (OFFSET(CostE!AM$5,$AA18-1,SkipYrs*Periods+1+$AE18)*$AG18*(1/(1+Disc)^($AE18+1))+ IF($AH18>0,NPV(Disc,OFFSET(CostE!AM$5,$AA18-1,SkipYrs*Periods+ROUND($AE18+$AF18+$AG18,0)+1,1,$AH18)),0)*(1/(1+Disc)^($AE18+$AF18+$AG18))+ OFFSET(CostE!AM$5,$AA18-1,SkipYrs*Periods+ROUND($AE18+$AF18+$AG18+$AH18,0)+1)*$AI18*(1/(1+Disc)^(ROUND($AE18+$AH18+$AF18+$AG18,0)+1)))*$S18 ->  | DL18: =(IF($AE18>0,NPV(Disc,OFFSET(CostE!AN$5,$AA18-1,SkipYrs*Periods+1,1,$AE18)),0)+OFFSET(CostE!AN$5,$AA18-1,SkipYrs*Periods+1+$AE18)*$AF18*(1/(1+Disc)^($AE18+1)))*$R18 + (OFFSET(CostE!AN$5,$AA18-1,SkipYrs*Periods+1+$AE18)*$AG18*(1/(1+Disc)^($AE18+1))+ IF($AH18>0,NPV(Disc,OFFSET(CostE!AN$5,$AA18-1,SkipYrs*Periods+ROUND($AE18+$AF18+$AG18,0)+1,1,$AH18)),0)*(1/(1+Disc)^($AE18+$AF18+$AG18))+ OFFSET(CostE!AN$5,$AA18-1,SkipYrs*Periods+ROUND($AE18+$AF18+$AG18+$AH18,0)+1)*$AI18*(1/(1+Disc)^(ROUND($AE18+$AH18+$AF18+$AG18,0)+1)))*$S18 ->  | DM18: =(IF($AE18>0,NPV(Disc,OFFSET(CostE!AO$5,$AA18-1,SkipYrs*Periods+1,1,$AE18)),0)+OFFSET(CostE!AO$5,$AA18-1,SkipYrs*Periods+1+$AE18)*$AF18*(1/(1+Disc)^($AE18+1)))*$R18 + (OFFSET(CostE!AO$5,$AA18-1,SkipYrs*Periods+1+$AE18)*$AG18*(1/(1+Disc)^($AE18+1))+ IF($AH18>0,NPV(Disc,OFFSET(CostE!AO$5,$AA18-1,SkipYrs*Periods+ROUND($AE18+$AF18+$AG18,0)+1,1,$AH18)),0)*(1/(1+Disc)^($AE18+$AF18+$AG18))+ OFFSET(CostE!AO$5,$AA18-1,SkipYrs*Periods+ROUND($AE18+$AF18+$AG18+$AH18,0)+1)*$AI18*(1/(1+Disc)^(ROUND($AE18+$AH18+$AF18+$AG18,0)+1)))*$S18 ->  | DN18: =(IF($AE18>0,NPV(Disc,OFFSET(CostE!AP$5,$AA18-1,SkipYrs*Periods+1,1,$AE18)),0)+OFFSET(CostE!AP$5,$AA18-1,SkipYrs*Periods+1+$AE18)*$AF18*(1/(1+Disc)^($AE18+1)))*$R18 + (OFFSET(CostE!AP$5,$AA18-1,SkipYrs*Periods+1+$AE18)*$AG18*(1/(1+Disc)^($AE18+1))+ IF($AH18>0,NPV(Disc,OFFSET(CostE!AP$5,$AA18-1,SkipYrs*Periods+ROUND($AE18+$AF18+$AG18,0)+1,1,$AH18)),0)*(1/(1+Disc)^($AE18+$AF18+$AG18))+ OFFSET(CostE!AP$5,$AA18-1,SkipYrs*Periods+ROUND($AE18+$AF18+$AG18+$AH18,0)+1)*$AI18*(1/(1+Disc)^(ROUND($AE18+$AH18+$AF18+$AG18,0)+1)))*$S18 ->  | DO18: =(IF($AE18>0,NPV(Disc,OFFSET(CostE!AQ$5,$AA18-1,SkipYrs*Periods+1,1,$AE18)),0)+OFFSET(CostE!AQ$5,$AA18-1,SkipYrs*Periods+1+$AE18)*$AF18*(1/(1+Disc)^($AE18+1)))*$R18 + (OFFSET(CostE!AQ$5,$AA18-1,SkipYrs*Periods+1+$AE18)*$AG18*(1/(1+Disc)^($AE18+1))+ IF($AH18>0,NPV(Disc,OFFSET(CostE!AQ$5,$AA18-1,SkipYrs*Periods+ROUND($AE18+$AF18+$AG18,0)+1,1,$AH18)),0)*(1/(1+Disc)^($AE18+$AF18+$AG18))+ OFFSET(CostE!AQ$5,$AA18-1,SkipYrs*Periods+ROUND($AE18+$AF18+$AG18+$AH18,0)+1)*$AI18*(1/(1+Disc)^(ROUND($AE18+$AH18+$AF18+$AG18,0)+1)))*$S18 ->  | DP18: =(IF($AE18>0,NPV(Disc,OFFSET(CostE!AR$5,$AA18-1,SkipYrs*Periods+1,1,$AE18)),0)+OFFSET(CostE!AR$5,$AA18-1,SkipYrs*Periods+1+$AE18)*$AF18*(1/(1+Disc)^($AE18+1)))*$R18 + (OFFSET(CostE!AR$5,$AA18-1,SkipYrs*Periods+1+$AE18)*$AG18*(1/(1+Disc)^($AE18+1))+ IF($AH18>0,NPV(Disc,OFFSET(CostE!AR$5,$AA18-1,SkipYrs*Periods+ROUND($AE18+$AF18+$AG18,0)+1,1,$AH18)),0)*(1/(1+Disc)^($AE18+$AF18+$AG18))+ OFFSET(CostE!AR$5,$AA18-1,SkipYrs*Periods+ROUND($AE18+$AF18+$AG18+$AH18,0)+1)*$AI18*(1/(1+Disc)^(ROUND($AE18+$AH18+$AF18+$AG18,0)+1)))*$S18 ->  | DQ18: =(IF($AE18>0,NPV(Disc,OFFSET(CostE!AS$5,$AA18-1,SkipYrs*Periods+1,1,$AE18)),0)+OFFSET(CostE!AS$5,$AA18-1,SkipYrs*Periods+1+$AE18)*$AF18*(1/(1+Disc)^($AE18+1)))*$R18 + (OFFSET(CostE!AS$5,$AA18-1,SkipYrs*Periods+1+$AE18)*$AG18*(1/(1+Disc)^($AE18+1))+ IF($AH18>0,NPV(Disc,OFFSET(CostE!AS$5,$AA18-1,SkipYrs*Periods+ROUND($AE18+$AF18+$AG18,0)+1,1,$AH18)),0)*(1/(1+Disc)^($AE18+$AF18+$AG18))+ OFFSET(CostE!AS$5,$AA18-1,SkipYrs*Periods+ROUND($AE18+$AF18+$AG18+$AH18,0)+1)*$AI18*(1/(1+Disc)^(ROUND($AE18+$AH18+$AF18+$AG18,0)+1)))*$S18 ->  | DR18: =(IF($AE18>0,NPV(Disc,OFFSET(CostE!AT$5,$AA18-1,SkipYrs*Periods+1,1,$AE18)),0)+OFFSET(CostE!AT$5,$AA18-1,SkipYrs*Periods+1+$AE18)*$AF18*(1/(1+Disc)^($AE18+1)))*$R18 + (OFFSET(CostE!AT$5,$AA18-1,SkipYrs*Periods+1+$AE18)*$AG18*(1/(1+Disc)^($AE18+1))+ IF($AH18>0,NPV(Disc,OFFSET(CostE!AT$5,$AA18-1,SkipYrs*Periods+ROUND($AE18+$AF18+$AG18,0)+1,1,$AH18)),0)*(1/(1+Disc)^($AE18+$AF18+$AG18))+ OFFSET(CostE!AT$5,$AA18-1,SkipYrs*Periods+ROUND($AE18+$AF18+$AG18+$AH18,0)+1)*$AI18*(1/(1+Disc)^(ROUND($AE18+$AH18+$AF18+$AG18,0)+1)))*$S18 ->  | DS18: =(IF($AE18>0,NPV(Disc,OFFSET(CostE!AU$5,$AA18-1,SkipYrs*Periods+1,1,$AE18)),0)+OFFSET(CostE!AU$5,$AA18-1,SkipYrs*Periods+1+$AE18)*$AF18*(1/(1+Disc)^($AE18+1)))*$R18 + (OFFSET(CostE!AU$5,$AA18-1,SkipYrs*Periods+1+$AE18)*$AG18*(1/(1+Disc)^($AE18+1))+ IF($AH18>0,NPV(Disc,OFFSET(CostE!AU$5,$AA18-1,SkipYrs*Periods+ROUND($AE18+$AF18+$AG18,0)+1,1,$AH18)),0)*(1/(1+Disc)^($AE18+$AF18+$AG18))+ OFFSET(CostE!AU$5,$AA18-1,SkipYrs*Periods+ROUND($AE18+$AF18+$AG18+$AH18,0)+1)*$AI18*(1/(1+Disc)^(ROUND($AE18+$AH18+$AF18+$AG18,0)+1)))*$S18 ->  | DT18: =(IF($AE18>0,NPV(Disc,OFFSET(CostE!AV$5,$AA18-1,SkipYrs*Periods+1,1,$AE18)),0)+OFFSET(CostE!AV$5,$AA18-1,SkipYrs*Periods+1+$AE18)*$AF18*(1/(1+Disc)^($AE18+1)))*$R18 + (OFFSET(CostE!AV$5,$AA18-1,SkipYrs*Periods+1+$AE18)*$AG18*(1/(1+Disc)^($AE18+1))+ IF($AH18>0,NPV(Disc,OFFSET(CostE!AV$5,$AA18-1,SkipYrs*Periods+ROUND($AE18+$AF18+$AG18,0)+1,1,$AH18)),0)*(1/(1+Disc)^($AE18+$AF18+$AG18))+ OFFSET(CostE!AV$5,$AA18-1,SkipYrs*Periods+ROUND($AE18+$AF18+$AG18+$AH18,0)+1)*$AI18*(1/(1+Disc)^(ROUND($AE18+$AH18+$AF18+$AG18,0)+1)))*$S18 ->  | DU18: =(IF($AE18>0,NPV(Disc,OFFSET(CostE!AW$5,$AA18-1,SkipYrs*Periods+1,1,$AE18)),0)+OFFSET(CostE!AW$5,$AA18-1,SkipYrs*Periods+1+$AE18)*$AF18*(1/(1+Disc)^($AE18+1)))*$R18 + (OFFSET(CostE!AW$5,$AA18-1,SkipYrs*Periods+1+$AE18)*$AG18*(1/(1+Disc)^($AE18+1))+ IF($AH18>0,NPV(Disc,OFFSET(CostE!AW$5,$AA18-1,SkipYrs*Periods+ROUND($AE18+$AF18+$AG18,0)+1,1,$AH18)),0)*(1/(1+Disc)^($AE18+$AF18+$AG18))+ OFFSET(CostE!AW$5,$AA18-1,SkipYrs*Periods+ROUND($AE18+$AF18+$AG18+$AH18,0)+1)*$AI18*(1/(1+Disc)^(ROUND($AE18+$AH18+$AF18+$AG18,0)+1)))*$S18 ->  | DV18: =(IF($AE18>0,NPV(Disc,OFFSET(CostE!AX$5,$AA18-1,SkipYrs*Periods+1,1,$AE18)),0)+OFFSET(CostE!AX$5,$AA18-1,SkipYrs*Periods+1+$AE18)*$AF18*(1/(1+Disc)^($AE18+1)))*$R18 + (OFFSET(CostE!AX$5,$AA18-1,SkipYrs*Periods+1+$AE18)*$AG18*(1/(1+Disc)^($AE18+1))+ IF($AH18>0,NPV(Disc,OFFSET(CostE!AX$5,$AA18-1,SkipYrs*Periods+ROUND($AE18+$AF18+$AG18,0)+1,1,$AH18)),0)*(1/(1+Disc)^($AE18+$AF18+$AG18))+ OFFSET(CostE!AX$5,$AA18-1,SkipYrs*Periods+ROUND($AE18+$AF18+$AG18+$AH18,0)+1)*$AI18*(1/(1+Disc)^(ROUND($AE18+$AH18+$AF18+$AG18,0)+1)))*$S18 ->  | DW18: =NPV(Disc,IF(ISERROR(DV18),0,Input!BJ18:DA18*(AM18:CD18+CE18:DV18)))*L18 -> 0 | DX18: =NPV(Disc,GasCalcs!M18:BD18*Input!BJ18:DA18)*L18 ->  | DY18: =NPV(Disc,IF(ISERROR(DV18),0,Input!BJ18:DA18*(AM18:CD18*$G18+CE18:DV18*$H18)))*$L18 -> 0 | DZ18: =IF(ISERROR($I18),1,$I18)*IF(ISERROR(DX18),0,DX18) -> 0 | EA18: =IF(ISERROR(MATCH(Input!$S18,Rates!$A$4:$A$9,0)),1,MATCH(Input!$S18,Rates!$A$4:$A$9,0)) -> 1 | EB18: =MATCH(Input!$X18,Rates!$A$16:$A$18,0) ->  | EC18: =(IF($E18>=1,NPV($C$3,OFFSET(Rates!$B$4,$EA18-1,EC$16-Rates!$B$3,1,TRUNC($E18))))*(1+$C$3)+OFFSET(Rates!$B$4,$EA18-1,EC$16-Rates!$B$3+TRUNC($E18))*($E18-TRUNC($E18))*(1/(1+$C$3)^(EC$16-Rates!$B$3+TRUNC($E18))))*$M18+(IF((Input!$Z18-$E18)>=1,NPV($C$3,OFFSET(Rates!$B$4,$EA18-1,EC$16-Rates!$B$3+TRUNC($E18),1,TRUNC(Input!$Z18-$E18))))/(1+$C$3)^(TRUNC($E18)-1)+OFFSET(Rates!$B$4,$EA18-1,EC$16-Rates!$B$3+TRUNC(Input!$Z18))*(Input!$Z18-TRUNC(Input!$Z18))*(1/(1+$C$3)^(EC$16-Rates!$B$3+TRUNC(Input!$Z18))))*Input!$AC18 -> 0 | ED18: =(IF($E18>=1,NPV($C$3,OFFSET(Rates!$B$4,$EA18-1,ED$16-Rates!$B$3,1,TRUNC($E18))))*(1+$C$3)+OFFSET(Rates!$B$4,$EA18-1,ED$16-Rates!$B$3+TRUNC($E18))*($E18-TRUNC($E18))*(1/(1+$C$3)^(ED$16-Rates!$B$3+TRUNC($E18))))*$M18+(IF((Input!$Z18-$E18)>=1,NPV($C$3,OFFSET(Rates!$B$4,$EA18-1,ED$16-Rates!$B$3+TRUNC($E18),1,TRUNC(Input!$Z18-$E18))))/(1+$C$3)^(TRUNC($E18)-1)+OFFSET(Rates!$B$4,$EA18-1,ED$16-Rates!$B$3+TRUNC(Input!$Z18))*(Input!$Z18-TRUNC(Input!$Z18))*(1/(1+$C$3)^(ED$16-Rates!$B$3+TRUNC(Input!$Z18))))*Input!$AC18 -> 0 | EE18: =(IF($E18>=1,NPV($C$3,OFFSET(Rates!$B$4,$EA18-1,EE$16-Rates!$B$3,1,TRUNC($E18))))*(1+$C$3)+OFFSET(Rates!$B$4,$EA18-1,EE$16-Rates!$B$3+TRUNC($E18))*($E18-TRUNC($E18))*(1/(1+$C$3)^(EE$16-Rates!$B$3+TRUNC($E18))))*$M18+(IF((Input!$Z18-$E18)>=1,NPV($C$3,OFFSET(Rates!$B$4,$EA18-1,EE$16-Rates!$B$3+TRUNC($E18),1,TRUNC(Input!$Z18-$E18))))/(1+$C$3)^(TRUNC($E18)-1)+OFFSET(Rates!$B$4,$EA18-1,EE$16-Rates!$B$3+TRUNC(Input!$Z18))*(Input!$Z18-TRUNC(Input!$Z18))*(1/(1+$C$3)^(EE$16-Rates!$B$3+TRUNC(Input!$Z18))))*Input!$AC18 -> 0 | EF18: =(IF($E18>=1,NPV($C$3,OFFSET(Rates!$B$4,$EA18-1,EF$16-Rates!$B$3,1,TRUNC($E18))))*(1+$C$3)+OFFSET(Rates!$B$4,$EA18-1,EF$16-Rates!$B$3+TRUNC($E18))*($E18-TRUNC($E18))*(1/(1+$C$3)^(EF$16-Rates!$B$3+TRUNC($E18))))*$M18+(IF((Input!$Z18-$E18)>=1,NPV($C$3,OFFSET(Rates!$B$4,$EA18-1,EF$16-Rates!$B$3+TRUNC($E18),1,TRUNC(Input!$Z18-$E18))))/(1+$C$3)^(TRUNC($E18)-1)+OFFSET(Rates!$B$4,$EA18-1,EF$16-Rates!$B$3+TRUNC(Input!$Z18))*(Input!$Z18-TRUNC(Input!$Z18))*(1/(1+$C$3)^(EF$16-Rates!$B$3+TRUNC(Input!$Z18))))*Input!$AC18 -> 0 | EG18: =(IF($E18>=1,NPV($C$3,OFFSET(Rates!$B$4,$EA18-1,EG$16-Rates!$B$3,1,TRUNC($E18))))*(1+$C$3)+OFFSET(Rates!$B$4,$EA18-1,EG$16-Rates!$B$3+TRUNC($E18))*($E18-TRUNC($E18))*(1/(1+$C$3)^(EG$16-Rates!$B$3+TRUNC($E18))))*$M18+(IF((Input!$Z18-$E18)>=1,NPV($C$3,OFFSET(Rates!$B$4,$EA18-1,EG$16-Rates!$B$3+TRUNC($E18),1,TRUNC(Input!$Z18-$E18))))/(1+$C$3)^(TRUNC($E18)-1)+OFFSET(Rates!$B$4,$EA18-1,EG$16-Rates!$B$3+TRUNC(Input!$Z18))*(Input!$Z18-TRUNC(Input!$Z18))*(1/(1+$C$3)^(EG$16-Rates!$B$3+TRUNC(Input!$Z18))))*Input!$AC18 -> 0 | EH18: =(IF($E18>=1,NPV($C$3,OFFSET(Rates!$B$4,$EA18-1,EH$16-Rates!$B$3,1,TRUNC($E18))))*(1+$C$3)+OFFSET(Rates!$B$4,$EA18-1,EH$16-Rates!$B$3+TRUNC($E18))*($E18-TRUNC($E18))*(1/(1+$C$3)^(EH$16-Rates!$B$3+TRUNC($E18))))*$M18+(IF((Input!$Z18-$E18)>=1,NPV($C$3,OFFSET(Rates!$B$4,$EA18-1,EH$16-Rates!$B$3+TRUNC($E18),1,TRUNC(Input!$Z18-$E18))))/(1+$C$3)^(TRUNC($E18)-1)+OFFSET(Rates!$B$4,$EA18-1,EH$16-Rates!$B$3+TRUNC(Input!$Z18))*(Input!$Z18-TRUNC(Input!$Z18))*(1/(1+$C$3)^(EH$16-Rates!$B$3+TRUNC(Input!$Z18))))*Input!$AC18 -> 0 | EI18: =(IF($E18>=1,NPV($C$3,OFFSET(Rates!$B$4,$EA18-1,EI$16-Rates!$B$3,1,TRUNC($E18))))*(1+$C$3)+OFFSET(Rates!$B$4,$EA18-1,EI$16-Rates!$B$3+TRUNC($E18))*($E18-TRUNC($E18))*(1/(1+$C$3)^(EI$16-Rates!$B$3+TRUNC($E18))))*$M18+(IF((Input!$Z18-$E18)>=1,NPV($C$3,OFFSET(Rates!$B$4,$EA18-1,EI$16-Rates!$B$3+TRUNC($E18),1,TRUNC(Input!$Z18-$E18))))/(1+$C$3)^(TRUNC($E18)-1)+OFFSET(Rates!$B$4,$EA18-1,EI$16-Rates!$B$3+TRUNC(Input!$Z18))*(Input!$Z18-TRUNC(Input!$Z18))*(1/(1+$C$3)^(EI$16-Rates!$B$3+TRUNC(Input!$Z18))))*Input!$AC18 -> 0 | EJ18: =(IF($E18>=1,NPV($C$3,OFFSET(Rates!$B$4,$EA18-1,EJ$16-Rates!$B$3,1,TRUNC($E18))))*(1+$C$3)+OFFSET(Rates!$B$4,$EA18-1,EJ$16-Rates!$B$3+TRUNC($E18))*($E18-TRUNC($E18))*(1/(1+$C$3)^(EJ$16-Rates!$B$3+TRUNC($E18))))*$M18+(IF((Input!$Z18-$E18)>=1,NPV($C$3,OFFSET(Rates!$B$4,$EA18-1,EJ$16-Rates!$B$3+TRUNC($E18),1,TRUNC(Input!$Z18-$E18))))/(1+$C$3)^(TRUNC($E18)-1)+OFFSET(Rates!$B$4,$EA18-1,EJ$16-Rates!$B$3+TRUNC(Input!$Z18))*(Input!$Z18-TRUNC(Input!$Z18))*(1/(1+$C$3)^(EJ$16-Rates!$B$3+TRUNC(Input!$Z18))))*Input!$AC18 -> 0 | EK18: =(IF($E18>=1,NPV($C$3,OFFSET(Rates!$B$4,$EA18-1,EK$16-Rates!$B$3,1,TRUNC($E18))))*(1+$C$3)+OFFSET(Rates!$B$4,$EA18-1,EK$16-Rates!$B$3+TRUNC($E18))*($E18-TRUNC($E18))*(1/(1+$C$3)^(EK$16-Rates!$B$3+TRUNC($E18))))*$M18+(IF((Input!$Z18-$E18)>=1,NPV($C$3,OFFSET(Rates!$B$4,$EA18-1,EK$16-Rates!$B$3+TRUNC($E18),1,TRUNC(Input!$Z18-$E18))))/(1+$C$3)^(TRUNC($E18)-1)+OFFSET(Rates!$B$4,$EA18-1,EK$16-Rates!$B$3+TRUNC(Input!$Z18))*(Input!$Z18-TRUNC(Input!$Z18))*(1/(1+$C$3)^(EK$16-Rates!$B$3+TRUNC(Input!$Z18))))*Input!$AC18 -> 0 | EL18: =(IF($E18>=1,NPV($C$3,OFFSET(Rates!$B$4,$EA18-1,EL$16-Rates!$B$3,1,TRUNC($E18))))*(1+$C$3)+OFFSET(Rates!$B$4,$EA18-1,EL$16-Rates!$B$3+TRUNC($E18))*($E18-TRUNC($E18))*(1/(1+$C$3)^(EL$16-Rates!$B$3+TRUNC($E18))))*$M18+(IF((Input!$Z18-$E18)>=1,NPV($C$3,OFFSET(Rates!$B$4,$EA18-1,EL$16-Rates!$B$3+TRUNC($E18),1,TRUNC(Input!$Z18-$E18))))/(1+$C$3)^(TRUNC($E18)-1)+OFFSET(Rates!$B$4,$EA18-1,EL$16-Rates!$B$3+TRUNC(Input!$Z18))*(Input!$Z18-TRUNC(Input!$Z18))*(1/(1+$C$3)^(EL$16-Rates!$B$3+TRUNC(Input!$Z18))))*Input!$AC18 -> 0 | EM18: =(IF($E18>=1,NPV($C$3,OFFSET(Rates!$B$4,$EA18-1,EM$16-Rates!$B$3,1,TRUNC($E18))))*(1+$C$3)+OFFSET(Rates!$B$4,$EA18-1,EM$16-Rates!$B$3+TRUNC($E18))*($E18-TRUNC($E18))*(1/(1+$C$3)^(EM$16-Rates!$B$3+TRUNC($E18))))*$M18+(IF((Input!$Z18-$E18)>=1,NPV($C$3,OFFSET(Rates!$B$4,$EA18-1,EM$16-Rates!$B$3+TRUNC($E18),1,TRUNC(Input!$Z18-$E18))))/(1+$C$3)^(TRUNC($E18)-1)+OFFSET(Rates!$B$4,$EA18-1,EM$16-Rates!$B$3+TRUNC(Input!$Z18))*(Input!$Z18-TRUNC(Input!$Z18))*(1/(1+$C$3)^(EM$16-Rates!$B$3+TRUNC(Input!$Z18))))*Input!$AC18 -> 0 | EN18: =(IF($E18>=1,NPV($C$3,OFFSET(Rates!$B$16,$EB18-1,EN$16-Rates!$B$3,1,TRUNC($E18))))*(1+$C$3) +OFFSET(Rates!$B$16,$EB18-1,EN$16-Rates!$B$3+TRUNC($E18))*($E18-TRUNC($E18))*(1/(1+$C$3)^(EN$16-Rates!$B$3+TRUNC($E18))))*Input!$V18 + (IF((Input!$Z18-$E18)>=1,NPV($C$3,OFFSET(Rates!$B$16,$EB18-1,EN$16-Rates!$B$3+TRUNC($E18),1,TRUNC(Input!$Z18-$E18))))/(1+$C$3)^(TRUNC($E18)-1) +OFFSET(Rates!$B$16,$EB18-1,EN$16-Rates!$B$3+TRUNC(Input!$Z18))*(Input!$Z18-TRUNC(Input!$Z18))*(1/(1+$C$3)^(EN$16-Rates!$B$3+TRUNC(Input!$Z18))))*Input!$AE18 ->  | EO18: =(IF($E18>=1,NPV($C$3,OFFSET(Rates!$B$16,$EB18-1,EO$16-Rates!$B$3,1,TRUNC($E18))))*(1+$C$3) +OFFSET(Rates!$B$16,$EB18-1,EO$16-Rates!$B$3+TRUNC($E18))*($E18-TRUNC($E18))*(1/(1+$C$3)^(EO$16-Rates!$B$3+TRUNC($E18))))*Input!$V18 + (IF((Input!$Z18-$E18)>=1,NPV($C$3,OFFSET(Rates!$B$16,$EB18-1,EO$16-Rates!$B$3+TRUNC($E18),1,TRUNC(Input!$Z18-$E18))))/(1+$C$3)^(TRUNC($E18)-1) +OFFSET(Rates!$B$16,$EB18-1,EO$16-Rates!$B$3+TRUNC(Input!$Z18))*(Input!$Z18-TRUNC(Input!$Z18))*(1/(1+$C$3)^(EO$16-Rates!$B$3+TRUNC(Input!$Z18))))*Input!$AE18 ->  | EP18: =(IF($E18>=1,NPV($C$3,OFFSET(Rates!$B$16,$EB18-1,EP$16-Rates!$B$3,1,TRUNC($E18))))*(1+$C$3) +OFFSET(Rates!$B$16,$EB18-1,EP$16-Rates!$B$3+TRUNC($E18))*($E18-TRUNC($E18))*(1/(1+$C$3)^(EP$16-Rates!$B$3+TRUNC($E18))))*Input!$V18 + (IF((Input!$Z18-$E18)>=1,NPV($C$3,OFFSET(Rates!$B$16,$EB18-1,EP$16-Rates!$B$3+TRUNC($E18),1,TRUNC(Input!$Z18-$E18))))/(1+$C$3)^(TRUNC($E18)-1) +OFFSET(Rates!$B$16,$EB18-1,EP$16-Rates!$B$3+TRUNC(Input!$Z18))*(Input!$Z18-TRUNC(Input!$Z18))*(1/(1+$C$3)^(EP$16-Rates!$B$3+TRUNC(Input!$Z18))))*Input!$AE18 ->  | EQ18: =(IF($E18>=1,NPV($C$3,OFFSET(Rates!$B$16,$EB18-1,EQ$16-Rates!$B$3,1,TRUNC($E18))))*(1+$C$3) +OFFSET(Rates!$B$16,$EB18-1,EQ$16-Rates!$B$3+TRUNC($E18))*($E18-TRUNC($E18))*(1/(1+$C$3)^(EQ$16-Rates!$B$3+TRUNC($E18))))*Input!$V18 + (IF((Input!$Z18-$E18)>=1,NPV($C$3,OFFSET(Rates!$B$16,$EB18-1,EQ$16-Rates!$B$3+TRUNC($E18),1,TRUNC(Input!$Z18-$E18))))/(1+$C$3)^(TRUNC($E18)-1) +OFFSET(Rates!$B$16,$EB18-1,EQ$16-Rates!$B$3+TRUNC(Input!$Z18))*(Input!$Z18-TRUNC(Input!$Z18))*(1/(1+$C$3)^(EQ$16-Rates!$B$3+TRUNC(Input!$Z18))))*Input!$AE18 ->  | ER18: =(IF($E18>=1,NPV($C$3,OFFSET(Rates!$B$16,$EB18-1,ER$16-Rates!$B$3,1,TRUNC($E18))))*(1+$C$3) +OFFSET(Rates!$B$16,$EB18-1,ER$16-Rates!$B$3+TRUNC($E18))*($E18-TRUNC($E18))*(1/(1+$C$3)^(ER$16-Rates!$B$3+TRUNC($E18))))*Input!$V18 + (IF((Input!$Z18-$E18)>=1,NPV($C$3,OFFSET(Rates!$B$16,$EB18-1,ER$16-Rates!$B$3+TRUNC($E18),1,TRUNC(Input!$Z18-$E18))))/(1+$C$3)^(TRUNC($E18)-1) +OFFSET(Rates!$B$16,$EB18-1,ER$16-Rates!$B$3+TRUNC(Input!$Z18))*(Input!$Z18-TRUNC(Input!$Z18))*(1/(1+$C$3)^(ER$16-Rates!$B$3+TRUNC(Input!$Z18))))*Input!$AE18 ->  | ES18: =(IF($E18>=1,NPV($C$3,OFFSET(Rates!$B$16,$EB18-1,ES$16-Rates!$B$3,1,TRUNC($E18))))*(1+$C$3) +OFFSET(Rates!$B$16,$EB18-1,ES$16-Rates!$B$3+TRUNC($E18))*($E18-TRUNC($E18))*(1/(1+$C$3)^(ES$16-Rates!$B$3+TRUNC($E18))))*Input!$V18 + (IF((Input!$Z18-$E18)>=1,NPV($C$3,OFFSET(Rates!$B$16,$EB18-1,ES$16-Rates!$B$3+TRUNC($E18),1,TRUNC(Input!$Z18-$E18))))/(1+$C$3)^(TRUNC($E18)-1) +OFFSET(Rates!$B$16,$EB18-1,ES$16-Rates!$B$3+TRUNC(Input!$Z18))*(Input!$Z18-TRUNC(Input!$Z18))*(1/(1+$C$3)^(ES$16-Rates!$B$3+TRUNC(Input!$Z18))))*Input!$AE18 ->  | ET18: =(IF($E18>=1,NPV($C$3,OFFSET(Rates!$B$16,$EB18-1,ET$16-Rates!$B$3,1,TRUNC($E18))))*(1+$C$3) +OFFSET(Rates!$B$16,$EB18-1,ET$16-Rates!$B$3+TRUNC($E18))*($E18-TRUNC($E18))*(1/(1+$C$3)^(ET$16-Rates!$B$3+TRUNC($E18))))*Input!$V18 + (IF((Input!$Z18-$E18)>=1,NPV($C$3,OFFSET(Rates!$B$16,$EB18-1,ET$16-Rates!$B$3+TRUNC($E18),1,TRUNC(Input!$Z18-$E18))))/(1+$C$3)^(TRUNC($E18)-1) +OFFSET(Rates!$B$16,$EB18-1,ET$16-Rates!$B$3+TRUNC(Input!$Z18))*(Input!$Z18-TRUNC(Input!$Z18))*(1/(1+$C$3)^(ET$16-Rates!$B$3+TRUNC(Input!$Z18))))*Input!$AE18 ->  | EU18: =(IF($E18>=1,NPV($C$3,OFFSET(Rates!$B$16,$EB18-1,EU$16-Rates!$B$3,1,TRUNC($E18))))*(1+$C$3) +OFFSET(Rates!$B$16,$EB18-1,EU$16-Rates!$B$3+TRUNC($E18))*($E18-TRUNC($E18))*(1/(1+$C$3)^(EU$16-Rates!$B$3+TRUNC($E18))))*Input!$V18 + (IF((Input!$Z18-$E18)>=1,NPV($C$3,OFFSET(Rates!$B$16,$EB18-1,EU$16-Rates!$B$3+TRUNC($E18),1,TRUNC(Input!$Z18-$E18))))/(1+$C$3)^(TRUNC($E18)-1) +OFFSET(Rates!$B$16,$EB18-1,EU$16-Rates!$B$3+TRUNC(Input!$Z18))*(Input!$Z18-TRUNC(Input!$Z18))*(1/(1+$C$3)^(EU$16-Rates!$B$3+TRUNC(Input!$Z18))))*Input!$AE18 ->  | EV18: =(IF($E18>=1,NPV($C$3,OFFSET(Rates!$B$16,$EB18-1,EV$16-Rates!$B$3,1,TRUNC($E18))))*(1+$C$3) +OFFSET(Rates!$B$16,$EB18-1,EV$16-Rates!$B$3+TRUNC($E18))*($E18-TRUNC($E18))*(1/(1+$C$3)^(EV$16-Rates!$B$3+TRUNC($E18))))*Input!$V18 + (IF((Input!$Z18-$E18)>=1,NPV($C$3,OFFSET(Rates!$B$16,$EB18-1,EV$16-Rates!$B$3+TRUNC($E18),1,TRUNC(Input!$Z18-$E18))))/(1+$C$3)^(TRUNC($E18)-1) +OFFSET(Rates!$B$16,$EB18-1,EV$16-Rates!$B$3+TRUNC(Input!$Z18))*(Input!$Z18-TRUNC(Input!$Z18))*(1/(1+$C$3)^(EV$16-Rates!$B$3+TRUNC(Input!$Z18))))*Input!$AE18 ->  | EW18: =(IF($E18>=1,NPV($C$3,OFFSET(Rates!$B$16,$EB18-1,EW$16-Rates!$B$3,1,TRUNC($E18))))*(1+$C$3) +OFFSET(Rates!$B$16,$EB18-1,EW$16-Rates!$B$3+TRUNC($E18))*($E18-TRUNC($E18))*(1/(1+$C$3)^(EW$16-Rates!$B$3+TRUNC($E18))))*Input!$V18 + (IF((Input!$Z18-$E18)>=1,NPV($C$3,OFFSET(Rates!$B$16,$EB18-1,EW$16-Rates!$B$3+TRUNC($E18),1,TRUNC(Input!$Z18-$E18))))/(1+$C$3)^(TRUNC($E18)-1) +OFFSET(Rates!$B$16,$EB18-1,EW$16-Rates!$B$3+TRUNC(Input!$Z18))*(Input!$Z18-TRUNC(Input!$Z18))*(1/(1+$C$3)^(EW$16-Rates!$B$3+TRUNC(Input!$Z18))))*Input!$AE18 ->  | EX18: =(IF($E18>=1,NPV($C$3,OFFSET(Rates!$B$16,$EB18-1,EX$16-Rates!$B$3,1,TRUNC($E18))))*(1+$C$3) +OFFSET(Rates!$B$16,$EB18-1,EX$16-Rates!$B$3+TRUNC($E18))*($E18-TRUNC($E18))*(1/(1+$C$3)^(EX$16-Rates!$B$3+TRUNC($E18))))*Input!$V18 + (IF((Input!$Z18-$E18)>=1,NPV($C$3,OFFSET(Rates!$B$16,$EB18-1,EX$16-Rates!$B$3+TRUNC($E18),1,TRUNC(Input!$Z18-$E18))))/(1+$C$3)^(TRUNC($E18)-1) +OFFSET(Rates!$B$16,$EB18-1,EX$16-Rates!$B$3+TRUNC(Input!$Z18))*(Input!$Z18-TRUNC(Input!$Z18))*(1/(1+$C$3)^(EX$16-Rates!$B$3+TRUNC(Input!$Z18))))*Input!$AE18 ->  | EY18: =IF(ISERROR(EC18),0,EC18*Input!AX18*$G18*$L18) -> 0 | EZ18: =IF(ISERROR(ED18),0,ED18*Input!AY18*$G18*$L18) -> 0 | FA18: =IF(ISERROR(EE18),0,EE18*Input!AZ18*$G18*$L18) -> 0 | FB18: =IF(ISERROR(EF18),0,EF18*Input!BA18*$G18*$L18) -> 0 | FC18: =IF(ISERROR(EG18),0,EG18*Input!BB18*$G18*$L18) -> 0 | FD18: =IF(ISERROR(EH18),0,EH18*Input!BC18*$G18*$L18) -> 0 | FE18: =IF(ISERROR(EI18),0,EI18*Input!BD18*$G18*$L18) -> 0 | FF18: =IF(ISERROR(EJ18),0,EJ18*Input!BE18*$G18*$L18) -> 0 | FG18: =IF(ISERROR(EK18),0,EK18*Input!BF18*$G18*$L18) -> 0 | FH18: =IF(ISERROR(EL18),0,EL18*Input!BG18*$G18*$L18) -> 0 | FI18: =IF(ISERROR(EM18),0,EM18*Input!BH18*$G18*$L18) -> 0 | FJ18: =IF(ISERROR(EN18),0,EN18*Input!AX18*$I18*$L18) -> 0 | FK18: =IF(ISERROR(EO18),0,EO18*Input!AY18*$I18*$L18) -> 0 | FL18: =IF(ISERROR(EP18),0,EP18*Input!AZ18*$I18*$L18) -> 0 | FM18: =IF(ISERROR(EQ18),0,EQ18*Input!BA18*$I18*$L18) -> 0 | FN18: =IF(ISERROR(ER18),0,ER18*Input!BB18*$I18*$L18) -> 0 | FO18: =IF(ISERROR(ES18),0,ES18*Input!BC18*$I18*$L18) -> 0 | FP18: =IF(ISERROR(ET18),0,ET18*Input!BD18*$I18*$L18) -> 0 | FQ18: =IF(ISERROR(EU18),0,EU18*Input!BE18*$I18*$L18) -> 0 | FR18: =IF(ISERROR(EV18),0,EV18*Input!BF18*$I18*$L18) -> 0 | FS18: =IF(ISERROR(EW18),0,EW18*Input!BG18*$I18*$L18) -> 0 | FT18: =IF(ISERROR(EX18),0,EX18*Input!BH18*$I18*$L18) -> 0 | FU18: =MAX(0,SUM(Input!N18:P18)-Input!L18) -> 0 | FV18: =MAX(NPV(Disc,FU18*Input!$BJ18:$DA18),FY18-GA18,0) -> 0 | FW18: =(FV18+GA18)*K18 -> 0 | FX18: =NPV(Disc,Input!M18*Input!$BJ18:$DA18) -> 0 | FY18: =NPV(Disc,SUM(Input!N18:P18)*Input!$BJ18:$DA18) -> 0 | FZ18: =FX18+FY18 -> 0 | GA18: =NPV(Disc,1*Input!BJ18:DA18)*(Input!L18-IF(Calcs!AD18>0,(Input!L18-Input!AA18)*((1+Input!AB18/Periods)/(1+Disc))^(Calcs!AD18*Periods),0)) -> 0 | GB18: 0 | GC18: =GB18*J18+FW18 -> 0 | GD18: =(NPV(Disc,Input!$BJ18:$DA18*Input!R18)*PV($C$3,$E18,-1,0,1)+ NPV(Disc,Input!$BJ18:$DA18*N18)*PV($C$3,Input!$Z18-$E18,-1,0,1)/(1+$C$3)^$E18)*L18 -> 0 | GE18: =(NPV(Disc,Input!$BJ18:$DA18*Input!V18)*PV($C$3,$E18,-1,0,1)+NPV(Disc,Input!$BJ18:$DA18*Input!$AE18)*PV($C$3,Input!$Z18-$E18,-1,0,1)/(1+$C$3)^$E18)*L18 -> 0 | GF18: =IF(ISERROR($G18),0,GD18*$G18) -> 0 | GG18: =IF(ISERROR($I18),0,GE18*$I18) -> 0 | GH18: 0 | GI18: 0 | GJ18: =IF((GH18+GI18)<>0,GH18/(GH18+GI18),0) -> 0 | GK18: =(GH18+GI18)/($GH$1018+$GI$1018) -> 0 | GL18: =DY18+DZ18-(FZ18+GC18)-(Input!$Q$13-Input!$J$11)*GK18 -> 0 | GM18: =IF(GF18<>0,(DY18-(GC18+FZ18)*GJ18)/GF18,0) -> 0 | GN18: =IF(GG18<>0,(DZ18-(GC18+FZ18)*(1-GJ18))/GG18,0) -> 0 | GO18: =IF(GF18<>0,GM18-(Input!$Q$13-Input!$J$11)*$GJ18*$GK18/GF18,0) -> 0 | GP18: =IF(GG18<>0,GN18-(Input!$Q$13-Input!$J$11)*(1-$GJ18)*$GK18/GG18,0) -> 0 | GQ18: =IF(GF18<>0,(DY18-(+$FZ18)*GJ18)/GF18,0) -> 0 | GR18: =IF(GG18<>0,(DZ18-($FZ18)*(1-GJ18))/GG18,0) -> 0 | GS18: =IF(GF18<>0,GQ18-(Input!$Q$13-Input!$J$11+Input!$Q$4)*$GJ18*$GK18/GF18,0) -> 0 | GT18: =IF(GG18<>0,GR18-(Input!$Q$13-Input!$J$11+Input!$Q$4)*(1-$GJ18)*$GK18/GG18,0) -> 0 | GU18: =(DZ18+DY18)/(GC18+FZ18) ->  | GV18: =(DZ18+DY18)/(FZ18) ->  | GW18: =(DZ18+DY18)/((GC18+FZ18)+$GK18*(Input!$Q$13-Input!$J$11)) ->  | GX18: =(DZ18+DY18)/(FZ18+$GK18*(Input!$Q$13-Input!$J$11+Input!$Q$4)) ->  | GY18: =Input!DB18*O18*$G18*$L18 -> 0 | GZ18: =GY18*MAX(Input!$Z18,$E18) -> 0 | HA18: =Input!DB18*$I18*GasCalcs!G18*$L18 -> 0 | HB18: =HA18*MAX(Input!$Z18,$E18) -> 0 | HC18: =IF(ISERROR(Loads!AY18*Input!DB18*$T18*$H18),0,Loads!AY18*Input!DB18*$T18*$H18)*$L18 -> 0 | HD18: =IF(ISERROR(Loads!AZ18*Input!DB18*$T18*$H18),0,Loads!AZ18*Input!DB18*$T18*$H18)*$L18 -> 0 | HF18: =IF(Calcs!F18<>0,(Input!U18*H18*$L18*E18+Input!AD18*H18*L18*(F18-E18))/F18*Input!DB18,0) -> 0 | HG18: =IF(ISERROR(OFFSET(CostE!$AQ$5,$AB18-1,0)),0,OFFSET(CostE!$AQ$5,$AB18-1,0)) -> 0 | HH18: =IF(ISERROR(OFFSET(CostE!$AR$5,$AB18-1,0)),0,OFFSET(CostE!$AR$5,$AB18-1,0)) -> 0 | HI18: =IF(ISERROR(OFFSET(CostE!$AS$5,$AB18-1,0)),0,OFFSET(CostE!$AS$5,$AB18-1,0)) -> 0 | HJ18: =IF(ISERROR(INDEX(CostG!$E$37:$E$43,GasCalcs!$L18)),0,INDEX(CostG!$E$37:$E$43,GasCalcs!$L18)) -> 0.00585 | HK18: =IF(ISERROR(INDEX(CostG!$F$37:$F$43,GasCalcs!$L18)),0,INDEX(CostG!$F$37:$F$43,GasCalcs!$L18)) -> 0.0092 | HL18: =IF(ISERROR(Z18),0,OFFSET(CostE!$F$5,Calcs!Z18-1,0)) -> 0 | HM18: =MIN(E18,1) -> 1 | HN18: =MIN(1,F18-E18) -> 0 | HO18: =IF(M18<>0,N18/M18,1) -> 1 | HP18: =IF(R18<>0,S18/R18,1) -> 1 | HQ18: =IF(GasCalcs!E18<>0,GasCalcs!F18/GasCalcs!E18,1) -> 1
A19: =Input!B19 -> 15% Energy Savings (pre-1980 Bldg) | B19: =Input!D19 -> 3A | C19: =TRIM(Input!E19) -> Residential | D19: =TRIM(Input!F19) -> 21 = Res. Wtr. Heating | E19: =IF(ISNUMBER(Input!AG19),Input!AG19,1) -> 14.33 | F19: =MAX(E19,Input!Z19) -> 14.33 | G19: =IF(ISNUMBER(Input!AH19),Input!AH19,1)+($J$8*Input!$T$11+$J$9*Input!$AU19) -> 0.85 | H19: =IF(ISNUMBER(Input!AJ19),Input!AJ19+($J$8*Input!$T$11+$J$9*Input!$AU19),$G19) -> 0.85 | I19: =IF(ISNUMBER(Input!AK19),Input!AK19+($J$8*Input!$T$11+$J$9*Input!$AU19),IF(ISNUMBER(Input!AI19),Input!AI19+($J$8*Input!$T$11+$J$9*Input!$AU19),$G19)) -> 0.85 | J19: =IF(AND(ISNUMBER(Input!AL19),Input!AL19<>0),Input!AL19,IF(Input!V19=0,G19,IF(Input!R19=0,I19,IF(Input!R19*0.03412>Input!V19,G19,I19)))-($J$8*Input!$T$11+$J$9*Input!AU19)) -> 0.85 | K19: =($J$8*Input!$U$11+$J$9*Input!$AV19) -> 0 | L19: =IF(ISBLANK(Input!AM19),100%,Input!AM19)*IF(ISBLANK(Input!AN19),100%,Input!AN19) -> 0.9 | M19: =Input!R19 -> 20718.15 | N19: =Input!AC19 -> 0 | O19: 20718.15 | P19: 1 | Q19: =OFFSET(CostE!$F$5,Calcs!AB19-1,0) -> kWh | R19: =IF(ISNUMBER(IF(Q19="kW",Input!U19,Input!R19)),IF(Q19="kW",Input!U19,Input!R19),0) -> 20718.15 | S19: =IF(ISNUMBER(IF(Q19="kW",Input!AD19,N19)),IF(Q19="kW",Input!AD19,N19),0) -> 0 | T19: 20718.15 | U19: 3.821462767 | V19: Gen:Residential:21 = Res. Wtr. Heating:3A | W19: TD:Residential:21 = Res. Wtr. Heating:3A | X19: Load:Residential:21 = Res. Wtr. Heating:3A | Y19: =MATCH(V19,CostE!$E$5:$E$1465,0) ->  | Z19: =IF(ISERROR(Y19),MATCH("Gen:"&C19&":"&D19&":All",CostE!$E$5:$E$1465,0),Y19) -> 206 | AA19: =MATCH(W19,CostE!$E$5:$E$1465,0) -> 822 | AB19: =IF(ISERROR(Y19),MATCH("Load:"&C19&":"&$D19&":NA",CostE!$E$5:$E$1465,0),MATCH(X19,CostE!$E$5:$E$1465,0)) -> 1344 | AC19: =MATCH(Input!S19,Rates!$A$4:$A$9,0) -> 1 | AD19: =IF(Input!Z19>Input!AG19,Input!AG19,0) -> 0 | AE19: 57 | AF19: 0.32 | AG19: 0 | AH19: =MAX(0,TRUNC(Input!Z19*Periods-(AE19+AF19+AG19))) -> 0 | AI19: =MAX(0,Input!Z19*Periods-AH19-AF19-AE19-AG19) -> 0 | AJ19: =IF(OR(Input!E19="Residential",Input!E19="Res_New_Construction"), $C$10,$C$11)-1 -> 0 | AK19: =SUM(IF($E$3:$E$12=Input!F19,1,0))=1 -> FALSE | AL19: =AJ19*AK19*Input!AW19 -> 0 | AM19: =(IF($AE19>0,NPV(Disc,OFFSET(CostE!G$5,$Z19-1,SkipYrs*Periods+1,1,$AE19)),0)+OFFSET(CostE!G$5,$Z19-1,SkipYrs*Periods+1+$AE19)*$AF19*(1/(1+Disc)^($AE19+1)))*$M19*(1+$AL19) + (OFFSET(CostE!G$5,$Z19-1,SkipYrs*Periods+1+$AE19)*$AG19*(1/(1+Disc)^($AE19+1))+ IF($AH19>0,NPV(Disc,OFFSET(CostE!G$5,$Z19-1,SkipYrs*Periods+ROUND($AE19+$AF19+$AG19,0)+1,1,$AH19)),0)*(1/(1+Disc)^($AE19+$AF19+$AG19))+ OFFSET(CostE!G$5,$Z19-1,SkipYrs*Periods+ROUND($AE19+$AF19+$AG19+$AH19,0)+1)*$AI19*(1/(1+Disc)^(ROUND($AE19+$AH19+$AF19+$AG19,0)+1)))*Input!$AC19*(1+$AL19) -> 20554.39195 | AN19: =(IF($AE19>0,NPV(Disc,OFFSET(CostE!H$5,$Z19-1,SkipYrs*Periods+1,1,$AE19)),0)+OFFSET(CostE!H$5,$Z19-1,SkipYrs*Periods+1+$AE19)*$AF19*(1/(1+Disc)^($AE19+1)))*$M19*(1+$AL19) + (OFFSET(CostE!H$5,$Z19-1,SkipYrs*Periods+1+$AE19)*$AG19*(1/(1+Disc)^($AE19+1))+ IF($AH19>0,NPV(Disc,OFFSET(CostE!H$5,$Z19-1,SkipYrs*Periods+ROUND($AE19+$AF19+$AG19,0)+1,1,$AH19)),0)*(1/(1+Disc)^($AE19+$AF19+$AG19))+ OFFSET(CostE!H$5,$Z19-1,SkipYrs*Periods+ROUND($AE19+$AF19+$AG19+$AH19,0)+1)*$AI19*(1/(1+Disc)^(ROUND($AE19+$AH19+$AF19+$AG19,0)+1)))*Input!$AC19*(1+$AL19) -> 20789.12286 | AO19: =(IF($AE19>0,NPV(Disc,OFFSET(CostE!I$5,$Z19-1,SkipYrs*Periods+1,1,$AE19)),0)+OFFSET(CostE!I$5,$Z19-1,SkipYrs*Periods+1+$AE19)*$AF19*(1/(1+Disc)^($AE19+1)))*$M19*(1+$AL19) + (OFFSET(CostE!I$5,$Z19-1,SkipYrs*Periods+1+$AE19)*$AG19*(1/(1+Disc)^($AE19+1))+ IF($AH19>0,NPV(Disc,OFFSET(CostE!I$5,$Z19-1,SkipYrs*Periods+ROUND($AE19+$AF19+$AG19,0)+1,1,$AH19)),0)*(1/(1+Disc)^($AE19+$AF19+$AG19))+ OFFSET(CostE!I$5,$Z19-1,SkipYrs*Periods+ROUND($AE19+$AF19+$AG19+$AH19,0)+1)*$AI19*(1/(1+Disc)^(ROUND($AE19+$AH19+$AF19+$AG19,0)+1)))*Input!$AC19*(1+$AL19) -> 21117.01907 | AP19: =(IF($AE19>0,NPV(Disc,OFFSET(CostE!J$5,$Z19-1,SkipYrs*Periods+1,1,$AE19)),0)+OFFSET(CostE!J$5,$Z19-1,SkipYrs*Periods+1+$AE19)*$AF19*(1/(1+Disc)^($AE19+1)))*$M19*(1+$AL19) + (OFFSET(CostE!J$5,$Z19-1,SkipYrs*Periods+1+$AE19)*$AG19*(1/(1+Disc)^($AE19+1))+ IF($AH19>0,NPV(Disc,OFFSET(CostE!J$5,$Z19-1,SkipYrs*Periods+ROUND($AE19+$AF19+$AG19,0)+1,1,$AH19)),0)*(1/(1+Disc)^($AE19+$AF19+$AG19))+ OFFSET(CostE!J$5,$Z19-1,SkipYrs*Periods+ROUND($AE19+$AF19+$AG19+$AH19,0)+1)*$AI19*(1/(1+Disc)^(ROUND($AE19+$AH19+$AF19+$AG19,0)+1)))*Input!$AC19*(1+$AL19) -> 21374.54756 | AQ19: =(IF($AE19>0,NPV(Disc,OFFSET(CostE!K$5,$Z19-1,SkipYrs*Periods+1,1,$AE19)),0)+OFFSET(CostE!K$5,$Z19-1,SkipYrs*Periods+1+$AE19)*$AF19*(1/(1+Disc)^($AE19+1)))*$M19*(1+$AL19) + (OFFSET(CostE!K$5,$Z19-1,SkipYrs*Periods+1+$AE19)*$AG19*(1/(1+Disc)^($AE19+1))+ IF($AH19>0,NPV(Disc,OFFSET(CostE!K$5,$Z19-1,SkipYrs*Periods+ROUND($AE19+$AF19+$AG19,0)+1,1,$AH19)),0)*(1/(1+Disc)^($AE19+$AF19+$AG19))+ OFFSET(CostE!K$5,$Z19-1,SkipYrs*Periods+ROUND($AE19+$AF19+$AG19+$AH19,0)+1)*$AI19*(1/(1+Disc)^(ROUND($AE19+$AH19+$AF19+$AG19,0)+1)))*Input!$AC19*(1+$AL19) -> 21524.18501 | AR19: =(IF($AE19>0,NPV(Disc,OFFSET(CostE!L$5,$Z19-1,SkipYrs*Periods+1,1,$AE19)),0)+OFFSET(CostE!L$5,$Z19-1,SkipYrs*Periods+1+$AE19)*$AF19*(1/(1+Disc)^($AE19+1)))*$M19*(1+$AL19) + (OFFSET(CostE!L$5,$Z19-1,SkipYrs*Periods+1+$AE19)*$AG19*(1/(1+Disc)^($AE19+1))+ IF($AH19>0,NPV(Disc,OFFSET(CostE!L$5,$Z19-1,SkipYrs*Periods+ROUND($AE19+$AF19+$AG19,0)+1,1,$AH19)),0)*(1/(1+Disc)^($AE19+$AF19+$AG19))+ OFFSET(CostE!L$5,$Z19-1,SkipYrs*Periods+ROUND($AE19+$AF19+$AG19+$AH19,0)+1)*$AI19*(1/(1+Disc)^(ROUND($AE19+$AH19+$AF19+$AG19,0)+1)))*Input!$AC19*(1+$AL19) -> 21751.76637 | AS19: =(IF($AE19>0,NPV(Disc,OFFSET(CostE!M$5,$Z19-1,SkipYrs*Periods+1,1,$AE19)),0)+OFFSET(CostE!M$5,$Z19-1,SkipYrs*Periods+1+$AE19)*$AF19*(1/(1+Disc)^($AE19+1)))*$M19*(1+$AL19) + (OFFSET(CostE!M$5,$Z19-1,SkipYrs*Periods+1+$AE19)*$AG19*(1/(1+Disc)^($AE19+1))+ IF($AH19>0,NPV(Disc,OFFSET(CostE!M$5,$Z19-1,SkipYrs*Periods+ROUND($AE19+$AF19+$AG19,0)+1,1,$AH19)),0)*(1/(1+Disc)^($AE19+$AF19+$AG19))+ OFFSET(CostE!M$5,$Z19-1,SkipYrs*Periods+ROUND($AE19+$AF19+$AG19+$AH19,0)+1)*$AI19*(1/(1+Disc)^(ROUND($AE19+$AH19+$AF19+$AG19,0)+1)))*Input!$AC19*(1+$AL19) -> 22075.84007 | AT19: =(IF($AE19>0,NPV(Disc,OFFSET(CostE!N$5,$Z19-1,SkipYrs*Periods+1,1,$AE19)),0)+OFFSET(CostE!N$5,$Z19-1,SkipYrs*Periods+1+$AE19)*$AF19*(1/(1+Disc)^($AE19+1)))*$M19*(1+$AL19) + (OFFSET(CostE!N$5,$Z19-1,SkipYrs*Periods+1+$AE19)*$AG19*(1/(1+Disc)^($AE19+1))+ IF($AH19>0,NPV(Disc,OFFSET(CostE!N$5,$Z19-1,SkipYrs*Periods+ROUND($AE19+$AF19+$AG19,0)+1,1,$AH19)),0)*(1/(1+Disc)^($AE19+$AF19+$AG19))+ OFFSET(CostE!N$5,$Z19-1,SkipYrs*Periods+ROUND($AE19+$AF19+$AG19+$AH19,0)+1)*$AI19*(1/(1+Disc)^(ROUND($AE19+$AH19+$AF19+$AG19,0)+1)))*Input!$AC19*(1+$AL19) -> 22328.8635 | AU19: =(IF($AE19>0,NPV(Disc,OFFSET(CostE!O$5,$Z19-1,SkipYrs*Periods+1,1,$AE19)),0)+OFFSET(CostE!O$5,$Z19-1,SkipYrs*Periods+1+$AE19)*$AF19*(1/(1+Disc)^($AE19+1)))*$M19*(1+$AL19) + (OFFSET(CostE!O$5,$Z19-1,SkipYrs*Periods+1+$AE19)*$AG19*(1/(1+Disc)^($AE19+1))+ IF($AH19>0,NPV(Disc,OFFSET(CostE!O$5,$Z19-1,SkipYrs*Periods+ROUND($AE19+$AF19+$AG19,0)+1,1,$AH19)),0)*(1/(1+Disc)^($AE19+$AF19+$AG19))+ OFFSET(CostE!O$5,$Z19-1,SkipYrs*Periods+ROUND($AE19+$AF19+$AG19+$AH19,0)+1)*$AI19*(1/(1+Disc)^(ROUND($AE19+$AH19+$AF19+$AG19,0)+1)))*Input!$AC19*(1+$AL19) -> 22479.92772 | AV19: =(IF($AE19>0,NPV(Disc,OFFSET(CostE!P$5,$Z19-1,SkipYrs*Periods+1,1,$AE19)),0)+OFFSET(CostE!P$5,$Z19-1,SkipYrs*Periods+1+$AE19)*$AF19*(1/(1+Disc)^($AE19+1)))*$M19*(1+$AL19) + (OFFSET(CostE!P$5,$Z19-1,SkipYrs*Periods+1+$AE19)*$AG19*(1/(1+Disc)^($AE19+1))+ IF($AH19>0,NPV(Disc,OFFSET(CostE!P$5,$Z19-1,SkipYrs*Periods+ROUND($AE19+$AF19+$AG19,0)+1,1,$AH19)),0)*(1/(1+Disc)^($AE19+$AF19+$AG19))+ OFFSET(CostE!P$5,$Z19-1,SkipYrs*Periods+ROUND($AE19+$AF19+$AG19+$AH19,0)+1)*$AI19*(1/(1+Disc)^(ROUND($AE19+$AH19+$AF19+$AG19,0)+1)))*Input!$AC19*(1+$AL19) -> 22706.2509 | AW19: =(IF($AE19>0,NPV(Disc,OFFSET(CostE!Q$5,$Z19-1,SkipYrs*Periods+1,1,$AE19)),0)+OFFSET(CostE!Q$5,$Z19-1,SkipYrs*Periods+1+$AE19)*$AF19*(1/(1+Disc)^($AE19+1)))*$M19*(1+$AL19) + (OFFSET(CostE!Q$5,$Z19-1,SkipYrs*Periods+1+$AE19)*$AG19*(1/(1+Disc)^($AE19+1))+ IF($AH19>0,NPV(Disc,OFFSET(CostE!Q$5,$Z19-1,SkipYrs*Periods+ROUND($AE19+$AF19+$AG19,0)+1,1,$AH19)),0)*(1/(1+Disc)^($AE19+$AF19+$AG19))+ OFFSET(CostE!Q$5,$Z19-1,SkipYrs*Periods+ROUND($AE19+$AF19+$AG19+$AH19,0)+1)*$AI19*(1/(1+Disc)^(ROUND($AE19+$AH19+$AF19+$AG19,0)+1)))*Input!$AC19*(1+$AL19) -> 23031.19036 | AX19: =(IF($AE19>0,NPV(Disc,OFFSET(CostE!R$5,$Z19-1,SkipYrs*Periods+1,1,$AE19)),0)+OFFSET(CostE!R$5,$Z19-1,SkipYrs*Periods+1+$AE19)*$AF19*(1/(1+Disc)^($AE19+1)))*$M19*(1+$AL19) + (OFFSET(CostE!R$5,$Z19-1,SkipYrs*Periods+1+$AE19)*$AG19*(1/(1+Disc)^($AE19+1))+ IF($AH19>0,NPV(Disc,OFFSET(CostE!R$5,$Z19-1,SkipYrs*Periods+ROUND($AE19+$AF19+$AG19,0)+1,1,$AH19)),0)*(1/(1+Disc)^($AE19+$AF19+$AG19))+ OFFSET(CostE!R$5,$Z19-1,SkipYrs*Periods+ROUND($AE19+$AF19+$AG19+$AH19,0)+1)*$AI19*(1/(1+Disc)^(ROUND($AE19+$AH19+$AF19+$AG19,0)+1)))*Input!$AC19*(1+$AL19) -> 23287.53045 | AY19: =(IF($AE19>0,NPV(Disc,OFFSET(CostE!S$5,$Z19-1,SkipYrs*Periods+1,1,$AE19)),0)+OFFSET(CostE!S$5,$Z19-1,SkipYrs*Periods+1+$AE19)*$AF19*(1/(1+Disc)^($AE19+1)))*$M19*(1+$AL19) + (OFFSET(CostE!S$5,$Z19-1,SkipYrs*Periods+1+$AE19)*$AG19*(1/(1+Disc)^($AE19+1))+ IF($AH19>0,NPV(Disc,OFFSET(CostE!S$5,$Z19-1,SkipYrs*Periods+ROUND($AE19+$AF19+$AG19,0)+1,1,$AH19)),0)*(1/(1+Disc)^($AE19+$AF19+$AG19))+ OFFSET(CostE!S$5,$Z19-1,SkipYrs*Periods+ROUND($AE19+$AF19+$AG19+$AH19,0)+1)*$AI19*(1/(1+Disc)^(ROUND($AE19+$AH19+$AF19+$AG19,0)+1)))*Input!$AC19*(1+$AL19) -> 23421.51177 | AZ19: =(IF($AE19>0,NPV(Disc,OFFSET(CostE!T$5,$Z19-1,SkipYrs*Periods+1,1,$AE19)),0)+OFFSET(CostE!T$5,$Z19-1,SkipYrs*Periods+1+$AE19)*$AF19*(1/(1+Disc)^($AE19+1)))*$M19*(1+$AL19) + (OFFSET(CostE!T$5,$Z19-1,SkipYrs*Periods+1+$AE19)*$AG19*(1/(1+Disc)^($AE19+1))+ IF($AH19>0,NPV(Disc,OFFSET(CostE!T$5,$Z19-1,SkipYrs*Periods+ROUND($AE19+$AF19+$AG19,0)+1,1,$AH19)),0)*(1/(1+Disc)^($AE19+$AF19+$AG19))+ OFFSET(CostE!T$5,$Z19-1,SkipYrs*Periods+ROUND($AE19+$AF19+$AG19+$AH19,0)+1)*$AI19*(1/(1+Disc)^(ROUND($AE19+$AH19+$AF19+$AG19,0)+1)))*Input!$AC19*(1+$AL19) -> 23633.28485 | BA19: =(IF($AE19>0,NPV(Disc,OFFSET(CostE!U$5,$Z19-1,SkipYrs*Periods+1,1,$AE19)),0)+OFFSET(CostE!U$5,$Z19-1,SkipYrs*Periods+1+$AE19)*$AF19*(1/(1+Disc)^($AE19+1)))*$M19*(1+$AL19) + (OFFSET(CostE!U$5,$Z19-1,SkipYrs*Periods+1+$AE19)*$AG19*(1/(1+Disc)^($AE19+1))+ IF($AH19>0,NPV(Disc,OFFSET(CostE!U$5,$Z19-1,SkipYrs*Periods+ROUND($AE19+$AF19+$AG19,0)+1,1,$AH19)),0)*(1/(1+Disc)^($AE19+$AF19+$AG19))+ OFFSET(CostE!U$5,$Z19-1,SkipYrs*Periods+ROUND($AE19+$AF19+$AG19+$AH19,0)+1)*$AI19*(1/(1+Disc)^(ROUND($AE19+$AH19+$AF19+$AG19,0)+1)))*Input!$AC19*(1+$AL19) -> 23947.35055 | BB19: =(IF($AE19>0,NPV(Disc,OFFSET(CostE!V$5,$Z19-1,SkipYrs*Periods+1,1,$AE19)),0)+OFFSET(CostE!V$5,$Z19-1,SkipYrs*Periods+1+$AE19)*$AF19*(1/(1+Disc)^($AE19+1)))*$M19*(1+$AL19) + (OFFSET(CostE!V$5,$Z19-1,SkipYrs*Periods+1+$AE19)*$AG19*(1/(1+Disc)^($AE19+1))+ IF($AH19>0,NPV(Disc,OFFSET(CostE!V$5,$Z19-1,SkipYrs*Periods+ROUND($AE19+$AF19+$AG19,0)+1,1,$AH19)),0)*(1/(1+Disc)^($AE19+$AF19+$AG19))+ OFFSET(CostE!V$5,$Z19-1,SkipYrs*Periods+ROUND($AE19+$AF19+$AG19+$AH19,0)+1)*$AI19*(1/(1+Disc)^(ROUND($AE19+$AH19+$AF19+$AG19,0)+1)))*Input!$AC19*(1+$AL19) -> 24186.96477 | BC19: =(IF($AE19>0,NPV(Disc,OFFSET(CostE!W$5,$Z19-1,SkipYrs*Periods+1,1,$AE19)),0)+OFFSET(CostE!W$5,$Z19-1,SkipYrs*Periods+1+$AE19)*$AF19*(1/(1+Disc)^($AE19+1)))*$M19*(1+$AL19) + (OFFSET(CostE!W$5,$Z19-1,SkipYrs*Periods+1+$AE19)*$AG19*(1/(1+Disc)^($AE19+1))+ IF($AH19>0,NPV(Disc,OFFSET(CostE!W$5,$Z19-1,SkipYrs*Periods+ROUND($AE19+$AF19+$AG19,0)+1,1,$AH19)),0)*(1/(1+Disc)^($AE19+$AF19+$AG19))+ OFFSET(CostE!W$5,$Z19-1,SkipYrs*Periods+ROUND($AE19+$AF19+$AG19+$AH19,0)+1)*$AI19*(1/(1+Disc)^(ROUND($AE19+$AH19+$AF19+$AG19,0)+1)))*Input!$AC19*(1+$AL19) -> 24321.9803 | BD19: =(IF($AE19>0,NPV(Disc,OFFSET(CostE!X$5,$Z19-1,SkipYrs*Periods+1,1,$AE19)),0)+OFFSET(CostE!X$5,$Z19-1,SkipYrs*Periods+1+$AE19)*$AF19*(1/(1+Disc)^($AE19+1)))*$M19*(1+$AL19) + (OFFSET(CostE!X$5,$Z19-1,SkipYrs*Periods+1+$AE19)*$AG19*(1/(1+Disc)^($AE19+1))+ IF($AH19>0,NPV(Disc,OFFSET(CostE!X$5,$Z19-1,SkipYrs*Periods+ROUND($AE19+$AF19+$AG19,0)+1,1,$AH19)),0)*(1/(1+Disc)^($AE19+$AF19+$AG19))+ OFFSET(CostE!X$5,$Z19-1,SkipYrs*Periods+ROUND($AE19+$AF19+$AG19+$AH19,0)+1)*$AI19*(1/(1+Disc)^(ROUND($AE19+$AH19+$AF19+$AG19,0)+1)))*Input!$AC19*(1+$AL19) -> 24531.34982 | BE19: =(IF($AE19>0,NPV(Disc,OFFSET(CostE!Y$5,$Z19-1,SkipYrs*Periods+1,1,$AE19)),0)+OFFSET(CostE!Y$5,$Z19-1,SkipYrs*Periods+1+$AE19)*$AF19*(1/(1+Disc)^($AE19+1)))*$M19*(1+$AL19) + (OFFSET(CostE!Y$5,$Z19-1,SkipYrs*Periods+1+$AE19)*$AG19*(1/(1+Disc)^($AE19+1))+ IF($AH19>0,NPV(Disc,OFFSET(CostE!Y$5,$Z19-1,SkipYrs*Periods+ROUND($AE19+$AF19+$AG19,0)+1,1,$AH19)),0)*(1/(1+Disc)^($AE19+$AF19+$AG19))+ OFFSET(CostE!Y$5,$Z19-1,SkipYrs*Periods+ROUND($AE19+$AF19+$AG19+$AH19,0)+1)*$AI19*(1/(1+Disc)^(ROUND($AE19+$AH19+$AF19+$AG19,0)+1)))*Input!$AC19*(1+$AL19) -> 24843.97704 | BF19: =(IF($AE19>0,NPV(Disc,OFFSET(CostE!Z$5,$Z19-1,SkipYrs*Periods+1,1,$AE19)),0)+OFFSET(CostE!Z$5,$Z19-1,SkipYrs*Periods+1+$AE19)*$AF19*(1/(1+Disc)^($AE19+1)))*$M19*(1+$AL19) + (OFFSET(CostE!Z$5,$Z19-1,SkipYrs*Periods+1+$AE19)*$AG19*(1/(1+Disc)^($AE19+1))+ IF($AH19>0,NPV(Disc,OFFSET(CostE!Z$5,$Z19-1,SkipYrs*Periods+ROUND($AE19+$AF19+$AG19,0)+1,1,$AH19)),0)*(1/(1+Disc)^($AE19+$AF19+$AG19))+ OFFSET(CostE!Z$5,$Z19-1,SkipYrs*Periods+ROUND($AE19+$AF19+$AG19+$AH19,0)+1)*$AI19*(1/(1+Disc)^(ROUND($AE19+$AH19+$AF19+$AG19,0)+1)))*Input!$AC19*(1+$AL19) -> 25085.23211 | BG19: =(IF($AE19>0,NPV(Disc,OFFSET(CostE!AA$5,$Z19-1,SkipYrs*Periods+1,1,$AE19)),0)+OFFSET(CostE!AA$5,$Z19-1,SkipYrs*Periods+1+$AE19)*$AF19*(1/(1+Disc)^($AE19+1)))*$M19*(1+$AL19) + (OFFSET(CostE!AA$5,$Z19-1,SkipYrs*Periods+1+$AE19)*$AG19*(1/(1+Disc)^($AE19+1))+ IF($AH19>0,NPV(Disc,OFFSET(CostE!AA$5,$Z19-1,SkipYrs*Periods+ROUND($AE19+$AF19+$AG19,0)+1,1,$AH19)),0)*(1/(1+Disc)^($AE19+$AF19+$AG19))+ OFFSET(CostE!AA$5,$Z19-1,SkipYrs*Periods+ROUND($AE19+$AF19+$AG19+$AH19,0)+1)*$AI19*(1/(1+Disc)^(ROUND($AE19+$AH19+$AF19+$AG19,0)+1)))*Input!$AC19*(1+$AL19) -> 25219.99711 | BH19: =(IF($AE19>0,NPV(Disc,OFFSET(CostE!AB$5,$Z19-1,SkipYrs*Periods+1,1,$AE19)),0)+OFFSET(CostE!AB$5,$Z19-1,SkipYrs*Periods+1+$AE19)*$AF19*(1/(1+Disc)^($AE19+1)))*$M19*(1+$AL19) + (OFFSET(CostE!AB$5,$Z19-1,SkipYrs*Periods+1+$AE19)*$AG19*(1/(1+Disc)^($AE19+1))+ IF($AH19>0,NPV(Disc,OFFSET(CostE!AB$5,$Z19-1,SkipYrs*Periods+ROUND($AE19+$AF19+$AG19,0)+1,1,$AH19)),0)*(1/(1+Disc)^($AE19+$AF19+$AG19))+ OFFSET(CostE!AB$5,$Z19-1,SkipYrs*Periods+ROUND($AE19+$AF19+$AG19+$AH19,0)+1)*$AI19*(1/(1+Disc)^(ROUND($AE19+$AH19+$AF19+$AG19,0)+1)))*Input!$AC19*(1+$AL19) -> 25434.98042 | BI19: =(IF($AE19>0,NPV(Disc,OFFSET(CostE!AC$5,$Z19-1,SkipYrs*Periods+1,1,$AE19)),0)+OFFSET(CostE!AC$5,$Z19-1,SkipYrs*Periods+1+$AE19)*$AF19*(1/(1+Disc)^($AE19+1)))*$M19*(1+$AL19) + (OFFSET(CostE!AC$5,$Z19-1,SkipYrs*Periods+1+$AE19)*$AG19*(1/(1+Disc)^($AE19+1))+ IF($AH19>0,NPV(Disc,OFFSET(CostE!AC$5,$Z19-1,SkipYrs*Periods+ROUND($AE19+$AF19+$AG19,0)+1,1,$AH19)),0)*(1/(1+Disc)^($AE19+$AF19+$AG19))+ OFFSET(CostE!AC$5,$Z19-1,SkipYrs*Periods+ROUND($AE19+$AF19+$AG19+$AH19,0)+1)*$AI19*(1/(1+Disc)^(ROUND($AE19+$AH19+$AF19+$AG19,0)+1)))*Input!$AC19*(1+$AL19) -> 25759.23289 | BJ19: =(IF($AE19>0,NPV(Disc,OFFSET(CostE!AD$5,$Z19-1,SkipYrs*Periods+1,1,$AE19)),0)+OFFSET(CostE!AD$5,$Z19-1,SkipYrs*Periods+1+$AE19)*$AF19*(1/(1+Disc)^($AE19+1)))*$M19*(1+$AL19) + (OFFSET(CostE!AD$5,$Z19-1,SkipYrs*Periods+1+$AE19)*$AG19*(1/(1+Disc)^($AE19+1))+ IF($AH19>0,NPV(Disc,OFFSET(CostE!AD$5,$Z19-1,SkipYrs*Periods+ROUND($AE19+$AF19+$AG19,0)+1,1,$AH19)),0)*(1/(1+Disc)^($AE19+$AF19+$AG19))+ OFFSET(CostE!AD$5,$Z19-1,SkipYrs*Periods+ROUND($AE19+$AF19+$AG19+$AH19,0)+1)*$AI19*(1/(1+Disc)^(ROUND($AE19+$AH19+$AF19+$AG19,0)+1)))*Input!$AC19*(1+$AL19) -> 26006.12374 | BK19: =(IF($AE19>0,NPV(Disc,OFFSET(CostE!AE$5,$Z19-1,SkipYrs*Periods+1,1,$AE19)),0)+OFFSET(CostE!AE$5,$Z19-1,SkipYrs*Periods+1+$AE19)*$AF19*(1/(1+Disc)^($AE19+1)))*$M19*(1+$AL19) + (OFFSET(CostE!AE$5,$Z19-1,SkipYrs*Periods+1+$AE19)*$AG19*(1/(1+Disc)^($AE19+1))+ IF($AH19>0,NPV(Disc,OFFSET(CostE!AE$5,$Z19-1,SkipYrs*Periods+ROUND($AE19+$AF19+$AG19,0)+1,1,$AH19)),0)*(1/(1+Disc)^($AE19+$AF19+$AG19))+ OFFSET(CostE!AE$5,$Z19-1,SkipYrs*Periods+ROUND($AE19+$AF19+$AG19+$AH19,0)+1)*$AI19*(1/(1+Disc)^(ROUND($AE19+$AH19+$AF19+$AG19,0)+1)))*Input!$AC19*(1+$AL19) -> 26141.12518 | BL19: =(IF($AE19>0,NPV(Disc,OFFSET(CostE!AF$5,$Z19-1,SkipYrs*Periods+1,1,$AE19)),0)+OFFSET(CostE!AF$5,$Z19-1,SkipYrs*Periods+1+$AE19)*$AF19*(1/(1+Disc)^($AE19+1)))*$M19*(1+$AL19) + (OFFSET(CostE!AF$5,$Z19-1,SkipYrs*Periods+1+$AE19)*$AG19*(1/(1+Disc)^($AE19+1))+ IF($AH19>0,NPV(Disc,OFFSET(CostE!AF$5,$Z19-1,SkipYrs*Periods+ROUND($AE19+$AF19+$AG19,0)+1,1,$AH19)),0)*(1/(1+Disc)^($AE19+$AF19+$AG19))+ OFFSET(CostE!AF$5,$Z19-1,SkipYrs*Periods+ROUND($AE19+$AF19+$AG19+$AH19,0)+1)*$AI19*(1/(1+Disc)^(ROUND($AE19+$AH19+$AF19+$AG19,0)+1)))*Input!$AC19*(1+$AL19) -> 26362.15428 | BM19: =(IF($AE19>0,NPV(Disc,OFFSET(CostE!AG$5,$Z19-1,SkipYrs*Periods+1,1,$AE19)),0)+OFFSET(CostE!AG$5,$Z19-1,SkipYrs*Periods+1+$AE19)*$AF19*(1/(1+Disc)^($AE19+1)))*$M19*(1+$AL19) + (OFFSET(CostE!AG$5,$Z19-1,SkipYrs*Periods+1+$AE19)*$AG19*(1/(1+Disc)^($AE19+1))+ IF($AH19>0,NPV(Disc,OFFSET(CostE!AG$5,$Z19-1,SkipYrs*Periods+ROUND($AE19+$AF19+$AG19,0)+1,1,$AH19)),0)*(1/(1+Disc)^($AE19+$AF19+$AG19))+ OFFSET(CostE!AG$5,$Z19-1,SkipYrs*Periods+ROUND($AE19+$AF19+$AG19+$AH19,0)+1)*$AI19*(1/(1+Disc)^(ROUND($AE19+$AH19+$AF19+$AG19,0)+1)))*Input!$AC19*(1+$AL19) -> 26698.42377 | BN19: =(IF($AE19>0,NPV(Disc,OFFSET(CostE!AH$5,$Z19-1,SkipYrs*Periods+1,1,$AE19)),0)+OFFSET(CostE!AH$5,$Z19-1,SkipYrs*Periods+1+$AE19)*$AF19*(1/(1+Disc)^($AE19+1)))*$M19*(1+$AL19) + (OFFSET(CostE!AH$5,$Z19-1,SkipYrs*Periods+1+$AE19)*$AG19*(1/(1+Disc)^($AE19+1))+ IF($AH19>0,NPV(Disc,OFFSET(CostE!AH$5,$Z19-1,SkipYrs*Periods+ROUND($AE19+$AF19+$AG19,0)+1,1,$AH19)),0)*(1/(1+Disc)^($AE19+$AF19+$AG19))+ OFFSET(CostE!AH$5,$Z19-1,SkipYrs*Periods+ROUND($AE19+$AF19+$AG19+$AH19,0)+1)*$AI19*(1/(1+Disc)^(ROUND($AE19+$AH19+$AF19+$AG19,0)+1)))*Input!$AC19*(1+$AL19) -> 26951.47738 | BO19: =(IF($AE19>0,NPV(Disc,OFFSET(CostE!AI$5,$Z19-1,SkipYrs*Periods+1,1,$AE19)),0)+OFFSET(CostE!AI$5,$Z19-1,SkipYrs*Periods+1+$AE19)*$AF19*(1/(1+Disc)^($AE19+1)))*$M19*(1+$AL19) + (OFFSET(CostE!AI$5,$Z19-1,SkipYrs*Periods+1+$AE19)*$AG19*(1/(1+Disc)^($AE19+1))+ IF($AH19>0,NPV(Disc,OFFSET(CostE!AI$5,$Z19-1,SkipYrs*Periods+ROUND($AE19+$AF19+$AG19,0)+1,1,$AH19)),0)*(1/(1+Disc)^($AE19+$AF19+$AG19))+ OFFSET(CostE!AI$5,$Z19-1,SkipYrs*Periods+ROUND($AE19+$AF19+$AG19+$AH19,0)+1)*$AI19*(1/(1+Disc)^(ROUND($AE19+$AH19+$AF19+$AG19,0)+1)))*Input!$AC19*(1+$AL19) -> 27058.40428 | BP19: =(IF($AE19>0,NPV(Disc,OFFSET(CostE!AJ$5,$Z19-1,SkipYrs*Periods+1,1,$AE19)),0)+OFFSET(CostE!AJ$5,$Z19-1,SkipYrs*Periods+1+$AE19)*$AF19*(1/(1+Disc)^($AE19+1)))*$M19*(1+$AL19) + (OFFSET(CostE!AJ$5,$Z19-1,SkipYrs*Periods+1+$AE19)*$AG19*(1/(1+Disc)^($AE19+1))+ IF($AH19>0,NPV(Disc,OFFSET(CostE!AJ$5,$Z19-1,SkipYrs*Periods+ROUND($AE19+$AF19+$AG19,0)+1,1,$AH19)),0)*(1/(1+Disc)^($AE19+$AF19+$AG19))+ OFFSET(CostE!AJ$5,$Z19-1,SkipYrs*Periods+ROUND($AE19+$AF19+$AG19+$AH19,0)+1)*$AI19*(1/(1+Disc)^(ROUND($AE19+$AH19+$AF19+$AG19,0)+1)))*Input!$AC19*(1+$AL19) -> 27265.22822 | BQ19: =(IF($AE19>0,NPV(Disc,OFFSET(CostE!AK$5,$Z19-1,SkipYrs*Periods+1,1,$AE19)),0)+OFFSET(CostE!AK$5,$Z19-1,SkipYrs*Periods+1+$AE19)*$AF19*(1/(1+Disc)^($AE19+1)))*$M19*(1+$AL19) + (OFFSET(CostE!AK$5,$Z19-1,SkipYrs*Periods+1+$AE19)*$AG19*(1/(1+Disc)^($AE19+1))+ IF($AH19>0,NPV(Disc,OFFSET(CostE!AK$5,$Z19-1,SkipYrs*Periods+ROUND($AE19+$AF19+$AG19,0)+1,1,$AH19)),0)*(1/(1+Disc)^($AE19+$AF19+$AG19))+ OFFSET(CostE!AK$5,$Z19-1,SkipYrs*Periods+ROUND($AE19+$AF19+$AG19+$AH19,0)+1)*$AI19*(1/(1+Disc)^(ROUND($AE19+$AH19+$AF19+$AG19,0)+1)))*Input!$AC19*(1+$AL19) -> 27597.0709 | BR19: =(IF($AE19>0,NPV(Disc,OFFSET(CostE!AL$5,$Z19-1,SkipYrs*Periods+1,1,$AE19)),0)+OFFSET(CostE!AL$5,$Z19-1,SkipYrs*Periods+1+$AE19)*$AF19*(1/(1+Disc)^($AE19+1)))*$M19*(1+$AL19) + (OFFSET(CostE!AL$5,$Z19-1,SkipYrs*Periods+1+$AE19)*$AG19*(1/(1+Disc)^($AE19+1))+ IF($AH19>0,NPV(Disc,OFFSET(CostE!AL$5,$Z19-1,SkipYrs*Periods+ROUND($AE19+$AF19+$AG19,0)+1,1,$AH19)),0)*(1/(1+Disc)^($AE19+$AF19+$AG19))+ OFFSET(CostE!AL$5,$Z19-1,SkipYrs*Periods+ROUND($AE19+$AF19+$AG19+$AH19,0)+1)*$AI19*(1/(1+Disc)^(ROUND($AE19+$AH19+$AF19+$AG19,0)+1)))*Input!$AC19*(1+$AL19) -> 27830.31431 | BS19: =(IF($AE19>0,NPV(Disc,OFFSET(CostE!AM$5,$Z19-1,SkipYrs*Periods+1,1,$AE19)),0)+OFFSET(CostE!AM$5,$Z19-1,SkipYrs*Periods+1+$AE19)*$AF19*(1/(1+Disc)^($AE19+1)))*$M19*(1+$AL19) + (OFFSET(CostE!AM$5,$Z19-1,SkipYrs*Periods+1+$AE19)*$AG19*(1/(1+Disc)^($AE19+1))+ IF($AH19>0,NPV(Disc,OFFSET(CostE!AM$5,$Z19-1,SkipYrs*Periods+ROUND($AE19+$AF19+$AG19,0)+1,1,$AH19)),0)*(1/(1+Disc)^($AE19+$AF19+$AG19))+ OFFSET(CostE!AM$5,$Z19-1,SkipYrs*Periods+ROUND($AE19+$AF19+$AG19+$AH19,0)+1)*$AI19*(1/(1+Disc)^(ROUND($AE19+$AH19+$AF19+$AG19,0)+1)))*Input!$AC19*(1+$AL19) -> 27934.34413 | BT19: =(IF($AE19>0,NPV(Disc,OFFSET(CostE!AN$5,$Z19-1,SkipYrs*Periods+1,1,$AE19)),0)+OFFSET(CostE!AN$5,$Z19-1,SkipYrs*Periods+1+$AE19)*$AF19*(1/(1+Disc)^($AE19+1)))*$M19*(1+$AL19) + (OFFSET(CostE!AN$5,$Z19-1,SkipYrs*Periods+1+$AE19)*$AG19*(1/(1+Disc)^($AE19+1))+ IF($AH19>0,NPV(Disc,OFFSET(CostE!AN$5,$Z19-1,SkipYrs*Periods+ROUND($AE19+$AF19+$AG19,0)+1,1,$AH19)),0)*(1/(1+Disc)^($AE19+$AF19+$AG19))+ OFFSET(CostE!AN$5,$Z19-1,SkipYrs*Periods+ROUND($AE19+$AF19+$AG19+$AH19,0)+1)*$AI19*(1/(1+Disc)^(ROUND($AE19+$AH19+$AF19+$AG19,0)+1)))*Input!$AC19*(1+$AL19) -> 28144.87296 | BU19: =(IF($AE19>0,NPV(Disc,OFFSET(CostE!AO$5,$Z19-1,SkipYrs*Periods+1,1,$AE19)),0)+OFFSET(CostE!AO$5,$Z19-1,SkipYrs*Periods+1+$AE19)*$AF19*(1/(1+Disc)^($AE19+1)))*$M19*(1+$AL19) + (OFFSET(CostE!AO$5,$Z19-1,SkipYrs*Periods+1+$AE19)*$AG19*(1/(1+Disc)^($AE19+1))+ IF($AH19>0,NPV(Disc,OFFSET(CostE!AO$5,$Z19-1,SkipYrs*Periods+ROUND($AE19+$AF19+$AG19,0)+1,1,$AH19)),0)*(1/(1+Disc)^($AE19+$AF19+$AG19))+ OFFSET(CostE!AO$5,$Z19-1,SkipYrs*Periods+ROUND($AE19+$AF19+$AG19+$AH19,0)+1)*$AI19*(1/(1+Disc)^(ROUND($AE19+$AH19+$AF19+$AG19,0)+1)))*Input!$AC19*(1+$AL19) -> 28486.76984 | BV19: =(IF($AE19>0,NPV(Disc,OFFSET(CostE!AP$5,$Z19-1,SkipYrs*Periods+1,1,$AE19)),0)+OFFSET(CostE!AP$5,$Z19-1,SkipYrs*Periods+1+$AE19)*$AF19*(1/(1+Disc)^($AE19+1)))*$M19*(1+$AL19) + (OFFSET(CostE!AP$5,$Z19-1,SkipYrs*Periods+1+$AE19)*$AG19*(1/(1+Disc)^($AE19+1))+ IF($AH19>0,NPV(Disc,OFFSET(CostE!AP$5,$Z19-1,SkipYrs*Periods+ROUND($AE19+$AF19+$AG19,0)+1,1,$AH19)),0)*(1/(1+Disc)^($AE19+$AF19+$AG19))+ OFFSET(CostE!AP$5,$Z19-1,SkipYrs*Periods+ROUND($AE19+$AF19+$AG19+$AH19,0)+1)*$AI19*(1/(1+Disc)^(ROUND($AE19+$AH19+$AF19+$AG19,0)+1)))*Input!$AC19*(1+$AL19) -> 28723.29721 | BW19: =(IF($AE19>0,NPV(Disc,OFFSET(CostE!AQ$5,$Z19-1,SkipYrs*Periods+1,1,$AE19)),0)+OFFSET(CostE!AQ$5,$Z19-1,SkipYrs*Periods+1+$AE19)*$AF19*(1/(1+Disc)^($AE19+1)))*$M19*(1+$AL19) + (OFFSET(CostE!AQ$5,$Z19-1,SkipYrs*Periods+1+$AE19)*$AG19*(1/(1+Disc)^($AE19+1))+ IF($AH19>0,NPV(Disc,OFFSET(CostE!AQ$5,$Z19-1,SkipYrs*Periods+ROUND($AE19+$AF19+$AG19,0)+1,1,$AH19)),0)*(1/(1+Disc)^($AE19+$AF19+$AG19))+ OFFSET(CostE!AQ$5,$Z19-1,SkipYrs*Periods+ROUND($AE19+$AF19+$AG19+$AH19,0)+1)*$AI19*(1/(1+Disc)^(ROUND($AE19+$AH19+$AF19+$AG19,0)+1)))*Input!$AC19*(1+$AL19) -> 28824.59018 | BX19: =(IF($AE19>0,NPV(Disc,OFFSET(CostE!AR$5,$Z19-1,SkipYrs*Periods+1,1,$AE19)),0)+OFFSET(CostE!AR$5,$Z19-1,SkipYrs*Periods+1+$AE19)*$AF19*(1/(1+Disc)^($AE19+1)))*$M19*(1+$AL19) + (OFFSET(CostE!AR$5,$Z19-1,SkipYrs*Periods+1+$AE19)*$AG19*(1/(1+Disc)^($AE19+1))+ IF($AH19>0,NPV(Disc,OFFSET(CostE!AR$5,$Z19-1,SkipYrs*Periods+ROUND($AE19+$AF19+$AG19,0)+1,1,$AH19)),0)*(1/(1+Disc)^($AE19+$AF19+$AG19))+ OFFSET(CostE!AR$5,$Z19-1,SkipYrs*Periods+ROUND($AE19+$AF19+$AG19+$AH19,0)+1)*$AI19*(1/(1+Disc)^(ROUND($AE19+$AH19+$AF19+$AG19,0)+1)))*Input!$AC19*(1+$AL19) -> 29039.06686 | BY19: =(IF($AE19>0,NPV(Disc,OFFSET(CostE!AS$5,$Z19-1,SkipYrs*Periods+1,1,$AE19)),0)+OFFSET(CostE!AS$5,$Z19-1,SkipYrs*Periods+1+$AE19)*$AF19*(1/(1+Disc)^($AE19+1)))*$M19*(1+$AL19) + (OFFSET(CostE!AS$5,$Z19-1,SkipYrs*Periods+1+$AE19)*$AG19*(1/(1+Disc)^($AE19+1))+ IF($AH19>0,NPV(Disc,OFFSET(CostE!AS$5,$Z19-1,SkipYrs*Periods+ROUND($AE19+$AF19+$AG19,0)+1,1,$AH19)),0)*(1/(1+Disc)^($AE19+$AF19+$AG19))+ OFFSET(CostE!AS$5,$Z19-1,SkipYrs*Periods+ROUND($AE19+$AF19+$AG19+$AH19,0)+1)*$AI19*(1/(1+Disc)^(ROUND($AE19+$AH19+$AF19+$AG19,0)+1)))*Input!$AC19*(1+$AL19) -> 29391.28744 | BZ19: =(IF($AE19>0,NPV(Disc,OFFSET(CostE!AT$5,$Z19-1,SkipYrs*Periods+1,1,$AE19)),0)+OFFSET(CostE!AT$5,$Z19-1,SkipYrs*Periods+1+$AE19)*$AF19*(1/(1+Disc)^($AE19+1)))*$M19*(1+$AL19) + (OFFSET(CostE!AT$5,$Z19-1,SkipYrs*Periods+1+$AE19)*$AG19*(1/(1+Disc)^($AE19+1))+ IF($AH19>0,NPV(Disc,OFFSET(CostE!AT$5,$Z19-1,SkipYrs*Periods+ROUND($AE19+$AF19+$AG19,0)+1,1,$AH19)),0)*(1/(1+Disc)^($AE19+$AF19+$AG19))+ OFFSET(CostE!AT$5,$Z19-1,SkipYrs*Periods+ROUND($AE19+$AF19+$AG19+$AH19,0)+1)*$AI19*(1/(1+Disc)^(ROUND($AE19+$AH19+$AF19+$AG19,0)+1)))*Input!$AC19*(1+$AL19) -> 29631.21393 | CA19: =(IF($AE19>0,NPV(Disc,OFFSET(CostE!AU$5,$Z19-1,SkipYrs*Periods+1,1,$AE19)),0)+OFFSET(CostE!AU$5,$Z19-1,SkipYrs*Periods+1+$AE19)*$AF19*(1/(1+Disc)^($AE19+1)))*$M19*(1+$AL19) + (OFFSET(CostE!AU$5,$Z19-1,SkipYrs*Periods+1+$AE19)*$AG19*(1/(1+Disc)^($AE19+1))+ IF($AH19>0,NPV(Disc,OFFSET(CostE!AU$5,$Z19-1,SkipYrs*Periods+ROUND($AE19+$AF19+$AG19,0)+1,1,$AH19)),0)*(1/(1+Disc)^($AE19+$AF19+$AG19))+ OFFSET(CostE!AU$5,$Z19-1,SkipYrs*Periods+ROUND($AE19+$AF19+$AG19+$AH19,0)+1)*$AI19*(1/(1+Disc)^(ROUND($AE19+$AH19+$AF19+$AG19,0)+1)))*Input!$AC19*(1+$AL19) -> 29725.13161 | CB19: =(IF($AE19>0,NPV(Disc,OFFSET(CostE!AV$5,$Z19-1,SkipYrs*Periods+1,1,$AE19)),0)+OFFSET(CostE!AV$5,$Z19-1,SkipYrs*Periods+1+$AE19)*$AF19*(1/(1+Disc)^($AE19+1)))*$M19*(1+$AL19) + (OFFSET(CostE!AV$5,$Z19-1,SkipYrs*Periods+1+$AE19)*$AG19*(1/(1+Disc)^($AE19+1))+ IF($AH19>0,NPV(Disc,OFFSET(CostE!AV$5,$Z19-1,SkipYrs*Periods+ROUND($AE19+$AF19+$AG19,0)+1,1,$AH19)),0)*(1/(1+Disc)^($AE19+$AF19+$AG19))+ OFFSET(CostE!AV$5,$Z19-1,SkipYrs*Periods+ROUND($AE19+$AF19+$AG19+$AH19,0)+1)*$AI19*(1/(1+Disc)^(ROUND($AE19+$AH19+$AF19+$AG19,0)+1)))*Input!$AC19*(1+$AL19) -> 29941.31026 | CC19: =(IF($AE19>0,NPV(Disc,OFFSET(CostE!AW$5,$Z19-1,SkipYrs*Periods+1,1,$AE19)),0)+OFFSET(CostE!AW$5,$Z19-1,SkipYrs*Periods+1+$AE19)*$AF19*(1/(1+Disc)^($AE19+1)))*$M19*(1+$AL19) + (OFFSET(CostE!AW$5,$Z19-1,SkipYrs*Periods+1+$AE19)*$AG19*(1/(1+Disc)^($AE19+1))+ IF($AH19>0,NPV(Disc,OFFSET(CostE!AW$5,$Z19-1,SkipYrs*Periods+ROUND($AE19+$AF19+$AG19,0)+1,1,$AH19)),0)*(1/(1+Disc)^($AE19+$AF19+$AG19))+ OFFSET(CostE!AW$5,$Z19-1,SkipYrs*Periods+ROUND($AE19+$AF19+$AG19+$AH19,0)+1)*$AI19*(1/(1+Disc)^(ROUND($AE19+$AH19+$AF19+$AG19,0)+1)))*Input!$AC19*(1+$AL19) -> 30164.13204 | CD19: =(IF($AE19>0,NPV(Disc,OFFSET(CostE!AX$5,$Z19-1,SkipYrs*Periods+1,1,$AE19)),0)+OFFSET(CostE!AX$5,$Z19-1,SkipYrs*Periods+1+$AE19)*$AF19*(1/(1+Disc)^($AE19+1)))*$M19*(1+$AL19) + (OFFSET(CostE!AX$5,$Z19-1,SkipYrs*Periods+1+$AE19)*$AG19*(1/(1+Disc)^($AE19+1))+ IF($AH19>0,NPV(Disc,OFFSET(CostE!AX$5,$Z19-1,SkipYrs*Periods+ROUND($AE19+$AF19+$AG19,0)+1,1,$AH19)),0)*(1/(1+Disc)^($AE19+$AF19+$AG19))+ OFFSET(CostE!AX$5,$Z19-1,SkipYrs*Periods+ROUND($AE19+$AF19+$AG19+$AH19,0)+1)*$AI19*(1/(1+Disc)^(ROUND($AE19+$AH19+$AF19+$AG19,0)+1)))*Input!$AC19*(1+$AL19) -> 29991.98496 | CE19: =(IF($AE19>0,NPV(Disc,OFFSET(CostE!G$5,$AA19-1,SkipYrs*Periods+1,1,$AE19)),0)+OFFSET(CostE!G$5,$AA19-1,SkipYrs*Periods+1+$AE19)*$AF19*(1/(1+Disc)^($AE19+1)))*$R19 + (OFFSET(CostE!G$5,$AA19-1,SkipYrs*Periods+1+$AE19)*$AG19*(1/(1+Disc)^($AE19+1))+ IF($AH19>0,NPV(Disc,OFFSET(CostE!G$5,$AA19-1,SkipYrs*Periods+ROUND($AE19+$AF19+$AG19,0)+1,1,$AH19)),0)*(1/(1+Disc)^($AE19+$AF19+$AG19))+ OFFSET(CostE!G$5,$AA19-1,SkipYrs*Periods+ROUND($AE19+$AF19+$AG19+$AH19,0)+1)*$AI19*(1/(1+Disc)^(ROUND($AE19+$AH19+$AF19+$AG19,0)+1)))*$S19 -> 2639.178575 | CF19: =(IF($AE19>0,NPV(Disc,OFFSET(CostE!H$5,$AA19-1,SkipYrs*Periods+1,1,$AE19)),0)+OFFSET(CostE!H$5,$AA19-1,SkipYrs*Periods+1+$AE19)*$AF19*(1/(1+Disc)^($AE19+1)))*$R19 + (OFFSET(CostE!H$5,$AA19-1,SkipYrs*Periods+1+$AE19)*$AG19*(1/(1+Disc)^($AE19+1))+ IF($AH19>0,NPV(Disc,OFFSET(CostE!H$5,$AA19-1,SkipYrs*Periods+ROUND($AE19+$AF19+$AG19,0)+1,1,$AH19)),0)*(1/(1+Disc)^($AE19+$AF19+$AG19))+ OFFSET(CostE!H$5,$AA19-1,SkipYrs*Periods+ROUND($AE19+$AF19+$AG19+$AH19,0)+1)*$AI19*(1/(1+Disc)^(ROUND($AE19+$AH19+$AF19+$AG19,0)+1)))*$S19 -> 2649.634183 | CG19: =(IF($AE19>0,NPV(Disc,OFFSET(CostE!I$5,$AA19-1,SkipYrs*Periods+1,1,$AE19)),0)+OFFSET(CostE!I$5,$AA19-1,SkipYrs*Periods+1+$AE19)*$AF19*(1/(1+Disc)^($AE19+1)))*$R19 + (OFFSET(CostE!I$5,$AA19-1,SkipYrs*Periods+1+$AE19)*$AG19*(1/(1+Disc)^($AE19+1))+ IF($AH19>0,NPV(Disc,OFFSET(CostE!I$5,$AA19-1,SkipYrs*Periods+ROUND($AE19+$AF19+$AG19,0)+1,1,$AH19)),0)*(1/(1+Disc)^($AE19+$AF19+$AG19))+ OFFSET(CostE!I$5,$AA19-1,SkipYrs*Periods+ROUND($AE19+$AF19+$AG19+$AH19,0)+1)*$AI19*(1/(1+Disc)^(ROUND($AE19+$AH19+$AF19+$AG19,0)+1)))*$S19 -> 2581.934541 | CH19: =(IF($AE19>0,NPV(Disc,OFFSET(CostE!J$5,$AA19-1,SkipYrs*Periods+1,1,$AE19)),0)+OFFSET(CostE!J$5,$AA19-1,SkipYrs*Periods+1+$AE19)*$AF19*(1/(1+Disc)^($AE19+1)))*$R19 + (OFFSET(CostE!J$5,$AA19-1,SkipYrs*Periods+1+$AE19)*$AG19*(1/(1+Disc)^($AE19+1))+ IF($AH19>0,NPV(Disc,OFFSET(CostE!J$5,$AA19-1,SkipYrs*Periods+ROUND($AE19+$AF19+$AG19,0)+1,1,$AH19)),0)*(1/(1+Disc)^($AE19+$AF19+$AG19))+ OFFSET(CostE!J$5,$AA19-1,SkipYrs*Periods+ROUND($AE19+$AF19+$AG19+$AH19,0)+1)*$AI19*(1/(1+Disc)^(ROUND($AE19+$AH19+$AF19+$AG19,0)+1)))*$S19 -> 2596.096061 | CI19: =(IF($AE19>0,NPV(Disc,OFFSET(CostE!K$5,$AA19-1,SkipYrs*Periods+1,1,$AE19)),0)+OFFSET(CostE!K$5,$AA19-1,SkipYrs*Periods+1+$AE19)*$AF19*(1/(1+Disc)^($AE19+1)))*$R19 + (OFFSET(CostE!K$5,$AA19-1,SkipYrs*Periods+1+$AE19)*$AG19*(1/(1+Disc)^($AE19+1))+ IF($AH19>0,NPV(Disc,OFFSET(CostE!K$5,$AA19-1,SkipYrs*Periods+ROUND($AE19+$AF19+$AG19,0)+1,1,$AH19)),0)*(1/(1+Disc)^($AE19+$AF19+$AG19))+ OFFSET(CostE!K$5,$AA19-1,SkipYrs*Periods+ROUND($AE19+$AF19+$AG19+$AH19,0)+1)*$AI19*(1/(1+Disc)^(ROUND($AE19+$AH19+$AF19+$AG19,0)+1)))*$S19 -> 2691.962146 | CJ19: =(IF($AE19>0,NPV(Disc,OFFSET(CostE!L$5,$AA19-1,SkipYrs*Periods+1,1,$AE19)),0)+OFFSET(CostE!L$5,$AA19-1,SkipYrs*Periods+1+$AE19)*$AF19*(1/(1+Disc)^($AE19+1)))*$R19 + (OFFSET(CostE!L$5,$AA19-1,SkipYrs*Periods+1+$AE19)*$AG19*(1/(1+Disc)^($AE19+1))+ IF($AH19>0,NPV(Disc,OFFSET(CostE!L$5,$AA19-1,SkipYrs*Periods+ROUND($AE19+$AF19+$AG19,0)+1,1,$AH19)),0)*(1/(1+Disc)^($AE19+$AF19+$AG19))+ OFFSET(CostE!L$5,$AA19-1,SkipYrs*Periods+ROUND($AE19+$AF19+$AG19+$AH19,0)+1)*$AI19*(1/(1+Disc)^(ROUND($AE19+$AH19+$AF19+$AG19,0)+1)))*$S19 -> 2702.626867 | CK19: =(IF($AE19>0,NPV(Disc,OFFSET(CostE!M$5,$AA19-1,SkipYrs*Periods+1,1,$AE19)),0)+OFFSET(CostE!M$5,$AA19-1,SkipYrs*Periods+1+$AE19)*$AF19*(1/(1+Disc)^($AE19+1)))*$R19 + (OFFSET(CostE!M$5,$AA19-1,SkipYrs*Periods+1+$AE19)*$AG19*(1/(1+Disc)^($AE19+1))+ IF($AH19>0,NPV(Disc,OFFSET(CostE!M$5,$AA19-1,SkipYrs*Periods+ROUND($AE19+$AF19+$AG19,0)+1,1,$AH19)),0)*(1/(1+Disc)^($AE19+$AF19+$AG19))+ OFFSET(CostE!M$5,$AA19-1,SkipYrs*Periods+ROUND($AE19+$AF19+$AG19+$AH19,0)+1)*$AI19*(1/(1+Disc)^(ROUND($AE19+$AH19+$AF19+$AG19,0)+1)))*$S19 -> 2633.573232 | CL19: =(IF($AE19>0,NPV(Disc,OFFSET(CostE!N$5,$AA19-1,SkipYrs*Periods+1,1,$AE19)),0)+OFFSET(CostE!N$5,$AA19-1,SkipYrs*Periods+1+$AE19)*$AF19*(1/(1+Disc)^($AE19+1)))*$R19 + (OFFSET(CostE!N$5,$AA19-1,SkipYrs*Periods+1+$AE19)*$AG19*(1/(1+Disc)^($AE19+1))+ IF($AH19>0,NPV(Disc,OFFSET(CostE!N$5,$AA19-1,SkipYrs*Periods+ROUND($AE19+$AF19+$AG19,0)+1,1,$AH19)),0)*(1/(1+Disc)^($AE19+$AF19+$AG19))+ OFFSET(CostE!N$5,$AA19-1,SkipYrs*Periods+ROUND($AE19+$AF19+$AG19+$AH19,0)+1)*$AI19*(1/(1+Disc)^(ROUND($AE19+$AH19+$AF19+$AG19,0)+1)))*$S19 -> 2648.017982 | CM19: =(IF($AE19>0,NPV(Disc,OFFSET(CostE!O$5,$AA19-1,SkipYrs*Periods+1,1,$AE19)),0)+OFFSET(CostE!O$5,$AA19-1,SkipYrs*Periods+1+$AE19)*$AF19*(1/(1+Disc)^($AE19+1)))*$R19 + (OFFSET(CostE!O$5,$AA19-1,SkipYrs*Periods+1+$AE19)*$AG19*(1/(1+Disc)^($AE19+1))+ IF($AH19>0,NPV(Disc,OFFSET(CostE!O$5,$AA19-1,SkipYrs*Periods+ROUND($AE19+$AF19+$AG19,0)+1,1,$AH19)),0)*(1/(1+Disc)^($AE19+$AF19+$AG19))+ OFFSET(CostE!O$5,$AA19-1,SkipYrs*Periods+ROUND($AE19+$AF19+$AG19+$AH19,0)+1)*$AI19*(1/(1+Disc)^(ROUND($AE19+$AH19+$AF19+$AG19,0)+1)))*$S19 -> 2745.801389 | CN19: =(IF($AE19>0,NPV(Disc,OFFSET(CostE!P$5,$AA19-1,SkipYrs*Periods+1,1,$AE19)),0)+OFFSET(CostE!P$5,$AA19-1,SkipYrs*Periods+1+$AE19)*$AF19*(1/(1+Disc)^($AE19+1)))*$R19 + (OFFSET(CostE!P$5,$AA19-1,SkipYrs*Periods+1+$AE19)*$AG19*(1/(1+Disc)^($AE19+1))+ IF($AH19>0,NPV(Disc,OFFSET(CostE!P$5,$AA19-1,SkipYrs*Periods+ROUND($AE19+$AF19+$AG19,0)+1,1,$AH19)),0)*(1/(1+Disc)^($AE19+$AF19+$AG19))+ OFFSET(CostE!P$5,$AA19-1,SkipYrs*Periods+ROUND($AE19+$AF19+$AG19+$AH19,0)+1)*$AI19*(1/(1+Disc)^(ROUND($AE19+$AH19+$AF19+$AG19,0)+1)))*$S19 -> 2756.679404 | CO19: =(IF($AE19>0,NPV(Disc,OFFSET(CostE!Q$5,$AA19-1,SkipYrs*Periods+1,1,$AE19)),0)+OFFSET(CostE!Q$5,$AA19-1,SkipYrs*Periods+1+$AE19)*$AF19*(1/(1+Disc)^($AE19+1)))*$R19 + (OFFSET(CostE!Q$5,$AA19-1,SkipYrs*Periods+1+$AE19)*$AG19*(1/(1+Disc)^($AE19+1))+ IF($AH19>0,NPV(Disc,OFFSET(CostE!Q$5,$AA19-1,SkipYrs*Periods+ROUND($AE19+$AF19+$AG19,0)+1,1,$AH19)),0)*(1/(1+Disc)^($AE19+$AF19+$AG19))+ OFFSET(CostE!Q$5,$AA19-1,SkipYrs*Periods+ROUND($AE19+$AF19+$AG19+$AH19,0)+1)*$AI19*(1/(1+Disc)^(ROUND($AE19+$AH19+$AF19+$AG19,0)+1)))*$S19 -> 2686.244696 | CP19: =(IF($AE19>0,NPV(Disc,OFFSET(CostE!R$5,$AA19-1,SkipYrs*Periods+1,1,$AE19)),0)+OFFSET(CostE!R$5,$AA19-1,SkipYrs*Periods+1+$AE19)*$AF19*(1/(1+Disc)^($AE19+1)))*$R19 + (OFFSET(CostE!R$5,$AA19-1,SkipYrs*Periods+1+$AE19)*$AG19*(1/(1+Disc)^($AE19+1))+ IF($AH19>0,NPV(Disc,OFFSET(CostE!R$5,$AA19-1,SkipYrs*Periods+ROUND($AE19+$AF19+$AG19,0)+1,1,$AH19)),0)*(1/(1+Disc)^($AE19+$AF19+$AG19))+ OFFSET(CostE!R$5,$AA19-1,SkipYrs*Periods+ROUND($AE19+$AF19+$AG19+$AH19,0)+1)*$AI19*(1/(1+Disc)^(ROUND($AE19+$AH19+$AF19+$AG19,0)+1)))*$S19 -> 2700.978342 | CQ19: =(IF($AE19>0,NPV(Disc,OFFSET(CostE!S$5,$AA19-1,SkipYrs*Periods+1,1,$AE19)),0)+OFFSET(CostE!S$5,$AA19-1,SkipYrs*Periods+1+$AE19)*$AF19*(1/(1+Disc)^($AE19+1)))*$R19 + (OFFSET(CostE!S$5,$AA19-1,SkipYrs*Periods+1+$AE19)*$AG19*(1/(1+Disc)^($AE19+1))+ IF($AH19>0,NPV(Disc,OFFSET(CostE!S$5,$AA19-1,SkipYrs*Periods+ROUND($AE19+$AF19+$AG19,0)+1,1,$AH19)),0)*(1/(1+Disc)^($AE19+$AF19+$AG19))+ OFFSET(CostE!S$5,$AA19-1,SkipYrs*Periods+ROUND($AE19+$AF19+$AG19+$AH19,0)+1)*$AI19*(1/(1+Disc)^(ROUND($AE19+$AH19+$AF19+$AG19,0)+1)))*$S19 -> 2800.717417 | CR19: =(IF($AE19>0,NPV(Disc,OFFSET(CostE!T$5,$AA19-1,SkipYrs*Periods+1,1,$AE19)),0)+OFFSET(CostE!T$5,$AA19-1,SkipYrs*Periods+1+$AE19)*$AF19*(1/(1+Disc)^($AE19+1)))*$R19 + (OFFSET(CostE!T$5,$AA19-1,SkipYrs*Periods+1+$AE19)*$AG19*(1/(1+Disc)^($AE19+1))+ IF($AH19>0,NPV(Disc,OFFSET(CostE!T$5,$AA19-1,SkipYrs*Periods+ROUND($AE19+$AF19+$AG19,0)+1,1,$AH19)),0)*(1/(1+Disc)^($AE19+$AF19+$AG19))+ OFFSET(CostE!T$5,$AA19-1,SkipYrs*Periods+ROUND($AE19+$AF19+$AG19+$AH19,0)+1)*$AI19*(1/(1+Disc)^(ROUND($AE19+$AH19+$AF19+$AG19,0)+1)))*$S19 -> 2811.812993 | CS19: =(IF($AE19>0,NPV(Disc,OFFSET(CostE!U$5,$AA19-1,SkipYrs*Periods+1,1,$AE19)),0)+OFFSET(CostE!U$5,$AA19-1,SkipYrs*Periods+1+$AE19)*$AF19*(1/(1+Disc)^($AE19+1)))*$R19 + (OFFSET(CostE!U$5,$AA19-1,SkipYrs*Periods+1+$AE19)*$AG19*(1/(1+Disc)^($AE19+1))+ IF($AH19>0,NPV(Disc,OFFSET(CostE!U$5,$AA19-1,SkipYrs*Periods+ROUND($AE19+$AF19+$AG19,0)+1,1,$AH19)),0)*(1/(1+Disc)^($AE19+$AF19+$AG19))+ OFFSET(CostE!U$5,$AA19-1,SkipYrs*Periods+ROUND($AE19+$AF19+$AG19+$AH19,0)+1)*$AI19*(1/(1+Disc)^(ROUND($AE19+$AH19+$AF19+$AG19,0)+1)))*$S19 -> 2739.96959 | CT19: =(IF($AE19>0,NPV(Disc,OFFSET(CostE!V$5,$AA19-1,SkipYrs*Periods+1,1,$AE19)),0)+OFFSET(CostE!V$5,$AA19-1,SkipYrs*Periods+1+$AE19)*$AF19*(1/(1+Disc)^($AE19+1)))*$R19 + (OFFSET(CostE!V$5,$AA19-1,SkipYrs*Periods+1+$AE19)*$AG19*(1/(1+Disc)^($AE19+1))+ IF($AH19>0,NPV(Disc,OFFSET(CostE!V$5,$AA19-1,SkipYrs*Periods+ROUND($AE19+$AF19+$AG19,0)+1,1,$AH19)),0)*(1/(1+Disc)^($AE19+$AF19+$AG19))+ OFFSET(CostE!V$5,$AA19-1,SkipYrs*Periods+ROUND($AE19+$AF19+$AG19+$AH19,0)+1)*$AI19*(1/(1+Disc)^(ROUND($AE19+$AH19+$AF19+$AG19,0)+1)))*$S19 -> 2754.997909 | CU19: =(IF($AE19>0,NPV(Disc,OFFSET(CostE!W$5,$AA19-1,SkipYrs*Periods+1,1,$AE19)),0)+OFFSET(CostE!W$5,$AA19-1,SkipYrs*Periods+1+$AE19)*$AF19*(1/(1+Disc)^($AE19+1)))*$R19 + (OFFSET(CostE!W$5,$AA19-1,SkipYrs*Periods+1+$AE19)*$AG19*(1/(1+Disc)^($AE19+1))+ IF($AH19>0,NPV(Disc,OFFSET(CostE!W$5,$AA19-1,SkipYrs*Periods+ROUND($AE19+$AF19+$AG19,0)+1,1,$AH19)),0)*(1/(1+Disc)^($AE19+$AF19+$AG19))+ OFFSET(CostE!W$5,$AA19-1,SkipYrs*Periods+ROUND($AE19+$AF19+$AG19+$AH19,0)+1)*$AI19*(1/(1+Disc)^(ROUND($AE19+$AH19+$AF19+$AG19,0)+1)))*$S19 -> 2856.731765 | CV19: =(IF($AE19>0,NPV(Disc,OFFSET(CostE!X$5,$AA19-1,SkipYrs*Periods+1,1,$AE19)),0)+OFFSET(CostE!X$5,$AA19-1,SkipYrs*Periods+1+$AE19)*$AF19*(1/(1+Disc)^($AE19+1)))*$R19 + (OFFSET(CostE!X$5,$AA19-1,SkipYrs*Periods+1+$AE19)*$AG19*(1/(1+Disc)^($AE19+1))+ IF($AH19>0,NPV(Disc,OFFSET(CostE!X$5,$AA19-1,SkipYrs*Periods+ROUND($AE19+$AF19+$AG19,0)+1,1,$AH19)),0)*(1/(1+Disc)^($AE19+$AF19+$AG19))+ OFFSET(CostE!X$5,$AA19-1,SkipYrs*Periods+ROUND($AE19+$AF19+$AG19+$AH19,0)+1)*$AI19*(1/(1+Disc)^(ROUND($AE19+$AH19+$AF19+$AG19,0)+1)))*$S19 -> 2868.049252 | CW19: =(IF($AE19>0,NPV(Disc,OFFSET(CostE!Y$5,$AA19-1,SkipYrs*Periods+1,1,$AE19)),0)+OFFSET(CostE!Y$5,$AA19-1,SkipYrs*Periods+1+$AE19)*$AF19*(1/(1+Disc)^($AE19+1)))*$R19 + (OFFSET(CostE!Y$5,$AA19-1,SkipYrs*Periods+1+$AE19)*$AG19*(1/(1+Disc)^($AE19+1))+ IF($AH19>0,NPV(Disc,OFFSET(CostE!Y$5,$AA19-1,SkipYrs*Periods+ROUND($AE19+$AF19+$AG19,0)+1,1,$AH19)),0)*(1/(1+Disc)^($AE19+$AF19+$AG19))+ OFFSET(CostE!Y$5,$AA19-1,SkipYrs*Periods+ROUND($AE19+$AF19+$AG19+$AH19,0)+1)*$AI19*(1/(1+Disc)^(ROUND($AE19+$AH19+$AF19+$AG19,0)+1)))*$S19 -> 2794.768982 | CX19: =(IF($AE19>0,NPV(Disc,OFFSET(CostE!Z$5,$AA19-1,SkipYrs*Periods+1,1,$AE19)),0)+OFFSET(CostE!Z$5,$AA19-1,SkipYrs*Periods+1+$AE19)*$AF19*(1/(1+Disc)^($AE19+1)))*$R19 + (OFFSET(CostE!Z$5,$AA19-1,SkipYrs*Periods+1+$AE19)*$AG19*(1/(1+Disc)^($AE19+1))+ IF($AH19>0,NPV(Disc,OFFSET(CostE!Z$5,$AA19-1,SkipYrs*Periods+ROUND($AE19+$AF19+$AG19,0)+1,1,$AH19)),0)*(1/(1+Disc)^($AE19+$AF19+$AG19))+ OFFSET(CostE!Z$5,$AA19-1,SkipYrs*Periods+ROUND($AE19+$AF19+$AG19+$AH19,0)+1)*$AI19*(1/(1+Disc)^(ROUND($AE19+$AH19+$AF19+$AG19,0)+1)))*$S19 -> 2810.097867 | CY19: =(IF($AE19>0,NPV(Disc,OFFSET(CostE!AA$5,$AA19-1,SkipYrs*Periods+1,1,$AE19)),0)+OFFSET(CostE!AA$5,$AA19-1,SkipYrs*Periods+1+$AE19)*$AF19*(1/(1+Disc)^($AE19+1)))*$R19 + (OFFSET(CostE!AA$5,$AA19-1,SkipYrs*Periods+1+$AE19)*$AG19*(1/(1+Disc)^($AE19+1))+ IF($AH19>0,NPV(Disc,OFFSET(CostE!AA$5,$AA19-1,SkipYrs*Periods+ROUND($AE19+$AF19+$AG19,0)+1,1,$AH19)),0)*(1/(1+Disc)^($AE19+$AF19+$AG19))+ OFFSET(CostE!AA$5,$AA19-1,SkipYrs*Periods+ROUND($AE19+$AF19+$AG19+$AH19,0)+1)*$AI19*(1/(1+Disc)^(ROUND($AE19+$AH19+$AF19+$AG19,0)+1)))*$S19 -> 2913.866401 | CZ19: =(IF($AE19>0,NPV(Disc,OFFSET(CostE!AB$5,$AA19-1,SkipYrs*Periods+1,1,$AE19)),0)+OFFSET(CostE!AB$5,$AA19-1,SkipYrs*Periods+1+$AE19)*$AF19*(1/(1+Disc)^($AE19+1)))*$R19 + (OFFSET(CostE!AB$5,$AA19-1,SkipYrs*Periods+1+$AE19)*$AG19*(1/(1+Disc)^($AE19+1))+ IF($AH19>0,NPV(Disc,OFFSET(CostE!AB$5,$AA19-1,SkipYrs*Periods+ROUND($AE19+$AF19+$AG19,0)+1,1,$AH19)),0)*(1/(1+Disc)^($AE19+$AF19+$AG19))+ OFFSET(CostE!AB$5,$AA19-1,SkipYrs*Periods+ROUND($AE19+$AF19+$AG19+$AH19,0)+1)*$AI19*(1/(1+Disc)^(ROUND($AE19+$AH19+$AF19+$AG19,0)+1)))*$S19 -> 2925.410237 | DA19: =(IF($AE19>0,NPV(Disc,OFFSET(CostE!AC$5,$AA19-1,SkipYrs*Periods+1,1,$AE19)),0)+OFFSET(CostE!AC$5,$AA19-1,SkipYrs*Periods+1+$AE19)*$AF19*(1/(1+Disc)^($AE19+1)))*$R19 + (OFFSET(CostE!AC$5,$AA19-1,SkipYrs*Periods+1+$AE19)*$AG19*(1/(1+Disc)^($AE19+1))+ IF($AH19>0,NPV(Disc,OFFSET(CostE!AC$5,$AA19-1,SkipYrs*Periods+ROUND($AE19+$AF19+$AG19,0)+1,1,$AH19)),0)*(1/(1+Disc)^($AE19+$AF19+$AG19))+ OFFSET(CostE!AC$5,$AA19-1,SkipYrs*Periods+ROUND($AE19+$AF19+$AG19+$AH19,0)+1)*$AI19*(1/(1+Disc)^(ROUND($AE19+$AH19+$AF19+$AG19,0)+1)))*$S19 -> 2850.664362 | DB19: =(IF($AE19>0,NPV(Disc,OFFSET(CostE!AD$5,$AA19-1,SkipYrs*Periods+1,1,$AE19)),0)+OFFSET(CostE!AD$5,$AA19-1,SkipYrs*Periods+1+$AE19)*$AF19*(1/(1+Disc)^($AE19+1)))*$R19 + (OFFSET(CostE!AD$5,$AA19-1,SkipYrs*Periods+1+$AE19)*$AG19*(1/(1+Disc)^($AE19+1))+ IF($AH19>0,NPV(Disc,OFFSET(CostE!AD$5,$AA19-1,SkipYrs*Periods+ROUND($AE19+$AF19+$AG19,0)+1,1,$AH19)),0)*(1/(1+Disc)^($AE19+$AF19+$AG19))+ OFFSET(CostE!AD$5,$AA19-1,SkipYrs*Periods+ROUND($AE19+$AF19+$AG19+$AH19,0)+1)*$AI19*(1/(1+Disc)^(ROUND($AE19+$AH19+$AF19+$AG19,0)+1)))*$S19 -> 2866.299824 | DC19: =(IF($AE19>0,NPV(Disc,OFFSET(CostE!AE$5,$AA19-1,SkipYrs*Periods+1,1,$AE19)),0)+OFFSET(CostE!AE$5,$AA19-1,SkipYrs*Periods+1+$AE19)*$AF19*(1/(1+Disc)^($AE19+1)))*$R19 + (OFFSET(CostE!AE$5,$AA19-1,SkipYrs*Periods+1+$AE19)*$AG19*(1/(1+Disc)^($AE19+1))+ IF($AH19>0,NPV(Disc,OFFSET(CostE!AE$5,$AA19-1,SkipYrs*Periods+ROUND($AE19+$AF19+$AG19,0)+1,1,$AH19)),0)*(1/(1+Disc)^($AE19+$AF19+$AG19))+ OFFSET(CostE!AE$5,$AA19-1,SkipYrs*Periods+ROUND($AE19+$AF19+$AG19+$AH19,0)+1)*$AI19*(1/(1+Disc)^(ROUND($AE19+$AH19+$AF19+$AG19,0)+1)))*$S19 -> 2972.143729 | DD19: =(IF($AE19>0,NPV(Disc,OFFSET(CostE!AF$5,$AA19-1,SkipYrs*Periods+1,1,$AE19)),0)+OFFSET(CostE!AF$5,$AA19-1,SkipYrs*Periods+1+$AE19)*$AF19*(1/(1+Disc)^($AE19+1)))*$R19 + (OFFSET(CostE!AF$5,$AA19-1,SkipYrs*Periods+1+$AE19)*$AG19*(1/(1+Disc)^($AE19+1))+ IF($AH19>0,NPV(Disc,OFFSET(CostE!AF$5,$AA19-1,SkipYrs*Periods+ROUND($AE19+$AF19+$AG19,0)+1,1,$AH19)),0)*(1/(1+Disc)^($AE19+$AF19+$AG19))+ OFFSET(CostE!AF$5,$AA19-1,SkipYrs*Periods+ROUND($AE19+$AF19+$AG19+$AH19,0)+1)*$AI19*(1/(1+Disc)^(ROUND($AE19+$AH19+$AF19+$AG19,0)+1)))*$S19 -> 2983.918442 | DE19: =(IF($AE19>0,NPV(Disc,OFFSET(CostE!AG$5,$AA19-1,SkipYrs*Periods+1,1,$AE19)),0)+OFFSET(CostE!AG$5,$AA19-1,SkipYrs*Periods+1+$AE19)*$AF19*(1/(1+Disc)^($AE19+1)))*$R19 + (OFFSET(CostE!AG$5,$AA19-1,SkipYrs*Periods+1+$AE19)*$AG19*(1/(1+Disc)^($AE19+1))+ IF($AH19>0,NPV(Disc,OFFSET(CostE!AG$5,$AA19-1,SkipYrs*Periods+ROUND($AE19+$AF19+$AG19,0)+1,1,$AH19)),0)*(1/(1+Disc)^($AE19+$AF19+$AG19))+ OFFSET(CostE!AG$5,$AA19-1,SkipYrs*Periods+ROUND($AE19+$AF19+$AG19+$AH19,0)+1)*$AI19*(1/(1+Disc)^(ROUND($AE19+$AH19+$AF19+$AG19,0)+1)))*$S19 -> 2907.677649 | DF19: =(IF($AE19>0,NPV(Disc,OFFSET(CostE!AH$5,$AA19-1,SkipYrs*Periods+1,1,$AE19)),0)+OFFSET(CostE!AH$5,$AA19-1,SkipYrs*Periods+1+$AE19)*$AF19*(1/(1+Disc)^($AE19+1)))*$R19 + (OFFSET(CostE!AH$5,$AA19-1,SkipYrs*Periods+1+$AE19)*$AG19*(1/(1+Disc)^($AE19+1))+ IF($AH19>0,NPV(Disc,OFFSET(CostE!AH$5,$AA19-1,SkipYrs*Periods+ROUND($AE19+$AF19+$AG19,0)+1,1,$AH19)),0)*(1/(1+Disc)^($AE19+$AF19+$AG19))+ OFFSET(CostE!AH$5,$AA19-1,SkipYrs*Periods+ROUND($AE19+$AF19+$AG19+$AH19,0)+1)*$AI19*(1/(1+Disc)^(ROUND($AE19+$AH19+$AF19+$AG19,0)+1)))*$S19 -> 2923.625821 | DG19: =(IF($AE19>0,NPV(Disc,OFFSET(CostE!AI$5,$AA19-1,SkipYrs*Periods+1,1,$AE19)),0)+OFFSET(CostE!AI$5,$AA19-1,SkipYrs*Periods+1+$AE19)*$AF19*(1/(1+Disc)^($AE19+1)))*$R19 + (OFFSET(CostE!AI$5,$AA19-1,SkipYrs*Periods+1+$AE19)*$AG19*(1/(1+Disc)^($AE19+1))+ IF($AH19>0,NPV(Disc,OFFSET(CostE!AI$5,$AA19-1,SkipYrs*Periods+ROUND($AE19+$AF19+$AG19,0)+1,1,$AH19)),0)*(1/(1+Disc)^($AE19+$AF19+$AG19))+ OFFSET(CostE!AI$5,$AA19-1,SkipYrs*Periods+ROUND($AE19+$AF19+$AG19+$AH19,0)+1)*$AI19*(1/(1+Disc)^(ROUND($AE19+$AH19+$AF19+$AG19,0)+1)))*$S19 -> 3031.586603 | DH19: =(IF($AE19>0,NPV(Disc,OFFSET(CostE!AJ$5,$AA19-1,SkipYrs*Periods+1,1,$AE19)),0)+OFFSET(CostE!AJ$5,$AA19-1,SkipYrs*Periods+1+$AE19)*$AF19*(1/(1+Disc)^($AE19+1)))*$R19 + (OFFSET(CostE!AJ$5,$AA19-1,SkipYrs*Periods+1+$AE19)*$AG19*(1/(1+Disc)^($AE19+1))+ IF($AH19>0,NPV(Disc,OFFSET(CostE!AJ$5,$AA19-1,SkipYrs*Periods+ROUND($AE19+$AF19+$AG19,0)+1,1,$AH19)),0)*(1/(1+Disc)^($AE19+$AF19+$AG19))+ OFFSET(CostE!AJ$5,$AA19-1,SkipYrs*Periods+ROUND($AE19+$AF19+$AG19+$AH19,0)+1)*$AI19*(1/(1+Disc)^(ROUND($AE19+$AH19+$AF19+$AG19,0)+1)))*$S19 -> 3043.596811 | DI19: =(IF($AE19>0,NPV(Disc,OFFSET(CostE!AK$5,$AA19-1,SkipYrs*Periods+1,1,$AE19)),0)+OFFSET(CostE!AK$5,$AA19-1,SkipYrs*Periods+1+$AE19)*$AF19*(1/(1+Disc)^($AE19+1)))*$R19 + (OFFSET(CostE!AK$5,$AA19-1,SkipYrs*Periods+1+$AE19)*$AG19*(1/(1+Disc)^($AE19+1))+ IF($AH19>0,NPV(Disc,OFFSET(CostE!AK$5,$AA19-1,SkipYrs*Periods+ROUND($AE19+$AF19+$AG19,0)+1,1,$AH19)),0)*(1/(1+Disc)^($AE19+$AF19+$AG19))+ OFFSET(CostE!AK$5,$AA19-1,SkipYrs*Periods+ROUND($AE19+$AF19+$AG19+$AH19,0)+1)*$AI19*(1/(1+Disc)^(ROUND($AE19+$AH19+$AF19+$AG19,0)+1)))*$S19 -> 2965.831202 | DJ19: =(IF($AE19>0,NPV(Disc,OFFSET(CostE!AL$5,$AA19-1,SkipYrs*Periods+1,1,$AE19)),0)+OFFSET(CostE!AL$5,$AA19-1,SkipYrs*Periods+1+$AE19)*$AF19*(1/(1+Disc)^($AE19+1)))*$R19 + (OFFSET(CostE!AL$5,$AA19-1,SkipYrs*Periods+1+$AE19)*$AG19*(1/(1+Disc)^($AE19+1))+ IF($AH19>0,NPV(Disc,OFFSET(CostE!AL$5,$AA19-1,SkipYrs*Periods+ROUND($AE19+$AF19+$AG19,0)+1,1,$AH19)),0)*(1/(1+Disc)^($AE19+$AF19+$AG19))+ OFFSET(CostE!AL$5,$AA19-1,SkipYrs*Periods+ROUND($AE19+$AF19+$AG19+$AH19,0)+1)*$AI19*(1/(1+Disc)^(ROUND($AE19+$AH19+$AF19+$AG19,0)+1)))*$S19 -> 2982.079453 | DK19: =(IF($AE19>0,NPV(Disc,OFFSET(CostE!AM$5,$AA19-1,SkipYrs*Periods+1,1,$AE19)),0)+OFFSET(CostE!AM$5,$AA19-1,SkipYrs*Periods+1+$AE19)*$AF19*(1/(1+Disc)^($AE19+1)))*$R19 + (OFFSET(CostE!AM$5,$AA19-1,SkipYrs*Periods+1+$AE19)*$AG19*(1/(1+Disc)^($AE19+1))+ IF($AH19>0,NPV(Disc,OFFSET(CostE!AM$5,$AA19-1,SkipYrs*Periods+ROUND($AE19+$AF19+$AG19,0)+1,1,$AH19)),0)*(1/(1+Disc)^($AE19+$AF19+$AG19))+ OFFSET(CostE!AM$5,$AA19-1,SkipYrs*Periods+ROUND($AE19+$AF19+$AG19+$AH19,0)+1)*$AI19*(1/(1+Disc)^(ROUND($AE19+$AH19+$AF19+$AG19,0)+1)))*$S19 -> 3092.129415 | DL19: =(IF($AE19>0,NPV(Disc,OFFSET(CostE!AN$5,$AA19-1,SkipYrs*Periods+1,1,$AE19)),0)+OFFSET(CostE!AN$5,$AA19-1,SkipYrs*Periods+1+$AE19)*$AF19*(1/(1+Disc)^($AE19+1)))*$R19 + (OFFSET(CostE!AN$5,$AA19-1,SkipYrs*Periods+1+$AE19)*$AG19*(1/(1+Disc)^($AE19+1))+ IF($AH19>0,NPV(Disc,OFFSET(CostE!AN$5,$AA19-1,SkipYrs*Periods+ROUND($AE19+$AF19+$AG19,0)+1,1,$AH19)),0)*(1/(1+Disc)^($AE19+$AF19+$AG19))+ OFFSET(CostE!AN$5,$AA19-1,SkipYrs*Periods+ROUND($AE19+$AF19+$AG19+$AH19,0)+1)*$AI19*(1/(1+Disc)^(ROUND($AE19+$AH19+$AF19+$AG19,0)+1)))*$S19 -> 3104.305463 | DM19: =(IF($AE19>0,NPV(Disc,OFFSET(CostE!AO$5,$AA19-1,SkipYrs*Periods+1,1,$AE19)),0)+OFFSET(CostE!AO$5,$AA19-1,SkipYrs*Periods+1+$AE19)*$AF19*(1/(1+Disc)^($AE19+1)))*$R19 + (OFFSET(CostE!AO$5,$AA19-1,SkipYrs*Periods+1+$AE19)*$AG19*(1/(1+Disc)^($AE19+1))+ IF($AH19>0,NPV(Disc,OFFSET(CostE!AO$5,$AA19-1,SkipYrs*Periods+ROUND($AE19+$AF19+$AG19,0)+1,1,$AH19)),0)*(1/(1+Disc)^($AE19+$AF19+$AG19))+ OFFSET(CostE!AO$5,$AA19-1,SkipYrs*Periods+ROUND($AE19+$AF19+$AG19+$AH19,0)+1)*$AI19*(1/(1+Disc)^(ROUND($AE19+$AH19+$AF19+$AG19,0)+1)))*$S19 -> 3024.959018 | DN19: =(IF($AE19>0,NPV(Disc,OFFSET(CostE!AP$5,$AA19-1,SkipYrs*Periods+1,1,$AE19)),0)+OFFSET(CostE!AP$5,$AA19-1,SkipYrs*Periods+1+$AE19)*$AF19*(1/(1+Disc)^($AE19+1)))*$R19 + (OFFSET(CostE!AP$5,$AA19-1,SkipYrs*Periods+1+$AE19)*$AG19*(1/(1+Disc)^($AE19+1))+ IF($AH19>0,NPV(Disc,OFFSET(CostE!AP$5,$AA19-1,SkipYrs*Periods+ROUND($AE19+$AF19+$AG19,0)+1,1,$AH19)),0)*(1/(1+Disc)^($AE19+$AF19+$AG19))+ OFFSET(CostE!AP$5,$AA19-1,SkipYrs*Periods+ROUND($AE19+$AF19+$AG19+$AH19,0)+1)*$AI19*(1/(1+Disc)^(ROUND($AE19+$AH19+$AF19+$AG19,0)+1)))*$S19 -> 3041.509809 | DO19: =(IF($AE19>0,NPV(Disc,OFFSET(CostE!AQ$5,$AA19-1,SkipYrs*Periods+1,1,$AE19)),0)+OFFSET(CostE!AQ$5,$AA19-1,SkipYrs*Periods+1+$AE19)*$AF19*(1/(1+Disc)^($AE19+1)))*$R19 + (OFFSET(CostE!AQ$5,$AA19-1,SkipYrs*Periods+1+$AE19)*$AG19*(1/(1+Disc)^($AE19+1))+ IF($AH19>0,NPV(Disc,OFFSET(CostE!AQ$5,$AA19-1,SkipYrs*Periods+ROUND($AE19+$AF19+$AG19,0)+1,1,$AH19)),0)*(1/(1+Disc)^($AE19+$AF19+$AG19))+ OFFSET(CostE!AQ$5,$AA19-1,SkipYrs*Periods+ROUND($AE19+$AF19+$AG19+$AH19,0)+1)*$AI19*(1/(1+Disc)^(ROUND($AE19+$AH19+$AF19+$AG19,0)+1)))*$S19 -> 3153.687326 | DP19: =(IF($AE19>0,NPV(Disc,OFFSET(CostE!AR$5,$AA19-1,SkipYrs*Periods+1,1,$AE19)),0)+OFFSET(CostE!AR$5,$AA19-1,SkipYrs*Periods+1+$AE19)*$AF19*(1/(1+Disc)^($AE19+1)))*$R19 + (OFFSET(CostE!AR$5,$AA19-1,SkipYrs*Periods+1+$AE19)*$AG19*(1/(1+Disc)^($AE19+1))+ IF($AH19>0,NPV(Disc,OFFSET(CostE!AR$5,$AA19-1,SkipYrs*Periods+ROUND($AE19+$AF19+$AG19,0)+1,1,$AH19)),0)*(1/(1+Disc)^($AE19+$AF19+$AG19))+ OFFSET(CostE!AR$5,$AA19-1,SkipYrs*Periods+ROUND($AE19+$AF19+$AG19+$AH19,0)+1)*$AI19*(1/(1+Disc)^(ROUND($AE19+$AH19+$AF19+$AG19,0)+1)))*$S19 -> 3166.029067 | DQ19: =(IF($AE19>0,NPV(Disc,OFFSET(CostE!AS$5,$AA19-1,SkipYrs*Periods+1,1,$AE19)),0)+OFFSET(CostE!AS$5,$AA19-1,SkipYrs*Periods+1+$AE19)*$AF19*(1/(1+Disc)^($AE19+1)))*$R19 + (OFFSET(CostE!AS$5,$AA19-1,SkipYrs*Periods+1+$AE19)*$AG19*(1/(1+Disc)^($AE19+1))+ IF($AH19>0,NPV(Disc,OFFSET(CostE!AS$5,$AA19-1,SkipYrs*Periods+ROUND($AE19+$AF19+$AG19,0)+1,1,$AH19)),0)*(1/(1+Disc)^($AE19+$AF19+$AG19))+ OFFSET(CostE!AS$5,$AA19-1,SkipYrs*Periods+ROUND($AE19+$AF19+$AG19+$AH19,0)+1)*$AI19*(1/(1+Disc)^(ROUND($AE19+$AH19+$AF19+$AG19,0)+1)))*$S19 -> 3085.066443 | DR19: =(IF($AE19>0,NPV(Disc,OFFSET(CostE!AT$5,$AA19-1,SkipYrs*Periods+1,1,$AE19)),0)+OFFSET(CostE!AT$5,$AA19-1,SkipYrs*Periods+1+$AE19)*$AF19*(1/(1+Disc)^($AE19+1)))*$R19 + (OFFSET(CostE!AT$5,$AA19-1,SkipYrs*Periods+1+$AE19)*$AG19*(1/(1+Disc)^($AE19+1))+ IF($AH19>0,NPV(Disc,OFFSET(CostE!AT$5,$AA19-1,SkipYrs*Periods+ROUND($AE19+$AF19+$AG19,0)+1,1,$AH19)),0)*(1/(1+Disc)^($AE19+$AF19+$AG19))+ OFFSET(CostE!AT$5,$AA19-1,SkipYrs*Periods+ROUND($AE19+$AF19+$AG19+$AH19,0)+1)*$AI19*(1/(1+Disc)^(ROUND($AE19+$AH19+$AF19+$AG19,0)+1)))*$S19 -> 3101.916573 | DS19: =(IF($AE19>0,NPV(Disc,OFFSET(CostE!AU$5,$AA19-1,SkipYrs*Periods+1,1,$AE19)),0)+OFFSET(CostE!AU$5,$AA19-1,SkipYrs*Periods+1+$AE19)*$AF19*(1/(1+Disc)^($AE19+1)))*$R19 + (OFFSET(CostE!AU$5,$AA19-1,SkipYrs*Periods+1+$AE19)*$AG19*(1/(1+Disc)^($AE19+1))+ IF($AH19>0,NPV(Disc,OFFSET(CostE!AU$5,$AA19-1,SkipYrs*Periods+ROUND($AE19+$AF19+$AG19,0)+1,1,$AH19)),0)*(1/(1+Disc)^($AE19+$AF19+$AG19))+ OFFSET(CostE!AU$5,$AA19-1,SkipYrs*Periods+ROUND($AE19+$AF19+$AG19+$AH19,0)+1)*$AI19*(1/(1+Disc)^(ROUND($AE19+$AH19+$AF19+$AG19,0)+1)))*$S19 -> 3216.240343 | DT19: =(IF($AE19>0,NPV(Disc,OFFSET(CostE!AV$5,$AA19-1,SkipYrs*Periods+1,1,$AE19)),0)+OFFSET(CostE!AV$5,$AA19-1,SkipYrs*Periods+1+$AE19)*$AF19*(1/(1+Disc)^($AE19+1)))*$R19 + (OFFSET(CostE!AV$5,$AA19-1,SkipYrs*Periods+1+$AE19)*$AG19*(1/(1+Disc)^($AE19+1))+ IF($AH19>0,NPV(Disc,OFFSET(CostE!AV$5,$AA19-1,SkipYrs*Periods+ROUND($AE19+$AF19+$AG19,0)+1,1,$AH19)),0)*(1/(1+Disc)^($AE19+$AF19+$AG19))+ OFFSET(CostE!AV$5,$AA19-1,SkipYrs*Periods+ROUND($AE19+$AF19+$AG19+$AH19,0)+1)*$AI19*(1/(1+Disc)^(ROUND($AE19+$AH19+$AF19+$AG19,0)+1)))*$S19 -> 3228.725934 | DU19: =(IF($AE19>0,NPV(Disc,OFFSET(CostE!AW$5,$AA19-1,SkipYrs*Periods+1,1,$AE19)),0)+OFFSET(CostE!AW$5,$AA19-1,SkipYrs*Periods+1+$AE19)*$AF19*(1/(1+Disc)^($AE19+1)))*$R19 + (OFFSET(CostE!AW$5,$AA19-1,SkipYrs*Periods+1+$AE19)*$AG19*(1/(1+Disc)^($AE19+1))+ IF($AH19>0,NPV(Disc,OFFSET(CostE!AW$5,$AA19-1,SkipYrs*Periods+ROUND($AE19+$AF19+$AG19,0)+1,1,$AH19)),0)*(1/(1+Disc)^($AE19+$AF19+$AG19))+ OFFSET(CostE!AW$5,$AA19-1,SkipYrs*Periods+ROUND($AE19+$AF19+$AG19+$AH19,0)+1)*$AI19*(1/(1+Disc)^(ROUND($AE19+$AH19+$AF19+$AG19,0)+1)))*$S19 -> 3146.103444 | DV19: =(IF($AE19>0,NPV(Disc,OFFSET(CostE!AX$5,$AA19-1,SkipYrs*Periods+1,1,$AE19)),0)+OFFSET(CostE!AX$5,$AA19-1,SkipYrs*Periods+1+$AE19)*$AF19*(1/(1+Disc)^($AE19+1)))*$R19 + (OFFSET(CostE!AX$5,$AA19-1,SkipYrs*Periods+1+$AE19)*$AG19*(1/(1+Disc)^($AE19+1))+ IF($AH19>0,NPV(Disc,OFFSET(CostE!AX$5,$AA19-1,SkipYrs*Periods+ROUND($AE19+$AF19+$AG19,0)+1,1,$AH19)),0)*(1/(1+Disc)^($AE19+$AF19+$AG19))+ OFFSET(CostE!AX$5,$AA19-1,SkipYrs*Periods+ROUND($AE19+$AF19+$AG19+$AH19,0)+1)*$AI19*(1/(1+Disc)^(ROUND($AE19+$AH19+$AF19+$AG19,0)+1)))*$S19 -> 3148.094101 | DW19: =NPV(Disc,IF(ISERROR(DV19),0,Input!BJ19:DA19*(AM19:CD19+CE19:DV19)))*L19 -> 37414.73444 | DX19: =NPV(Disc,GasCalcs!M19:BD19*Input!BJ19:DA19)*L19 -> 38214.48848 | DY19: =NPV(Disc,IF(ISERROR(DV19),0,Input!BJ19:DA19*(AM19:CD19*$G19+CE19:DV19*$H19)))*$L19 -> 31802.52428 | DZ19: 32482.31521 | EA19: =IF(ISERROR(MATCH(Input!$S19,Rates!$A$4:$A$9,0)),1,MATCH(Input!$S19,Rates!$A$4:$A$9,0)) -> 1 | EB19: =MATCH(Input!$X19,Rates!$A$16:$A$18,0) -> 1 | EC19: =(IF($E19>=1,NPV($C$3,OFFSET(Rates!$B$4,$EA19-1,EC$16-Rates!$B$3,1,TRUNC($E19))))*(1+$C$3)+OFFSET(Rates!$B$4,$EA19-1,EC$16-Rates!$B$3+TRUNC($E19))*($E19-TRUNC($E19))*(1/(1+$C$3)^(EC$16-Rates!$B$3+TRUNC($E19))))*$M19+(IF((Input!$Z19-$E19)>=1,NPV($C$3,OFFSET(Rates!$B$4,$EA19-1,EC$16-Rates!$B$3+TRUNC($E19),1,TRUNC(Input!$Z19-$E19))))/(1+$C$3)^(TRUNC($E19)-1)+OFFSET(Rates!$B$4,$EA19-1,EC$16-Rates!$B$3+TRUNC(Input!$Z19))*(Input!$Z19-TRUNC(Input!$Z19))*(1/(1+$C$3)^(EC$16-Rates!$B$3+TRUNC(Input!$Z19))))*Input!$AC19 -> 42809.34834 | ED19: =(IF($E19>=1,NPV($C$3,OFFSET(Rates!$B$4,$EA19-1,ED$16-Rates!$B$3,1,TRUNC($E19))))*(1+$C$3)+OFFSET(Rates!$B$4,$EA19-1,ED$16-Rates!$B$3+TRUNC($E19))*($E19-TRUNC($E19))*(1/(1+$C$3)^(ED$16-Rates!$B$3+TRUNC($E19))))*$M19+(IF((Input!$Z19-$E19)>=1,NPV($C$3,OFFSET(Rates!$B$4,$EA19-1,ED$16-Rates!$B$3+TRUNC($E19),1,TRUNC(Input!$Z19-$E19))))/(1+$C$3)^(TRUNC($E19)-1)+OFFSET(Rates!$B$4,$EA19-1,ED$16-Rates!$B$3+TRUNC(Input!$Z19))*(Input!$Z19-TRUNC(Input!$Z19))*(1/(1+$C$3)^(ED$16-Rates!$B$3+TRUNC(Input!$Z19))))*Input!$AC19 -> 43618.55323 | EE19: =(IF($E19>=1,NPV($C$3,OFFSET(Rates!$B$4,$EA19-1,EE$16-Rates!$B$3,1,TRUNC($E19))))*(1+$C$3)+OFFSET(Rates!$B$4,$EA19-1,EE$16-Rates!$B$3+TRUNC($E19))*($E19-TRUNC($E19))*(1/(1+$C$3)^(EE$16-Rates!$B$3+TRUNC($E19))))*$M19+(IF((Input!$Z19-$E19)>=1,NPV($C$3,OFFSET(Rates!$B$4,$EA19-1,EE$16-Rates!$B$3+TRUNC($E19),1,TRUNC(Input!$Z19-$E19))))/(1+$C$3)^(TRUNC($E19)-1)+OFFSET(Rates!$B$4,$EA19-1,EE$16-Rates!$B$3+TRUNC(Input!$Z19))*(Input!$Z19-TRUNC(Input!$Z19))*(1/(1+$C$3)^(EE$16-Rates!$B$3+TRUNC(Input!$Z19))))*Input!$AC19 -> 44446.41221 | EF19: =(IF($E19>=1,NPV($C$3,OFFSET(Rates!$B$4,$EA19-1,EF$16-Rates!$B$3,1,TRUNC($E19))))*(1+$C$3)+OFFSET(Rates!$B$4,$EA19-1,EF$16-Rates!$B$3+TRUNC($E19))*($E19-TRUNC($E19))*(1/(1+$C$3)^(EF$16-Rates!$B$3+TRUNC($E19))))*$M19+(IF((Input!$Z19-$E19)>=1,NPV($C$3,OFFSET(Rates!$B$4,$EA19-1,EF$16-Rates!$B$3+TRUNC($E19),1,TRUNC(Input!$Z19-$E19))))/(1+$C$3)^(TRUNC($E19)-1)+OFFSET(Rates!$B$4,$EA19-1,EF$16-Rates!$B$3+TRUNC(Input!$Z19))*(Input!$Z19-TRUNC(Input!$Z19))*(1/(1+$C$3)^(EF$16-Rates!$B$3+TRUNC(Input!$Z19))))*Input!$AC19 -> 45292.44493 | EG19: =(IF($E19>=1,NPV($C$3,OFFSET(Rates!$B$4,$EA19-1,EG$16-Rates!$B$3,1,TRUNC($E19))))*(1+$C$3)+OFFSET(Rates!$B$4,$EA19-1,EG$16-Rates!$B$3+TRUNC($E19))*($E19-TRUNC($E19))*(1/(1+$C$3)^(EG$16-Rates!$B$3+TRUNC($E19))))*$M19+(IF((Input!$Z19-$E19)>=1,NPV($C$3,OFFSET(Rates!$B$4,$EA19-1,EG$16-Rates!$B$3+TRUNC($E19),1,TRUNC(Input!$Z19-$E19))))/(1+$C$3)^(TRUNC($E19)-1)+OFFSET(Rates!$B$4,$EA19-1,EG$16-Rates!$B$3+TRUNC(Input!$Z19))*(Input!$Z19-TRUNC(Input!$Z19))*(1/(1+$C$3)^(EG$16-Rates!$B$3+TRUNC(Input!$Z19))))*Input!$AC19 -> 46154.77635 | EH19: =(IF($E19>=1,NPV($C$3,OFFSET(Rates!$B$4,$EA19-1,EH$16-Rates!$B$3,1,TRUNC($E19))))*(1+$C$3)+OFFSET(Rates!$B$4,$EA19-1,EH$16-Rates!$B$3+TRUNC($E19))*($E19-TRUNC($E19))*(1/(1+$C$3)^(EH$16-Rates!$B$3+TRUNC($E19))))*$M19+(IF((Input!$Z19-$E19)>=1,NPV($C$3,OFFSET(Rates!$B$4,$EA19-1,EH$16-Rates!$B$3+TRUNC($E19),1,TRUNC(Input!$Z19-$E19))))/(1+$C$3)^(TRUNC($E19)-1)+OFFSET(Rates!$B$4,$EA19-1,EH$16-Rates!$B$3+TRUNC(Input!$Z19))*(Input!$Z19-TRUNC(Input!$Z19))*(1/(1+$C$3)^(EH$16-Rates!$B$3+TRUNC(Input!$Z19))))*Input!$AC19 -> 47033.21134 | EI19: =(IF($E19>=1,NPV($C$3,OFFSET(Rates!$B$4,$EA19-1,EI$16-Rates!$B$3,1,TRUNC($E19))))*(1+$C$3)+OFFSET(Rates!$B$4,$EA19-1,EI$16-Rates!$B$3+TRUNC($E19))*($E19-TRUNC($E19))*(1/(1+$C$3)^(EI$16-Rates!$B$3+TRUNC($E19))))*$M19+(IF((Input!$Z19-$E19)>=1,NPV($C$3,OFFSET(Rates!$B$4,$EA19-1,EI$16-Rates!$B$3+TRUNC($E19),1,TRUNC(Input!$Z19-$E19))))/(1+$C$3)^(TRUNC($E19)-1)+OFFSET(Rates!$B$4,$EA19-1,EI$16-Rates!$B$3+TRUNC(Input!$Z19))*(Input!$Z19-TRUNC(Input!$Z19))*(1/(1+$C$3)^(EI$16-Rates!$B$3+TRUNC(Input!$Z19))))*Input!$AC19 -> 47926.91171 | EJ19: =(IF($E19>=1,NPV($C$3,OFFSET(Rates!$B$4,$EA19-1,EJ$16-Rates!$B$3,1,TRUNC($E19))))*(1+$C$3)+OFFSET(Rates!$B$4,$EA19-1,EJ$16-Rates!$B$3+TRUNC($E19))*($E19-TRUNC($E19))*(1/(1+$C$3)^(EJ$16-Rates!$B$3+TRUNC($E19))))*$M19+(IF((Input!$Z19-$E19)>=1,NPV($C$3,OFFSET(Rates!$B$4,$EA19-1,EJ$16-Rates!$B$3+TRUNC($E19),1,TRUNC(Input!$Z19-$E19))))/(1+$C$3)^(TRUNC($E19)-1)+OFFSET(Rates!$B$4,$EA19-1,EJ$16-Rates!$B$3+TRUNC(Input!$Z19))*(Input!$Z19-TRUNC(Input!$Z19))*(1/(1+$C$3)^(EJ$16-Rates!$B$3+TRUNC(Input!$Z19))))*Input!$AC19 -> 48834.94124 | EK19: =(IF($E19>=1,NPV($C$3,OFFSET(Rates!$B$4,$EA19-1,EK$16-Rates!$B$3,1,TRUNC($E19))))*(1+$C$3)+OFFSET(Rates!$B$4,$EA19-1,EK$16-Rates!$B$3+TRUNC($E19))*($E19-TRUNC($E19))*(1/(1+$C$3)^(EK$16-Rates!$B$3+TRUNC($E19))))*$M19+(IF((Input!$Z19-$E19)>=1,NPV($C$3,OFFSET(Rates!$B$4,$EA19-1,EK$16-Rates!$B$3+TRUNC($E19),1,TRUNC(Input!$Z19-$E19))))/(1+$C$3)^(TRUNC($E19)-1)+OFFSET(Rates!$B$4,$EA19-1,EK$16-Rates!$B$3+TRUNC(Input!$Z19))*(Input!$Z19-TRUNC(Input!$Z19))*(1/(1+$C$3)^(EK$16-Rates!$B$3+TRUNC(Input!$Z19))))*Input!$AC19 -> 49756.25768 | EL19: =(IF($E19>=1,NPV($C$3,OFFSET(Rates!$B$4,$EA19-1,EL$16-Rates!$B$3,1,TRUNC($E19))))*(1+$C$3)+OFFSET(Rates!$B$4,$EA19-1,EL$16-Rates!$B$3+TRUNC($E19))*($E19-TRUNC($E19))*(1/(1+$C$3)^(EL$16-Rates!$B$3+TRUNC($E19))))*$M19+(IF((Input!$Z19-$E19)>=1,NPV($C$3,OFFSET(Rates!$B$4,$EA19-1,EL$16-Rates!$B$3+TRUNC($E19),1,TRUNC(Input!$Z19-$E19))))/(1+$C$3)^(TRUNC($E19)-1)+OFFSET(Rates!$B$4,$EA19-1,EL$16-Rates!$B$3+TRUNC(Input!$Z19))*(Input!$Z19-TRUNC(Input!$Z19))*(1/(1+$C$3)^(EL$16-Rates!$B$3+TRUNC(Input!$Z19))))*Input!$AC19 -> 50689.70393 | EM19: =(IF($E19>=1,NPV($C$3,OFFSET(Rates!$B$4,$EA19-1,EM$16-Rates!$B$3,1,TRUNC($E19))))*(1+$C$3)+OFFSET(Rates!$B$4,$EA19-1,EM$16-Rates!$B$3+TRUNC($E19))*($E19-TRUNC($E19))*(1/(1+$C$3)^(EM$16-Rates!$B$3+TRUNC($E19))))*$M19+(IF((Input!$Z19-$E19)>=1,NPV($C$3,OFFSET(Rates!$B$4,$EA19-1,EM$16-Rates!$B$3+TRUNC($E19),1,TRUNC(Input!$Z19-$E19))))/(1+$C$3)^(TRUNC($E19)-1)+OFFSET(Rates!$B$4,$EA19-1,EM$16-Rates!$B$3+TRUNC(Input!$Z19))*(Input!$Z19-TRUNC(Input!$Z19))*(1/(1+$C$3)^(EM$16-Rates!$B$3+TRUNC(Input!$Z19))))*Input!$AC19 -> 51633.99858 | EN19: =(IF($E19>=1,NPV($C$3,OFFSET(Rates!$B$16,$EB19-1,EN$16-Rates!$B$3,1,TRUNC($E19))))*(1+$C$3) +OFFSET(Rates!$B$16,$EB19-1,EN$16-Rates!$B$3+TRUNC($E19))*($E19-TRUNC($E19))*(1/(1+$C$3)^(EN$16-Rates!$B$3+TRUNC($E19))))*Input!$V19 + (IF((Input!$Z19-$E19)>=1,NPV($C$3,OFFSET(Rates!$B$16,$EB19-1,EN$16-Rates!$B$3+TRUNC($E19),1,TRUNC(Input!$Z19-$E19))))/(1+$C$3)^(TRUNC($E19)-1) +OFFSET(Rates!$B$16,$EB19-1,EN$16-Rates!$B$3+TRUNC(Input!$Z19))*(Input!$Z19-TRUNC(Input!$Z19))*(1/(1+$C$3)^(EN$16-Rates!$B$3+TRUNC(Input!$Z19))))*Input!$AE19 -> 28799.17581 | EO19: =(IF($E19>=1,NPV($C$3,OFFSET(Rates!$B$16,$EB19-1,EO$16-Rates!$B$3,1,TRUNC($E19))))*(1+$C$3) +OFFSET(Rates!$B$16,$EB19-1,EO$16-Rates!$B$3+TRUNC($E19))*($E19-TRUNC($E19))*(1/(1+$C$3)^(EO$16-Rates!$B$3+TRUNC($E19))))*Input!$V19 + (IF((Input!$Z19-$E19)>=1,NPV($C$3,OFFSET(Rates!$B$16,$EB19-1,EO$16-Rates!$B$3+TRUNC($E19),1,TRUNC(Input!$Z19-$E19))))/(1+$C$3)^(TRUNC($E19)-1) +OFFSET(Rates!$B$16,$EB19-1,EO$16-Rates!$B$3+TRUNC(Input!$Z19))*(Input!$Z19-TRUNC(Input!$Z19))*(1/(1+$C$3)^(EO$16-Rates!$B$3+TRUNC(Input!$Z19))))*Input!$AE19 -> 29343.55303 | EP19: =(IF($E19>=1,NPV($C$3,OFFSET(Rates!$B$16,$EB19-1,EP$16-Rates!$B$3,1,TRUNC($E19))))*(1+$C$3) +OFFSET(Rates!$B$16,$EB19-1,EP$16-Rates!$B$3+TRUNC($E19))*($E19-TRUNC($E19))*(1/(1+$C$3)^(EP$16-Rates!$B$3+TRUNC($E19))))*Input!$V19 + (IF((Input!$Z19-$E19)>=1,NPV($C$3,OFFSET(Rates!$B$16,$EB19-1,EP$16-Rates!$B$3+TRUNC($E19),1,TRUNC(Input!$Z19-$E19))))/(1+$C$3)^(TRUNC($E19)-1) +OFFSET(Rates!$B$16,$EB19-1,EP$16-Rates!$B$3+TRUNC(Input!$Z19))*(Input!$Z19-TRUNC(Input!$Z19))*(1/(1+$C$3)^(EP$16-Rates!$B$3+TRUNC(Input!$Z19))))*Input!$AE19 -> 29900.47943 | EQ19: =(IF($E19>=1,NPV($C$3,OFFSET(Rates!$B$16,$EB19-1,EQ$16-Rates!$B$3,1,TRUNC($E19))))*(1+$C$3) +OFFSET(Rates!$B$16,$EB19-1,EQ$16-Rates!$B$3+TRUNC($E19))*($E19-TRUNC($E19))*(1/(1+$C$3)^(EQ$16-Rates!$B$3+TRUNC($E19))))*Input!$V19 + (IF((Input!$Z19-$E19)>=1,NPV($C$3,OFFSET(Rates!$B$16,$EB19-1,EQ$16-Rates!$B$3+TRUNC($E19),1,TRUNC(Input!$Z19-$E19))))/(1+$C$3)^(TRUNC($E19)-1) +OFFSET(Rates!$B$16,$EB19-1,EQ$16-Rates!$B$3+TRUNC(Input!$Z19))*(Input!$Z19-TRUNC(Input!$Z19))*(1/(1+$C$3)^(EQ$16-Rates!$B$3+TRUNC(Input!$Z19))))*Input!$AE19 -> 30469.63187 | ER19: =(IF($E19>=1,NPV($C$3,OFFSET(Rates!$B$16,$EB19-1,ER$16-Rates!$B$3,1,TRUNC($E19))))*(1+$C$3) +OFFSET(Rates!$B$16,$EB19-1,ER$16-Rates!$B$3+TRUNC($E19))*($E19-TRUNC($E19))*(1/(1+$C$3)^(ER$16-Rates!$B$3+TRUNC($E19))))*Input!$V19 + (IF((Input!$Z19-$E19)>=1,NPV($C$3,OFFSET(Rates!$B$16,$EB19-1,ER$16-Rates!$B$3+TRUNC($E19),1,TRUNC(Input!$Z19-$E19))))/(1+$C$3)^(TRUNC($E19)-1) +OFFSET(Rates!$B$16,$EB19-1,ER$16-Rates!$B$3+TRUNC(Input!$Z19))*(Input!$Z19-TRUNC(Input!$Z19))*(1/(1+$C$3)^(ER$16-Rates!$B$3+TRUNC(Input!$Z19))))*Input!$AE19 -> 31049.74895 | ES19: =(IF($E19>=1,NPV($C$3,OFFSET(Rates!$B$16,$EB19-1,ES$16-Rates!$B$3,1,TRUNC($E19))))*(1+$C$3) +OFFSET(Rates!$B$16,$EB19-1,ES$16-Rates!$B$3+TRUNC($E19))*($E19-TRUNC($E19))*(1/(1+$C$3)^(ES$16-Rates!$B$3+TRUNC($E19))))*Input!$V19 + (IF((Input!$Z19-$E19)>=1,NPV($C$3,OFFSET(Rates!$B$16,$EB19-1,ES$16-Rates!$B$3+TRUNC($E19),1,TRUNC(Input!$Z19-$E19))))/(1+$C$3)^(TRUNC($E19)-1) +OFFSET(Rates!$B$16,$EB19-1,ES$16-Rates!$B$3+TRUNC(Input!$Z19))*(Input!$Z19-TRUNC(Input!$Z19))*(1/(1+$C$3)^(ES$16-Rates!$B$3+TRUNC(Input!$Z19))))*Input!$AE19 -> 31640.6994 | ET19: =(IF($E19>=1,NPV($C$3,OFFSET(Rates!$B$16,$EB19-1,ET$16-Rates!$B$3,1,TRUNC($E19))))*(1+$C$3) +OFFSET(Rates!$B$16,$EB19-1,ET$16-Rates!$B$3+TRUNC($E19))*($E19-TRUNC($E19))*(1/(1+$C$3)^(ET$16-Rates!$B$3+TRUNC($E19))))*Input!$V19 + (IF((Input!$Z19-$E19)>=1,NPV($C$3,OFFSET(Rates!$B$16,$EB19-1,ET$16-Rates!$B$3+TRUNC($E19),1,TRUNC(Input!$Z19-$E19))))/(1+$C$3)^(TRUNC($E19)-1) +OFFSET(Rates!$B$16,$EB19-1,ET$16-Rates!$B$3+TRUNC(Input!$Z19))*(Input!$Z19-TRUNC(Input!$Z19))*(1/(1+$C$3)^(ET$16-Rates!$B$3+TRUNC(Input!$Z19))))*Input!$AE19 -> 32241.91934 | EU19: =(IF($E19>=1,NPV($C$3,OFFSET(Rates!$B$16,$EB19-1,EU$16-Rates!$B$3,1,TRUNC($E19))))*(1+$C$3) +OFFSET(Rates!$B$16,$EB19-1,EU$16-Rates!$B$3+TRUNC($E19))*($E19-TRUNC($E19))*(1/(1+$C$3)^(EU$16-Rates!$B$3+TRUNC($E19))))*Input!$V19 + (IF((Input!$Z19-$E19)>=1,NPV($C$3,OFFSET(Rates!$B$16,$EB19-1,EU$16-Rates!$B$3+TRUNC($E19),1,TRUNC(Input!$Z19-$E19))))/(1+$C$3)^(TRUNC($E19)-1) +OFFSET(Rates!$B$16,$EB19-1,EU$16-Rates!$B$3+TRUNC(Input!$Z19))*(Input!$Z19-TRUNC(Input!$Z19))*(1/(1+$C$3)^(EU$16-Rates!$B$3+TRUNC(Input!$Z19))))*Input!$AE19 -> 32852.77896 | EV19: =(IF($E19>=1,NPV($C$3,OFFSET(Rates!$B$16,$EB19-1,EV$16-Rates!$B$3,1,TRUNC($E19))))*(1+$C$3) +OFFSET(Rates!$B$16,$EB19-1,EV$16-Rates!$B$3+TRUNC($E19))*($E19-TRUNC($E19))*(1/(1+$C$3)^(EV$16-Rates!$B$3+TRUNC($E19))))*Input!$V19 + (IF((Input!$Z19-$E19)>=1,NPV($C$3,OFFSET(Rates!$B$16,$EB19-1,EV$16-Rates!$B$3+TRUNC($E19),1,TRUNC(Input!$Z19-$E19))))/(1+$C$3)^(TRUNC($E19)-1) +OFFSET(Rates!$B$16,$EB19-1,EV$16-Rates!$B$3+TRUNC(Input!$Z19))*(Input!$Z19-TRUNC(Input!$Z19))*(1/(1+$C$3)^(EV$16-Rates!$B$3+TRUNC(Input!$Z19))))*Input!$AE19 -> 33472.57709 | EW19: =(IF($E19>=1,NPV($C$3,OFFSET(Rates!$B$16,$EB19-1,EW$16-Rates!$B$3,1,TRUNC($E19))))*(1+$C$3) +OFFSET(Rates!$B$16,$EB19-1,EW$16-Rates!$B$3+TRUNC($E19))*($E19-TRUNC($E19))*(1/(1+$C$3)^(EW$16-Rates!$B$3+TRUNC($E19))))*Input!$V19 + (IF((Input!$Z19-$E19)>=1,NPV($C$3,OFFSET(Rates!$B$16,$EB19-1,EW$16-Rates!$B$3+TRUNC($E19),1,TRUNC(Input!$Z19-$E19))))/(1+$C$3)^(TRUNC($E19)-1) +OFFSET(Rates!$B$16,$EB19-1,EW$16-Rates!$B$3+TRUNC(Input!$Z19))*(Input!$Z19-TRUNC(Input!$Z19))*(1/(1+$C$3)^(EW$16-Rates!$B$3+TRUNC(Input!$Z19))))*Input!$AE19 -> 34100.53532 | EX19: =(IF($E19>=1,NPV($C$3,OFFSET(Rates!$B$16,$EB19-1,EX$16-Rates!$B$3,1,TRUNC($E19))))*(1+$C$3) +OFFSET(Rates!$B$16,$EB19-1,EX$16-Rates!$B$3+TRUNC($E19))*($E19-TRUNC($E19))*(1/(1+$C$3)^(EX$16-Rates!$B$3+TRUNC($E19))))*Input!$V19 + (IF((Input!$Z19-$E19)>=1,NPV($C$3,OFFSET(Rates!$B$16,$EB19-1,EX$16-Rates!$B$3+TRUNC($E19),1,TRUNC(Input!$Z19-$E19))))/(1+$C$3)^(TRUNC($E19)-1) +OFFSET(Rates!$B$16,$EB19-1,EX$16-Rates!$B$3+TRUNC(Input!$Z19))*(Input!$Z19-TRUNC(Input!$Z19))*(1/(1+$C$3)^(EX$16-Rates!$B$3+TRUNC(Input!$Z19))))*Input!$AE19 -> 34735.79161 | EY19: =IF(ISERROR(EC19),0,EC19*Input!AX19*$G19*$L19) -> 0 | EZ19: =IF(ISERROR(ED19),0,ED19*Input!AY19*$G19*$L19) -> 0 | FA19: =IF(ISERROR(EE19),0,EE19*Input!AZ19*$G19*$L19) -> 68003.01069 | FB19: =IF(ISERROR(EF19),0,EF19*Input!BA19*$G19*$L19) -> 0 | FC19: =IF(ISERROR(EG19),0,EG19*Input!BB19*$G19*$L19) -> 0 | FD19: =IF(ISERROR(EH19),0,EH19*Input!BC19*$G19*$L19) -> 0 | FE19: =IF(ISERROR(EI19),0,EI19*Input!BD19*$G19*$L19) -> 0 | FF19: =IF(ISERROR(EJ19),0,EJ19*Input!BE19*$G19*$L19) -> 0 | FG19: =IF(ISERROR(EK19),0,EK19*Input!BF19*$G19*$L19) -> 0 | FH19: =IF(ISERROR(EL19),0,EL19*Input!BG19*$G19*$L19) -> 0 | FI19: =IF(ISERROR(EM19),0,EM19*Input!BH19*$G19*$L19) -> 0 | FJ19: =IF(ISERROR(EN19),0,EN19*Input!AX19*$I19*$L19) -> 0 | FK19: =IF(ISERROR(EO19),0,EO19*Input!AY19*$I19*$L19) -> 0 | FL19: =IF(ISERROR(EP19),0,EP19*Input!AZ19*$I19*$L19) -> 45747.73353 | FM19: =IF(ISERROR(EQ19),0,EQ19*Input!BA19*$I19*$L19) -> 0 | FN19: =IF(ISERROR(ER19),0,ER19*Input!BB19*$I19*$L19) -> 0 | FO19: =IF(ISERROR(ES19),0,ES19*Input!BC19*$I19*$L19) -> 0 | FP19: =IF(ISERROR(ET19),0,ET19*Input!BD19*$I19*$L19) -> 0 | FQ19: =IF(ISERROR(EU19),0,EU19*Input!BE19*$I19*$L19) -> 0 | FR19: =IF(ISERROR(EV19),0,EV19*Input!BF19*$I19*$L19) -> 0 | FS19: =IF(ISERROR(EW19),0,EW19*Input!BG19*$I19*$L19) -> 0 | FT19: =IF(ISERROR(EX19),0,EX19*Input!BH19*$I19*$L19) -> 0 | FU19: =MAX(0,SUM(Input!N19:P19)-Input!L19) -> 0 | FV19: =MAX(NPV(Disc,FU19*Input!$BJ19:$DA19),FY19-GA19,0) -> 0 | FW19: 0 | FX19: =NPV(Disc,Input!M19*Input!$BJ19:$DA19) -> 19346.73982 | FY19: =NPV(Disc,SUM(Input!N19:P19)*Input!$BJ19:$DA19) -> 0 | FZ19: 19346.73982 | GA19: =NPV(Disc,1*Input!BJ19:DA19)*(Input!L19-IF(Calcs!AD19>0,(Input!L19-Input!AA19)*((1+Input!AB19/Periods)/(1+Disc))^(Calcs!AD19*Periods),0)) -> 32244.56636 | GB19: 12897.82654 | GC19: 10963.15256 | GD19: =(NPV(Disc,Input!$BJ19:$DA19*Input!R19)*PV($C$3,$E19,-1,0,1)+ NPV(Disc,Input!$BJ19:$DA19*N19)*PV($C$3,Input!$Z19-$E19,-1,0,1)/(1+$C$3)^$E19)*L19 -> 275085.2983 | GE19: =(NPV(Disc,Input!$BJ19:$DA19*Input!V19)*PV($C$3,$E19,-1,0,1)+NPV(Disc,Input!$BJ19:$DA19*Input!$AE19)*PV($C$3,Input!$Z19-$E19,-1,0,1)/(1+$C$3)^$E19)*L19 -> 26946.69229 | GF19: 233822.5036 | GG19: 22904.68845 | GH19: 31802.52428 | GI19: 32482.31521 | GJ19: 0.4947126652 | GK19: 0.1136847926 | GL19: =DY19+DZ19-(FZ19+GC19)-(Input!$Q$13-Input!$J$11)*GK19 -> 3333.005331 | GM19: =IF(GF19<>0,(DY19-(GC19+FZ19)*GJ19)/GF19,0) -> 0.07188288715 | GN19: =IF(GG19<>0,(DZ19-(GC19+FZ19)*(1-GJ19))/GG19,0) -> 0.7495020294 | GO19: =IF(GF19<>0,GM19-(Input!$Q$13-Input!$J$11)*$GJ19*$GK19/GF19,0) -> 0.007051844563 | GP19: =IF(GG19<>0,GN19-(Input!$Q$13-Input!$J$11)*(1-$GJ19)*$GK19/GG19,0) -> 0.07352753931 | GQ19: =IF(GF19<>0,(DY19-(+$FZ19)*GJ19)/GF19,0) -> 0.09507830393 | GR19: =IF(GG19<>0,(DZ19-($FZ19)*(1-GJ19))/GG19,0) -> 0.9913539171 | GS19: =IF(GF19<>0,GQ19-(Input!$Q$13-Input!$J$11+Input!$Q$4)*$GJ19*$GK19/GF19,0) -> 0.03024726135 | GT19: =IF(GG19<>0,GR19-(Input!$Q$13-Input!$J$11+Input!$Q$4)*(1-$GJ19)*$GK19/GG19,0) -> 0.315379427 | GU19: =(DZ19+DY19)/(GC19+FZ19) -> 2.120919424 | GV19: =(DZ19+DY19)/(FZ19) -> 3.322773764 | GW19: =(DZ19+DY19)/((GC19+FZ19)+$GK19*(Input!$Q$13-Input!$J$11)) -> 1.054682609 | GX19: =(DZ19+DY19)/(FZ19+$GK19*(Input!$Q$13-Input!$J$11+Input!$Q$4)) -> 1.285987896 | GY19: =Input!DB19*O19*$G19*$L19 -> 31698.7695 | GZ19: =GY19*MAX(Input!$Z19,$E19) -> 454243.3669 | HA19: =Input!DB19*$I19*GasCalcs!G19*$L19 -> 3105.135 | HB19: =HA19*MAX(Input!$Z19,$E19) -> 44496.58455 | HC19: =IF(ISERROR(Loads!AY19*Input!DB19*$T19*$H19),0,Loads!AY19*Input!DB19*$T19*$H19)*$L19 -> 4.791674459 | HD19: =IF(ISERROR(Loads!AZ19*Input!DB19*$T19*$H19),0,Loads!AZ19*Input!DB19*$T19*$H19)*$L19 -> 5.820617725 | HF19: =IF(Calcs!F19<>0,(Input!U19*H19*$L19*E19+Input!AD19*H19*L19*(F19-E19))/F19*Input!DB19,0) -> 0 | HG19: =IF(ISERROR(OFFSET(CostE!$AQ$5,$AB19-1,0)),0,OFFSET(CostE!$AQ$5,$AB19-1,0)) -> 0.0005014959142 | HH19: =IF(ISERROR(OFFSET(CostE!$AR$5,$AB19-1,0)),0,OFFSET(CostE!$AR$5,$AB19-1,0)) -> 0.0001204177292 | HI19: =IF(ISERROR(OFFSET(CostE!$AS$5,$AB19-1,0)),0,OFFSET(CostE!$AS$5,$AB19-1,0)) -> 6.63299825e-05 | HJ19: =IF(ISERROR(INDEX(CostG!$E$37:$E$43,GasCalcs!$L19)),0,INDEX(CostG!$E$37:$E$43,GasCalcs!$L19)) -> 0.00585 | HK19: =IF(ISERROR(INDEX(CostG!$F$37:$F$43,GasCalcs!$L19)),0,INDEX(CostG!$F$37:$F$43,GasCalcs!$L19)) -> 0.0098 | HL19: =IF(ISERROR(Z19),0,OFFSET(CostE!$F$5,Calcs!Z19-1,0)) -> Water Heating | HM19: 1 | HN19: 0 | HO19: 0 | HP19: 0 | HQ19: =IF(GasCalcs!E19<>0,GasCalcs!F19/GasCalcs!E19,1) -> 0
